Workbook

Sheet COVER
C3: =UPPER(Lists!K3) -> STATISTICAL OFFICE OF THE EUROPEAN UNION
C5: =Lists!K4 -> Directorate E: Sectoral and regional statistics
C6: =Lists!K5 -> Unit E-2: Environmental statistics and accounts; sustainable development
C7: =UPPER(Lists!K7) -> BIENNIAL WASTE STATISTICS REGULATION - WASTE GENERATION
C8: =CONCATENATE(Lists!K8," DATA COLLECTION") -> 2026 DATA COLLECTION
C9: =CONCATENATE("Launching date: ",Lists!K9) -> Launching date: 19 May 2026

Sheet INDEX
E3: =UPPER(Lists!K3) -> STATISTICAL OFFICE OF THE EUROPEAN UNION
C4: =UPPER(Lists!K7) -> BIENNIAL WASTE STATISTICS REGULATION - WASTE GENERATION
C5: =CONCATENATE(Lists!K8," DATA COLLECTION") -> 2026 DATA COLLECTION
C7: INDEX - STRUCTURE OF THE QUESTIONNAIRE
C9: I. Basic information
C10: TITLE | D10: DESCRIPTION | E10: TYPE
C11: Index | D11: Structure of the questionnaire | E11: for information
C12: Basic instructions | D12: Basic instructions | E12: for reading before filling in the questionnaire
C13: Methodology | D13: Explanatory notes and methodology | E13: for reading before filling in the questionnaire
C14: Validation rules | D14: Validation performed by the 'Validate questionnaire' button | E14: for reading before filling in the questionnaire
C15: II. Reporting data (To be filled in by the country)
C16: TITLE | D16: DESCRIPTION | E16: TYPE
C17: GETTING STARTED | D17: Country and data collection definition. Administrative data. | E17: for filling in
C18: Footnotes list | D18: List of country-specific explanatory footnotes | E18: for filling in
C19: Table 1 | D19: WASTE GENERATION by waste category (EWC-STAT) and economic activity (NACE) | E19: for filling in.

Sheet Basic Instructions
F3: =UPPER(Lists!K3) -> STATISTICAL OFFICE OF THE EUROPEAN UNION
C4: =UPPER(Lists!K7) -> BIENNIAL WASTE STATISTICS REGULATION - WASTE GENERATION
C5: =CONCATENATE(Lists!K8," DATA COLLECTION") -> 2026 DATA COLLECTION
C7: BASIC INSTRUCTIONS
C8: Before filling in the questionnaire please read carefully the instructions below. This EXCEL workbook is the questionnaire. Please do not delete or add rows in the questionnaire.
C9: This EXCEL workbook contains macros. In order to make them work you need to save the file in your computer and then reopen it and enable macros resp. make it a trusted document.
C10: Once you filled in all the required fields, you have to validate the data before submitting the questionnaire (clicking on the button 'Validate questionnaire' on the top left-hand corner of the worksheets). It is of the utmost importance to confirm that there are no pending errors (see 'Errorlog' worksheet), since a questionnaire with errors (red shadowed cells) will be rejected. You can restore the color of the table clicking on 'Restore table color'.
C11: Table of contents
C12: 1. Data transmission
C13: 2. Reporting conventions
C14: 3. Metadata
C15: 4. Footnotes
C16: 5. Methodology and questions
C17: Annex: How to fill in the data sheets of the questionnaire
C19: 1. Data transmission:
C21: The standard tool for the transmission of statistical data is the eDAMIS system. The system creates a secure environment for the transmission of data, it records all data submissions and acknowledges the data delivery. The eDAMIS system has been installed in the National Statistical Institutes.
C23: Please submit this questionnaire to Eurostat using the eDAMIS reporting system. Use the following details:
C24: Domain name: | D24: =Lists!K12 -> WASTE
C25: Dataset name: | D25: =Lists!K13 -> WASTE_GEN
C27: Should you have any questions regarding data transmission do not hesitate to contact your local eDAMIS coordinator or the Eurostat eDAMIS helpdesk at:
C28: web page: | D28: =Lists!K14 -> https://webgate.ec.europa.eu/edamis/helpcenter/website/index.htm
C29: e-mail address: | D29: =Lists!K15 -> estat-support-edamis@ec.europa.eu
C30: telephone: | D30: =Lists!K17 -> (+352) 4301 33213
C31: For methodological questions please contact:
C32: e-mail address: | D32: =Lists!K18 -> ESTAT-WASTE-STATISTICS@EC.EUROPA.EU
C34: 2. Reporting conventions:
C36: Reporting of zeroes and not availble data must follow this convention:
C37: Description | D37: Symbol
C38: Real zero | D38: 0
C39: Not available | E39: (empty cell)
C41: 1. White shaded (uncoloured) boxes: Provision of data is mandatory
C42: 2. Black shaded boxes: reporting is not applicable
C43: 3. Grey shaded boxes: calculation is automatic; do not input any data into these cells. IF exceptionally you need to input data in a grey cell, first press the "unlock formulas" button situated in the top left-hand corner of each sheet.
C45: 3. Metadata:
C47: Please provide data by means of the Metadatahandler, available in the following link:
C48: https://webgate.ec.europa.eu/estat/spe/metaconv/home.htm
C50: 4. Footnotes:
C52: You are asked to report data that follow as closely as possible the Waste Statistics Regulation waste definitions and reporting rules (see paragraphs below). Please report problems with the coverage or data quality in the Metadatahandler.
C54: Flags (footnote symbols) should be entered in the reporting tables in the footnote columns, next to the value cell. There are two types of footnotes:
C55: - Letters for standard footnotes (as defined by Eurostat) and…
C56: - Numbers for country-specific footnotes (to be defined by the data compilers).
C58: 4.1 Standard footnotes
C59: The following footnotes will be used for the automatic data processing and data dissemination. Hence, they cannot be changed:
C60: B) break in series | D60: Please use this flag when the reported figure cannot be compared to the data reported for the previous year, e.g. because of new methods or sources being used or when you move from the old calculation rules to the new calculation rules. Please use this flag only when the change in methods, sources or calculation rules has a substantial impact.
C61: E) estimated data
C62: P) provisional
C63: The drop-down menu includes as well combinations of footnotes. If you need to put more than one footnote in a field, please, use these combinations in the drop-down menu.
C65: 4.2 Country-specific explanatory footnotes
C66: The explanatory footnotes can be used for any meaning beyond the pre-defined footnotes.
C67: To include an explanatory footnote, please first insert the text in the “Footnote list” sheet starting from number 1. Then in the data table please select the corresponding footnote reference number from the drop-down menu in the footnote column next to the value cell. The text you entered in the “Footnote list” sheet will then appear automatically next to the footnote reference number. The same explanatory footnote can be chosen for all the values for which the same explanation applies. If by mistake a number is chosen from the drop-down menu, it is sufficient to press the key delete to clean the cell.
C68: Please do not report footnotes that elaborate on e.g. source data and compilation methods; these are to be described in the quality report and the metadata sheets.
C70: 5. Methodology and questions:
C72: Guidance and the Manual on waste statistics are available on Eurostat website:
C73: =Lists!K19 -> https://ec.europa.eu/eurostat/web/waste/methodology
C75: The guidelines contain definitions, examples and recommendations to ensure that data are compiled and maintained on a consistent basis. They explain the scope and the reasoning behind the terms of the tables, and provide extra information necessary to allow a consistent collection and interpretation of the data to be reported by countries.
C76: A summary methodology is presented in this questionnaire, in the sheet named 'Methodology'. It is essential to read this sheet before filling in the questionnaire as it contains, beside the summary methodology, important information on priorities for filling in the tables, data sources and hints for establishing a methodology at national level.
C77: If you have questions, please send them to the following email addresses:
C78: =Lists!K18 -> ESTAT-WASTE-STATISTICS@EC.EUROPA.EU
C80: Annex: How to fill in the data sheets of the questionnaire
C82: You are kindly requested to:
C83: 1) All mandatory data cells (whilte cells) must be filled in with a positive value or a zero.
C84: 2) Cells, which contain sums, are filled in automatically, unless there are empty fields in one of the summands. In this case, the field containing the sum has to be filled as well. In case, you assume that a formula should be added in a cell, please, send us an email with this formula. Please, do not add the formula yourself. The formula may be helpful all countries.
C85: 3) Flags (footnote symbols) can be entered in the reporting tables in the footnote columns.
C86: 4) To include standard footnotes use the drop-down menu.
C87: 5) The text of specific footnotes can be entered in the worksheet 'Footnotes list'.
C88: 6) Empty fields are a breach of the Regulation 2150/2002. An explanation, why the value is not available, has to be entered.

Sheet Methodology
F3: =UPPER(Lists!K3) -> STATISTICAL OFFICE OF THE EUROPEAN UNION
C4: =UPPER(Lists!K7) -> BIENNIAL WASTE STATISTICS REGULATION - WASTE GENERATION
C5: =CONCATENATE(Lists!K8," DATA COLLECTION") -> 2026 DATA COLLECTION
C7: METHODOLOGY AND LEGAL ACTS
C8: Table of contents
C9: 1. Background
C10: 2. Legal acts
C11: 3. Data reporting - questionnaire
C13: 1. Background
C15: Regular Community statistics on the production and management of waste from businesses and private households are required by the Community for monitoring the implementation of waste policy. Regulation (EC) No 2150/2002 of the European Parliament and of the Council of 25 November 2002 on waste statistics creates the basis for monitoring compliance with the principles of maximisation of recovery and safe disposal.
C17: This reporting template allows Member States to report waste generation pursuant to the requirements of this Regulation and the amending Commission Regulation (EU) No 849/2010.
C19: The guidelines are available here:
C20: =Lists!K19 -> https://ec.europa.eu/eurostat/web/waste/methodology
C22: 2. Legal acts
C24: European Parliament and Council Regulation 2002/2150 was last amended by amending Commission Regulation (EU) No 849/2010.
C25: Definitions and classifications in these Regulations are based on the Waste Framework Directive - Directive 2008/98/EC of the European Parliament and the Council (https://eur-lex.europa.eu/legal-content/EN/TXT/?uri=CELEX:02008L0098-20180705)
C26: The legislation is available here:
C27: https://ec.europa.eu/eurostat/web/waste/legislation
C28: https://eur-lex.europa.eu/legal-content/EN/TXT/?uri=CELEX:02008L0098-20180705
C30: 3. Data reporting - questionnaire
C32: This document assists Member States to report high quality, harmonised and efficient statistics. Detailed instructions can be found in the guidance document referred to above.
C33: The reporting shall cover a full calendar year.
C34: The basic instructions sheet consists of some information necessary for filling in this questionnaire correctly, like unit of measure, allowed symbols, metadata, footnotes, and transmission to Eurostat.

Sheet Validation rules
F3: =UPPER(Lists!K3) -> STATISTICAL OFFICE OF THE EUROPEAN UNION
C4: =UPPER(Lists!K7) -> BIENNIAL WASTE STATISTICS REGULATION - WASTE GENERATION
C5: =CONCATENATE(Lists!K8," DATA COLLECTION") -> 2026 DATA COLLECTION
C7: VALIDATION RULES
C8: Table of contents
C9: 1. Mandatory data
C10: 2. Arithmetic rules
C11: 3. Explanatory footnotes
C13: 1. Mandatory Data:
C15: All the information requested in the sheet "GETTING STARTED" must be filled in.
C16: All the mandatory cells (white cells) in table 1 must be filled-in.
C17: If mandatory cells are left empty, an explanation why the data is missing has to be provided by means of the "Explanatory footnote" next to the missing value.
C19: 2. Arithmetic rules
C21: All reported values must be equal or bigger than 0 (positive values).
C22: Hazardous plus non-hazardous waste must be equal to the total for each waste category.
C23: Total waste (coded as TOTAL) must equal to the sum of all EWCstat. categories
C24: Total Waste (excluding mineral waste) coded as TOT_X_MIN must be equal to the sum of all EWCstat. minus the following categories: - 12.1 Mineral waste from construction and demolition (coded W121) - 12.2,12.3 and 12.5 Other mineral wastes (Coded W12B) - 12.6 Soils (coded W126) - 12.7 Dredging spoils (coded W127)
C25: Primary waste, coded as PRIM, must be equal to the sum of all EWCstat. categories minus - 03.3 Sludges and liquid waste from waste treatment (Coded W033) - 10.3 Sorting residues (Coded W103) - 128_13 Mineral waste from waste treatment and stabilised waste (Coded W128_13)
C26: Secondary waste, coded as SEC, must be equal to the sum of the following EWCstat. categories - 03.3 Sludges and liquid waste from waste treatment (Coded W033) - 10.3 Sorting residues (Coded W103) - 128_13 Mineral waste from waste treatment and stabilised waste (Coded W128_13)
C27: All NACE activities plus households, coded as TOTAL_HH, must equal the sum of the all NACE classes plus households.
C29: 3. Explanatory footnotes
C31: When an explanatory footnote is referenced (by means of a number selected from the drop-down list), the referenced footnote in the sheet "Footnotes list" must not be empty.

Sheet GETTING STARTED
G3: =UPPER(Lists!K3) -> STATISTICAL OFFICE OF THE EUROPEAN UNION
C4: =UPPER(Lists!K7) -> BIENNIAL WASTE STATISTICS REGULATION - WASTE GENERATION
C5: =CONCATENATE(Lists!K8," DATA COLLECTION") -> 2026 DATA COLLECTION
C7: GETTING STARTED
C9: Please select your country (click on the white cell): | E9: Croatia | G9: =IF(E9="","",VLOOKUP(E9,Lists!A2:B44,2,FALSE)) -> HR
C10: Reference year: | E10: 2024
C11: =CONCATENATE("The due date for reporting is ",Lists!K10) -> The due date for reporting is 30 June 2026
C12: ="Who is the primary contact point for the data collection '" & Lists!K7&"' in your country?" -> Who is the primary contact point for the data collection 'Biennial Waste Statistics Regulation - Waste Generation' in your country?
C14: Name: | D14: Antonija Šemanjski
C16: Institution: | D16: Ministry of Environmental Protection and Green Transition
C18: Unit: | D18: Institute for Environment and Nature
C20: Telephone: | D20: +385 1 5581 667
C22: Email adress: | D22: antonija.semanjski@mzozt.hr
C23: Eurostat would be grateful if you could send us the completed questionnaire ahead of the deadline.

Sheet Footnotes list
E3: =UPPER(Lists!K3) -> STATISTICAL OFFICE OF THE EUROPEAN UNION
D4: =UPPER(Lists!K7) -> BIENNIAL WASTE STATISTICS REGULATION - WASTE GENERATION
D5: =CONCATENATE(Lists!K8," DATA COLLECTION") -> 2026 DATA COLLECTION
D7: EXPLANATORY FOOTNOTES
D8: =IF('GETTING STARTED'!E9="","",'GETTING STARTED'!E9) -> Croatia
D9: 1 | E9: Type your text here.
D10: 2
D11: 3
D12: 4
D13: 5
D14: 6
D15: 7
D16: 8
D17: 9
D18: 10
D19: 11
D20: 12
D21: 13
D22: 14
D23: 15
D24: 16
D25: 17
D26: 18
D27: 19
D28: 20
D29: 21
D30: 22
D31: 23
D32: 24
D33: 25
D34: 26
D35: 27
D36: 28
D37: 29
D38: 30
D39: 31
D40: 32
D41: 33
D42: 34
D43: 35
D44: 36
D45: 37
D46: 38
D47: 39
D48: 40
D49: 41
D50: 42
D51: 43
D52: 44
D53: 45
D54: 46
D55: 47
D56: 48
D57: 49
D58: 50

Sheet Table_1
B3: Country: | D3: =IF('GETTING STARTED'!E9="","",'GETTING STARTED'!$E$9) -> Croatia | F3: =IF('GETTING STARTED'!G9="","",'GETTING STARTED'!$G$9) -> HR
B4: Reference year: | D4: =IF('GETTING STARTED'!E10="","",'GETTING STARTED'!$E$10) -> 2024
G5: A | L5: B | Q5: C10-C12 | V5: C13-C15 | AA5: C16 | AF5: C17_C18 | AK5: C19 | AP5: C20-C22 | AU5: C23 | AZ5: C24_C25 | BE5: C26-C30 | BJ5: C31-C33 | BO5: C | BT5: D | BY5: E36_E37_E39 | CD5: E38 | CI5: E | CN5: F | CS5: G-U_X_G4677 | CX5: G4677 | DC5: EP_HH | DH5: TOTAL_HH
B6: Unit: Tonnes | D6: T | G6: =G5 -> A | L6: =L5 -> B | Q6: =Q5 -> C10-C12 | V6: =V5 -> C13-C15 | AA6: =AA5 -> C16 | AF6: =AF5 -> C17_C18 | AK6: =AK5 -> C19 | AP6: =AP5 -> C20-C22 | AU6: =AU5 -> C23 | AZ6: =AZ5 -> C24_C25 | BE6: =BE5 -> C26-C30 | BJ6: =BJ5 -> C31-C33 | BO6: =BO5 -> C | BT6: =BT5 -> D | BY6: =BY5 -> E36_E37_E39 | CD6: =CD5 -> E38 | CI6: =CI5 -> E | CN6: =CN5 -> F | CS6: =CS5 -> G-U_X_G4677 | CX6: =CX5 -> G4677 | DC6: =DC5 -> EP_HH | DH6: =DH5 -> TOTAL_HH
B7: WASTE GENERATION by waste category (EWC-STAT) and economic activity (NACE) | G7: Agriculture, forestry and fishing | H7: Standard footnote | I7: Confidentiality footnote | J7: Explanatory footnote | L7: Mining and quarrying | M7: Standard footnote | N7: Confidentiality footnote | O7: Explanatory footnote | Q7: Manufacture of food products; beverages and tobacco products | R7: Standard footnote | S7: Confidentiality footnote | T7: Explanatory footnote | V7: Manufacture of textiles, wearing apparel, leather and related products | W7: Standard footnote | X7: Confidentiality footnote | Y7: Explanatory footnote | AA7: Manufacture of wood and of products of wood and cork, except furniture; manufacture of articles of straw and plaiting materials | AB7: Standard footnote | AC7: Confidentiality footnote | AD7: Explanatory footnote | AF7: Manufacture of paper and paper products; printing and reproduction of recorded media | AG7: Standard footnote | AH7: Confidentiality footnote | AI7: Explanatory footnote | AK7: Manufacture of coke and refined petroleum products | AL7: Standard footnote | AM7: Confidentiality footnote | AN7: Explanatory footnote | AP7: Manufacture of chemical, pharmaceutical, rubber and plastic products | AQ7: Standard footnote | AR7: Confidentiality footnote | AS7: Explanatory footnote | AU7: Manufacture of other non-metallic mineral products | AV7: Standard footnote | AW7: Confidentiality footnote | AX7: Explanatory footnote | AZ7: Manufacture of basic metals and fabricated metal products, except machinery and equipment | BA7: Standard footnote | BB7: Confidentiality footnote | BC7: Explanatory footnote | BE7: Manufacture of computer, electronic and optical products, electrical equipment, motor vehicles and other transport equipment | BF7: Standard footnote | BG7: Confidentiality footnote | BH7: Explanatory footnote | BJ7: Manufacture of furniture; jewellery, musical instruments, toys; repair and installation of machinery and equipment | BK7: Standard footnote | BL7: Confidentiality footnote | BM7: Explanatory footnote | BO7: Manufacturing | BP7: Standard footnote | BQ7: Confidentiality footnote | BR7: Explanatory footnote | BT7: Electricity, gas, steam and air conditioning supply | BU7: Standard footnote | BV7: Confidentiality footnote | BW7: Explanatory footnote | BY7: Water collection, treatment and supply; sewerage; remediation activities and other waste management services | BZ7: Standard footnote | CA7: Confidentiality footnote | CB7: Explanatory footnote | CD7: Waste collection, treatment and disposal activities; materials recovery | CE7: Standard footnote | CF7: Confidentiality footnote | CG7: Explanatory footnote | CI7: Water supply; sewerage, waste management and remediation activities | CJ7: Standard footnote | CK7: Confidentiality footnote | CL7: Explanatory footnote | CN7: Construction | CO7: Standard footnote | CP7: Confidentiality footnote | CQ7: Explanatory footnote | CS7: Services (except wholesale of waste and scrap) | CT7: Standard footnote | CU7: Confidentiality footnote | CV7: Explanatory footnote | CX7: Wholesale of waste and scrap | CY7: Standard footnote | CZ7: Confidentiality footnote | DA7: Explanatory footnote | DC7: Households | DD7: Standard footnote | DE7: Confidentiality footnote | DF7: Explanatory footnote | DH7: All NACE activities plus households | DI7: Standard footnote | DJ7: Confidentiality footnote | DK7: Explanatory footnote
B8: W011 | C8: W011 | D8: Spent solvents | E8: HAZ | F8: Hazardous | G8: 0 | K8: =IF(TRIM(J8)="", "", IF(VLOOKUP(J8,'Footnotes list'!$D$9:$E$58,2,FALSE)=0,"",VLOOKUP(J8,'Footnotes list'!$D$9:$E$58,2,FALSE) ) ) ->  | L8: 5.955 | P8: =IF(TRIM(O8)="", "", IF(VLOOKUP(O8,'Footnotes list'!$D$9:$E$58,2,FALSE)=0,"",VLOOKUP(O8,'Footnotes list'!$D$9:$E$58,2,FALSE) ) ) ->  | Q8: 0.179 | U8: =IF(TRIM(T8)="", "", IF(VLOOKUP(T8,'Footnotes list'!$D$9:$E$58,2,FALSE)=0,"",VLOOKUP(T8,'Footnotes list'!$D$9:$E$58,2,FALSE) ) ) ->  | V8: 22.358 | Z8: =IF(TRIM(Y8)="", "", IF(VLOOKUP(Y8,'Footnotes list'!$D$9:$E$58,2,FALSE)=0,"",VLOOKUP(Y8,'Footnotes list'!$D$9:$E$58,2,FALSE) ) ) ->  | AA8: 1.579 | AE8: =IF(TRIM(AD8)="", "", IF(VLOOKUP(AD8,'Footnotes list'!$D$9:$E$58,2,FALSE)=0,"",VLOOKUP(AD8,'Footnotes list'!$D$9:$E$58,2,FALSE) ) ) ->  | AF8: 52.998 | AJ8: =IF(TRIM(AI8)="", "", IF(VLOOKUP(AI8,'Footnotes list'!$D$9:$E$58,2,FALSE)=0,"",VLOOKUP(AI8,'Footnotes list'!$D$9:$E$58,2,FALSE) ) ) ->  | AK8: 73.48 | AO8: =IF(TRIM(AN8)="", "", IF(VLOOKUP(AN8,'Footnotes list'!$D$9:$E$58,2,FALSE)=0,"",VLOOKUP(AN8,'Footnotes list'!$D$9:$E$58,2,FALSE) ) ) ->  | AP8: 1533.926 | AT8: =IF(TRIM(AS8)="", "", IF(VLOOKUP(AS8,'Footnotes list'!$D$9:$E$58,2,FALSE)=0,"",VLOOKUP(AS8,'Footnotes list'!$D$9:$E$58,2,FALSE) ) ) ->  | AU8: 1.504 | AY8: =IF(TRIM(AX8)="", "", IF(VLOOKUP(AX8,'Footnotes list'!$D$9:$E$58,2,FALSE)=0,"",VLOOKUP(AX8,'Footnotes list'!$D$9:$E$58,2,FALSE) ) ) ->  | AZ8: 26.656 | BD8: =IF(TRIM(BC8)="", "", IF(VLOOKUP(BC8,'Footnotes list'!$D$9:$E$58,2,FALSE)=0,"",VLOOKUP(BC8,'Footnotes list'!$D$9:$E$58,2,FALSE) ) ) ->  | BE8: 292.8 | BI8: =IF(TRIM(BH8)="", "", IF(VLOOKUP(BH8,'Footnotes list'!$D$9:$E$58,2,FALSE)=0,"",VLOOKUP(BH8,'Footnotes list'!$D$9:$E$58,2,FALSE) ) ) ->  | BJ8: 2.495 | BN8: =IF(TRIM(BM8)="", "", IF(VLOOKUP(BM8,'Footnotes list'!$D$9:$E$58,2,FALSE)=0,"",VLOOKUP(BM8,'Footnotes list'!$D$9:$E$58,2,FALSE) ) ) ->  | BO8: =IF(AND(TRIM(Q8)="",TRIM(V8)="",TRIM(AA8)="", TRIM(AF8)="", TRIM(AK8)="", TRIM(AP8)="", TRIM(AU8)="", TRIM(AZ8)="", TRIM(BE8)="", TRIM(BJ8)=""),"",Q8+V8+AA8+AF8+AK8+AP8+AU8+AZ8+BE8+BJ8) -> 2007.975 | BS8: =IF(TRIM(BR8)="", "", IF(VLOOKUP(BR8,'Footnotes list'!$D$9:$E$58,2,FALSE)=0,"",VLOOKUP(BR8,'Footnotes list'!$D$9:$E$58,2,FALSE) ) ) ->  | BT8: 0.054 | BX8: =IF(TRIM(BW8)="", "", IF(VLOOKUP(BW8,'Footnotes list'!$D$9:$E$58,2,FALSE)=0,"",VLOOKUP(BW8,'Footnotes list'!$D$9:$E$58,2,FALSE) ) ) ->  | BY8: 9.312 | CC8: =IF(TRIM(CB8)="", "", IF(VLOOKUP(CB8,'Footnotes list'!$D$9:$E$58,2,FALSE)=0,"",VLOOKUP(CB8,'Footnotes list'!$D$9:$E$58,2,FALSE) ) ) ->  | CD8: 0.25 | CH8: =IF(TRIM(CG8)="", "", IF(VLOOKUP(CG8,'Footnotes list'!$D$9:$E$58,2,FALSE)=0,"",VLOOKUP(CG8,'Footnotes list'!$D$9:$E$58,2,FALSE) ) ) ->  | CI8: =IF(AND(TRIM(BY8)="",TRIM(CD8)=""),"",BY8+CD8) -> 9.562 | CM8: =IF(TRIM(CL8)="", "", IF(VLOOKUP(CL8,'Footnotes list'!$D$9:$E$58,2,FALSE)=0,"",VLOOKUP(CL8,'Footnotes list'!$D$9:$E$58,2,FALSE) ) ) ->  | CN8: 0.667 | CR8: =IF(TRIM(CQ8)="", "", IF(VLOOKUP(CQ8,'Footnotes list'!$D$9:$E$58,2,FALSE)=0,"",VLOOKUP(CQ8,'Footnotes list'!$D$9:$E$58,2,FALSE) ) ) ->  | CS8: 59.612 | CW8: =IF(TRIM(CV8)="", "", IF(VLOOKUP(CV8,'Footnotes list'!$D$9:$E$58,2,FALSE)=0,"",VLOOKUP(CV8,'Footnotes list'!$D$9:$E$58,2,FALSE) ) ) ->  | CX8: 0 | DB8: =IF(TRIM(DA8)="", "", IF(VLOOKUP(DA8,'Footnotes list'!$D$9:$E$58,2,FALSE)=0,"",VLOOKUP(DA8,'Footnotes list'!$D$9:$E$58,2,FALSE) ) ) ->  | DC8: 0.79 | DG8: =IF(TRIM(DF8)="", "", IF(VLOOKUP(DF8,'Footnotes list'!$D$9:$E$58,2,FALSE)=0,"",VLOOKUP(DF8,'Footnotes list'!$D$9:$E$58,2,FALSE) ) ) ->  | DH8: =IF(AND(TRIM(G8)="",TRIM(L8)="",TRIM(BO8)="",TRIM(BT8)="",TRIM(CI8)="",TRIM(CN8)="",TRIM(CS8)="",TRIM(CX8)="",TRIM(DC8)=""),"",SUM(G8,L8,BO8,BT8,CI8,CN8,CS8,CX8,DC8)) -> 2084.615 | DL8: =IF(TRIM(DK8)="", "", IF(VLOOKUP(DK8,'Footnotes list'!$D$9:$E$58,2,FALSE)=0,"",VLOOKUP(DK8,'Footnotes list'!$D$9:$E$58,2,FALSE) ) ) -> 
F9: Not applicable
C10: W011 | E10: HAZ_NHAZ | F10: Total | G10: =IF(AND(TRIM(G8)="",TRIM(G9)=""),"",G8+G9) -> 0 | K10: =IF(TRIM(J10)="", "", IF(VLOOKUP(J10,'Footnotes list'!$D$9:$E$58,2,FALSE)=0,"",VLOOKUP(J10,'Footnotes list'!$D$9:$E$58,2,FALSE) ) ) ->  | L10: =IF(AND(TRIM(L8)="",TRIM(L9)=""),"",L8+L9) -> 5.955 | P10: =IF(TRIM(O10)="", "", IF(VLOOKUP(O10,'Footnotes list'!$D$9:$E$58,2,FALSE)=0,"",VLOOKUP(O10,'Footnotes list'!$D$9:$E$58,2,FALSE) ) ) ->  | Q10: =IF(AND(TRIM(Q8)="",TRIM(Q9)=""),"",Q8+Q9) -> 0.179 | U10: =IF(TRIM(T10)="", "", IF(VLOOKUP(T10,'Footnotes list'!$D$9:$E$58,2,FALSE)=0,"",VLOOKUP(T10,'Footnotes list'!$D$9:$E$58,2,FALSE) ) ) ->  | V10: =IF(AND(TRIM(V8)="",TRIM(V9)=""),"",V8+V9) -> 22.358 | Z10: =IF(TRIM(Y10)="", "", IF(VLOOKUP(Y10,'Footnotes list'!$D$9:$E$58,2,FALSE)=0,"",VLOOKUP(Y10,'Footnotes list'!$D$9:$E$58,2,FALSE) ) ) ->  | AA10: =IF(AND(TRIM(AA8)="",TRIM(AA9)=""),"",AA8+AA9) -> 1.579 | AE10: =IF(TRIM(AD10)="", "", IF(VLOOKUP(AD10,'Footnotes list'!$D$9:$E$58,2,FALSE)=0,"",VLOOKUP(AD10,'Footnotes list'!$D$9:$E$58,2,FALSE) ) ) ->  | AF10: =IF(AND(TRIM(AF8)="",TRIM(AF9)=""),"",AF8+AF9) -> 52.998 | AJ10: =IF(TRIM(AI10)="", "", IF(VLOOKUP(AI10,'Footnotes list'!$D$9:$E$58,2,FALSE)=0,"",VLOOKUP(AI10,'Footnotes list'!$D$9:$E$58,2,FALSE) ) ) ->  | AK10: =IF(AND(TRIM(AK8)="",TRIM(AK9)=""),"",AK8+AK9) -> 73.48 | AO10: =IF(TRIM(AN10)="", "", IF(VLOOKUP(AN10,'Footnotes list'!$D$9:$E$58,2,FALSE)=0,"",VLOOKUP(AN10,'Footnotes list'!$D$9:$E$58,2,FALSE) ) ) ->  | AP10: =IF(AND(TRIM(AP8)="",TRIM(AP9)=""),"",AP8+AP9) -> 1533.926 | AT10: =IF(TRIM(AS10)="", "", IF(VLOOKUP(AS10,'Footnotes list'!$D$9:$E$58,2,FALSE)=0,"",VLOOKUP(AS10,'Footnotes list'!$D$9:$E$58,2,FALSE) ) ) ->  | AU10: =IF(AND(TRIM(AU8)="",TRIM(AU9)=""),"",AU8+AU9) -> 1.504 | AY10: =IF(TRIM(AX10)="", "", IF(VLOOKUP(AX10,'Footnotes list'!$D$9:$E$58,2,FALSE)=0,"",VLOOKUP(AX10,'Footnotes list'!$D$9:$E$58,2,FALSE) ) ) ->  | AZ10: =IF(AND(TRIM(AZ8)="",TRIM(AZ9)=""),"",AZ8+AZ9) -> 26.656 | BD10: =IF(TRIM(BC10)="", "", IF(VLOOKUP(BC10,'Footnotes list'!$D$9:$E$58,2,FALSE)=0,"",VLOOKUP(BC10,'Footnotes list'!$D$9:$E$58,2,FALSE) ) ) ->  | BE10: =IF(AND(TRIM(BE8)="",TRIM(BE9)=""),"",BE8+BE9) -> 292.8 | BI10: =IF(TRIM(BH10)="", "", IF(VLOOKUP(BH10,'Footnotes list'!$D$9:$E$58,2,FALSE)=0,"",VLOOKUP(BH10,'Footnotes list'!$D$9:$E$58,2,FALSE) ) ) ->  | BJ10: =IF(AND(TRIM(BJ8)="",TRIM(BJ9)=""),"",BJ8+BJ9) -> 2.495 | BN10: =IF(TRIM(BM10)="", "", IF(VLOOKUP(BM10,'Footnotes list'!$D$9:$E$58,2,FALSE)=0,"",VLOOKUP(BM10,'Footnotes list'!$D$9:$E$58,2,FALSE) ) ) ->  | BO10: =IF(AND(TRIM(BO8)="", TRIM(BO9)=""), "", (IF(ISNUMBER(BO8),BO8,0)+IF(ISNUMBER(BO9),BO9,0))) -> 2007.975 | BS10: =IF(TRIM(BR10)="", "", IF(VLOOKUP(BR10,'Footnotes list'!$D$9:$E$58,2,FALSE)=0,"",VLOOKUP(BR10,'Footnotes list'!$D$9:$E$58,2,FALSE) ) ) ->  | BT10: =IF(AND(TRIM(BT8)="",TRIM(BT9)=""),"",BT8+BT9) -> 0.054 | BX10: =IF(TRIM(BW10)="", "", IF(VLOOKUP(BW10,'Footnotes list'!$D$9:$E$58,2,FALSE)=0,"",VLOOKUP(BW10,'Footnotes list'!$D$9:$E$58,2,FALSE) ) ) ->  | BY10: =IF(AND(TRIM(BY8)="",TRIM(BY9)=""),"",BY8+BY9) -> 9.312 | CC10: =IF(TRIM(CB10)="", "", IF(VLOOKUP(CB10,'Footnotes list'!$D$9:$E$58,2,FALSE)=0,"",VLOOKUP(CB10,'Footnotes list'!$D$9:$E$58,2,FALSE) ) ) ->  | CD10: =IF(AND(TRIM(CD8)="",TRIM(CD9)=""),"",CD8+CD9) -> 0.25 | CH10: =IF(TRIM(CG10)="", "", IF(VLOOKUP(CG10,'Footnotes list'!$D$9:$E$58,2,FALSE)=0,"",VLOOKUP(CG10,'Footnotes list'!$D$9:$E$58,2,FALSE) ) ) ->  | CI10: =IF(AND(TRIM(CI8)="", TRIM(CI9)=""), "", (IF(ISNUMBER(CI8),CI8,0)+IF(ISNUMBER(CI9),CI9,0))) -> 9.562 | CM10: =IF(TRIM(CL10)="", "", IF(VLOOKUP(CL10,'Footnotes list'!$D$9:$E$58,2,FALSE)=0,"",VLOOKUP(CL10,'Footnotes list'!$D$9:$E$58,2,FALSE) ) ) ->  | CN10: =IF(AND(TRIM(CN8)="",TRIM(CN9)=""),"",CN8+CN9) -> 0.667 | CR10: =IF(TRIM(CQ10)="", "", IF(VLOOKUP(CQ10,'Footnotes list'!$D$9:$E$58,2,FALSE)=0,"",VLOOKUP(CQ10,'Footnotes list'!$D$9:$E$58,2,FALSE) ) ) ->  | CS10: =IF(AND(TRIM(CS8)="",TRIM(CS9)=""),"",CS8+CS9) -> 59.612 | CW10: =IF(TRIM(CV10)="", "", IF(VLOOKUP(CV10,'Footnotes list'!$D$9:$E$58,2,FALSE)=0,"",VLOOKUP(CV10,'Footnotes list'!$D$9:$E$58,2,FALSE) ) ) ->  | CX10: =IF(AND(TRIM(CX8)="",TRIM(CX9)=""),"",CX8+CX9) -> 0 | DB10: =IF(TRIM(DA10)="", "", IF(VLOOKUP(DA10,'Footnotes list'!$D$9:$E$58,2,FALSE)=0,"",VLOOKUP(DA10,'Footnotes list'!$D$9:$E$58,2,FALSE) ) ) ->  | DC10: =IF(AND(TRIM(DC8)="",TRIM(DC9)=""),"",DC8+DC9) -> 0.79 | DG10: =IF(TRIM(DF10)="", "", IF(VLOOKUP(DF10,'Footnotes list'!$D$9:$E$58,2,FALSE)=0,"",VLOOKUP(DF10,'Footnotes list'!$D$9:$E$58,2,FALSE) ) ) ->  | DH10: =IF(AND(TRIM(DH8)="", TRIM(DH9)=""), "", SUM(DH8,DH9) ) -> 2084.615 | DL10: =IF(TRIM(DK10)="", "", IF(VLOOKUP(DK10,'Footnotes list'!$D$9:$E$58,2,FALSE)=0,"",VLOOKUP(DK10,'Footnotes list'!$D$9:$E$58,2,FALSE) ) ) -> 
B11: W012 | C11: W012 | D11: Acid, alkaline or saline wastes | E11: HAZ | F11: Hazardous | G11: 0.39 | K11: =IF(TRIM(J11)="", "", IF(VLOOKUP(J11,'Footnotes list'!$D$9:$E$58,2,FALSE)=0,"",VLOOKUP(J11,'Footnotes list'!$D$9:$E$58,2,FALSE) ) ) ->  | L11: 18.938 | P11: =IF(TRIM(O11)="", "", IF(VLOOKUP(O11,'Footnotes list'!$D$9:$E$58,2,FALSE)=0,"",VLOOKUP(O11,'Footnotes list'!$D$9:$E$58,2,FALSE) ) ) ->  | Q11: 22.003 | U11: =IF(TRIM(T11)="", "", IF(VLOOKUP(T11,'Footnotes list'!$D$9:$E$58,2,FALSE)=0,"",VLOOKUP(T11,'Footnotes list'!$D$9:$E$58,2,FALSE) ) ) ->  | V11: 0 | Z11: =IF(TRIM(Y11)="", "", IF(VLOOKUP(Y11,'Footnotes list'!$D$9:$E$58,2,FALSE)=0,"",VLOOKUP(Y11,'Footnotes list'!$D$9:$E$58,2,FALSE) ) ) ->  | AA11: 0 | AE11: =IF(TRIM(AD11)="", "", IF(VLOOKUP(AD11,'Footnotes list'!$D$9:$E$58,2,FALSE)=0,"",VLOOKUP(AD11,'Footnotes list'!$D$9:$E$58,2,FALSE) ) ) ->  | AF11: 120.124 | AJ11: =IF(TRIM(AI11)="", "", IF(VLOOKUP(AI11,'Footnotes list'!$D$9:$E$58,2,FALSE)=0,"",VLOOKUP(AI11,'Footnotes list'!$D$9:$E$58,2,FALSE) ) ) ->  | AK11: 2.08 | AO11: =IF(TRIM(AN11)="", "", IF(VLOOKUP(AN11,'Footnotes list'!$D$9:$E$58,2,FALSE)=0,"",VLOOKUP(AN11,'Footnotes list'!$D$9:$E$58,2,FALSE) ) ) ->  | AP11: 277.176 | AT11: =IF(TRIM(AS11)="", "", IF(VLOOKUP(AS11,'Footnotes list'!$D$9:$E$58,2,FALSE)=0,"",VLOOKUP(AS11,'Footnotes list'!$D$9:$E$58,2,FALSE) ) ) ->  | AU11: 2.132 | AY11: =IF(TRIM(AX11)="", "", IF(VLOOKUP(AX11,'Footnotes list'!$D$9:$E$58,2,FALSE)=0,"",VLOOKUP(AX11,'Footnotes list'!$D$9:$E$58,2,FALSE) ) ) ->  | AZ11: 3320.682 | BD11: =IF(TRIM(BC11)="", "", IF(VLOOKUP(BC11,'Footnotes list'!$D$9:$E$58,2,FALSE)=0,"",VLOOKUP(BC11,'Footnotes list'!$D$9:$E$58,2,FALSE) ) ) ->  | BE11: 88.019 | BI11: =IF(TRIM(BH11)="", "", IF(VLOOKUP(BH11,'Footnotes list'!$D$9:$E$58,2,FALSE)=0,"",VLOOKUP(BH11,'Footnotes list'!$D$9:$E$58,2,FALSE) ) ) ->  | BJ11: 2 | BN11: =IF(TRIM(BM11)="", "", IF(VLOOKUP(BM11,'Footnotes list'!$D$9:$E$58,2,FALSE)=0,"",VLOOKUP(BM11,'Footnotes list'!$D$9:$E$58,2,FALSE) ) ) ->  | BO11: =IF(AND(TRIM(Q11)="",TRIM(V11)="",TRIM(AA11)="", TRIM(AF11)="", TRIM(AK11)="", TRIM(AP11)="", TRIM(AU11)="", TRIM(AZ11)="", TRIM(BE11)="", TRIM(BJ11)=""),"",Q11+V11+AA11+AF11+AK11+AP11+AU11+AZ11+BE11+BJ11) -> 3834.216 | BS11: =IF(TRIM(BR11)="", "", IF(VLOOKUP(BR11,'Footnotes list'!$D$9:$E$58,2,FALSE)=0,"",VLOOKUP(BR11,'Footnotes list'!$D$9:$E$58,2,FALSE) ) ) ->  | BT11: 0.8 | BX11: =IF(TRIM(BW11)="", "", IF(VLOOKUP(BW11,'Footnotes list'!$D$9:$E$58,2,FALSE)=0,"",VLOOKUP(BW11,'Footnotes list'!$D$9:$E$58,2,FALSE) ) ) ->  | BY11: 0.53 | CC11: =IF(TRIM(CB11)="", "", IF(VLOOKUP(CB11,'Footnotes list'!$D$9:$E$58,2,FALSE)=0,"",VLOOKUP(CB11,'Footnotes list'!$D$9:$E$58,2,FALSE) ) ) ->  | CD11: 65.083 | CH11: =IF(TRIM(CG11)="", "", IF(VLOOKUP(CG11,'Footnotes list'!$D$9:$E$58,2,FALSE)=0,"",VLOOKUP(CG11,'Footnotes list'!$D$9:$E$58,2,FALSE) ) ) ->  | CI11: =IF(AND(TRIM(BY11)="",TRIM(CD11)=""),"",BY11+CD11) -> 65.613 | CM11: =IF(TRIM(CL11)="", "", IF(VLOOKUP(CL11,'Footnotes list'!$D$9:$E$58,2,FALSE)=0,"",VLOOKUP(CL11,'Footnotes list'!$D$9:$E$58,2,FALSE) ) ) ->  | CN11: 12.5 | CR11: =IF(TRIM(CQ11)="", "", IF(VLOOKUP(CQ11,'Footnotes list'!$D$9:$E$58,2,FALSE)=0,"",VLOOKUP(CQ11,'Footnotes list'!$D$9:$E$58,2,FALSE) ) ) ->  | CS11: 14.68 | CW11: =IF(TRIM(CV11)="", "", IF(VLOOKUP(CV11,'Footnotes list'!$D$9:$E$58,2,FALSE)=0,"",VLOOKUP(CV11,'Footnotes list'!$D$9:$E$58,2,FALSE) ) ) ->  | CX11: 0 | DB11: =IF(TRIM(DA11)="", "", IF(VLOOKUP(DA11,'Footnotes list'!$D$9:$E$58,2,FALSE)=0,"",VLOOKUP(DA11,'Footnotes list'!$D$9:$E$58,2,FALSE) ) ) ->  | DC11: 0.167 | DG11: =IF(TRIM(DF11)="", "", IF(VLOOKUP(DF11,'Footnotes list'!$D$9:$E$58,2,FALSE)=0,"",VLOOKUP(DF11,'Footnotes list'!$D$9:$E$58,2,FALSE) ) ) ->  | DH11: =IF(AND(TRIM(G11)="",TRIM(L11)="",TRIM(BO11)="",TRIM(BT11)="",TRIM(CI11)="",TRIM(CN11)="",TRIM(CS11)="",TRIM(CX11)="",TRIM(DC11)=""),"",SUM(G11,L11,BO11,BT11,CI11,CN11,CS11,CX11,DC11)) -> 3947.304 | DL11: =IF(TRIM(DK11)="", "", IF(VLOOKUP(DK11,'Footnotes list'!$D$9:$E$58,2,FALSE)=0,"",VLOOKUP(DK11,'Footnotes list'!$D$9:$E$58,2,FALSE) ) ) -> 
C12: W012 | E12: NHAZ | F12: Non-hazardous | G12: 0 | K12: =IF(TRIM(J12)="", "", IF(VLOOKUP(J12,'Footnotes list'!$D$9:$E$58,2,FALSE)=0,"",VLOOKUP(J12,'Footnotes list'!$D$9:$E$58,2,FALSE) ) ) ->  | L12: 215.82 | P12: =IF(TRIM(O12)="", "", IF(VLOOKUP(O12,'Footnotes list'!$D$9:$E$58,2,FALSE)=0,"",VLOOKUP(O12,'Footnotes list'!$D$9:$E$58,2,FALSE) ) ) ->  | Q12: 0 | U12: =IF(TRIM(T12)="", "", IF(VLOOKUP(T12,'Footnotes list'!$D$9:$E$58,2,FALSE)=0,"",VLOOKUP(T12,'Footnotes list'!$D$9:$E$58,2,FALSE) ) ) ->  | V12: 0 | Z12: =IF(TRIM(Y12)="", "", IF(VLOOKUP(Y12,'Footnotes list'!$D$9:$E$58,2,FALSE)=0,"",VLOOKUP(Y12,'Footnotes list'!$D$9:$E$58,2,FALSE) ) ) ->  | AA12: 0 | AE12: =IF(TRIM(AD12)="", "", IF(VLOOKUP(AD12,'Footnotes list'!$D$9:$E$58,2,FALSE)=0,"",VLOOKUP(AD12,'Footnotes list'!$D$9:$E$58,2,FALSE) ) ) ->  | AF12: 3.071 | AJ12: =IF(TRIM(AI12)="", "", IF(VLOOKUP(AI12,'Footnotes list'!$D$9:$E$58,2,FALSE)=0,"",VLOOKUP(AI12,'Footnotes list'!$D$9:$E$58,2,FALSE) ) ) ->  | AK12: 6.96 | AO12: =IF(TRIM(AN12)="", "", IF(VLOOKUP(AN12,'Footnotes list'!$D$9:$E$58,2,FALSE)=0,"",VLOOKUP(AN12,'Footnotes list'!$D$9:$E$58,2,FALSE) ) ) ->  | AP12: 0.125 | AT12: =IF(TRIM(AS12)="", "", IF(VLOOKUP(AS12,'Footnotes list'!$D$9:$E$58,2,FALSE)=0,"",VLOOKUP(AS12,'Footnotes list'!$D$9:$E$58,2,FALSE) ) ) ->  | AU12: 0 | AY12: =IF(TRIM(AX12)="", "", IF(VLOOKUP(AX12,'Footnotes list'!$D$9:$E$58,2,FALSE)=0,"",VLOOKUP(AX12,'Footnotes list'!$D$9:$E$58,2,FALSE) ) ) ->  | AZ12: 260 | BD12: =IF(TRIM(BC12)="", "", IF(VLOOKUP(BC12,'Footnotes list'!$D$9:$E$58,2,FALSE)=0,"",VLOOKUP(BC12,'Footnotes list'!$D$9:$E$58,2,FALSE) ) ) ->  | BE12: 2.56 | BI12: =IF(TRIM(BH12)="", "", IF(VLOOKUP(BH12,'Footnotes list'!$D$9:$E$58,2,FALSE)=0,"",VLOOKUP(BH12,'Footnotes list'!$D$9:$E$58,2,FALSE) ) ) ->  | BJ12: 0 | BN12: =IF(TRIM(BM12)="", "", IF(VLOOKUP(BM12,'Footnotes list'!$D$9:$E$58,2,FALSE)=0,"",VLOOKUP(BM12,'Footnotes list'!$D$9:$E$58,2,FALSE) ) ) ->  | BO12: =IF(AND(TRIM(Q12)="",TRIM(V12)="",TRIM(AA12)="", TRIM(AF12)="", TRIM(AK12)="", TRIM(AP12)="", TRIM(AU12)="", TRIM(AZ12)="", TRIM(BE12)="", TRIM(BJ12)=""),"",Q12+V12+AA12+AF12+AK12+AP12+AU12+AZ12+BE12+BJ12) -> 272.716 | BS12: =IF(TRIM(BR12)="", "", IF(VLOOKUP(BR12,'Footnotes list'!$D$9:$E$58,2,FALSE)=0,"",VLOOKUP(BR12,'Footnotes list'!$D$9:$E$58,2,FALSE) ) ) ->  | BT12: 0 | BX12: =IF(TRIM(BW12)="", "", IF(VLOOKUP(BW12,'Footnotes list'!$D$9:$E$58,2,FALSE)=0,"",VLOOKUP(BW12,'Footnotes list'!$D$9:$E$58,2,FALSE) ) ) ->  | BY12: 0 | CC12: =IF(TRIM(CB12)="", "", IF(VLOOKUP(CB12,'Footnotes list'!$D$9:$E$58,2,FALSE)=0,"",VLOOKUP(CB12,'Footnotes list'!$D$9:$E$58,2,FALSE) ) ) ->  | CD12: 0 | CH12: =IF(TRIM(CG12)="", "", IF(VLOOKUP(CG12,'Footnotes list'!$D$9:$E$58,2,FALSE)=0,"",VLOOKUP(CG12,'Footnotes list'!$D$9:$E$58,2,FALSE) ) ) ->  | CI12: =IF(AND(TRIM(BY12)="",TRIM(CD12)=""),"",BY12+CD12) -> 0 | CM12: =IF(TRIM(CL12)="", "", IF(VLOOKUP(CL12,'Footnotes list'!$D$9:$E$58,2,FALSE)=0,"",VLOOKUP(CL12,'Footnotes list'!$D$9:$E$58,2,FALSE) ) ) ->  | CN12: 0 | CR12: =IF(TRIM(CQ12)="", "", IF(VLOOKUP(CQ12,'Footnotes list'!$D$9:$E$58,2,FALSE)=0,"",VLOOKUP(CQ12,'Footnotes list'!$D$9:$E$58,2,FALSE) ) ) ->  | CS12: 0 | CW12: =IF(TRIM(CV12)="", "", IF(VLOOKUP(CV12,'Footnotes list'!$D$9:$E$58,2,FALSE)=0,"",VLOOKUP(CV12,'Footnotes list'!$D$9:$E$58,2,FALSE) ) ) ->  | CX12: 0 | DB12: =IF(TRIM(DA12)="", "", IF(VLOOKUP(DA12,'Footnotes list'!$D$9:$E$58,2,FALSE)=0,"",VLOOKUP(DA12,'Footnotes list'!$D$9:$E$58,2,FALSE) ) ) ->  | DC12: 0 | DG12: =IF(TRIM(DF12)="", "", IF(VLOOKUP(DF12,'Footnotes list'!$D$9:$E$58,2,FALSE)=0,"",VLOOKUP(DF12,'Footnotes list'!$D$9:$E$58,2,FALSE) ) ) ->  | DH12: =IF(AND(TRIM(G12)="",TRIM(L12)="",TRIM(BO12)="",TRIM(BT12)="",TRIM(CI12)="",TRIM(CN12)="",TRIM(CS12)="",TRIM(CX12)="",TRIM(DC12)=""),"",SUM(G12,L12,BO12,BT12,CI12,CN12,CS12,CX12,DC12)) -> 488.536 | DL12: =IF(TRIM(DK12)="", "", IF(VLOOKUP(DK12,'Footnotes list'!$D$9:$E$58,2,FALSE)=0,"",VLOOKUP(DK12,'Footnotes list'!$D$9:$E$58,2,FALSE) ) ) -> 
C13: W012 | E13: HAZ_NHAZ | F13: Total | G13: =IF(AND(TRIM(G11)="",TRIM(G12)=""),"",G11+G12) -> 0.39 | K13: =IF(TRIM(J13)="", "", IF(VLOOKUP(J13,'Footnotes list'!$D$9:$E$58,2,FALSE)=0,"",VLOOKUP(J13,'Footnotes list'!$D$9:$E$58,2,FALSE) ) ) ->  | L13: =IF(AND(TRIM(L11)="",TRIM(L12)=""),"",L11+L12) -> 234.758 | P13: =IF(TRIM(O13)="", "", IF(VLOOKUP(O13,'Footnotes list'!$D$9:$E$58,2,FALSE)=0,"",VLOOKUP(O13,'Footnotes list'!$D$9:$E$58,2,FALSE) ) ) ->  | Q13: =IF(AND(TRIM(Q11)="",TRIM(Q12)=""),"",Q11+Q12) -> 22.003 | U13: =IF(TRIM(T13)="", "", IF(VLOOKUP(T13,'Footnotes list'!$D$9:$E$58,2,FALSE)=0,"",VLOOKUP(T13,'Footnotes list'!$D$9:$E$58,2,FALSE) ) ) ->  | V13: =IF(AND(TRIM(V11)="",TRIM(V12)=""),"",V11+V12) -> 0 | Z13: =IF(TRIM(Y13)="", "", IF(VLOOKUP(Y13,'Footnotes list'!$D$9:$E$58,2,FALSE)=0,"",VLOOKUP(Y13,'Footnotes list'!$D$9:$E$58,2,FALSE) ) ) ->  | AA13: =IF(AND(TRIM(AA11)="",TRIM(AA12)=""),"",AA11+AA12) -> 0 | AE13: =IF(TRIM(AD13)="", "", IF(VLOOKUP(AD13,'Footnotes list'!$D$9:$E$58,2,FALSE)=0,"",VLOOKUP(AD13,'Footnotes list'!$D$9:$E$58,2,FALSE) ) ) ->  | AF13: =IF(AND(TRIM(AF11)="",TRIM(AF12)=""),"",AF11+AF12) -> 123.195 | AJ13: =IF(TRIM(AI13)="", "", IF(VLOOKUP(AI13,'Footnotes list'!$D$9:$E$58,2,FALSE)=0,"",VLOOKUP(AI13,'Footnotes list'!$D$9:$E$58,2,FALSE) ) ) ->  | AK13: =IF(AND(TRIM(AK11)="",TRIM(AK12)=""),"",AK11+AK12) -> 9.04 | AO13: =IF(TRIM(AN13)="", "", IF(VLOOKUP(AN13,'Footnotes list'!$D$9:$E$58,2,FALSE)=0,"",VLOOKUP(AN13,'Footnotes list'!$D$9:$E$58,2,FALSE) ) ) ->  | AP13: =IF(AND(TRIM(AP11)="",TRIM(AP12)=""),"",AP11+AP12) -> 277.301 | AT13: =IF(TRIM(AS13)="", "", IF(VLOOKUP(AS13,'Footnotes list'!$D$9:$E$58,2,FALSE)=0,"",VLOOKUP(AS13,'Footnotes list'!$D$9:$E$58,2,FALSE) ) ) ->  | AU13: =IF(AND(TRIM(AU11)="",TRIM(AU12)=""),"",AU11+AU12) -> 2.132 | AY13: =IF(TRIM(AX13)="", "", IF(VLOOKUP(AX13,'Footnotes list'!$D$9:$E$58,2,FALSE)=0,"",VLOOKUP(AX13,'Footnotes list'!$D$9:$E$58,2,FALSE) ) ) ->  | AZ13: =IF(AND(TRIM(AZ11)="",TRIM(AZ12)=""),"",AZ11+AZ12) -> 3580.682 | BD13: =IF(TRIM(BC13)="", "", IF(VLOOKUP(BC13,'Footnotes list'!$D$9:$E$58,2,FALSE)=0,"",VLOOKUP(BC13,'Footnotes list'!$D$9:$E$58,2,FALSE) ) ) ->  | BE13: =IF(AND(TRIM(BE11)="",TRIM(BE12)=""),"",BE11+BE12) -> 90.579 | BI13: =IF(TRIM(BH13)="", "", IF(VLOOKUP(BH13,'Footnotes list'!$D$9:$E$58,2,FALSE)=0,"",VLOOKUP(BH13,'Footnotes list'!$D$9:$E$58,2,FALSE) ) ) ->  | BJ13: =IF(AND(TRIM(BJ11)="",TRIM(BJ12)=""),"",BJ11+BJ12) -> 2 | BN13: =IF(TRIM(BM13)="", "", IF(VLOOKUP(BM13,'Footnotes list'!$D$9:$E$58,2,FALSE)=0,"",VLOOKUP(BM13,'Footnotes list'!$D$9:$E$58,2,FALSE) ) ) ->  | BO13: =IF(AND(TRIM(BO11)="", TRIM(BO12)=""), "", (IF(ISNUMBER(BO11),BO11,0)+IF(ISNUMBER(BO12),BO12,0))) -> 4106.932 | BS13: =IF(TRIM(BR13)="", "", IF(VLOOKUP(BR13,'Footnotes list'!$D$9:$E$58,2,FALSE)=0,"",VLOOKUP(BR13,'Footnotes list'!$D$9:$E$58,2,FALSE) ) ) ->  | BT13: =IF(AND(TRIM(BT11)="",TRIM(BT12)=""),"",BT11+BT12) -> 0.8 | BX13: =IF(TRIM(BW13)="", "", IF(VLOOKUP(BW13,'Footnotes list'!$D$9:$E$58,2,FALSE)=0,"",VLOOKUP(BW13,'Footnotes list'!$D$9:$E$58,2,FALSE) ) ) ->  | BY13: =IF(AND(TRIM(BY11)="",TRIM(BY12)=""),"",BY11+BY12) -> 0.53 | CC13: =IF(TRIM(CB13)="", "", IF(VLOOKUP(CB13,'Footnotes list'!$D$9:$E$58,2,FALSE)=0,"",VLOOKUP(CB13,'Footnotes list'!$D$9:$E$58,2,FALSE) ) ) ->  | CD13: =IF(AND(TRIM(CD11)="",TRIM(CD12)=""),"",CD11+CD12) -> 65.083 | CH13: =IF(TRIM(CG13)="", "", IF(VLOOKUP(CG13,'Footnotes list'!$D$9:$E$58,2,FALSE)=0,"",VLOOKUP(CG13,'Footnotes list'!$D$9:$E$58,2,FALSE) ) ) ->  | CI13: =IF(AND(TRIM(CI11)="", TRIM(CI12)=""), "", (IF(ISNUMBER(CI11),CI11,0)+IF(ISNUMBER(CI12),CI12,0))) -> 65.613 | CM13: =IF(TRIM(CL13)="", "", IF(VLOOKUP(CL13,'Footnotes list'!$D$9:$E$58,2,FALSE)=0,"",VLOOKUP(CL13,'Footnotes list'!$D$9:$E$58,2,FALSE) ) ) ->  | CN13: =IF(AND(TRIM(CN11)="",TRIM(CN12)=""),"",CN11+CN12) -> 12.5 | CR13: =IF(TRIM(CQ13)="", "", IF(VLOOKUP(CQ13,'Footnotes list'!$D$9:$E$58,2,FALSE)=0,"",VLOOKUP(CQ13,'Footnotes list'!$D$9:$E$58,2,FALSE) ) ) ->  | CS13: =IF(AND(TRIM(CS11)="",TRIM(CS12)=""),"",CS11+CS12) -> 14.68 | CW13: =IF(TRIM(CV13)="", "", IF(VLOOKUP(CV13,'Footnotes list'!$D$9:$E$58,2,FALSE)=0,"",VLOOKUP(CV13,'Footnotes list'!$D$9:$E$58,2,FALSE) ) ) ->  | CX13: =IF(AND(TRIM(CX11)="",TRIM(CX12)=""),"",CX11+CX12) -> 0 | DB13: =IF(TRIM(DA13)="", "", IF(VLOOKUP(DA13,'Footnotes list'!$D$9:$E$58,2,FALSE)=0,"",VLOOKUP(DA13,'Footnotes list'!$D$9:$E$58,2,FALSE) ) ) ->  | DC13: =IF(AND(TRIM(DC11)="",TRIM(DC12)=""),"",DC11+DC12) -> 0.167 | DG13: =IF(TRIM(DF13)="", "", IF(VLOOKUP(DF13,'Footnotes list'!$D$9:$E$58,2,FALSE)=0,"",VLOOKUP(DF13,'Footnotes list'!$D$9:$E$58,2,FALSE) ) ) ->  | DH13: =IF(AND(TRIM(DH11)="", TRIM(DH12)=""), "", SUM(DH11,DH12) ) -> 4435.84 | DL13: =IF(TRIM(DK13)="", "", IF(VLOOKUP(DK13,'Footnotes list'!$D$9:$E$58,2,FALSE)=0,"",VLOOKUP(DK13,'Footnotes list'!$D$9:$E$58,2,FALSE) ) ) -> 
B14: W013 | C14: W013 | D14: Used oils | E14: HAZ | F14: Hazardous | G14: 140.737 | K14: =IF(TRIM(J14)="", "", IF(VLOOKUP(J14,'Footnotes list'!$D$9:$E$58,2,FALSE)=0,"",VLOOKUP(J14,'Footnotes list'!$D$9:$E$58,2,FALSE) ) ) ->  | L14: 925.36 | P14: =IF(TRIM(O14)="", "", IF(VLOOKUP(O14,'Footnotes list'!$D$9:$E$58,2,FALSE)=0,"",VLOOKUP(O14,'Footnotes list'!$D$9:$E$58,2,FALSE) ) ) ->  | Q14: 64.736 | U14: =IF(TRIM(T14)="", "", IF(VLOOKUP(T14,'Footnotes list'!$D$9:$E$58,2,FALSE)=0,"",VLOOKUP(T14,'Footnotes list'!$D$9:$E$58,2,FALSE) ) ) ->  | V14: 13.61 | Z14: =IF(TRIM(Y14)="", "", IF(VLOOKUP(Y14,'Footnotes list'!$D$9:$E$58,2,FALSE)=0,"",VLOOKUP(Y14,'Footnotes list'!$D$9:$E$58,2,FALSE) ) ) ->  | AA14: 33.585 | AE14: =IF(TRIM(AD14)="", "", IF(VLOOKUP(AD14,'Footnotes list'!$D$9:$E$58,2,FALSE)=0,"",VLOOKUP(AD14,'Footnotes list'!$D$9:$E$58,2,FALSE) ) ) ->  | AF14: 46.553 | AJ14: =IF(TRIM(AI14)="", "", IF(VLOOKUP(AI14,'Footnotes list'!$D$9:$E$58,2,FALSE)=0,"",VLOOKUP(AI14,'Footnotes list'!$D$9:$E$58,2,FALSE) ) ) ->  | AK14: 1015.539 | AO14: =IF(TRIM(AN14)="", "", IF(VLOOKUP(AN14,'Footnotes list'!$D$9:$E$58,2,FALSE)=0,"",VLOOKUP(AN14,'Footnotes list'!$D$9:$E$58,2,FALSE) ) ) ->  | AP14: 67.324 | AT14: =IF(TRIM(AS14)="", "", IF(VLOOKUP(AS14,'Footnotes list'!$D$9:$E$58,2,FALSE)=0,"",VLOOKUP(AS14,'Footnotes list'!$D$9:$E$58,2,FALSE) ) ) ->  | AU14: 143.585 | AY14: =IF(TRIM(AX14)="", "", IF(VLOOKUP(AX14,'Footnotes list'!$D$9:$E$58,2,FALSE)=0,"",VLOOKUP(AX14,'Footnotes list'!$D$9:$E$58,2,FALSE) ) ) ->  | AZ14: 1645.983 | BD14: =IF(TRIM(BC14)="", "", IF(VLOOKUP(BC14,'Footnotes list'!$D$9:$E$58,2,FALSE)=0,"",VLOOKUP(BC14,'Footnotes list'!$D$9:$E$58,2,FALSE) ) ) ->  | BE14: 1882.843 | BI14: =IF(TRIM(BH14)="", "", IF(VLOOKUP(BH14,'Footnotes list'!$D$9:$E$58,2,FALSE)=0,"",VLOOKUP(BH14,'Footnotes list'!$D$9:$E$58,2,FALSE) ) ) ->  | BJ14: 327.251 | BN14: =IF(TRIM(BM14)="", "", IF(VLOOKUP(BM14,'Footnotes list'!$D$9:$E$58,2,FALSE)=0,"",VLOOKUP(BM14,'Footnotes list'!$D$9:$E$58,2,FALSE) ) ) ->  | BO14: =IF(AND(TRIM(Q14)="",TRIM(V14)="",TRIM(AA14)="", TRIM(AF14)="", TRIM(AK14)="", TRIM(AP14)="", TRIM(AU14)="", TRIM(AZ14)="", TRIM(BE14)="", TRIM(BJ14)=""),"",Q14+V14+AA14+AF14+AK14+AP14+AU14+AZ14+BE14+BJ14) -> 5241.009 | BS14: =IF(TRIM(BR14)="", "", IF(VLOOKUP(BR14,'Footnotes list'!$D$9:$E$58,2,FALSE)=0,"",VLOOKUP(BR14,'Footnotes list'!$D$9:$E$58,2,FALSE) ) ) ->  | BT14: 320.673 | BX14: =IF(TRIM(BW14)="", "", IF(VLOOKUP(BW14,'Footnotes list'!$D$9:$E$58,2,FALSE)=0,"",VLOOKUP(BW14,'Footnotes list'!$D$9:$E$58,2,FALSE) ) ) ->  | BY14: 68.243 | CC14: =IF(TRIM(CB14)="", "", IF(VLOOKUP(CB14,'Footnotes list'!$D$9:$E$58,2,FALSE)=0,"",VLOOKUP(CB14,'Footnotes list'!$D$9:$E$58,2,FALSE) ) ) ->  | CD14: 159.123 | CH14: =IF(TRIM(CG14)="", "", IF(VLOOKUP(CG14,'Footnotes list'!$D$9:$E$58,2,FALSE)=0,"",VLOOKUP(CG14,'Footnotes list'!$D$9:$E$58,2,FALSE) ) ) ->  | CI14: =IF(AND(TRIM(BY14)="",TRIM(CD14)=""),"",BY14+CD14) -> 227.366 | CM14: =IF(TRIM(CL14)="", "", IF(VLOOKUP(CL14,'Footnotes list'!$D$9:$E$58,2,FALSE)=0,"",VLOOKUP(CL14,'Footnotes list'!$D$9:$E$58,2,FALSE) ) ) ->  | CN14: 174.574 | CR14: =IF(TRIM(CQ14)="", "", IF(VLOOKUP(CQ14,'Footnotes list'!$D$9:$E$58,2,FALSE)=0,"",VLOOKUP(CQ14,'Footnotes list'!$D$9:$E$58,2,FALSE) ) ) ->  | CS14: 5891.465 | CW14: =IF(TRIM(CV14)="", "", IF(VLOOKUP(CV14,'Footnotes list'!$D$9:$E$58,2,FALSE)=0,"",VLOOKUP(CV14,'Footnotes list'!$D$9:$E$58,2,FALSE) ) ) ->  | CX14: 0 | DB14: =IF(TRIM(DA14)="", "", IF(VLOOKUP(DA14,'Footnotes list'!$D$9:$E$58,2,FALSE)=0,"",VLOOKUP(DA14,'Footnotes list'!$D$9:$E$58,2,FALSE) ) ) ->  | DC14: 120.629 | DG14: =IF(TRIM(DF14)="", "", IF(VLOOKUP(DF14,'Footnotes list'!$D$9:$E$58,2,FALSE)=0,"",VLOOKUP(DF14,'Footnotes list'!$D$9:$E$58,2,FALSE) ) ) ->  | DH14: =IF(AND(TRIM(G14)="",TRIM(L14)="",TRIM(BO14)="",TRIM(BT14)="",TRIM(CI14)="",TRIM(CN14)="",TRIM(CS14)="",TRIM(CX14)="",TRIM(DC14)=""),"",SUM(G14,L14,BO14,BT14,CI14,CN14,CS14,CX14,DC14)) -> 13041.813 | DL14: =IF(TRIM(DK14)="", "", IF(VLOOKUP(DK14,'Footnotes list'!$D$9:$E$58,2,FALSE)=0,"",VLOOKUP(DK14,'Footnotes list'!$D$9:$E$58,2,FALSE) ) ) -> 
F15: Not applicable
C16: W013 | E16: HAZ_NHAZ | F16: Total | G16: =IF(AND(TRIM(G14)="",TRIM(G15)=""),"",G14+G15) -> 140.737 | K16: =IF(TRIM(J16)="", "", IF(VLOOKUP(J16,'Footnotes list'!$D$9:$E$58,2,FALSE)=0,"",VLOOKUP(J16,'Footnotes list'!$D$9:$E$58,2,FALSE) ) ) ->  | L16: =IF(AND(TRIM(L14)="",TRIM(L15)=""),"",L14+L15) -> 925.36 | P16: =IF(TRIM(O16)="", "", IF(VLOOKUP(O16,'Footnotes list'!$D$9:$E$58,2,FALSE)=0,"",VLOOKUP(O16,'Footnotes list'!$D$9:$E$58,2,FALSE) ) ) ->  | Q16: =IF(AND(TRIM(Q14)="",TRIM(Q15)=""),"",Q14+Q15) -> 64.736 | U16: =IF(TRIM(T16)="", "", IF(VLOOKUP(T16,'Footnotes list'!$D$9:$E$58,2,FALSE)=0,"",VLOOKUP(T16,'Footnotes list'!$D$9:$E$58,2,FALSE) ) ) ->  | V16: =IF(AND(TRIM(V14)="",TRIM(V15)=""),"",V14+V15) -> 13.61 | Z16: =IF(TRIM(Y16)="", "", IF(VLOOKUP(Y16,'Footnotes list'!$D$9:$E$58,2,FALSE)=0,"",VLOOKUP(Y16,'Footnotes list'!$D$9:$E$58,2,FALSE) ) ) ->  | AA16: =IF(AND(TRIM(AA14)="",TRIM(AA15)=""),"",AA14+AA15) -> 33.585 | AE16: =IF(TRIM(AD16)="", "", IF(VLOOKUP(AD16,'Footnotes list'!$D$9:$E$58,2,FALSE)=0,"",VLOOKUP(AD16,'Footnotes list'!$D$9:$E$58,2,FALSE) ) ) ->  | AF16: =IF(AND(TRIM(AF14)="",TRIM(AF15)=""),"",AF14+AF15) -> 46.553 | AJ16: =IF(TRIM(AI16)="", "", IF(VLOOKUP(AI16,'Footnotes list'!$D$9:$E$58,2,FALSE)=0,"",VLOOKUP(AI16,'Footnotes list'!$D$9:$E$58,2,FALSE) ) ) ->  | AK16: =IF(AND(TRIM(AK14)="",TRIM(AK15)=""),"",AK14+AK15) -> 1015.539 | AO16: =IF(TRIM(AN16)="", "", IF(VLOOKUP(AN16,'Footnotes list'!$D$9:$E$58,2,FALSE)=0,"",VLOOKUP(AN16,'Footnotes list'!$D$9:$E$58,2,FALSE) ) ) ->  | AP16: =IF(AND(TRIM(AP14)="",TRIM(AP15)=""),"",AP14+AP15) -> 67.324 | AT16: =IF(TRIM(AS16)="", "", IF(VLOOKUP(AS16,'Footnotes list'!$D$9:$E$58,2,FALSE)=0,"",VLOOKUP(AS16,'Footnotes list'!$D$9:$E$58,2,FALSE) ) ) ->  | AU16: =IF(AND(TRIM(AU14)="",TRIM(AU15)=""),"",AU14+AU15) -> 143.585 | AY16: =IF(TRIM(AX16)="", "", IF(VLOOKUP(AX16,'Footnotes list'!$D$9:$E$58,2,FALSE)=0,"",VLOOKUP(AX16,'Footnotes list'!$D$9:$E$58,2,FALSE) ) ) ->  | AZ16: =IF(AND(TRIM(AZ14)="",TRIM(AZ15)=""),"",AZ14+AZ15) -> 1645.983 | BD16: =IF(TRIM(BC16)="", "", IF(VLOOKUP(BC16,'Footnotes list'!$D$9:$E$58,2,FALSE)=0,"",VLOOKUP(BC16,'Footnotes list'!$D$9:$E$58,2,FALSE) ) ) ->  | BE16: =IF(AND(TRIM(BE14)="",TRIM(BE15)=""),"",BE14+BE15) -> 1882.843 | BI16: =IF(TRIM(BH16)="", "", IF(VLOOKUP(BH16,'Footnotes list'!$D$9:$E$58,2,FALSE)=0,"",VLOOKUP(BH16,'Footnotes list'!$D$9:$E$58,2,FALSE) ) ) ->  | BJ16: =IF(AND(TRIM(BJ14)="",TRIM(BJ15)=""),"",BJ14+BJ15) -> 327.251 | BN16: =IF(TRIM(BM16)="", "", IF(VLOOKUP(BM16,'Footnotes list'!$D$9:$E$58,2,FALSE)=0,"",VLOOKUP(BM16,'Footnotes list'!$D$9:$E$58,2,FALSE) ) ) ->  | BO16: =IF(AND(TRIM(BO14)="", TRIM(BO15)=""), "", (IF(ISNUMBER(BO14),BO14,0)+IF(ISNUMBER(BO15),BO15,0))) -> 5241.009 | BS16: =IF(TRIM(BR16)="", "", IF(VLOOKUP(BR16,'Footnotes list'!$D$9:$E$58,2,FALSE)=0,"",VLOOKUP(BR16,'Footnotes list'!$D$9:$E$58,2,FALSE) ) ) ->  | BT16: =IF(AND(TRIM(BT14)="",TRIM(BT15)=""),"",BT14+BT15) -> 320.673 | BX16: =IF(TRIM(BW16)="", "", IF(VLOOKUP(BW16,'Footnotes list'!$D$9:$E$58,2,FALSE)=0,"",VLOOKUP(BW16,'Footnotes list'!$D$9:$E$58,2,FALSE) ) ) ->  | BY16: =IF(AND(TRIM(BY14)="",TRIM(BY15)=""),"",BY14+BY15) -> 68.243 | CC16: =IF(TRIM(CB16)="", "", IF(VLOOKUP(CB16,'Footnotes list'!$D$9:$E$58,2,FALSE)=0,"",VLOOKUP(CB16,'Footnotes list'!$D$9:$E$58,2,FALSE) ) ) ->  | CD16: =IF(AND(TRIM(CD14)="",TRIM(CD15)=""),"",CD14+CD15) -> 159.123 | CH16: =IF(TRIM(CG16)="", "", IF(VLOOKUP(CG16,'Footnotes list'!$D$9:$E$58,2,FALSE)=0,"",VLOOKUP(CG16,'Footnotes list'!$D$9:$E$58,2,FALSE) ) ) ->  | CI16: =IF(AND(TRIM(CI14)="", TRIM(CI15)=""), "", (IF(ISNUMBER(CI14),CI14,0)+IF(ISNUMBER(CI15),CI15,0))) -> 227.366 | CM16: =IF(TRIM(CL16)="", "", IF(VLOOKUP(CL16,'Footnotes list'!$D$9:$E$58,2,FALSE)=0,"",VLOOKUP(CL16,'Footnotes list'!$D$9:$E$58,2,FALSE) ) ) ->  | CN16: =IF(AND(TRIM(CN14)="",TRIM(CN15)=""),"",CN14+CN15) -> 174.574 | CR16: =IF(TRIM(CQ16)="", "", IF(VLOOKUP(CQ16,'Footnotes list'!$D$9:$E$58,2,FALSE)=0,"",VLOOKUP(CQ16,'Footnotes list'!$D$9:$E$58,2,FALSE) ) ) ->  | CS16: =IF(AND(TRIM(CS14)="",TRIM(CS15)=""),"",CS14+CS15) -> 5891.465 | CW16: =IF(TRIM(CV16)="", "", IF(VLOOKUP(CV16,'Footnotes list'!$D$9:$E$58,2,FALSE)=0,"",VLOOKUP(CV16,'Footnotes list'!$D$9:$E$58,2,FALSE) ) ) ->  | CX16: =IF(AND(TRIM(CX14)="",TRIM(CX15)=""),"",CX14+CX15) -> 0 | DB16: =IF(TRIM(DA16)="", "", IF(VLOOKUP(DA16,'Footnotes list'!$D$9:$E$58,2,FALSE)=0,"",VLOOKUP(DA16,'Footnotes list'!$D$9:$E$58,2,FALSE) ) ) ->  | DC16: =IF(AND(TRIM(DC14)="",TRIM(DC15)=""),"",DC14+DC15) -> 120.629 | DG16: =IF(TRIM(DF16)="", "", IF(VLOOKUP(DF16,'Footnotes list'!$D$9:$E$58,2,FALSE)=0,"",VLOOKUP(DF16,'Footnotes list'!$D$9:$E$58,2,FALSE) ) ) ->  | DH16: =IF(AND(TRIM(DH14)="", TRIM(DH15)=""), "", SUM(DH14,DH15) ) -> 13041.813 | DL16: =IF(TRIM(DK16)="", "", IF(VLOOKUP(DK16,'Footnotes list'!$D$9:$E$58,2,FALSE)=0,"",VLOOKUP(DK16,'Footnotes list'!$D$9:$E$58,2,FALSE) ) ) -> 
B17: W02A | C17: W02A | D17: Chemical wastes | E17: HAZ | F17: Hazardous | G17: 229.088 | K17: =IF(TRIM(J17)="", "", IF(VLOOKUP(J17,'Footnotes list'!$D$9:$E$58,2,FALSE)=0,"",VLOOKUP(J17,'Footnotes list'!$D$9:$E$58,2,FALSE) ) ) ->  | L17: 903.328 | P17: =IF(TRIM(O17)="", "", IF(VLOOKUP(O17,'Footnotes list'!$D$9:$E$58,2,FALSE)=0,"",VLOOKUP(O17,'Footnotes list'!$D$9:$E$58,2,FALSE) ) ) ->  | Q17: 272.816 | U17: =IF(TRIM(T17)="", "", IF(VLOOKUP(T17,'Footnotes list'!$D$9:$E$58,2,FALSE)=0,"",VLOOKUP(T17,'Footnotes list'!$D$9:$E$58,2,FALSE) ) ) ->  | V17: 221.426 | Z17: =IF(TRIM(Y17)="", "", IF(VLOOKUP(Y17,'Footnotes list'!$D$9:$E$58,2,FALSE)=0,"",VLOOKUP(Y17,'Footnotes list'!$D$9:$E$58,2,FALSE) ) ) ->  | AA17: 163.423 | AE17: =IF(TRIM(AD17)="", "", IF(VLOOKUP(AD17,'Footnotes list'!$D$9:$E$58,2,FALSE)=0,"",VLOOKUP(AD17,'Footnotes list'!$D$9:$E$58,2,FALSE) ) ) ->  | AF17: 1246.226 | AJ17: =IF(TRIM(AI17)="", "", IF(VLOOKUP(AI17,'Footnotes list'!$D$9:$E$58,2,FALSE)=0,"",VLOOKUP(AI17,'Footnotes list'!$D$9:$E$58,2,FALSE) ) ) ->  | AK17: 1975.738 | AO17: =IF(TRIM(AN17)="", "", IF(VLOOKUP(AN17,'Footnotes list'!$D$9:$E$58,2,FALSE)=0,"",VLOOKUP(AN17,'Footnotes list'!$D$9:$E$58,2,FALSE) ) ) ->  | AP17: 1865.942 | AT17: =IF(TRIM(AS17)="", "", IF(VLOOKUP(AS17,'Footnotes list'!$D$9:$E$58,2,FALSE)=0,"",VLOOKUP(AS17,'Footnotes list'!$D$9:$E$58,2,FALSE) ) ) ->  | AU17: 663.69 | AY17: =IF(TRIM(AX17)="", "", IF(VLOOKUP(AX17,'Footnotes list'!$D$9:$E$58,2,FALSE)=0,"",VLOOKUP(AX17,'Footnotes list'!$D$9:$E$58,2,FALSE) ) ) ->  | AZ17: 3833.892 | BD17: =IF(TRIM(BC17)="", "", IF(VLOOKUP(BC17,'Footnotes list'!$D$9:$E$58,2,FALSE)=0,"",VLOOKUP(BC17,'Footnotes list'!$D$9:$E$58,2,FALSE) ) ) ->  | BE17: 1765.784 | BI17: =IF(TRIM(BH17)="", "", IF(VLOOKUP(BH17,'Footnotes list'!$D$9:$E$58,2,FALSE)=0,"",VLOOKUP(BH17,'Footnotes list'!$D$9:$E$58,2,FALSE) ) ) ->  | BJ17: 945.385 | BN17: =IF(TRIM(BM17)="", "", IF(VLOOKUP(BM17,'Footnotes list'!$D$9:$E$58,2,FALSE)=0,"",VLOOKUP(BM17,'Footnotes list'!$D$9:$E$58,2,FALSE) ) ) ->  | BO17: =IF(AND(TRIM(Q17)="",TRIM(V17)="",TRIM(AA17)="", TRIM(AF17)="", TRIM(AK17)="", TRIM(AP17)="", TRIM(AU17)="", TRIM(AZ17)="", TRIM(BE17)="", TRIM(BJ17)=""),"",Q17+V17+AA17+AF17+AK17+AP17+AU17+AZ17+BE17+BJ17) -> 12954.322 | BS17: =IF(TRIM(BR17)="", "", IF(VLOOKUP(BR17,'Footnotes list'!$D$9:$E$58,2,FALSE)=0,"",VLOOKUP(BR17,'Footnotes list'!$D$9:$E$58,2,FALSE) ) ) ->  | BT17: 375.102 | BX17: =IF(TRIM(BW17)="", "", IF(VLOOKUP(BW17,'Footnotes list'!$D$9:$E$58,2,FALSE)=0,"",VLOOKUP(BW17,'Footnotes list'!$D$9:$E$58,2,FALSE) ) ) ->  | BY17: 79.134 | CC17: =IF(TRIM(CB17)="", "", IF(VLOOKUP(CB17,'Footnotes list'!$D$9:$E$58,2,FALSE)=0,"",VLOOKUP(CB17,'Footnotes list'!$D$9:$E$58,2,FALSE) ) ) ->  | CD17: 2413.455 | CH17: =IF(TRIM(CG17)="", "", IF(VLOOKUP(CG17,'Footnotes list'!$D$9:$E$58,2,FALSE)=0,"",VLOOKUP(CG17,'Footnotes list'!$D$9:$E$58,2,FALSE) ) ) ->  | CI17: =IF(AND(TRIM(BY17)="",TRIM(CD17)=""),"",BY17+CD17) -> 2492.589 | CM17: =IF(TRIM(CL17)="", "", IF(VLOOKUP(CL17,'Footnotes list'!$D$9:$E$58,2,FALSE)=0,"",VLOOKUP(CL17,'Footnotes list'!$D$9:$E$58,2,FALSE) ) ) ->  | CN17: 911.468 | CR17: =IF(TRIM(CQ17)="", "", IF(VLOOKUP(CQ17,'Footnotes list'!$D$9:$E$58,2,FALSE)=0,"",VLOOKUP(CQ17,'Footnotes list'!$D$9:$E$58,2,FALSE) ) ) ->  | CS17: 9237.527 | CW17: =IF(TRIM(CV17)="", "", IF(VLOOKUP(CV17,'Footnotes list'!$D$9:$E$58,2,FALSE)=0,"",VLOOKUP(CV17,'Footnotes list'!$D$9:$E$58,2,FALSE) ) ) ->  | CX17: 0.004 | DB17: =IF(TRIM(DA17)="", "", IF(VLOOKUP(DA17,'Footnotes list'!$D$9:$E$58,2,FALSE)=0,"",VLOOKUP(DA17,'Footnotes list'!$D$9:$E$58,2,FALSE) ) ) ->  | DC17: 551.173 | DG17: =IF(TRIM(DF17)="", "", IF(VLOOKUP(DF17,'Footnotes list'!$D$9:$E$58,2,FALSE)=0,"",VLOOKUP(DF17,'Footnotes list'!$D$9:$E$58,2,FALSE) ) ) ->  | DH17: =IF(AND(TRIM(G17)="",TRIM(L17)="",TRIM(BO17)="",TRIM(BT17)="",TRIM(CI17)="",TRIM(CN17)="",TRIM(CS17)="",TRIM(CX17)="",TRIM(DC17)=""),"",SUM(G17,L17,BO17,BT17,CI17,CN17,CS17,CX17,DC17)) -> 27654.601 | DL17: =IF(TRIM(DK17)="", "", IF(VLOOKUP(DK17,'Footnotes list'!$D$9:$E$58,2,FALSE)=0,"",VLOOKUP(DK17,'Footnotes list'!$D$9:$E$58,2,FALSE) ) ) -> 
C18: W02A | E18: NHAZ | F18: Non-hazardous | G18: 5.657 | K18: =IF(TRIM(J18)="", "", IF(VLOOKUP(J18,'Footnotes list'!$D$9:$E$58,2,FALSE)=0,"",VLOOKUP(J18,'Footnotes list'!$D$9:$E$58,2,FALSE) ) ) ->  | L18: 2.235 | P18: =IF(TRIM(O18)="", "", IF(VLOOKUP(O18,'Footnotes list'!$D$9:$E$58,2,FALSE)=0,"",VLOOKUP(O18,'Footnotes list'!$D$9:$E$58,2,FALSE) ) ) ->  | Q18: 436.941 | U18: =IF(TRIM(T18)="", "", IF(VLOOKUP(T18,'Footnotes list'!$D$9:$E$58,2,FALSE)=0,"",VLOOKUP(T18,'Footnotes list'!$D$9:$E$58,2,FALSE) ) ) ->  | V18: 1084.702 | Z18: =IF(TRIM(Y18)="", "", IF(VLOOKUP(Y18,'Footnotes list'!$D$9:$E$58,2,FALSE)=0,"",VLOOKUP(Y18,'Footnotes list'!$D$9:$E$58,2,FALSE) ) ) ->  | AA18: 92.257 | AE18: =IF(TRIM(AD18)="", "", IF(VLOOKUP(AD18,'Footnotes list'!$D$9:$E$58,2,FALSE)=0,"",VLOOKUP(AD18,'Footnotes list'!$D$9:$E$58,2,FALSE) ) ) ->  | AF18: 69.715 | AJ18: =IF(TRIM(AI18)="", "", IF(VLOOKUP(AI18,'Footnotes list'!$D$9:$E$58,2,FALSE)=0,"",VLOOKUP(AI18,'Footnotes list'!$D$9:$E$58,2,FALSE) ) ) ->  | AK18: 1.1 | AO18: =IF(TRIM(AN18)="", "", IF(VLOOKUP(AN18,'Footnotes list'!$D$9:$E$58,2,FALSE)=0,"",VLOOKUP(AN18,'Footnotes list'!$D$9:$E$58,2,FALSE) ) ) ->  | AP18: 492.07 | AT18: =IF(TRIM(AS18)="", "", IF(VLOOKUP(AS18,'Footnotes list'!$D$9:$E$58,2,FALSE)=0,"",VLOOKUP(AS18,'Footnotes list'!$D$9:$E$58,2,FALSE) ) ) ->  | AU18: 49.956 | AY18: =IF(TRIM(AX18)="", "", IF(VLOOKUP(AX18,'Footnotes list'!$D$9:$E$58,2,FALSE)=0,"",VLOOKUP(AX18,'Footnotes list'!$D$9:$E$58,2,FALSE) ) ) ->  | AZ18: 205.391 | BD18: =IF(TRIM(BC18)="", "", IF(VLOOKUP(BC18,'Footnotes list'!$D$9:$E$58,2,FALSE)=0,"",VLOOKUP(BC18,'Footnotes list'!$D$9:$E$58,2,FALSE) ) ) ->  | BE18: 87.745 | BI18: =IF(TRIM(BH18)="", "", IF(VLOOKUP(BH18,'Footnotes list'!$D$9:$E$58,2,FALSE)=0,"",VLOOKUP(BH18,'Footnotes list'!$D$9:$E$58,2,FALSE) ) ) ->  | BJ18: 155.933 | BN18: =IF(TRIM(BM18)="", "", IF(VLOOKUP(BM18,'Footnotes list'!$D$9:$E$58,2,FALSE)=0,"",VLOOKUP(BM18,'Footnotes list'!$D$9:$E$58,2,FALSE) ) ) ->  | BO18: =IF(AND(TRIM(Q18)="",TRIM(V18)="",TRIM(AA18)="", TRIM(AF18)="", TRIM(AK18)="", TRIM(AP18)="", TRIM(AU18)="", TRIM(AZ18)="", TRIM(BE18)="", TRIM(BJ18)=""),"",Q18+V18+AA18+AF18+AK18+AP18+AU18+AZ18+BE18+BJ18) -> 2675.81 | BS18: =IF(TRIM(BR18)="", "", IF(VLOOKUP(BR18,'Footnotes list'!$D$9:$E$58,2,FALSE)=0,"",VLOOKUP(BR18,'Footnotes list'!$D$9:$E$58,2,FALSE) ) ) ->  | BT18: 186.73 | BX18: =IF(TRIM(BW18)="", "", IF(VLOOKUP(BW18,'Footnotes list'!$D$9:$E$58,2,FALSE)=0,"",VLOOKUP(BW18,'Footnotes list'!$D$9:$E$58,2,FALSE) ) ) ->  | BY18: 21.208 | CC18: =IF(TRIM(CB18)="", "", IF(VLOOKUP(CB18,'Footnotes list'!$D$9:$E$58,2,FALSE)=0,"",VLOOKUP(CB18,'Footnotes list'!$D$9:$E$58,2,FALSE) ) ) ->  | CD18: 61.577 | CH18: =IF(TRIM(CG18)="", "", IF(VLOOKUP(CG18,'Footnotes list'!$D$9:$E$58,2,FALSE)=0,"",VLOOKUP(CG18,'Footnotes list'!$D$9:$E$58,2,FALSE) ) ) ->  | CI18: =IF(AND(TRIM(BY18)="",TRIM(CD18)=""),"",BY18+CD18) -> 82.785 | CM18: =IF(TRIM(CL18)="", "", IF(VLOOKUP(CL18,'Footnotes list'!$D$9:$E$58,2,FALSE)=0,"",VLOOKUP(CL18,'Footnotes list'!$D$9:$E$58,2,FALSE) ) ) ->  | CN18: 83.263 | CR18: =IF(TRIM(CQ18)="", "", IF(VLOOKUP(CQ18,'Footnotes list'!$D$9:$E$58,2,FALSE)=0,"",VLOOKUP(CQ18,'Footnotes list'!$D$9:$E$58,2,FALSE) ) ) ->  | CS18: 146.051 | CW18: =IF(TRIM(CV18)="", "", IF(VLOOKUP(CV18,'Footnotes list'!$D$9:$E$58,2,FALSE)=0,"",VLOOKUP(CV18,'Footnotes list'!$D$9:$E$58,2,FALSE) ) ) ->  | CX18: 0 | DB18: =IF(TRIM(DA18)="", "", IF(VLOOKUP(DA18,'Footnotes list'!$D$9:$E$58,2,FALSE)=0,"",VLOOKUP(DA18,'Footnotes list'!$D$9:$E$58,2,FALSE) ) ) ->  | DC18: 503.066 | DG18: =IF(TRIM(DF18)="", "", IF(VLOOKUP(DF18,'Footnotes list'!$D$9:$E$58,2,FALSE)=0,"",VLOOKUP(DF18,'Footnotes list'!$D$9:$E$58,2,FALSE) ) ) ->  | DH18: =IF(AND(TRIM(G18)="",TRIM(L18)="",TRIM(BO18)="",TRIM(BT18)="",TRIM(CI18)="",TRIM(CN18)="",TRIM(CS18)="",TRIM(CX18)="",TRIM(DC18)=""),"",SUM(G18,L18,BO18,BT18,CI18,CN18,CS18,CX18,DC18)) -> 3685.597 | DL18: =IF(TRIM(DK18)="", "", IF(VLOOKUP(DK18,'Footnotes list'!$D$9:$E$58,2,FALSE)=0,"",VLOOKUP(DK18,'Footnotes list'!$D$9:$E$58,2,FALSE) ) ) -> 
C19: W02A | E19: HAZ_NHAZ | F19: Total | G19: =IF(AND(TRIM(G17)="",TRIM(G18)=""),"",G17+G18) -> 234.745 | K19: =IF(TRIM(J19)="", "", IF(VLOOKUP(J19,'Footnotes list'!$D$9:$E$58,2,FALSE)=0,"",VLOOKUP(J19,'Footnotes list'!$D$9:$E$58,2,FALSE) ) ) ->  | L19: =IF(AND(TRIM(L17)="",TRIM(L18)=""),"",L17+L18) -> 905.563 | P19: =IF(TRIM(O19)="", "", IF(VLOOKUP(O19,'Footnotes list'!$D$9:$E$58,2,FALSE)=0,"",VLOOKUP(O19,'Footnotes list'!$D$9:$E$58,2,FALSE) ) ) ->  | Q19: =IF(AND(TRIM(Q17)="",TRIM(Q18)=""),"",Q17+Q18) -> 709.757 | U19: =IF(TRIM(T19)="", "", IF(VLOOKUP(T19,'Footnotes list'!$D$9:$E$58,2,FALSE)=0,"",VLOOKUP(T19,'Footnotes list'!$D$9:$E$58,2,FALSE) ) ) ->  | V19: =IF(AND(TRIM(V17)="",TRIM(V18)=""),"",V17+V18) -> 1306.128 | Z19: =IF(TRIM(Y19)="", "", IF(VLOOKUP(Y19,'Footnotes list'!$D$9:$E$58,2,FALSE)=0,"",VLOOKUP(Y19,'Footnotes list'!$D$9:$E$58,2,FALSE) ) ) ->  | AA19: =IF(AND(TRIM(AA17)="",TRIM(AA18)=""),"",AA17+AA18) -> 255.68 | AE19: =IF(TRIM(AD19)="", "", IF(VLOOKUP(AD19,'Footnotes list'!$D$9:$E$58,2,FALSE)=0,"",VLOOKUP(AD19,'Footnotes list'!$D$9:$E$58,2,FALSE) ) ) ->  | AF19: =IF(AND(TRIM(AF17)="",TRIM(AF18)=""),"",AF17+AF18) -> 1315.941 | AJ19: =IF(TRIM(AI19)="", "", IF(VLOOKUP(AI19,'Footnotes list'!$D$9:$E$58,2,FALSE)=0,"",VLOOKUP(AI19,'Footnotes list'!$D$9:$E$58,2,FALSE) ) ) ->  | AK19: =IF(AND(TRIM(AK17)="",TRIM(AK18)=""),"",AK17+AK18) -> 1976.838 | AO19: =IF(TRIM(AN19)="", "", IF(VLOOKUP(AN19,'Footnotes list'!$D$9:$E$58,2,FALSE)=0,"",VLOOKUP(AN19,'Footnotes list'!$D$9:$E$58,2,FALSE) ) ) ->  | AP19: =IF(AND(TRIM(AP17)="",TRIM(AP18)=""),"",AP17+AP18) -> 2358.012 | AT19: =IF(TRIM(AS19)="", "", IF(VLOOKUP(AS19,'Footnotes list'!$D$9:$E$58,2,FALSE)=0,"",VLOOKUP(AS19,'Footnotes list'!$D$9:$E$58,2,FALSE) ) ) ->  | AU19: =IF(AND(TRIM(AU17)="",TRIM(AU18)=""),"",AU17+AU18) -> 713.646 | AY19: =IF(TRIM(AX19)="", "", IF(VLOOKUP(AX19,'Footnotes list'!$D$9:$E$58,2,FALSE)=0,"",VLOOKUP(AX19,'Footnotes list'!$D$9:$E$58,2,FALSE) ) ) ->  | AZ19: =IF(AND(TRIM(AZ17)="",TRIM(AZ18)=""),"",AZ17+AZ18) -> 4039.283 | BD19: =IF(TRIM(BC19)="", "", IF(VLOOKUP(BC19,'Footnotes list'!$D$9:$E$58,2,FALSE)=0,"",VLOOKUP(BC19,'Footnotes list'!$D$9:$E$58,2,FALSE) ) ) ->  | BE19: =IF(AND(TRIM(BE17)="",TRIM(BE18)=""),"",BE17+BE18) -> 1853.529 | BI19: =IF(TRIM(BH19)="", "", IF(VLOOKUP(BH19,'Footnotes list'!$D$9:$E$58,2,FALSE)=0,"",VLOOKUP(BH19,'Footnotes list'!$D$9:$E$58,2,FALSE) ) ) ->  | BJ19: =IF(AND(TRIM(BJ17)="",TRIM(BJ18)=""),"",BJ17+BJ18) -> 1101.318 | BN19: =IF(TRIM(BM19)="", "", IF(VLOOKUP(BM19,'Footnotes list'!$D$9:$E$58,2,FALSE)=0,"",VLOOKUP(BM19,'Footnotes list'!$D$9:$E$58,2,FALSE) ) ) ->  | BO19: =IF(AND(TRIM(BO17)="", TRIM(BO18)=""), "", (IF(ISNUMBER(BO17),BO17,0)+IF(ISNUMBER(BO18),BO18,0))) -> 15630.132 | BS19: =IF(TRIM(BR19)="", "", IF(VLOOKUP(BR19,'Footnotes list'!$D$9:$E$58,2,FALSE)=0,"",VLOOKUP(BR19,'Footnotes list'!$D$9:$E$58,2,FALSE) ) ) ->  | BT19: =IF(AND(TRIM(BT17)="",TRIM(BT18)=""),"",BT17+BT18) -> 561.832 | BX19: =IF(TRIM(BW19)="", "", IF(VLOOKUP(BW19,'Footnotes list'!$D$9:$E$58,2,FALSE)=0,"",VLOOKUP(BW19,'Footnotes list'!$D$9:$E$58,2,FALSE) ) ) ->  | BY19: =IF(AND(TRIM(BY17)="",TRIM(BY18)=""),"",BY17+BY18) -> 100.342 | CC19: =IF(TRIM(CB19)="", "", IF(VLOOKUP(CB19,'Footnotes list'!$D$9:$E$58,2,FALSE)=0,"",VLOOKUP(CB19,'Footnotes list'!$D$9:$E$58,2,FALSE) ) ) ->  | CD19: =IF(AND(TRIM(CD17)="",TRIM(CD18)=""),"",CD17+CD18) -> 2475.032 | CH19: =IF(TRIM(CG19)="", "", IF(VLOOKUP(CG19,'Footnotes list'!$D$9:$E$58,2,FALSE)=0,"",VLOOKUP(CG19,'Footnotes list'!$D$9:$E$58,2,FALSE) ) ) ->  | CI19: =IF(AND(TRIM(CI17)="", TRIM(CI18)=""), "", (IF(ISNUMBER(CI17),CI17,0)+IF(ISNUMBER(CI18),CI18,0))) -> 2575.374 | CM19: =IF(TRIM(CL19)="", "", IF(VLOOKUP(CL19,'Footnotes list'!$D$9:$E$58,2,FALSE)=0,"",VLOOKUP(CL19,'Footnotes list'!$D$9:$E$58,2,FALSE) ) ) ->  | CN19: =IF(AND(TRIM(CN17)="",TRIM(CN18)=""),"",CN17+CN18) -> 994.731 | CR19: =IF(TRIM(CQ19)="", "", IF(VLOOKUP(CQ19,'Footnotes list'!$D$9:$E$58,2,FALSE)=0,"",VLOOKUP(CQ19,'Footnotes list'!$D$9:$E$58,2,FALSE) ) ) ->  | CS19: =IF(AND(TRIM(CS17)="",TRIM(CS18)=""),"",CS17+CS18) -> 9383.578 | CW19: =IF(TRIM(CV19)="", "", IF(VLOOKUP(CV19,'Footnotes list'!$D$9:$E$58,2,FALSE)=0,"",VLOOKUP(CV19,'Footnotes list'!$D$9:$E$58,2,FALSE) ) ) ->  | CX19: =IF(AND(TRIM(CX17)="",TRIM(CX18)=""),"",CX17+CX18) -> 0.004 | DB19: =IF(TRIM(DA19)="", "", IF(VLOOKUP(DA19,'Footnotes list'!$D$9:$E$58,2,FALSE)=0,"",VLOOKUP(DA19,'Footnotes list'!$D$9:$E$58,2,FALSE) ) ) ->  | DC19: =IF(AND(TRIM(DC17)="",TRIM(DC18)=""),"",DC17+DC18) -> 1054.239 | DG19: =IF(TRIM(DF19)="", "", IF(VLOOKUP(DF19,'Footnotes list'!$D$9:$E$58,2,FALSE)=0,"",VLOOKUP(DF19,'Footnotes list'!$D$9:$E$58,2,FALSE) ) ) ->  | DH19: =IF(AND(TRIM(DH17)="", TRIM(DH18)=""), "", SUM(DH17,DH18) ) -> 31340.198 | DL19: =IF(TRIM(DK19)="", "", IF(VLOOKUP(DK19,'Footnotes list'!$D$9:$E$58,2,FALSE)=0,"",VLOOKUP(DK19,'Footnotes list'!$D$9:$E$58,2,FALSE) ) ) -> 
B20: W032 | C20: W032 | D20: Industrial effluent sludges | E20: HAZ | F20: Hazardous | G20: 14.769 | K20: =IF(TRIM(J20)="", "", IF(VLOOKUP(J20,'Footnotes list'!$D$9:$E$58,2,FALSE)=0,"",VLOOKUP(J20,'Footnotes list'!$D$9:$E$58,2,FALSE) ) ) ->  | L20: 14.088 | P20: =IF(TRIM(O20)="", "", IF(VLOOKUP(O20,'Footnotes list'!$D$9:$E$58,2,FALSE)=0,"",VLOOKUP(O20,'Footnotes list'!$D$9:$E$58,2,FALSE) ) ) ->  | Q20: 19.994 | U20: =IF(TRIM(T20)="", "", IF(VLOOKUP(T20,'Footnotes list'!$D$9:$E$58,2,FALSE)=0,"",VLOOKUP(T20,'Footnotes list'!$D$9:$E$58,2,FALSE) ) ) ->  | V20: 2.452 | Z20: =IF(TRIM(Y20)="", "", IF(VLOOKUP(Y20,'Footnotes list'!$D$9:$E$58,2,FALSE)=0,"",VLOOKUP(Y20,'Footnotes list'!$D$9:$E$58,2,FALSE) ) ) ->  | AA20: 0.43 | AE20: =IF(TRIM(AD20)="", "", IF(VLOOKUP(AD20,'Footnotes list'!$D$9:$E$58,2,FALSE)=0,"",VLOOKUP(AD20,'Footnotes list'!$D$9:$E$58,2,FALSE) ) ) ->  | AF20: 0.43 | AJ20: =IF(TRIM(AI20)="", "", IF(VLOOKUP(AI20,'Footnotes list'!$D$9:$E$58,2,FALSE)=0,"",VLOOKUP(AI20,'Footnotes list'!$D$9:$E$58,2,FALSE) ) ) ->  | AK20: 260.642 | AO20: =IF(TRIM(AN20)="", "", IF(VLOOKUP(AN20,'Footnotes list'!$D$9:$E$58,2,FALSE)=0,"",VLOOKUP(AN20,'Footnotes list'!$D$9:$E$58,2,FALSE) ) ) ->  | AP20: 164.428 | AT20: =IF(TRIM(AS20)="", "", IF(VLOOKUP(AS20,'Footnotes list'!$D$9:$E$58,2,FALSE)=0,"",VLOOKUP(AS20,'Footnotes list'!$D$9:$E$58,2,FALSE) ) ) ->  | AU20: 8.568 | AY20: =IF(TRIM(AX20)="", "", IF(VLOOKUP(AX20,'Footnotes list'!$D$9:$E$58,2,FALSE)=0,"",VLOOKUP(AX20,'Footnotes list'!$D$9:$E$58,2,FALSE) ) ) ->  | AZ20: 116.284 | BD20: =IF(TRIM(BC20)="", "", IF(VLOOKUP(BC20,'Footnotes list'!$D$9:$E$58,2,FALSE)=0,"",VLOOKUP(BC20,'Footnotes list'!$D$9:$E$58,2,FALSE) ) ) ->  | BE20: 579.686 | BI20: =IF(TRIM(BH20)="", "", IF(VLOOKUP(BH20,'Footnotes list'!$D$9:$E$58,2,FALSE)=0,"",VLOOKUP(BH20,'Footnotes list'!$D$9:$E$58,2,FALSE) ) ) ->  | BJ20: 128.402 | BN20: =IF(TRIM(BM20)="", "", IF(VLOOKUP(BM20,'Footnotes list'!$D$9:$E$58,2,FALSE)=0,"",VLOOKUP(BM20,'Footnotes list'!$D$9:$E$58,2,FALSE) ) ) ->  | BO20: =IF(AND(TRIM(Q20)="",TRIM(V20)="",TRIM(AA20)="", TRIM(AF20)="", TRIM(AK20)="", TRIM(AP20)="", TRIM(AU20)="", TRIM(AZ20)="", TRIM(BE20)="", TRIM(BJ20)=""),"",Q20+V20+AA20+AF20+AK20+AP20+AU20+AZ20+BE20+BJ20) -> 1281.316 | BS20: =IF(TRIM(BR20)="", "", IF(VLOOKUP(BR20,'Footnotes list'!$D$9:$E$58,2,FALSE)=0,"",VLOOKUP(BR20,'Footnotes list'!$D$9:$E$58,2,FALSE) ) ) ->  | BT20: 47.312 | BX20: =IF(TRIM(BW20)="", "", IF(VLOOKUP(BW20,'Footnotes list'!$D$9:$E$58,2,FALSE)=0,"",VLOOKUP(BW20,'Footnotes list'!$D$9:$E$58,2,FALSE) ) ) ->  | BY20: 25.68 | CC20: =IF(TRIM(CB20)="", "", IF(VLOOKUP(CB20,'Footnotes list'!$D$9:$E$58,2,FALSE)=0,"",VLOOKUP(CB20,'Footnotes list'!$D$9:$E$58,2,FALSE) ) ) ->  | CD20: 126.104 | CH20: =IF(TRIM(CG20)="", "", IF(VLOOKUP(CG20,'Footnotes list'!$D$9:$E$58,2,FALSE)=0,"",VLOOKUP(CG20,'Footnotes list'!$D$9:$E$58,2,FALSE) ) ) ->  | CI20: =IF(AND(TRIM(BY20)="",TRIM(CD20)=""),"",BY20+CD20) -> 151.784 | CM20: =IF(TRIM(CL20)="", "", IF(VLOOKUP(CL20,'Footnotes list'!$D$9:$E$58,2,FALSE)=0,"",VLOOKUP(CL20,'Footnotes list'!$D$9:$E$58,2,FALSE) ) ) ->  | CN20: 0.149 | CR20: =IF(TRIM(CQ20)="", "", IF(VLOOKUP(CQ20,'Footnotes list'!$D$9:$E$58,2,FALSE)=0,"",VLOOKUP(CQ20,'Footnotes list'!$D$9:$E$58,2,FALSE) ) ) ->  | CS20: 308.14 | CW20: =IF(TRIM(CV20)="", "", IF(VLOOKUP(CV20,'Footnotes list'!$D$9:$E$58,2,FALSE)=0,"",VLOOKUP(CV20,'Footnotes list'!$D$9:$E$58,2,FALSE) ) ) ->  | CX20: 0 | DB20: =IF(TRIM(DA20)="", "", IF(VLOOKUP(DA20,'Footnotes list'!$D$9:$E$58,2,FALSE)=0,"",VLOOKUP(DA20,'Footnotes list'!$D$9:$E$58,2,FALSE) ) ) ->  | DC20: 0 | DG20: =IF(TRIM(DF20)="", "", IF(VLOOKUP(DF20,'Footnotes list'!$D$9:$E$58,2,FALSE)=0,"",VLOOKUP(DF20,'Footnotes list'!$D$9:$E$58,2,FALSE) ) ) ->  | DH20: =IF(AND(TRIM(G20)="",TRIM(L20)="",TRIM(BO20)="",TRIM(BT20)="",TRIM(CI20)="",TRIM(CN20)="",TRIM(CS20)="",TRIM(CX20)="",TRIM(DC20)=""),"",SUM(G20,L20,BO20,BT20,CI20,CN20,CS20,CX20,DC20)) -> 1817.558 | DL20: =IF(TRIM(DK20)="", "", IF(VLOOKUP(DK20,'Footnotes list'!$D$9:$E$58,2,FALSE)=0,"",VLOOKUP(DK20,'Footnotes list'!$D$9:$E$58,2,FALSE) ) ) -> 
C21: W032 | E21: NHAZ | F21: Non-hazardous | G21: 0 | K21: =IF(TRIM(J21)="", "", IF(VLOOKUP(J21,'Footnotes list'!$D$9:$E$58,2,FALSE)=0,"",VLOOKUP(J21,'Footnotes list'!$D$9:$E$58,2,FALSE) ) ) ->  | L21: 20.725 | P21: =IF(TRIM(O21)="", "", IF(VLOOKUP(O21,'Footnotes list'!$D$9:$E$58,2,FALSE)=0,"",VLOOKUP(O21,'Footnotes list'!$D$9:$E$58,2,FALSE) ) ) ->  | Q21: 663.561 | U21: =IF(TRIM(T21)="", "", IF(VLOOKUP(T21,'Footnotes list'!$D$9:$E$58,2,FALSE)=0,"",VLOOKUP(T21,'Footnotes list'!$D$9:$E$58,2,FALSE) ) ) ->  | V21: 88.256 | Z21: =IF(TRIM(Y21)="", "", IF(VLOOKUP(Y21,'Footnotes list'!$D$9:$E$58,2,FALSE)=0,"",VLOOKUP(Y21,'Footnotes list'!$D$9:$E$58,2,FALSE) ) ) ->  | AA21: 0 | AE21: =IF(TRIM(AD21)="", "", IF(VLOOKUP(AD21,'Footnotes list'!$D$9:$E$58,2,FALSE)=0,"",VLOOKUP(AD21,'Footnotes list'!$D$9:$E$58,2,FALSE) ) ) ->  | AF21: 2413.951 | AJ21: =IF(TRIM(AI21)="", "", IF(VLOOKUP(AI21,'Footnotes list'!$D$9:$E$58,2,FALSE)=0,"",VLOOKUP(AI21,'Footnotes list'!$D$9:$E$58,2,FALSE) ) ) ->  | AK21: 0 | AO21: =IF(TRIM(AN21)="", "", IF(VLOOKUP(AN21,'Footnotes list'!$D$9:$E$58,2,FALSE)=0,"",VLOOKUP(AN21,'Footnotes list'!$D$9:$E$58,2,FALSE) ) ) ->  | AP21: 170.825 | AT21: =IF(TRIM(AS21)="", "", IF(VLOOKUP(AS21,'Footnotes list'!$D$9:$E$58,2,FALSE)=0,"",VLOOKUP(AS21,'Footnotes list'!$D$9:$E$58,2,FALSE) ) ) ->  | AU21: 1.045 | AY21: =IF(TRIM(AX21)="", "", IF(VLOOKUP(AX21,'Footnotes list'!$D$9:$E$58,2,FALSE)=0,"",VLOOKUP(AX21,'Footnotes list'!$D$9:$E$58,2,FALSE) ) ) ->  | AZ21: 22.488 | BD21: =IF(TRIM(BC21)="", "", IF(VLOOKUP(BC21,'Footnotes list'!$D$9:$E$58,2,FALSE)=0,"",VLOOKUP(BC21,'Footnotes list'!$D$9:$E$58,2,FALSE) ) ) ->  | BE21: 13.429 | BI21: =IF(TRIM(BH21)="", "", IF(VLOOKUP(BH21,'Footnotes list'!$D$9:$E$58,2,FALSE)=0,"",VLOOKUP(BH21,'Footnotes list'!$D$9:$E$58,2,FALSE) ) ) ->  | BJ21: 2.7 | BN21: =IF(TRIM(BM21)="", "", IF(VLOOKUP(BM21,'Footnotes list'!$D$9:$E$58,2,FALSE)=0,"",VLOOKUP(BM21,'Footnotes list'!$D$9:$E$58,2,FALSE) ) ) ->  | BO21: =IF(AND(TRIM(Q21)="",TRIM(V21)="",TRIM(AA21)="", TRIM(AF21)="", TRIM(AK21)="", TRIM(AP21)="", TRIM(AU21)="", TRIM(AZ21)="", TRIM(BE21)="", TRIM(BJ21)=""),"",Q21+V21+AA21+AF21+AK21+AP21+AU21+AZ21+BE21+BJ21) -> 3376.255 | BS21: =IF(TRIM(BR21)="", "", IF(VLOOKUP(BR21,'Footnotes list'!$D$9:$E$58,2,FALSE)=0,"",VLOOKUP(BR21,'Footnotes list'!$D$9:$E$58,2,FALSE) ) ) ->  | BT21: 54.448 | BX21: =IF(TRIM(BW21)="", "", IF(VLOOKUP(BW21,'Footnotes list'!$D$9:$E$58,2,FALSE)=0,"",VLOOKUP(BW21,'Footnotes list'!$D$9:$E$58,2,FALSE) ) ) ->  | BY21: 100.373 | CC21: =IF(TRIM(CB21)="", "", IF(VLOOKUP(CB21,'Footnotes list'!$D$9:$E$58,2,FALSE)=0,"",VLOOKUP(CB21,'Footnotes list'!$D$9:$E$58,2,FALSE) ) ) ->  | CD21: 103.891 | CH21: =IF(TRIM(CG21)="", "", IF(VLOOKUP(CG21,'Footnotes list'!$D$9:$E$58,2,FALSE)=0,"",VLOOKUP(CG21,'Footnotes list'!$D$9:$E$58,2,FALSE) ) ) ->  | CI21: =IF(AND(TRIM(BY21)="",TRIM(CD21)=""),"",BY21+CD21) -> 204.264 | CM21: =IF(TRIM(CL21)="", "", IF(VLOOKUP(CL21,'Footnotes list'!$D$9:$E$58,2,FALSE)=0,"",VLOOKUP(CL21,'Footnotes list'!$D$9:$E$58,2,FALSE) ) ) ->  | CN21: 72.403 | CR21: =IF(TRIM(CQ21)="", "", IF(VLOOKUP(CQ21,'Footnotes list'!$D$9:$E$58,2,FALSE)=0,"",VLOOKUP(CQ21,'Footnotes list'!$D$9:$E$58,2,FALSE) ) ) ->  | CS21: 126.947 | CW21: =IF(TRIM(CV21)="", "", IF(VLOOKUP(CV21,'Footnotes list'!$D$9:$E$58,2,FALSE)=0,"",VLOOKUP(CV21,'Footnotes list'!$D$9:$E$58,2,FALSE) ) ) ->  | CX21: 0 | DB21: =IF(TRIM(DA21)="", "", IF(VLOOKUP(DA21,'Footnotes list'!$D$9:$E$58,2,FALSE)=0,"",VLOOKUP(DA21,'Footnotes list'!$D$9:$E$58,2,FALSE) ) ) ->  | DC21: 0 | DG21: =IF(TRIM(DF21)="", "", IF(VLOOKUP(DF21,'Footnotes list'!$D$9:$E$58,2,FALSE)=0,"",VLOOKUP(DF21,'Footnotes list'!$D$9:$E$58,2,FALSE) ) ) ->  | DH21: =IF(AND(TRIM(G21)="",TRIM(L21)="",TRIM(BO21)="",TRIM(BT21)="",TRIM(CI21)="",TRIM(CN21)="",TRIM(CS21)="",TRIM(CX21)="",TRIM(DC21)=""),"",SUM(G21,L21,BO21,BT21,CI21,CN21,CS21,CX21,DC21)) -> 3855.042 | DL21: =IF(TRIM(DK21)="", "", IF(VLOOKUP(DK21,'Footnotes list'!$D$9:$E$58,2,FALSE)=0,"",VLOOKUP(DK21,'Footnotes list'!$D$9:$E$58,2,FALSE) ) ) -> 
C22: W032 | E22: HAZ_NHAZ | F22: Total | G22: =IF(AND(TRIM(G20)="",TRIM(G21)=""),"",G20+G21) -> 14.769 | K22: =IF(TRIM(J22)="", "", IF(VLOOKUP(J22,'Footnotes list'!$D$9:$E$58,2,FALSE)=0,"",VLOOKUP(J22,'Footnotes list'!$D$9:$E$58,2,FALSE) ) ) ->  | L22: =IF(AND(TRIM(L20)="",TRIM(L21)=""),"",L20+L21) -> 34.813 | P22: =IF(TRIM(O22)="", "", IF(VLOOKUP(O22,'Footnotes list'!$D$9:$E$58,2,FALSE)=0,"",VLOOKUP(O22,'Footnotes list'!$D$9:$E$58,2,FALSE) ) ) ->  | Q22: =IF(AND(TRIM(Q20)="",TRIM(Q21)=""),"",Q20+Q21) -> 683.555 | U22: =IF(TRIM(T22)="", "", IF(VLOOKUP(T22,'Footnotes list'!$D$9:$E$58,2,FALSE)=0,"",VLOOKUP(T22,'Footnotes list'!$D$9:$E$58,2,FALSE) ) ) ->  | V22: =IF(AND(TRIM(V20)="",TRIM(V21)=""),"",V20+V21) -> 90.708 | Z22: =IF(TRIM(Y22)="", "", IF(VLOOKUP(Y22,'Footnotes list'!$D$9:$E$58,2,FALSE)=0,"",VLOOKUP(Y22,'Footnotes list'!$D$9:$E$58,2,FALSE) ) ) ->  | AA22: =IF(AND(TRIM(AA20)="",TRIM(AA21)=""),"",AA20+AA21) -> 0.43 | AE22: =IF(TRIM(AD22)="", "", IF(VLOOKUP(AD22,'Footnotes list'!$D$9:$E$58,2,FALSE)=0,"",VLOOKUP(AD22,'Footnotes list'!$D$9:$E$58,2,FALSE) ) ) ->  | AF22: =IF(AND(TRIM(AF20)="",TRIM(AF21)=""),"",AF20+AF21) -> 2414.381 | AJ22: =IF(TRIM(AI22)="", "", IF(VLOOKUP(AI22,'Footnotes list'!$D$9:$E$58,2,FALSE)=0,"",VLOOKUP(AI22,'Footnotes list'!$D$9:$E$58,2,FALSE) ) ) ->  | AK22: =IF(AND(TRIM(AK20)="",TRIM(AK21)=""),"",AK20+AK21) -> 260.642 | AO22: =IF(TRIM(AN22)="", "", IF(VLOOKUP(AN22,'Footnotes list'!$D$9:$E$58,2,FALSE)=0,"",VLOOKUP(AN22,'Footnotes list'!$D$9:$E$58,2,FALSE) ) ) ->  | AP22: =IF(AND(TRIM(AP20)="",TRIM(AP21)=""),"",AP20+AP21) -> 335.253 | AT22: =IF(TRIM(AS22)="", "", IF(VLOOKUP(AS22,'Footnotes list'!$D$9:$E$58,2,FALSE)=0,"",VLOOKUP(AS22,'Footnotes list'!$D$9:$E$58,2,FALSE) ) ) ->  | AU22: =IF(AND(TRIM(AU20)="",TRIM(AU21)=""),"",AU20+AU21) -> 9.613 | AY22: =IF(TRIM(AX22)="", "", IF(VLOOKUP(AX22,'Footnotes list'!$D$9:$E$58,2,FALSE)=0,"",VLOOKUP(AX22,'Footnotes list'!$D$9:$E$58,2,FALSE) ) ) ->  | AZ22: =IF(AND(TRIM(AZ20)="",TRIM(AZ21)=""),"",AZ20+AZ21) -> 138.772 | BD22: =IF(TRIM(BC22)="", "", IF(VLOOKUP(BC22,'Footnotes list'!$D$9:$E$58,2,FALSE)=0,"",VLOOKUP(BC22,'Footnotes list'!$D$9:$E$58,2,FALSE) ) ) ->  | BE22: =IF(AND(TRIM(BE20)="",TRIM(BE21)=""),"",BE20+BE21) -> 593.115 | BI22: =IF(TRIM(BH22)="", "", IF(VLOOKUP(BH22,'Footnotes list'!$D$9:$E$58,2,FALSE)=0,"",VLOOKUP(BH22,'Footnotes list'!$D$9:$E$58,2,FALSE) ) ) ->  | BJ22: =IF(AND(TRIM(BJ20)="",TRIM(BJ21)=""),"",BJ20+BJ21) -> 131.102 | BN22: =IF(TRIM(BM22)="", "", IF(VLOOKUP(BM22,'Footnotes list'!$D$9:$E$58,2,FALSE)=0,"",VLOOKUP(BM22,'Footnotes list'!$D$9:$E$58,2,FALSE) ) ) ->  | BO22: =IF(AND(TRIM(BO20)="", TRIM(BO21)=""), "", (IF(ISNUMBER(BO20),BO20,0)+IF(ISNUMBER(BO21),BO21,0))) -> 4657.571 | BS22: =IF(TRIM(BR22)="", "", IF(VLOOKUP(BR22,'Footnotes list'!$D$9:$E$58,2,FALSE)=0,"",VLOOKUP(BR22,'Footnotes list'!$D$9:$E$58,2,FALSE) ) ) ->  | BT22: =IF(AND(TRIM(BT20)="",TRIM(BT21)=""),"",BT20+BT21) -> 101.76 | BX22: =IF(TRIM(BW22)="", "", IF(VLOOKUP(BW22,'Footnotes list'!$D$9:$E$58,2,FALSE)=0,"",VLOOKUP(BW22,'Footnotes list'!$D$9:$E$58,2,FALSE) ) ) ->  | BY22: =IF(AND(TRIM(BY20)="",TRIM(BY21)=""),"",BY20+BY21) -> 126.053 | CC22: =IF(TRIM(CB22)="", "", IF(VLOOKUP(CB22,'Footnotes list'!$D$9:$E$58,2,FALSE)=0,"",VLOOKUP(CB22,'Footnotes list'!$D$9:$E$58,2,FALSE) ) ) ->  | CD22: =IF(AND(TRIM(CD20)="",TRIM(CD21)=""),"",CD20+CD21) -> 229.995 | CH22: =IF(TRIM(CG22)="", "", IF(VLOOKUP(CG22,'Footnotes list'!$D$9:$E$58,2,FALSE)=0,"",VLOOKUP(CG22,'Footnotes list'!$D$9:$E$58,2,FALSE) ) ) ->  | CI22: =IF(AND(TRIM(CI20)="", TRIM(CI21)=""), "", (IF(ISNUMBER(CI20),CI20,0)+IF(ISNUMBER(CI21),CI21,0))) -> 356.048 | CM22: =IF(TRIM(CL22)="", "", IF(VLOOKUP(CL22,'Footnotes list'!$D$9:$E$58,2,FALSE)=0,"",VLOOKUP(CL22,'Footnotes list'!$D$9:$E$58,2,FALSE) ) ) ->  | CN22: =IF(AND(TRIM(CN20)="",TRIM(CN21)=""),"",CN20+CN21) -> 72.552 | CR22: =IF(TRIM(CQ22)="", "", IF(VLOOKUP(CQ22,'Footnotes list'!$D$9:$E$58,2,FALSE)=0,"",VLOOKUP(CQ22,'Footnotes list'!$D$9:$E$58,2,FALSE) ) ) ->  | CS22: =IF(AND(TRIM(CS20)="",TRIM(CS21)=""),"",CS20+CS21) -> 435.087 | CW22: =IF(TRIM(CV22)="", "", IF(VLOOKUP(CV22,'Footnotes list'!$D$9:$E$58,2,FALSE)=0,"",VLOOKUP(CV22,'Footnotes list'!$D$9:$E$58,2,FALSE) ) ) ->  | CX22: =IF(AND(TRIM(CX20)="",TRIM(CX21)=""),"",CX20+CX21) -> 0 | DB22: =IF(TRIM(DA22)="", "", IF(VLOOKUP(DA22,'Footnotes list'!$D$9:$E$58,2,FALSE)=0,"",VLOOKUP(DA22,'Footnotes list'!$D$9:$E$58,2,FALSE) ) ) ->  | DC22: =IF(AND(TRIM(DC20)="",TRIM(DC21)=""),"",DC20+DC21) -> 0 | DG22: =IF(TRIM(DF22)="", "", IF(VLOOKUP(DF22,'Footnotes list'!$D$9:$E$58,2,FALSE)=0,"",VLOOKUP(DF22,'Footnotes list'!$D$9:$E$58,2,FALSE) ) ) ->  | DH22: =IF(AND(TRIM(DH20)="", TRIM(DH21)=""), "", SUM(DH20,DH21) ) -> 5672.6 | DL22: =IF(TRIM(DK22)="", "", IF(VLOOKUP(DK22,'Footnotes list'!$D$9:$E$58,2,FALSE)=0,"",VLOOKUP(DK22,'Footnotes list'!$D$9:$E$58,2,FALSE) ) ) -> 
B23: W033 | C23: W033 | D23: Sludges and liquid wastes from waste treatment | E23: HAZ | F23: Hazardous | G23: 0 | K23: =IF(TRIM(J23)="", "", IF(VLOOKUP(J23,'Footnotes list'!$D$9:$E$58,2,FALSE)=0,"",VLOOKUP(J23,'Footnotes list'!$D$9:$E$58,2,FALSE) ) ) ->  | L23: 0 | P23: =IF(TRIM(O23)="", "", IF(VLOOKUP(O23,'Footnotes list'!$D$9:$E$58,2,FALSE)=0,"",VLOOKUP(O23,'Footnotes list'!$D$9:$E$58,2,FALSE) ) ) ->  | Q23: 0 | U23: =IF(TRIM(T23)="", "", IF(VLOOKUP(T23,'Footnotes list'!$D$9:$E$58,2,FALSE)=0,"",VLOOKUP(T23,'Footnotes list'!$D$9:$E$58,2,FALSE) ) ) ->  | V23: 0.022 | Z23: =IF(TRIM(Y23)="", "", IF(VLOOKUP(Y23,'Footnotes list'!$D$9:$E$58,2,FALSE)=0,"",VLOOKUP(Y23,'Footnotes list'!$D$9:$E$58,2,FALSE) ) ) ->  | AA23: 0 | AE23: =IF(TRIM(AD23)="", "", IF(VLOOKUP(AD23,'Footnotes list'!$D$9:$E$58,2,FALSE)=0,"",VLOOKUP(AD23,'Footnotes list'!$D$9:$E$58,2,FALSE) ) ) ->  | AF23: 0 | AJ23: =IF(TRIM(AI23)="", "", IF(VLOOKUP(AI23,'Footnotes list'!$D$9:$E$58,2,FALSE)=0,"",VLOOKUP(AI23,'Footnotes list'!$D$9:$E$58,2,FALSE) ) ) ->  | AK23: 0 | AO23: =IF(TRIM(AN23)="", "", IF(VLOOKUP(AN23,'Footnotes list'!$D$9:$E$58,2,FALSE)=0,"",VLOOKUP(AN23,'Footnotes list'!$D$9:$E$58,2,FALSE) ) ) ->  | AP23: 0 | AT23: =IF(TRIM(AS23)="", "", IF(VLOOKUP(AS23,'Footnotes list'!$D$9:$E$58,2,FALSE)=0,"",VLOOKUP(AS23,'Footnotes list'!$D$9:$E$58,2,FALSE) ) ) ->  | AU23: 0 | AY23: =IF(TRIM(AX23)="", "", IF(VLOOKUP(AX23,'Footnotes list'!$D$9:$E$58,2,FALSE)=0,"",VLOOKUP(AX23,'Footnotes list'!$D$9:$E$58,2,FALSE) ) ) ->  | AZ23: 91.246 | BD23: =IF(TRIM(BC23)="", "", IF(VLOOKUP(BC23,'Footnotes list'!$D$9:$E$58,2,FALSE)=0,"",VLOOKUP(BC23,'Footnotes list'!$D$9:$E$58,2,FALSE) ) ) ->  | BE23: 0 | BI23: =IF(TRIM(BH23)="", "", IF(VLOOKUP(BH23,'Footnotes list'!$D$9:$E$58,2,FALSE)=0,"",VLOOKUP(BH23,'Footnotes list'!$D$9:$E$58,2,FALSE) ) ) ->  | BJ23: 0.064 | BN23: =IF(TRIM(BM23)="", "", IF(VLOOKUP(BM23,'Footnotes list'!$D$9:$E$58,2,FALSE)=0,"",VLOOKUP(BM23,'Footnotes list'!$D$9:$E$58,2,FALSE) ) ) ->  | BO23: =IF(AND(TRIM(Q23)="",TRIM(V23)="",TRIM(AA23)="", TRIM(AF23)="", TRIM(AK23)="", TRIM(AP23)="", TRIM(AU23)="", TRIM(AZ23)="", TRIM(BE23)="", TRIM(BJ23)=""),"",Q23+V23+AA23+AF23+AK23+AP23+AU23+AZ23+BE23+BJ23) -> 91.332 | BS23: =IF(TRIM(BR23)="", "", IF(VLOOKUP(BR23,'Footnotes list'!$D$9:$E$58,2,FALSE)=0,"",VLOOKUP(BR23,'Footnotes list'!$D$9:$E$58,2,FALSE) ) ) ->  | BT23: 0 | BX23: =IF(TRIM(BW23)="", "", IF(VLOOKUP(BW23,'Footnotes list'!$D$9:$E$58,2,FALSE)=0,"",VLOOKUP(BW23,'Footnotes list'!$D$9:$E$58,2,FALSE) ) ) ->  | BY23: 116.591 | CC23: =IF(TRIM(CB23)="", "", IF(VLOOKUP(CB23,'Footnotes list'!$D$9:$E$58,2,FALSE)=0,"",VLOOKUP(CB23,'Footnotes list'!$D$9:$E$58,2,FALSE) ) ) ->  | CD23: 759.664 | CH23: =IF(TRIM(CG23)="", "", IF(VLOOKUP(CG23,'Footnotes list'!$D$9:$E$58,2,FALSE)=0,"",VLOOKUP(CG23,'Footnotes list'!$D$9:$E$58,2,FALSE) ) ) ->  | CI23: =IF(AND(TRIM(BY23)="",TRIM(CD23)=""),"",BY23+CD23) -> 876.255 | CM23: =IF(TRIM(CL23)="", "", IF(VLOOKUP(CL23,'Footnotes list'!$D$9:$E$58,2,FALSE)=0,"",VLOOKUP(CL23,'Footnotes list'!$D$9:$E$58,2,FALSE) ) ) ->  | CN23: 0 | CR23: =IF(TRIM(CQ23)="", "", IF(VLOOKUP(CQ23,'Footnotes list'!$D$9:$E$58,2,FALSE)=0,"",VLOOKUP(CQ23,'Footnotes list'!$D$9:$E$58,2,FALSE) ) ) ->  | CS23: 138.822 | CW23: =IF(TRIM(CV23)="", "", IF(VLOOKUP(CV23,'Footnotes list'!$D$9:$E$58,2,FALSE)=0,"",VLOOKUP(CV23,'Footnotes list'!$D$9:$E$58,2,FALSE) ) ) ->  | CX23: 0 | DB23: =IF(TRIM(DA23)="", "", IF(VLOOKUP(DA23,'Footnotes list'!$D$9:$E$58,2,FALSE)=0,"",VLOOKUP(DA23,'Footnotes list'!$D$9:$E$58,2,FALSE) ) ) ->  | DC23: 0 | DG23: =IF(TRIM(DF23)="", "", IF(VLOOKUP(DF23,'Footnotes list'!$D$9:$E$58,2,FALSE)=0,"",VLOOKUP(DF23,'Footnotes list'!$D$9:$E$58,2,FALSE) ) ) ->  | DH23: =IF(AND(TRIM(G23)="",TRIM(L23)="",TRIM(BO23)="",TRIM(BT23)="",TRIM(CI23)="",TRIM(CN23)="",TRIM(CS23)="",TRIM(CX23)="",TRIM(DC23)=""),"",SUM(G23,L23,BO23,BT23,CI23,CN23,CS23,CX23,DC23)) -> 1106.409 | DL23: =IF(TRIM(DK23)="", "", IF(VLOOKUP(DK23,'Footnotes list'!$D$9:$E$58,2,FALSE)=0,"",VLOOKUP(DK23,'Footnotes list'!$D$9:$E$58,2,FALSE) ) ) -> 
C24: W033 | E24: NHAZ | F24: Non-hazardous | G24: 0 | K24: =IF(TRIM(J24)="", "", IF(VLOOKUP(J24,'Footnotes list'!$D$9:$E$58,2,FALSE)=0,"",VLOOKUP(J24,'Footnotes list'!$D$9:$E$58,2,FALSE) ) ) ->  | L24: 0 | P24: =IF(TRIM(O24)="", "", IF(VLOOKUP(O24,'Footnotes list'!$D$9:$E$58,2,FALSE)=0,"",VLOOKUP(O24,'Footnotes list'!$D$9:$E$58,2,FALSE) ) ) ->  | Q24: 0 | U24: =IF(TRIM(T24)="", "", IF(VLOOKUP(T24,'Footnotes list'!$D$9:$E$58,2,FALSE)=0,"",VLOOKUP(T24,'Footnotes list'!$D$9:$E$58,2,FALSE) ) ) ->  | V24: 0 | Z24: =IF(TRIM(Y24)="", "", IF(VLOOKUP(Y24,'Footnotes list'!$D$9:$E$58,2,FALSE)=0,"",VLOOKUP(Y24,'Footnotes list'!$D$9:$E$58,2,FALSE) ) ) ->  | AA24: 0 | AE24: =IF(TRIM(AD24)="", "", IF(VLOOKUP(AD24,'Footnotes list'!$D$9:$E$58,2,FALSE)=0,"",VLOOKUP(AD24,'Footnotes list'!$D$9:$E$58,2,FALSE) ) ) ->  | AF24: 0 | AJ24: =IF(TRIM(AI24)="", "", IF(VLOOKUP(AI24,'Footnotes list'!$D$9:$E$58,2,FALSE)=0,"",VLOOKUP(AI24,'Footnotes list'!$D$9:$E$58,2,FALSE) ) ) ->  | AK24: 0 | AO24: =IF(TRIM(AN24)="", "", IF(VLOOKUP(AN24,'Footnotes list'!$D$9:$E$58,2,FALSE)=0,"",VLOOKUP(AN24,'Footnotes list'!$D$9:$E$58,2,FALSE) ) ) ->  | AP24: 0.063 | AT24: =IF(TRIM(AS24)="", "", IF(VLOOKUP(AS24,'Footnotes list'!$D$9:$E$58,2,FALSE)=0,"",VLOOKUP(AS24,'Footnotes list'!$D$9:$E$58,2,FALSE) ) ) ->  | AU24: 0 | AY24: =IF(TRIM(AX24)="", "", IF(VLOOKUP(AX24,'Footnotes list'!$D$9:$E$58,2,FALSE)=0,"",VLOOKUP(AX24,'Footnotes list'!$D$9:$E$58,2,FALSE) ) ) ->  | AZ24: 99.001 | BD24: =IF(TRIM(BC24)="", "", IF(VLOOKUP(BC24,'Footnotes list'!$D$9:$E$58,2,FALSE)=0,"",VLOOKUP(BC24,'Footnotes list'!$D$9:$E$58,2,FALSE) ) ) ->  | BE24: 0 | BI24: =IF(TRIM(BH24)="", "", IF(VLOOKUP(BH24,'Footnotes list'!$D$9:$E$58,2,FALSE)=0,"",VLOOKUP(BH24,'Footnotes list'!$D$9:$E$58,2,FALSE) ) ) ->  | BJ24: 0 | BN24: =IF(TRIM(BM24)="", "", IF(VLOOKUP(BM24,'Footnotes list'!$D$9:$E$58,2,FALSE)=0,"",VLOOKUP(BM24,'Footnotes list'!$D$9:$E$58,2,FALSE) ) ) ->  | BO24: =IF(AND(TRIM(Q24)="",TRIM(V24)="",TRIM(AA24)="", TRIM(AF24)="", TRIM(AK24)="", TRIM(AP24)="", TRIM(AU24)="", TRIM(AZ24)="", TRIM(BE24)="", TRIM(BJ24)=""),"",Q24+V24+AA24+AF24+AK24+AP24+AU24+AZ24+BE24+BJ24) -> 99.064 | BS24: =IF(TRIM(BR24)="", "", IF(VLOOKUP(BR24,'Footnotes list'!$D$9:$E$58,2,FALSE)=0,"",VLOOKUP(BR24,'Footnotes list'!$D$9:$E$58,2,FALSE) ) ) ->  | BT24: 9455.798 | BX24: =IF(TRIM(BW24)="", "", IF(VLOOKUP(BW24,'Footnotes list'!$D$9:$E$58,2,FALSE)=0,"",VLOOKUP(BW24,'Footnotes list'!$D$9:$E$58,2,FALSE) ) ) ->  | BY24: 0.645 | CC24: =IF(TRIM(CB24)="", "", IF(VLOOKUP(CB24,'Footnotes list'!$D$9:$E$58,2,FALSE)=0,"",VLOOKUP(CB24,'Footnotes list'!$D$9:$E$58,2,FALSE) ) ) ->  | CD24: 847.495 | CH24: =IF(TRIM(CG24)="", "", IF(VLOOKUP(CG24,'Footnotes list'!$D$9:$E$58,2,FALSE)=0,"",VLOOKUP(CG24,'Footnotes list'!$D$9:$E$58,2,FALSE) ) ) ->  | CI24: =IF(AND(TRIM(BY24)="",TRIM(CD24)=""),"",BY24+CD24) -> 848.14 | CM24: =IF(TRIM(CL24)="", "", IF(VLOOKUP(CL24,'Footnotes list'!$D$9:$E$58,2,FALSE)=0,"",VLOOKUP(CL24,'Footnotes list'!$D$9:$E$58,2,FALSE) ) ) ->  | CN24: 0 | CR24: =IF(TRIM(CQ24)="", "", IF(VLOOKUP(CQ24,'Footnotes list'!$D$9:$E$58,2,FALSE)=0,"",VLOOKUP(CQ24,'Footnotes list'!$D$9:$E$58,2,FALSE) ) ) ->  | CS24: 3.08 | CW24: =IF(TRIM(CV24)="", "", IF(VLOOKUP(CV24,'Footnotes list'!$D$9:$E$58,2,FALSE)=0,"",VLOOKUP(CV24,'Footnotes list'!$D$9:$E$58,2,FALSE) ) ) ->  | CX24: 0 | DB24: =IF(TRIM(DA24)="", "", IF(VLOOKUP(DA24,'Footnotes list'!$D$9:$E$58,2,FALSE)=0,"",VLOOKUP(DA24,'Footnotes list'!$D$9:$E$58,2,FALSE) ) ) ->  | DC24: 0 | DG24: =IF(TRIM(DF24)="", "", IF(VLOOKUP(DF24,'Footnotes list'!$D$9:$E$58,2,FALSE)=0,"",VLOOKUP(DF24,'Footnotes list'!$D$9:$E$58,2,FALSE) ) ) ->  | DH24: =IF(AND(TRIM(G24)="",TRIM(L24)="",TRIM(BO24)="",TRIM(BT24)="",TRIM(CI24)="",TRIM(CN24)="",TRIM(CS24)="",TRIM(CX24)="",TRIM(DC24)=""),"",SUM(G24,L24,BO24,BT24,CI24,CN24,CS24,CX24,DC24)) -> 10406.082 | DL24: =IF(TRIM(DK24)="", "", IF(VLOOKUP(DK24,'Footnotes list'!$D$9:$E$58,2,FALSE)=0,"",VLOOKUP(DK24,'Footnotes list'!$D$9:$E$58,2,FALSE) ) ) -> 
C25: W033 | E25: HAZ_NHAZ | F25: Total | G25: =IF(AND(TRIM(G23)="",TRIM(G24)=""),"",G23+G24) -> 0 | K25: =IF(TRIM(J25)="", "", IF(VLOOKUP(J25,'Footnotes list'!$D$9:$E$58,2,FALSE)=0,"",VLOOKUP(J25,'Footnotes list'!$D$9:$E$58,2,FALSE) ) ) ->  | L25: =IF(AND(TRIM(L23)="",TRIM(L24)=""),"",L23+L24) -> 0 | P25: =IF(TRIM(O25)="", "", IF(VLOOKUP(O25,'Footnotes list'!$D$9:$E$58,2,FALSE)=0,"",VLOOKUP(O25,'Footnotes list'!$D$9:$E$58,2,FALSE) ) ) ->  | Q25: =IF(AND(TRIM(Q23)="",TRIM(Q24)=""),"",Q23+Q24) -> 0 | U25: =IF(TRIM(T25)="", "", IF(VLOOKUP(T25,'Footnotes list'!$D$9:$E$58,2,FALSE)=0,"",VLOOKUP(T25,'Footnotes list'!$D$9:$E$58,2,FALSE) ) ) ->  | V25: =IF(AND(TRIM(V23)="",TRIM(V24)=""),"",V23+V24) -> 0.022 | Z25: =IF(TRIM(Y25)="", "", IF(VLOOKUP(Y25,'Footnotes list'!$D$9:$E$58,2,FALSE)=0,"",VLOOKUP(Y25,'Footnotes list'!$D$9:$E$58,2,FALSE) ) ) ->  | AA25: =IF(AND(TRIM(AA23)="",TRIM(AA24)=""),"",AA23+AA24) -> 0 | AE25: =IF(TRIM(AD25)="", "", IF(VLOOKUP(AD25,'Footnotes list'!$D$9:$E$58,2,FALSE)=0,"",VLOOKUP(AD25,'Footnotes list'!$D$9:$E$58,2,FALSE) ) ) ->  | AF25: =IF(AND(TRIM(AF23)="",TRIM(AF24)=""),"",AF23+AF24) -> 0 | AJ25: =IF(TRIM(AI25)="", "", IF(VLOOKUP(AI25,'Footnotes list'!$D$9:$E$58,2,FALSE)=0,"",VLOOKUP(AI25,'Footnotes list'!$D$9:$E$58,2,FALSE) ) ) ->  | AK25: =IF(AND(TRIM(AK23)="",TRIM(AK24)=""),"",AK23+AK24) -> 0 | AO25: =IF(TRIM(AN25)="", "", IF(VLOOKUP(AN25,'Footnotes list'!$D$9:$E$58,2,FALSE)=0,"",VLOOKUP(AN25,'Footnotes list'!$D$9:$E$58,2,FALSE) ) ) ->  | AP25: =IF(AND(TRIM(AP23)="",TRIM(AP24)=""),"",AP23+AP24) -> 0.063 | AT25: =IF(TRIM(AS25)="", "", IF(VLOOKUP(AS25,'Footnotes list'!$D$9:$E$58,2,FALSE)=0,"",VLOOKUP(AS25,'Footnotes list'!$D$9:$E$58,2,FALSE) ) ) ->  | AU25: =IF(AND(TRIM(AU23)="",TRIM(AU24)=""),"",AU23+AU24) -> 0 | AY25: =IF(TRIM(AX25)="", "", IF(VLOOKUP(AX25,'Footnotes list'!$D$9:$E$58,2,FALSE)=0,"",VLOOKUP(AX25,'Footnotes list'!$D$9:$E$58,2,FALSE) ) ) ->  | AZ25: =IF(AND(TRIM(AZ23)="",TRIM(AZ24)=""),"",AZ23+AZ24) -> 190.247 | BD25: =IF(TRIM(BC25)="", "", IF(VLOOKUP(BC25,'Footnotes list'!$D$9:$E$58,2,FALSE)=0,"",VLOOKUP(BC25,'Footnotes list'!$D$9:$E$58,2,FALSE) ) ) ->  | BE25: =IF(AND(TRIM(BE23)="",TRIM(BE24)=""),"",BE23+BE24) -> 0 | BI25: =IF(TRIM(BH25)="", "", IF(VLOOKUP(BH25,'Footnotes list'!$D$9:$E$58,2,FALSE)=0,"",VLOOKUP(BH25,'Footnotes list'!$D$9:$E$58,2,FALSE) ) ) ->  | BJ25: =IF(AND(TRIM(BJ23)="",TRIM(BJ24)=""),"",BJ23+BJ24) -> 0.064 | BN25: =IF(TRIM(BM25)="", "", IF(VLOOKUP(BM25,'Footnotes list'!$D$9:$E$58,2,FALSE)=0,"",VLOOKUP(BM25,'Footnotes list'!$D$9:$E$58,2,FALSE) ) ) ->  | BO25: =IF(AND(TRIM(BO23)="", TRIM(BO24)=""), "", (IF(ISNUMBER(BO23),BO23,0)+IF(ISNUMBER(BO24),BO24,0))) -> 190.396 | BS25: =IF(TRIM(BR25)="", "", IF(VLOOKUP(BR25,'Footnotes list'!$D$9:$E$58,2,FALSE)=0,"",VLOOKUP(BR25,'Footnotes list'!$D$9:$E$58,2,FALSE) ) ) ->  | BT25: =IF(AND(TRIM(BT23)="",TRIM(BT24)=""),"",BT23+BT24) -> 9455.798 | BX25: =IF(TRIM(BW25)="", "", IF(VLOOKUP(BW25,'Footnotes list'!$D$9:$E$58,2,FALSE)=0,"",VLOOKUP(BW25,'Footnotes list'!$D$9:$E$58,2,FALSE) ) ) ->  | BY25: =IF(AND(TRIM(BY23)="",TRIM(BY24)=""),"",BY23+BY24) -> 117.236 | CC25: =IF(TRIM(CB25)="", "", IF(VLOOKUP(CB25,'Footnotes list'!$D$9:$E$58,2,FALSE)=0,"",VLOOKUP(CB25,'Footnotes list'!$D$9:$E$58,2,FALSE) ) ) ->  | CD25: =IF(AND(TRIM(CD23)="",TRIM(CD24)=""),"",CD23+CD24) -> 1607.159 | CH25: =IF(TRIM(CG25)="", "", IF(VLOOKUP(CG25,'Footnotes list'!$D$9:$E$58,2,FALSE)=0,"",VLOOKUP(CG25,'Footnotes list'!$D$9:$E$58,2,FALSE) ) ) ->  | CI25: =IF(AND(TRIM(CI23)="", TRIM(CI24)=""), "", (IF(ISNUMBER(CI23),CI23,0)+IF(ISNUMBER(CI24),CI24,0))) -> 1724.395 | CM25: =IF(TRIM(CL25)="", "", IF(VLOOKUP(CL25,'Footnotes list'!$D$9:$E$58,2,FALSE)=0,"",VLOOKUP(CL25,'Footnotes list'!$D$9:$E$58,2,FALSE) ) ) ->  | CN25: =IF(AND(TRIM(CN23)="",TRIM(CN24)=""),"",CN23+CN24) -> 0 | CR25: =IF(TRIM(CQ25)="", "", IF(VLOOKUP(CQ25,'Footnotes list'!$D$9:$E$58,2,FALSE)=0,"",VLOOKUP(CQ25,'Footnotes list'!$D$9:$E$58,2,FALSE) ) ) ->  | CS25: =IF(AND(TRIM(CS23)="",TRIM(CS24)=""),"",CS23+CS24) -> 141.902 | CW25: =IF(TRIM(CV25)="", "", IF(VLOOKUP(CV25,'Footnotes list'!$D$9:$E$58,2,FALSE)=0,"",VLOOKUP(CV25,'Footnotes list'!$D$9:$E$58,2,FALSE) ) ) ->  | CX25: =IF(AND(TRIM(CX23)="",TRIM(CX24)=""),"",CX23+CX24) -> 0 | DB25: =IF(TRIM(DA25)="", "", IF(VLOOKUP(DA25,'Footnotes list'!$D$9:$E$58,2,FALSE)=0,"",VLOOKUP(DA25,'Footnotes list'!$D$9:$E$58,2,FALSE) ) ) ->  | DC25: =IF(AND(TRIM(DC23)="",TRIM(DC24)=""),"",DC23+DC24) -> 0 | DG25: =IF(TRIM(DF25)="", "", IF(VLOOKUP(DF25,'Footnotes list'!$D$9:$E$58,2,FALSE)=0,"",VLOOKUP(DF25,'Footnotes list'!$D$9:$E$58,2,FALSE) ) ) ->  | DH25: =IF(AND(TRIM(DH23)="", TRIM(DH24)=""), "", SUM(DH23,DH24) ) -> 11512.491 | DL25: =IF(TRIM(DK25)="", "", IF(VLOOKUP(DK25,'Footnotes list'!$D$9:$E$58,2,FALSE)=0,"",VLOOKUP(DK25,'Footnotes list'!$D$9:$E$58,2,FALSE) ) ) -> 
B26: W05 | C26: W05 | D26: Health care and biological wastes | E26: HAZ | F26: Hazardous | G26: 11.688 | K26: =IF(TRIM(J26)="", "", IF(VLOOKUP(J26,'Footnotes list'!$D$9:$E$58,2,FALSE)=0,"",VLOOKUP(J26,'Footnotes list'!$D$9:$E$58,2,FALSE) ) ) ->  | L26: 0 | P26: =IF(TRIM(O26)="", "", IF(VLOOKUP(O26,'Footnotes list'!$D$9:$E$58,2,FALSE)=0,"",VLOOKUP(O26,'Footnotes list'!$D$9:$E$58,2,FALSE) ) ) ->  | Q26: 8.3 | U26: =IF(TRIM(T26)="", "", IF(VLOOKUP(T26,'Footnotes list'!$D$9:$E$58,2,FALSE)=0,"",VLOOKUP(T26,'Footnotes list'!$D$9:$E$58,2,FALSE) ) ) ->  | V26: 0 | Z26: =IF(TRIM(Y26)="", "", IF(VLOOKUP(Y26,'Footnotes list'!$D$9:$E$58,2,FALSE)=0,"",VLOOKUP(Y26,'Footnotes list'!$D$9:$E$58,2,FALSE) ) ) ->  | AA26: 0 | AE26: =IF(TRIM(AD26)="", "", IF(VLOOKUP(AD26,'Footnotes list'!$D$9:$E$58,2,FALSE)=0,"",VLOOKUP(AD26,'Footnotes list'!$D$9:$E$58,2,FALSE) ) ) ->  | AF26: 0 | AJ26: =IF(TRIM(AI26)="", "", IF(VLOOKUP(AI26,'Footnotes list'!$D$9:$E$58,2,FALSE)=0,"",VLOOKUP(AI26,'Footnotes list'!$D$9:$E$58,2,FALSE) ) ) ->  | AK26: 0 | AO26: =IF(TRIM(AN26)="", "", IF(VLOOKUP(AN26,'Footnotes list'!$D$9:$E$58,2,FALSE)=0,"",VLOOKUP(AN26,'Footnotes list'!$D$9:$E$58,2,FALSE) ) ) ->  | AP26: 36.947 | AT26: =IF(TRIM(AS26)="", "", IF(VLOOKUP(AS26,'Footnotes list'!$D$9:$E$58,2,FALSE)=0,"",VLOOKUP(AS26,'Footnotes list'!$D$9:$E$58,2,FALSE) ) ) ->  | AU26: 0 | AY26: =IF(TRIM(AX26)="", "", IF(VLOOKUP(AX26,'Footnotes list'!$D$9:$E$58,2,FALSE)=0,"",VLOOKUP(AX26,'Footnotes list'!$D$9:$E$58,2,FALSE) ) ) ->  | AZ26: 0 | BD26: =IF(TRIM(BC26)="", "", IF(VLOOKUP(BC26,'Footnotes list'!$D$9:$E$58,2,FALSE)=0,"",VLOOKUP(BC26,'Footnotes list'!$D$9:$E$58,2,FALSE) ) ) ->  | BE26: 0 | BI26: =IF(TRIM(BH26)="", "", IF(VLOOKUP(BH26,'Footnotes list'!$D$9:$E$58,2,FALSE)=0,"",VLOOKUP(BH26,'Footnotes list'!$D$9:$E$58,2,FALSE) ) ) ->  | BJ26: 0 | BN26: =IF(TRIM(BM26)="", "", IF(VLOOKUP(BM26,'Footnotes list'!$D$9:$E$58,2,FALSE)=0,"",VLOOKUP(BM26,'Footnotes list'!$D$9:$E$58,2,FALSE) ) ) ->  | BO26: =IF(AND(TRIM(Q26)="",TRIM(V26)="",TRIM(AA26)="", TRIM(AF26)="", TRIM(AK26)="", TRIM(AP26)="", TRIM(AU26)="", TRIM(AZ26)="", TRIM(BE26)="", TRIM(BJ26)=""),"",Q26+V26+AA26+AF26+AK26+AP26+AU26+AZ26+BE26+BJ26) -> 45.247 | BS26: =IF(TRIM(BR26)="", "", IF(VLOOKUP(BR26,'Footnotes list'!$D$9:$E$58,2,FALSE)=0,"",VLOOKUP(BR26,'Footnotes list'!$D$9:$E$58,2,FALSE) ) ) ->  | BT26: 0.402 | BX26: =IF(TRIM(BW26)="", "", IF(VLOOKUP(BW26,'Footnotes list'!$D$9:$E$58,2,FALSE)=0,"",VLOOKUP(BW26,'Footnotes list'!$D$9:$E$58,2,FALSE) ) ) ->  | BY26: 0.648 | CC26: =IF(TRIM(CB26)="", "", IF(VLOOKUP(CB26,'Footnotes list'!$D$9:$E$58,2,FALSE)=0,"",VLOOKUP(CB26,'Footnotes list'!$D$9:$E$58,2,FALSE) ) ) ->  | CD26: 0 | CH26: =IF(TRIM(CG26)="", "", IF(VLOOKUP(CG26,'Footnotes list'!$D$9:$E$58,2,FALSE)=0,"",VLOOKUP(CG26,'Footnotes list'!$D$9:$E$58,2,FALSE) ) ) ->  | CI26: =IF(AND(TRIM(BY26)="",TRIM(CD26)=""),"",BY26+CD26) -> 0.648 | CM26: =IF(TRIM(CL26)="", "", IF(VLOOKUP(CL26,'Footnotes list'!$D$9:$E$58,2,FALSE)=0,"",VLOOKUP(CL26,'Footnotes list'!$D$9:$E$58,2,FALSE) ) ) ->  | CN26: 0 | CR26: =IF(TRIM(CQ26)="", "", IF(VLOOKUP(CQ26,'Footnotes list'!$D$9:$E$58,2,FALSE)=0,"",VLOOKUP(CQ26,'Footnotes list'!$D$9:$E$58,2,FALSE) ) ) ->  | CS26: 5455.085 | CW26: =IF(TRIM(CV26)="", "", IF(VLOOKUP(CV26,'Footnotes list'!$D$9:$E$58,2,FALSE)=0,"",VLOOKUP(CV26,'Footnotes list'!$D$9:$E$58,2,FALSE) ) ) ->  | CX26: 0 | DB26: =IF(TRIM(DA26)="", "", IF(VLOOKUP(DA26,'Footnotes list'!$D$9:$E$58,2,FALSE)=0,"",VLOOKUP(DA26,'Footnotes list'!$D$9:$E$58,2,FALSE) ) ) ->  | DC26: 0 | DG26: =IF(TRIM(DF26)="", "", IF(VLOOKUP(DF26,'Footnotes list'!$D$9:$E$58,2,FALSE)=0,"",VLOOKUP(DF26,'Footnotes list'!$D$9:$E$58,2,FALSE) ) ) ->  | DH26: =IF(AND(TRIM(G26)="",TRIM(L26)="",TRIM(BO26)="",TRIM(BT26)="",TRIM(CI26)="",TRIM(CN26)="",TRIM(CS26)="",TRIM(CX26)="",TRIM(DC26)=""),"",SUM(G26,L26,BO26,BT26,CI26,CN26,CS26,CX26,DC26)) -> 5513.07 | DL26: =IF(TRIM(DK26)="", "", IF(VLOOKUP(DK26,'Footnotes list'!$D$9:$E$58,2,FALSE)=0,"",VLOOKUP(DK26,'Footnotes list'!$D$9:$E$58,2,FALSE) ) ) -> 
C27: W05 | E27: NHAZ | F27: Non-hazardous | G27: 2.598 | K27: =IF(TRIM(J27)="", "", IF(VLOOKUP(J27,'Footnotes list'!$D$9:$E$58,2,FALSE)=0,"",VLOOKUP(J27,'Footnotes list'!$D$9:$E$58,2,FALSE) ) ) ->  | L27: 0 | P27: =IF(TRIM(O27)="", "", IF(VLOOKUP(O27,'Footnotes list'!$D$9:$E$58,2,FALSE)=0,"",VLOOKUP(O27,'Footnotes list'!$D$9:$E$58,2,FALSE) ) ) ->  | Q27: 8.32 | U27: =IF(TRIM(T27)="", "", IF(VLOOKUP(T27,'Footnotes list'!$D$9:$E$58,2,FALSE)=0,"",VLOOKUP(T27,'Footnotes list'!$D$9:$E$58,2,FALSE) ) ) ->  | V27: 0 | Z27: =IF(TRIM(Y27)="", "", IF(VLOOKUP(Y27,'Footnotes list'!$D$9:$E$58,2,FALSE)=0,"",VLOOKUP(Y27,'Footnotes list'!$D$9:$E$58,2,FALSE) ) ) ->  | AA27: 0 | AE27: =IF(TRIM(AD27)="", "", IF(VLOOKUP(AD27,'Footnotes list'!$D$9:$E$58,2,FALSE)=0,"",VLOOKUP(AD27,'Footnotes list'!$D$9:$E$58,2,FALSE) ) ) ->  | AF27: 0 | AJ27: =IF(TRIM(AI27)="", "", IF(VLOOKUP(AI27,'Footnotes list'!$D$9:$E$58,2,FALSE)=0,"",VLOOKUP(AI27,'Footnotes list'!$D$9:$E$58,2,FALSE) ) ) ->  | AK27: 0 | AO27: =IF(TRIM(AN27)="", "", IF(VLOOKUP(AN27,'Footnotes list'!$D$9:$E$58,2,FALSE)=0,"",VLOOKUP(AN27,'Footnotes list'!$D$9:$E$58,2,FALSE) ) ) ->  | AP27: 16.672 | AT27: =IF(TRIM(AS27)="", "", IF(VLOOKUP(AS27,'Footnotes list'!$D$9:$E$58,2,FALSE)=0,"",VLOOKUP(AS27,'Footnotes list'!$D$9:$E$58,2,FALSE) ) ) ->  | AU27: 0 | AY27: =IF(TRIM(AX27)="", "", IF(VLOOKUP(AX27,'Footnotes list'!$D$9:$E$58,2,FALSE)=0,"",VLOOKUP(AX27,'Footnotes list'!$D$9:$E$58,2,FALSE) ) ) ->  | AZ27: 0 | BD27: =IF(TRIM(BC27)="", "", IF(VLOOKUP(BC27,'Footnotes list'!$D$9:$E$58,2,FALSE)=0,"",VLOOKUP(BC27,'Footnotes list'!$D$9:$E$58,2,FALSE) ) ) ->  | BE27: 0 | BI27: =IF(TRIM(BH27)="", "", IF(VLOOKUP(BH27,'Footnotes list'!$D$9:$E$58,2,FALSE)=0,"",VLOOKUP(BH27,'Footnotes list'!$D$9:$E$58,2,FALSE) ) ) ->  | BJ27: 0 | BN27: =IF(TRIM(BM27)="", "", IF(VLOOKUP(BM27,'Footnotes list'!$D$9:$E$58,2,FALSE)=0,"",VLOOKUP(BM27,'Footnotes list'!$D$9:$E$58,2,FALSE) ) ) ->  | BO27: =IF(AND(TRIM(Q27)="",TRIM(V27)="",TRIM(AA27)="", TRIM(AF27)="", TRIM(AK27)="", TRIM(AP27)="", TRIM(AU27)="", TRIM(AZ27)="", TRIM(BE27)="", TRIM(BJ27)=""),"",Q27+V27+AA27+AF27+AK27+AP27+AU27+AZ27+BE27+BJ27) -> 24.992 | BS27: =IF(TRIM(BR27)="", "", IF(VLOOKUP(BR27,'Footnotes list'!$D$9:$E$58,2,FALSE)=0,"",VLOOKUP(BR27,'Footnotes list'!$D$9:$E$58,2,FALSE) ) ) ->  | BT27: 0 | BX27: =IF(TRIM(BW27)="", "", IF(VLOOKUP(BW27,'Footnotes list'!$D$9:$E$58,2,FALSE)=0,"",VLOOKUP(BW27,'Footnotes list'!$D$9:$E$58,2,FALSE) ) ) ->  | BY27: 0 | CC27: =IF(TRIM(CB27)="", "", IF(VLOOKUP(CB27,'Footnotes list'!$D$9:$E$58,2,FALSE)=0,"",VLOOKUP(CB27,'Footnotes list'!$D$9:$E$58,2,FALSE) ) ) ->  | CD27: 0 | CH27: =IF(TRIM(CG27)="", "", IF(VLOOKUP(CG27,'Footnotes list'!$D$9:$E$58,2,FALSE)=0,"",VLOOKUP(CG27,'Footnotes list'!$D$9:$E$58,2,FALSE) ) ) ->  | CI27: =IF(AND(TRIM(BY27)="",TRIM(CD27)=""),"",BY27+CD27) -> 0 | CM27: =IF(TRIM(CL27)="", "", IF(VLOOKUP(CL27,'Footnotes list'!$D$9:$E$58,2,FALSE)=0,"",VLOOKUP(CL27,'Footnotes list'!$D$9:$E$58,2,FALSE) ) ) ->  | CN27: 0 | CR27: =IF(TRIM(CQ27)="", "", IF(VLOOKUP(CQ27,'Footnotes list'!$D$9:$E$58,2,FALSE)=0,"",VLOOKUP(CQ27,'Footnotes list'!$D$9:$E$58,2,FALSE) ) ) ->  | CS27: 1009.306 | CW27: =IF(TRIM(CV27)="", "", IF(VLOOKUP(CV27,'Footnotes list'!$D$9:$E$58,2,FALSE)=0,"",VLOOKUP(CV27,'Footnotes list'!$D$9:$E$58,2,FALSE) ) ) ->  | CX27: 0 | DB27: =IF(TRIM(DA27)="", "", IF(VLOOKUP(DA27,'Footnotes list'!$D$9:$E$58,2,FALSE)=0,"",VLOOKUP(DA27,'Footnotes list'!$D$9:$E$58,2,FALSE) ) ) ->  | DC27: 0.01 | DG27: =IF(TRIM(DF27)="", "", IF(VLOOKUP(DF27,'Footnotes list'!$D$9:$E$58,2,FALSE)=0,"",VLOOKUP(DF27,'Footnotes list'!$D$9:$E$58,2,FALSE) ) ) ->  | DH27: =IF(AND(TRIM(G27)="",TRIM(L27)="",TRIM(BO27)="",TRIM(BT27)="",TRIM(CI27)="",TRIM(CN27)="",TRIM(CS27)="",TRIM(CX27)="",TRIM(DC27)=""),"",SUM(G27,L27,BO27,BT27,CI27,CN27,CS27,CX27,DC27)) -> 1036.906 | DL27: =IF(TRIM(DK27)="", "", IF(VLOOKUP(DK27,'Footnotes list'!$D$9:$E$58,2,FALSE)=0,"",VLOOKUP(DK27,'Footnotes list'!$D$9:$E$58,2,FALSE) ) ) -> 
C28: W05 | E28: HAZ_NHAZ | F28: Total | G28: =IF(AND(TRIM(G26)="",TRIM(G27)=""),"",G26+G27) -> 14.286 | K28: =IF(TRIM(J28)="", "", IF(VLOOKUP(J28,'Footnotes list'!$D$9:$E$58,2,FALSE)=0,"",VLOOKUP(J28,'Footnotes list'!$D$9:$E$58,2,FALSE) ) ) ->  | L28: =IF(AND(TRIM(L26)="",TRIM(L27)=""),"",L26+L27) -> 0 | P28: =IF(TRIM(O28)="", "", IF(VLOOKUP(O28,'Footnotes list'!$D$9:$E$58,2,FALSE)=0,"",VLOOKUP(O28,'Footnotes list'!$D$9:$E$58,2,FALSE) ) ) ->  | Q28: =IF(AND(TRIM(Q26)="",TRIM(Q27)=""),"",Q26+Q27) -> 16.62 | U28: =IF(TRIM(T28)="", "", IF(VLOOKUP(T28,'Footnotes list'!$D$9:$E$58,2,FALSE)=0,"",VLOOKUP(T28,'Footnotes list'!$D$9:$E$58,2,FALSE) ) ) ->  | V28: =IF(AND(TRIM(V26)="",TRIM(V27)=""),"",V26+V27) -> 0 | Z28: =IF(TRIM(Y28)="", "", IF(VLOOKUP(Y28,'Footnotes list'!$D$9:$E$58,2,FALSE)=0,"",VLOOKUP(Y28,'Footnotes list'!$D$9:$E$58,2,FALSE) ) ) ->  | AA28: =IF(AND(TRIM(AA26)="",TRIM(AA27)=""),"",AA26+AA27) -> 0 | AE28: =IF(TRIM(AD28)="", "", IF(VLOOKUP(AD28,'Footnotes list'!$D$9:$E$58,2,FALSE)=0,"",VLOOKUP(AD28,'Footnotes list'!$D$9:$E$58,2,FALSE) ) ) ->  | AF28: =IF(AND(TRIM(AF26)="",TRIM(AF27)=""),"",AF26+AF27) -> 0 | AJ28: =IF(TRIM(AI28)="", "", IF(VLOOKUP(AI28,'Footnotes list'!$D$9:$E$58,2,FALSE)=0,"",VLOOKUP(AI28,'Footnotes list'!$D$9:$E$58,2,FALSE) ) ) ->  | AK28: =IF(AND(TRIM(AK26)="",TRIM(AK27)=""),"",AK26+AK27) -> 0 | AO28: =IF(TRIM(AN28)="", "", IF(VLOOKUP(AN28,'Footnotes list'!$D$9:$E$58,2,FALSE)=0,"",VLOOKUP(AN28,'Footnotes list'!$D$9:$E$58,2,FALSE) ) ) ->  | AP28: =IF(AND(TRIM(AP26)="",TRIM(AP27)=""),"",AP26+AP27) -> 53.619 | AT28: =IF(TRIM(AS28)="", "", IF(VLOOKUP(AS28,'Footnotes list'!$D$9:$E$58,2,FALSE)=0,"",VLOOKUP(AS28,'Footnotes list'!$D$9:$E$58,2,FALSE) ) ) ->  | AU28: =IF(AND(TRIM(AU26)="",TRIM(AU27)=""),"",AU26+AU27) -> 0 | AY28: =IF(TRIM(AX28)="", "", IF(VLOOKUP(AX28,'Footnotes list'!$D$9:$E$58,2,FALSE)=0,"",VLOOKUP(AX28,'Footnotes list'!$D$9:$E$58,2,FALSE) ) ) ->  | AZ28: =IF(AND(TRIM(AZ26)="",TRIM(AZ27)=""),"",AZ26+AZ27) -> 0 | BD28: =IF(TRIM(BC28)="", "", IF(VLOOKUP(BC28,'Footnotes list'!$D$9:$E$58,2,FALSE)=0,"",VLOOKUP(BC28,'Footnotes list'!$D$9:$E$58,2,FALSE) ) ) ->  | BE28: =IF(AND(TRIM(BE26)="",TRIM(BE27)=""),"",BE26+BE27) -> 0 | BI28: =IF(TRIM(BH28)="", "", IF(VLOOKUP(BH28,'Footnotes list'!$D$9:$E$58,2,FALSE)=0,"",VLOOKUP(BH28,'Footnotes list'!$D$9:$E$58,2,FALSE) ) ) ->  | BJ28: =IF(AND(TRIM(BJ26)="",TRIM(BJ27)=""),"",BJ26+BJ27) -> 0 | BN28: =IF(TRIM(BM28)="", "", IF(VLOOKUP(BM28,'Footnotes list'!$D$9:$E$58,2,FALSE)=0,"",VLOOKUP(BM28,'Footnotes list'!$D$9:$E$58,2,FALSE) ) ) ->  | BO28: =IF(AND(TRIM(BO26)="", TRIM(BO27)=""), "", (IF(ISNUMBER(BO26),BO26,0)+IF(ISNUMBER(BO27),BO27,0))) -> 70.239 | BS28: =IF(TRIM(BR28)="", "", IF(VLOOKUP(BR28,'Footnotes list'!$D$9:$E$58,2,FALSE)=0,"",VLOOKUP(BR28,'Footnotes list'!$D$9:$E$58,2,FALSE) ) ) ->  | BT28: =IF(AND(TRIM(BT26)="",TRIM(BT27)=""),"",BT26+BT27) -> 0.402 | BX28: =IF(TRIM(BW28)="", "", IF(VLOOKUP(BW28,'Footnotes list'!$D$9:$E$58,2,FALSE)=0,"",VLOOKUP(BW28,'Footnotes list'!$D$9:$E$58,2,FALSE) ) ) ->  | BY28: =IF(AND(TRIM(BY26)="",TRIM(BY27)=""),"",BY26+BY27) -> 0.648 | CC28: =IF(TRIM(CB28)="", "", IF(VLOOKUP(CB28,'Footnotes list'!$D$9:$E$58,2,FALSE)=0,"",VLOOKUP(CB28,'Footnotes list'!$D$9:$E$58,2,FALSE) ) ) ->  | CD28: =IF(AND(TRIM(CD26)="",TRIM(CD27)=""),"",CD26+CD27) -> 0 | CH28: =IF(TRIM(CG28)="", "", IF(VLOOKUP(CG28,'Footnotes list'!$D$9:$E$58,2,FALSE)=0,"",VLOOKUP(CG28,'Footnotes list'!$D$9:$E$58,2,FALSE) ) ) ->  | CI28: =IF(AND(TRIM(CI26)="", TRIM(CI27)=""), "", (IF(ISNUMBER(CI26),CI26,0)+IF(ISNUMBER(CI27),CI27,0))) -> 0.648 | CM28: =IF(TRIM(CL28)="", "", IF(VLOOKUP(CL28,'Footnotes list'!$D$9:$E$58,2,FALSE)=0,"",VLOOKUP(CL28,'Footnotes list'!$D$9:$E$58,2,FALSE) ) ) ->  | CN28: =IF(AND(TRIM(CN26)="",TRIM(CN27)=""),"",CN26+CN27) -> 0 | CR28: =IF(TRIM(CQ28)="", "", IF(VLOOKUP(CQ28,'Footnotes list'!$D$9:$E$58,2,FALSE)=0,"",VLOOKUP(CQ28,'Footnotes list'!$D$9:$E$58,2,FALSE) ) ) ->  | CS28: =IF(AND(TRIM(CS26)="",TRIM(CS27)=""),"",CS26+CS27) -> 6464.391 | CW28: =IF(TRIM(CV28)="", "", IF(VLOOKUP(CV28,'Footnotes list'!$D$9:$E$58,2,FALSE)=0,"",VLOOKUP(CV28,'Footnotes list'!$D$9:$E$58,2,FALSE) ) ) ->  | CX28: =IF(AND(TRIM(CX26)="",TRIM(CX27)=""),"",CX26+CX27) -> 0 | DB28: =IF(TRIM(DA28)="", "", IF(VLOOKUP(DA28,'Footnotes list'!$D$9:$E$58,2,FALSE)=0,"",VLOOKUP(DA28,'Footnotes list'!$D$9:$E$58,2,FALSE) ) ) ->  | DC28: =IF(AND(TRIM(DC26)="",TRIM(DC27)=""),"",DC26+DC27) -> 0.01 | DG28: =IF(TRIM(DF28)="", "", IF(VLOOKUP(DF28,'Footnotes list'!$D$9:$E$58,2,FALSE)=0,"",VLOOKUP(DF28,'Footnotes list'!$D$9:$E$58,2,FALSE) ) ) ->  | DH28: =IF(AND(TRIM(DH26)="", TRIM(DH27)=""), "", SUM(DH26,DH27) ) -> 6549.976 | DL28: =IF(TRIM(DK28)="", "", IF(VLOOKUP(DK28,'Footnotes list'!$D$9:$E$58,2,FALSE)=0,"",VLOOKUP(DK28,'Footnotes list'!$D$9:$E$58,2,FALSE) ) ) -> 
B29: W061 | D29: Metallic wastes, ferrous | F29: Not applicable
C30: W061 | E30: NHAZ | F30: Non-hazardous | G30: 46.738 | K30: =IF(TRIM(J30)="", "", IF(VLOOKUP(J30,'Footnotes list'!$D$9:$E$58,2,FALSE)=0,"",VLOOKUP(J30,'Footnotes list'!$D$9:$E$58,2,FALSE) ) ) ->  | L30: 35.96 | P30: =IF(TRIM(O30)="", "", IF(VLOOKUP(O30,'Footnotes list'!$D$9:$E$58,2,FALSE)=0,"",VLOOKUP(O30,'Footnotes list'!$D$9:$E$58,2,FALSE) ) ) ->  | Q30: 32.99 | U30: =IF(TRIM(T30)="", "", IF(VLOOKUP(T30,'Footnotes list'!$D$9:$E$58,2,FALSE)=0,"",VLOOKUP(T30,'Footnotes list'!$D$9:$E$58,2,FALSE) ) ) ->  | V30: 44.78 | Z30: =IF(TRIM(Y30)="", "", IF(VLOOKUP(Y30,'Footnotes list'!$D$9:$E$58,2,FALSE)=0,"",VLOOKUP(Y30,'Footnotes list'!$D$9:$E$58,2,FALSE) ) ) ->  | AA30: 1662.86 | AE30: =IF(TRIM(AD30)="", "", IF(VLOOKUP(AD30,'Footnotes list'!$D$9:$E$58,2,FALSE)=0,"",VLOOKUP(AD30,'Footnotes list'!$D$9:$E$58,2,FALSE) ) ) ->  | AF30: 39.663 | AJ30: =IF(TRIM(AI30)="", "", IF(VLOOKUP(AI30,'Footnotes list'!$D$9:$E$58,2,FALSE)=0,"",VLOOKUP(AI30,'Footnotes list'!$D$9:$E$58,2,FALSE) ) ) ->  | AK30: 0 | AO30: =IF(TRIM(AN30)="", "", IF(VLOOKUP(AN30,'Footnotes list'!$D$9:$E$58,2,FALSE)=0,"",VLOOKUP(AN30,'Footnotes list'!$D$9:$E$58,2,FALSE) ) ) ->  | AP30: 3956.234 | AT30: =IF(TRIM(AS30)="", "", IF(VLOOKUP(AS30,'Footnotes list'!$D$9:$E$58,2,FALSE)=0,"",VLOOKUP(AS30,'Footnotes list'!$D$9:$E$58,2,FALSE) ) ) ->  | AU30: 844.272 | AY30: =IF(TRIM(AX30)="", "", IF(VLOOKUP(AX30,'Footnotes list'!$D$9:$E$58,2,FALSE)=0,"",VLOOKUP(AX30,'Footnotes list'!$D$9:$E$58,2,FALSE) ) ) ->  | AZ30: 44802.896 | BD30: =IF(TRIM(BC30)="", "", IF(VLOOKUP(BC30,'Footnotes list'!$D$9:$E$58,2,FALSE)=0,"",VLOOKUP(BC30,'Footnotes list'!$D$9:$E$58,2,FALSE) ) ) ->  | BE30: 17420.958 | BI30: =IF(TRIM(BH30)="", "", IF(VLOOKUP(BH30,'Footnotes list'!$D$9:$E$58,2,FALSE)=0,"",VLOOKUP(BH30,'Footnotes list'!$D$9:$E$58,2,FALSE) ) ) ->  | BJ30: 5313.736 | BN30: =IF(TRIM(BM30)="", "", IF(VLOOKUP(BM30,'Footnotes list'!$D$9:$E$58,2,FALSE)=0,"",VLOOKUP(BM30,'Footnotes list'!$D$9:$E$58,2,FALSE) ) ) ->  | BO30: =IF(AND(TRIM(Q30)="",TRIM(V30)="",TRIM(AA30)="", TRIM(AF30)="", TRIM(AK30)="", TRIM(AP30)="", TRIM(AU30)="", TRIM(AZ30)="", TRIM(BE30)="", TRIM(BJ30)=""),"",Q30+V30+AA30+AF30+AK30+AP30+AU30+AZ30+BE30+BJ30) -> 74118.389 | BS30: =IF(TRIM(BR30)="", "", IF(VLOOKUP(BR30,'Footnotes list'!$D$9:$E$58,2,FALSE)=0,"",VLOOKUP(BR30,'Footnotes list'!$D$9:$E$58,2,FALSE) ) ) ->  | BT30: 0.37 | BX30: =IF(TRIM(BW30)="", "", IF(VLOOKUP(BW30,'Footnotes list'!$D$9:$E$58,2,FALSE)=0,"",VLOOKUP(BW30,'Footnotes list'!$D$9:$E$58,2,FALSE) ) ) ->  | BY30: 224.496 | CC30: =IF(TRIM(CB30)="", "", IF(VLOOKUP(CB30,'Footnotes list'!$D$9:$E$58,2,FALSE)=0,"",VLOOKUP(CB30,'Footnotes list'!$D$9:$E$58,2,FALSE) ) ) ->  | CD30: 647549.54 | CH30: =IF(TRIM(CG30)="", "", IF(VLOOKUP(CG30,'Footnotes list'!$D$9:$E$58,2,FALSE)=0,"",VLOOKUP(CG30,'Footnotes list'!$D$9:$E$58,2,FALSE) ) ) ->  | CI30: =IF(AND(TRIM(BY30)="",TRIM(CD30)=""),"",BY30+CD30) -> 647774.036 | CM30: =IF(TRIM(CL30)="", "", IF(VLOOKUP(CL30,'Footnotes list'!$D$9:$E$58,2,FALSE)=0,"",VLOOKUP(CL30,'Footnotes list'!$D$9:$E$58,2,FALSE) ) ) ->  | CN30: 224693.241 | CR30: =IF(TRIM(CQ30)="", "", IF(VLOOKUP(CQ30,'Footnotes list'!$D$9:$E$58,2,FALSE)=0,"",VLOOKUP(CQ30,'Footnotes list'!$D$9:$E$58,2,FALSE) ) ) ->  | CS30: 5563.858 | CW30: =IF(TRIM(CV30)="", "", IF(VLOOKUP(CV30,'Footnotes list'!$D$9:$E$58,2,FALSE)=0,"",VLOOKUP(CV30,'Footnotes list'!$D$9:$E$58,2,FALSE) ) ) ->  | CX30: 1303.055 | DB30: =IF(TRIM(DA30)="", "", IF(VLOOKUP(DA30,'Footnotes list'!$D$9:$E$58,2,FALSE)=0,"",VLOOKUP(DA30,'Footnotes list'!$D$9:$E$58,2,FALSE) ) ) ->  | DC30: 2154.986 | DG30: =IF(TRIM(DF30)="", "", IF(VLOOKUP(DF30,'Footnotes list'!$D$9:$E$58,2,FALSE)=0,"",VLOOKUP(DF30,'Footnotes list'!$D$9:$E$58,2,FALSE) ) ) ->  | DH30: =IF(AND(TRIM(G30)="",TRIM(L30)="",TRIM(BO30)="",TRIM(BT30)="",TRIM(CI30)="",TRIM(CN30)="",TRIM(CS30)="",TRIM(CX30)="",TRIM(DC30)=""),"",SUM(G30,L30,BO30,BT30,CI30,CN30,CS30,CX30,DC30)) -> 955690.633 | DL30: =IF(TRIM(DK30)="", "", IF(VLOOKUP(DK30,'Footnotes list'!$D$9:$E$58,2,FALSE)=0,"",VLOOKUP(DK30,'Footnotes list'!$D$9:$E$58,2,FALSE) ) ) -> 
C31: W061 | E31: HAZ_NHAZ | F31: Total | G31: =IF(AND(TRIM(G29)="",TRIM(G30)=""),"",G29+G30) -> 46.738 | K31: =IF(TRIM(J31)="", "", IF(VLOOKUP(J31,'Footnotes list'!$D$9:$E$58,2,FALSE)=0,"",VLOOKUP(J31,'Footnotes list'!$D$9:$E$58,2,FALSE) ) ) ->  | L31: =IF(AND(TRIM(L29)="",TRIM(L30)=""),"",L29+L30) -> 35.96 | P31: =IF(TRIM(O31)="", "", IF(VLOOKUP(O31,'Footnotes list'!$D$9:$E$58,2,FALSE)=0,"",VLOOKUP(O31,'Footnotes list'!$D$9:$E$58,2,FALSE) ) ) ->  | Q31: =IF(AND(TRIM(Q29)="",TRIM(Q30)=""),"",Q29+Q30) -> 32.99 | U31: =IF(TRIM(T31)="", "", IF(VLOOKUP(T31,'Footnotes list'!$D$9:$E$58,2,FALSE)=0,"",VLOOKUP(T31,'Footnotes list'!$D$9:$E$58,2,FALSE) ) ) ->  | V31: =IF(AND(TRIM(V29)="",TRIM(V30)=""),"",V29+V30) -> 44.78 | Z31: =IF(TRIM(Y31)="", "", IF(VLOOKUP(Y31,'Footnotes list'!$D$9:$E$58,2,FALSE)=0,"",VLOOKUP(Y31,'Footnotes list'!$D$9:$E$58,2,FALSE) ) ) ->  | AA31: =IF(AND(TRIM(AA29)="",TRIM(AA30)=""),"",AA29+AA30) -> 1662.86 | AE31: =IF(TRIM(AD31)="", "", IF(VLOOKUP(AD31,'Footnotes list'!$D$9:$E$58,2,FALSE)=0,"",VLOOKUP(AD31,'Footnotes list'!$D$9:$E$58,2,FALSE) ) ) ->  | AF31: =IF(AND(TRIM(AF29)="",TRIM(AF30)=""),"",AF29+AF30) -> 39.663 | AJ31: =IF(TRIM(AI31)="", "", IF(VLOOKUP(AI31,'Footnotes list'!$D$9:$E$58,2,FALSE)=0,"",VLOOKUP(AI31,'Footnotes list'!$D$9:$E$58,2,FALSE) ) ) ->  | AK31: =IF(AND(TRIM(AK29)="",TRIM(AK30)=""),"",AK29+AK30) -> 0 | AO31: =IF(TRIM(AN31)="", "", IF(VLOOKUP(AN31,'Footnotes list'!$D$9:$E$58,2,FALSE)=0,"",VLOOKUP(AN31,'Footnotes list'!$D$9:$E$58,2,FALSE) ) ) ->  | AP31: =IF(AND(TRIM(AP29)="",TRIM(AP30)=""),"",AP29+AP30) -> 3956.234 | AT31: =IF(TRIM(AS31)="", "", IF(VLOOKUP(AS31,'Footnotes list'!$D$9:$E$58,2,FALSE)=0,"",VLOOKUP(AS31,'Footnotes list'!$D$9:$E$58,2,FALSE) ) ) ->  | AU31: =IF(AND(TRIM(AU29)="",TRIM(AU30)=""),"",AU29+AU30) -> 844.272 | AY31: =IF(TRIM(AX31)="", "", IF(VLOOKUP(AX31,'Footnotes list'!$D$9:$E$58,2,FALSE)=0,"",VLOOKUP(AX31,'Footnotes list'!$D$9:$E$58,2,FALSE) ) ) ->  | AZ31: =IF(AND(TRIM(AZ29)="",TRIM(AZ30)=""),"",AZ29+AZ30) -> 44802.896 | BD31: =IF(TRIM(BC31)="", "", IF(VLOOKUP(BC31,'Footnotes list'!$D$9:$E$58,2,FALSE)=0,"",VLOOKUP(BC31,'Footnotes list'!$D$9:$E$58,2,FALSE) ) ) ->  | BE31: =IF(AND(TRIM(BE29)="",TRIM(BE30)=""),"",BE29+BE30) -> 17420.958 | BI31: =IF(TRIM(BH31)="", "", IF(VLOOKUP(BH31,'Footnotes list'!$D$9:$E$58,2,FALSE)=0,"",VLOOKUP(BH31,'Footnotes list'!$D$9:$E$58,2,FALSE) ) ) ->  | BJ31: =IF(AND(TRIM(BJ29)="",TRIM(BJ30)=""),"",BJ29+BJ30) -> 5313.736 | BN31: =IF(TRIM(BM31)="", "", IF(VLOOKUP(BM31,'Footnotes list'!$D$9:$E$58,2,FALSE)=0,"",VLOOKUP(BM31,'Footnotes list'!$D$9:$E$58,2,FALSE) ) ) ->  | BO31: =IF(AND(TRIM(BO29)="", TRIM(BO30)=""), "", (IF(ISNUMBER(BO29),BO29,0)+IF(ISNUMBER(BO30),BO30,0))) -> 74118.389 | BS31: =IF(TRIM(BR31)="", "", IF(VLOOKUP(BR31,'Footnotes list'!$D$9:$E$58,2,FALSE)=0,"",VLOOKUP(BR31,'Footnotes list'!$D$9:$E$58,2,FALSE) ) ) ->  | BT31: =IF(AND(TRIM(BT29)="",TRIM(BT30)=""),"",BT29+BT30) -> 0.37 | BX31: =IF(TRIM(BW31)="", "", IF(VLOOKUP(BW31,'Footnotes list'!$D$9:$E$58,2,FALSE)=0,"",VLOOKUP(BW31,'Footnotes list'!$D$9:$E$58,2,FALSE) ) ) ->  | BY31: =IF(AND(TRIM(BY29)="",TRIM(BY30)=""),"",BY29+BY30) -> 224.496 | CC31: =IF(TRIM(CB31)="", "", IF(VLOOKUP(CB31,'Footnotes list'!$D$9:$E$58,2,FALSE)=0,"",VLOOKUP(CB31,'Footnotes list'!$D$9:$E$58,2,FALSE) ) ) ->  | CD31: =IF(AND(TRIM(CD29)="",TRIM(CD30)=""),"",CD29+CD30) -> 647549.54 | CH31: =IF(TRIM(CG31)="", "", IF(VLOOKUP(CG31,'Footnotes list'!$D$9:$E$58,2,FALSE)=0,"",VLOOKUP(CG31,'Footnotes list'!$D$9:$E$58,2,FALSE) ) ) ->  | CI31: =IF(AND(TRIM(CI29)="", TRIM(CI30)=""), "", (IF(ISNUMBER(CI29),CI29,0)+IF(ISNUMBER(CI30),CI30,0))) -> 647774.036 | CM31: =IF(TRIM(CL31)="", "", IF(VLOOKUP(CL31,'Footnotes list'!$D$9:$E$58,2,FALSE)=0,"",VLOOKUP(CL31,'Footnotes list'!$D$9:$E$58,2,FALSE) ) ) ->  | CN31: =IF(AND(TRIM(CN29)="",TRIM(CN30)=""),"",CN29+CN30) -> 224693.241 | CR31: =IF(TRIM(CQ31)="", "", IF(VLOOKUP(CQ31,'Footnotes list'!$D$9:$E$58,2,FALSE)=0,"",VLOOKUP(CQ31,'Footnotes list'!$D$9:$E$58,2,FALSE) ) ) ->  | CS31: =IF(AND(TRIM(CS29)="",TRIM(CS30)=""),"",CS29+CS30) -> 5563.858 | CW31: =IF(TRIM(CV31)="", "", IF(VLOOKUP(CV31,'Footnotes list'!$D$9:$E$58,2,FALSE)=0,"",VLOOKUP(CV31,'Footnotes list'!$D$9:$E$58,2,FALSE) ) ) ->  | CX31: =IF(AND(TRIM(CX29)="",TRIM(CX30)=""),"",CX29+CX30) -> 1303.055 | DB31: =IF(TRIM(DA31)="", "", IF(VLOOKUP(DA31,'Footnotes list'!$D$9:$E$58,2,FALSE)=0,"",VLOOKUP(DA31,'Footnotes list'!$D$9:$E$58,2,FALSE) ) ) ->  | DC31: =IF(AND(TRIM(DC29)="",TRIM(DC30)=""),"",DC29+DC30) -> 2154.986 | DG31: =IF(TRIM(DF31)="", "", IF(VLOOKUP(DF31,'Footnotes list'!$D$9:$E$58,2,FALSE)=0,"",VLOOKUP(DF31,'Footnotes list'!$D$9:$E$58,2,FALSE) ) ) ->  | DH31: =IF(AND(TRIM(DH29)="", TRIM(DH30)=""), "", SUM(DH29,DH30) ) -> 955690.633 | DL31: =IF(TRIM(DK31)="", "", IF(VLOOKUP(DK31,'Footnotes list'!$D$9:$E$58,2,FALSE)=0,"",VLOOKUP(DK31,'Footnotes list'!$D$9:$E$58,2,FALSE) ) ) -> 
B32: W062 | D32: Metallic wastes, non-ferrous | F32: Not applicable
C33: W062 | E33: NHAZ | F33: Non-hazardous | G33: 0 | K33: =IF(TRIM(J33)="", "", IF(VLOOKUP(J33,'Footnotes list'!$D$9:$E$58,2,FALSE)=0,"",VLOOKUP(J33,'Footnotes list'!$D$9:$E$58,2,FALSE) ) ) ->  | L33: 0.46 | P33: =IF(TRIM(O33)="", "", IF(VLOOKUP(O33,'Footnotes list'!$D$9:$E$58,2,FALSE)=0,"",VLOOKUP(O33,'Footnotes list'!$D$9:$E$58,2,FALSE) ) ) ->  | Q33: 17.511 | U33: =IF(TRIM(T33)="", "", IF(VLOOKUP(T33,'Footnotes list'!$D$9:$E$58,2,FALSE)=0,"",VLOOKUP(T33,'Footnotes list'!$D$9:$E$58,2,FALSE) ) ) ->  | V33: 5.94 | Z33: =IF(TRIM(Y33)="", "", IF(VLOOKUP(Y33,'Footnotes list'!$D$9:$E$58,2,FALSE)=0,"",VLOOKUP(Y33,'Footnotes list'!$D$9:$E$58,2,FALSE) ) ) ->  | AA33: 93.88 | AE33: =IF(TRIM(AD33)="", "", IF(VLOOKUP(AD33,'Footnotes list'!$D$9:$E$58,2,FALSE)=0,"",VLOOKUP(AD33,'Footnotes list'!$D$9:$E$58,2,FALSE) ) ) ->  | AF33: 435.018 | AJ33: =IF(TRIM(AI33)="", "", IF(VLOOKUP(AI33,'Footnotes list'!$D$9:$E$58,2,FALSE)=0,"",VLOOKUP(AI33,'Footnotes list'!$D$9:$E$58,2,FALSE) ) ) ->  | AK33: 0 | AO33: =IF(TRIM(AN33)="", "", IF(VLOOKUP(AN33,'Footnotes list'!$D$9:$E$58,2,FALSE)=0,"",VLOOKUP(AN33,'Footnotes list'!$D$9:$E$58,2,FALSE) ) ) ->  | AP33: 32.999 | AT33: =IF(TRIM(AS33)="", "", IF(VLOOKUP(AS33,'Footnotes list'!$D$9:$E$58,2,FALSE)=0,"",VLOOKUP(AS33,'Footnotes list'!$D$9:$E$58,2,FALSE) ) ) ->  | AU33: 10.903 | AY33: =IF(TRIM(AX33)="", "", IF(VLOOKUP(AX33,'Footnotes list'!$D$9:$E$58,2,FALSE)=0,"",VLOOKUP(AX33,'Footnotes list'!$D$9:$E$58,2,FALSE) ) ) ->  | AZ33: 20828.467 | BD33: =IF(TRIM(BC33)="", "", IF(VLOOKUP(BC33,'Footnotes list'!$D$9:$E$58,2,FALSE)=0,"",VLOOKUP(BC33,'Footnotes list'!$D$9:$E$58,2,FALSE) ) ) ->  | BE33: 1066.299 | BI33: =IF(TRIM(BH33)="", "", IF(VLOOKUP(BH33,'Footnotes list'!$D$9:$E$58,2,FALSE)=0,"",VLOOKUP(BH33,'Footnotes list'!$D$9:$E$58,2,FALSE) ) ) ->  | BJ33: 223.277 | BN33: =IF(TRIM(BM33)="", "", IF(VLOOKUP(BM33,'Footnotes list'!$D$9:$E$58,2,FALSE)=0,"",VLOOKUP(BM33,'Footnotes list'!$D$9:$E$58,2,FALSE) ) ) ->  | BO33: =IF(AND(TRIM(Q33)="",TRIM(V33)="",TRIM(AA33)="", TRIM(AF33)="", TRIM(AK33)="", TRIM(AP33)="", TRIM(AU33)="", TRIM(AZ33)="", TRIM(BE33)="", TRIM(BJ33)=""),"",Q33+V33+AA33+AF33+AK33+AP33+AU33+AZ33+BE33+BJ33) -> 22714.294 | BS33: =IF(TRIM(BR33)="", "", IF(VLOOKUP(BR33,'Footnotes list'!$D$9:$E$58,2,FALSE)=0,"",VLOOKUP(BR33,'Footnotes list'!$D$9:$E$58,2,FALSE) ) ) ->  | BT33: 0 | BX33: =IF(TRIM(BW33)="", "", IF(VLOOKUP(BW33,'Footnotes list'!$D$9:$E$58,2,FALSE)=0,"",VLOOKUP(BW33,'Footnotes list'!$D$9:$E$58,2,FALSE) ) ) ->  | BY33: 0 | CC33: =IF(TRIM(CB33)="", "", IF(VLOOKUP(CB33,'Footnotes list'!$D$9:$E$58,2,FALSE)=0,"",VLOOKUP(CB33,'Footnotes list'!$D$9:$E$58,2,FALSE) ) ) ->  | CD33: 11167.74 | CH33: =IF(TRIM(CG33)="", "", IF(VLOOKUP(CG33,'Footnotes list'!$D$9:$E$58,2,FALSE)=0,"",VLOOKUP(CG33,'Footnotes list'!$D$9:$E$58,2,FALSE) ) ) ->  | CI33: =IF(AND(TRIM(BY33)="",TRIM(CD33)=""),"",BY33+CD33) -> 11167.74 | CM33: =IF(TRIM(CL33)="", "", IF(VLOOKUP(CL33,'Footnotes list'!$D$9:$E$58,2,FALSE)=0,"",VLOOKUP(CL33,'Footnotes list'!$D$9:$E$58,2,FALSE) ) ) ->  | CN33: 20419.36 | CR33: =IF(TRIM(CQ33)="", "", IF(VLOOKUP(CQ33,'Footnotes list'!$D$9:$E$58,2,FALSE)=0,"",VLOOKUP(CQ33,'Footnotes list'!$D$9:$E$58,2,FALSE) ) ) ->  | CS33: 209.362 | CW33: =IF(TRIM(CV33)="", "", IF(VLOOKUP(CV33,'Footnotes list'!$D$9:$E$58,2,FALSE)=0,"",VLOOKUP(CV33,'Footnotes list'!$D$9:$E$58,2,FALSE) ) ) ->  | CX33: 417.555 | DB33: =IF(TRIM(DA33)="", "", IF(VLOOKUP(DA33,'Footnotes list'!$D$9:$E$58,2,FALSE)=0,"",VLOOKUP(DA33,'Footnotes list'!$D$9:$E$58,2,FALSE) ) ) ->  | DC33: 356.715 | DG33: =IF(TRIM(DF33)="", "", IF(VLOOKUP(DF33,'Footnotes list'!$D$9:$E$58,2,FALSE)=0,"",VLOOKUP(DF33,'Footnotes list'!$D$9:$E$58,2,FALSE) ) ) ->  | DH33: =IF(AND(TRIM(G33)="",TRIM(L33)="",TRIM(BO33)="",TRIM(BT33)="",TRIM(CI33)="",TRIM(CN33)="",TRIM(CS33)="",TRIM(CX33)="",TRIM(DC33)=""),"",SUM(G33,L33,BO33,BT33,CI33,CN33,CS33,CX33,DC33)) -> 55285.486 | DL33: =IF(TRIM(DK33)="", "", IF(VLOOKUP(DK33,'Footnotes list'!$D$9:$E$58,2,FALSE)=0,"",VLOOKUP(DK33,'Footnotes list'!$D$9:$E$58,2,FALSE) ) ) -> 
C34: W062 | E34: HAZ_NHAZ | F34: Total | G34: =IF(AND(TRIM(G32)="",TRIM(G33)=""),"",G32+G33) -> 0 | K34: =IF(TRIM(J34)="", "", IF(VLOOKUP(J34,'Footnotes list'!$D$9:$E$58,2,FALSE)=0,"",VLOOKUP(J34,'Footnotes list'!$D$9:$E$58,2,FALSE) ) ) ->  | L34: =IF(AND(TRIM(L32)="",TRIM(L33)=""),"",L32+L33) -> 0.46 | P34: =IF(TRIM(O34)="", "", IF(VLOOKUP(O34,'Footnotes list'!$D$9:$E$58,2,FALSE)=0,"",VLOOKUP(O34,'Footnotes list'!$D$9:$E$58,2,FALSE) ) ) ->  | Q34: =IF(AND(TRIM(Q32)="",TRIM(Q33)=""),"",Q32+Q33) -> 17.511 | U34: =IF(TRIM(T34)="", "", IF(VLOOKUP(T34,'Footnotes list'!$D$9:$E$58,2,FALSE)=0,"",VLOOKUP(T34,'Footnotes list'!$D$9:$E$58,2,FALSE) ) ) ->  | V34: =IF(AND(TRIM(V32)="",TRIM(V33)=""),"",V32+V33) -> 5.94 | Z34: =IF(TRIM(Y34)="", "", IF(VLOOKUP(Y34,'Footnotes list'!$D$9:$E$58,2,FALSE)=0,"",VLOOKUP(Y34,'Footnotes list'!$D$9:$E$58,2,FALSE) ) ) ->  | AA34: =IF(AND(TRIM(AA32)="",TRIM(AA33)=""),"",AA32+AA33) -> 93.88 | AE34: =IF(TRIM(AD34)="", "", IF(VLOOKUP(AD34,'Footnotes list'!$D$9:$E$58,2,FALSE)=0,"",VLOOKUP(AD34,'Footnotes list'!$D$9:$E$58,2,FALSE) ) ) ->  | AF34: =IF(AND(TRIM(AF32)="",TRIM(AF33)=""),"",AF32+AF33) -> 435.018 | AJ34: =IF(TRIM(AI34)="", "", IF(VLOOKUP(AI34,'Footnotes list'!$D$9:$E$58,2,FALSE)=0,"",VLOOKUP(AI34,'Footnotes list'!$D$9:$E$58,2,FALSE) ) ) ->  | AK34: =IF(AND(TRIM(AK32)="",TRIM(AK33)=""),"",AK32+AK33) -> 0 | AO34: =IF(TRIM(AN34)="", "", IF(VLOOKUP(AN34,'Footnotes list'!$D$9:$E$58,2,FALSE)=0,"",VLOOKUP(AN34,'Footnotes list'!$D$9:$E$58,2,FALSE) ) ) ->  | AP34: =IF(AND(TRIM(AP32)="",TRIM(AP33)=""),"",AP32+AP33) -> 32.999 | AT34: =IF(TRIM(AS34)="", "", IF(VLOOKUP(AS34,'Footnotes list'!$D$9:$E$58,2,FALSE)=0,"",VLOOKUP(AS34,'Footnotes list'!$D$9:$E$58,2,FALSE) ) ) ->  | AU34: =IF(AND(TRIM(AU32)="",TRIM(AU33)=""),"",AU32+AU33) -> 10.903 | AY34: =IF(TRIM(AX34)="", "", IF(VLOOKUP(AX34,'Footnotes list'!$D$9:$E$58,2,FALSE)=0,"",VLOOKUP(AX34,'Footnotes list'!$D$9:$E$58,2,FALSE) ) ) ->  | AZ34: =IF(AND(TRIM(AZ32)="",TRIM(AZ33)=""),"",AZ32+AZ33) -> 20828.467 | BD34: =IF(TRIM(BC34)="", "", IF(VLOOKUP(BC34,'Footnotes list'!$D$9:$E$58,2,FALSE)=0,"",VLOOKUP(BC34,'Footnotes list'!$D$9:$E$58,2,FALSE) ) ) ->  | BE34: =IF(AND(TRIM(BE32)="",TRIM(BE33)=""),"",BE32+BE33) -> 1066.299 | BI34: =IF(TRIM(BH34)="", "", IF(VLOOKUP(BH34,'Footnotes list'!$D$9:$E$58,2,FALSE)=0,"",VLOOKUP(BH34,'Footnotes list'!$D$9:$E$58,2,FALSE) ) ) ->  | BJ34: =IF(AND(TRIM(BJ32)="",TRIM(BJ33)=""),"",BJ32+BJ33) -> 223.277 | BN34: =IF(TRIM(BM34)="", "", IF(VLOOKUP(BM34,'Footnotes list'!$D$9:$E$58,2,FALSE)=0,"",VLOOKUP(BM34,'Footnotes list'!$D$9:$E$58,2,FALSE) ) ) ->  | BO34: =IF(AND(TRIM(BO32)="", TRIM(BO33)=""), "", (IF(ISNUMBER(BO32),BO32,0)+IF(ISNUMBER(BO33),BO33,0))) -> 22714.294 | BS34: =IF(TRIM(BR34)="", "", IF(VLOOKUP(BR34,'Footnotes list'!$D$9:$E$58,2,FALSE)=0,"",VLOOKUP(BR34,'Footnotes list'!$D$9:$E$58,2,FALSE) ) ) ->  | BT34: =IF(AND(TRIM(BT32)="",TRIM(BT33)=""),"",BT32+BT33) -> 0 | BX34: =IF(TRIM(BW34)="", "", IF(VLOOKUP(BW34,'Footnotes list'!$D$9:$E$58,2,FALSE)=0,"",VLOOKUP(BW34,'Footnotes list'!$D$9:$E$58,2,FALSE) ) ) ->  | BY34: =IF(AND(TRIM(BY32)="",TRIM(BY33)=""),"",BY32+BY33) -> 0 | CC34: =IF(TRIM(CB34)="", "", IF(VLOOKUP(CB34,'Footnotes list'!$D$9:$E$58,2,FALSE)=0,"",VLOOKUP(CB34,'Footnotes list'!$D$9:$E$58,2,FALSE) ) ) ->  | CD34: =IF(AND(TRIM(CD32)="",TRIM(CD33)=""),"",CD32+CD33) -> 11167.74 | CH34: =IF(TRIM(CG34)="", "", IF(VLOOKUP(CG34,'Footnotes list'!$D$9:$E$58,2,FALSE)=0,"",VLOOKUP(CG34,'Footnotes list'!$D$9:$E$58,2,FALSE) ) ) ->  | CI34: =IF(AND(TRIM(CI32)="", TRIM(CI33)=""), "", (IF(ISNUMBER(CI32),CI32,0)+IF(ISNUMBER(CI33),CI33,0))) -> 11167.74 | CM34: =IF(TRIM(CL34)="", "", IF(VLOOKUP(CL34,'Footnotes list'!$D$9:$E$58,2,FALSE)=0,"",VLOOKUP(CL34,'Footnotes list'!$D$9:$E$58,2,FALSE) ) ) ->  | CN34: =IF(AND(TRIM(CN32)="",TRIM(CN33)=""),"",CN32+CN33) -> 20419.36 | CR34: =IF(TRIM(CQ34)="", "", IF(VLOOKUP(CQ34,'Footnotes list'!$D$9:$E$58,2,FALSE)=0,"",VLOOKUP(CQ34,'Footnotes list'!$D$9:$E$58,2,FALSE) ) ) ->  | CS34: =IF(AND(TRIM(CS32)="",TRIM(CS33)=""),"",CS32+CS33) -> 209.362 | CW34: =IF(TRIM(CV34)="", "", IF(VLOOKUP(CV34,'Footnotes list'!$D$9:$E$58,2,FALSE)=0,"",VLOOKUP(CV34,'Footnotes list'!$D$9:$E$58,2,FALSE) ) ) ->  | CX34: =IF(AND(TRIM(CX32)="",TRIM(CX33)=""),"",CX32+CX33) -> 417.555 | DB34: =IF(TRIM(DA34)="", "", IF(VLOOKUP(DA34,'Footnotes list'!$D$9:$E$58,2,FALSE)=0,"",VLOOKUP(DA34,'Footnotes list'!$D$9:$E$58,2,FALSE) ) ) ->  | DC34: =IF(AND(TRIM(DC32)="",TRIM(DC33)=""),"",DC32+DC33) -> 356.715 | DG34: =IF(TRIM(DF34)="", "", IF(VLOOKUP(DF34,'Footnotes list'!$D$9:$E$58,2,FALSE)=0,"",VLOOKUP(DF34,'Footnotes list'!$D$9:$E$58,2,FALSE) ) ) ->  | DH34: =IF(AND(TRIM(DH32)="", TRIM(DH33)=""), "", SUM(DH32,DH33) ) -> 55285.486 | DL34: =IF(TRIM(DK34)="", "", IF(VLOOKUP(DK34,'Footnotes list'!$D$9:$E$58,2,FALSE)=0,"",VLOOKUP(DK34,'Footnotes list'!$D$9:$E$58,2,FALSE) ) ) -> 
B35: W063 | D35: Metal wastes, mixed ferrous and non-ferrous | F35: Not applicable
C36: W063 | E36: NHAZ | F36: Non-hazardous | G36: 5.72 | K36: =IF(TRIM(J36)="", "", IF(VLOOKUP(J36,'Footnotes list'!$D$9:$E$58,2,FALSE)=0,"",VLOOKUP(J36,'Footnotes list'!$D$9:$E$58,2,FALSE) ) ) ->  | L36: 159.796 | P36: =IF(TRIM(O36)="", "", IF(VLOOKUP(O36,'Footnotes list'!$D$9:$E$58,2,FALSE)=0,"",VLOOKUP(O36,'Footnotes list'!$D$9:$E$58,2,FALSE) ) ) ->  | Q36: 503.692 | U36: =IF(TRIM(T36)="", "", IF(VLOOKUP(T36,'Footnotes list'!$D$9:$E$58,2,FALSE)=0,"",VLOOKUP(T36,'Footnotes list'!$D$9:$E$58,2,FALSE) ) ) ->  | V36: 61.81 | Z36: =IF(TRIM(Y36)="", "", IF(VLOOKUP(Y36,'Footnotes list'!$D$9:$E$58,2,FALSE)=0,"",VLOOKUP(Y36,'Footnotes list'!$D$9:$E$58,2,FALSE) ) ) ->  | AA36: 7.4 | AE36: =IF(TRIM(AD36)="", "", IF(VLOOKUP(AD36,'Footnotes list'!$D$9:$E$58,2,FALSE)=0,"",VLOOKUP(AD36,'Footnotes list'!$D$9:$E$58,2,FALSE) ) ) ->  | AF36: 5.805 | AJ36: =IF(TRIM(AI36)="", "", IF(VLOOKUP(AI36,'Footnotes list'!$D$9:$E$58,2,FALSE)=0,"",VLOOKUP(AI36,'Footnotes list'!$D$9:$E$58,2,FALSE) ) ) ->  | AK36: 5.63 | AO36: =IF(TRIM(AN36)="", "", IF(VLOOKUP(AN36,'Footnotes list'!$D$9:$E$58,2,FALSE)=0,"",VLOOKUP(AN36,'Footnotes list'!$D$9:$E$58,2,FALSE) ) ) ->  | AP36: 493.481 | AT36: =IF(TRIM(AS36)="", "", IF(VLOOKUP(AS36,'Footnotes list'!$D$9:$E$58,2,FALSE)=0,"",VLOOKUP(AS36,'Footnotes list'!$D$9:$E$58,2,FALSE) ) ) ->  | AU36: 32.72 | AY36: =IF(TRIM(AX36)="", "", IF(VLOOKUP(AX36,'Footnotes list'!$D$9:$E$58,2,FALSE)=0,"",VLOOKUP(AX36,'Footnotes list'!$D$9:$E$58,2,FALSE) ) ) ->  | AZ36: 93.481 | BD36: =IF(TRIM(BC36)="", "", IF(VLOOKUP(BC36,'Footnotes list'!$D$9:$E$58,2,FALSE)=0,"",VLOOKUP(BC36,'Footnotes list'!$D$9:$E$58,2,FALSE) ) ) ->  | BE36: 69.166 | BI36: =IF(TRIM(BH36)="", "", IF(VLOOKUP(BH36,'Footnotes list'!$D$9:$E$58,2,FALSE)=0,"",VLOOKUP(BH36,'Footnotes list'!$D$9:$E$58,2,FALSE) ) ) ->  | BJ36: 2.466 | BN36: =IF(TRIM(BM36)="", "", IF(VLOOKUP(BM36,'Footnotes list'!$D$9:$E$58,2,FALSE)=0,"",VLOOKUP(BM36,'Footnotes list'!$D$9:$E$58,2,FALSE) ) ) ->  | BO36: =IF(AND(TRIM(Q36)="",TRIM(V36)="",TRIM(AA36)="", TRIM(AF36)="", TRIM(AK36)="", TRIM(AP36)="", TRIM(AU36)="", TRIM(AZ36)="", TRIM(BE36)="", TRIM(BJ36)=""),"",Q36+V36+AA36+AF36+AK36+AP36+AU36+AZ36+BE36+BJ36) -> 1275.651 | BS36: =IF(TRIM(BR36)="", "", IF(VLOOKUP(BR36,'Footnotes list'!$D$9:$E$58,2,FALSE)=0,"",VLOOKUP(BR36,'Footnotes list'!$D$9:$E$58,2,FALSE) ) ) ->  | BT36: 0.36 | BX36: =IF(TRIM(BW36)="", "", IF(VLOOKUP(BW36,'Footnotes list'!$D$9:$E$58,2,FALSE)=0,"",VLOOKUP(BW36,'Footnotes list'!$D$9:$E$58,2,FALSE) ) ) ->  | BY36: 44.417 | CC36: =IF(TRIM(CB36)="", "", IF(VLOOKUP(CB36,'Footnotes list'!$D$9:$E$58,2,FALSE)=0,"",VLOOKUP(CB36,'Footnotes list'!$D$9:$E$58,2,FALSE) ) ) ->  | CD36: 6346.356 | CH36: =IF(TRIM(CG36)="", "", IF(VLOOKUP(CG36,'Footnotes list'!$D$9:$E$58,2,FALSE)=0,"",VLOOKUP(CG36,'Footnotes list'!$D$9:$E$58,2,FALSE) ) ) ->  | CI36: =IF(AND(TRIM(BY36)="",TRIM(CD36)=""),"",BY36+CD36) -> 6390.773 | CM36: =IF(TRIM(CL36)="", "", IF(VLOOKUP(CL36,'Footnotes list'!$D$9:$E$58,2,FALSE)=0,"",VLOOKUP(CL36,'Footnotes list'!$D$9:$E$58,2,FALSE) ) ) ->  | CN36: 3087.362 | CR36: =IF(TRIM(CQ36)="", "", IF(VLOOKUP(CQ36,'Footnotes list'!$D$9:$E$58,2,FALSE)=0,"",VLOOKUP(CQ36,'Footnotes list'!$D$9:$E$58,2,FALSE) ) ) ->  | CS36: 5010.317 | CW36: =IF(TRIM(CV36)="", "", IF(VLOOKUP(CV36,'Footnotes list'!$D$9:$E$58,2,FALSE)=0,"",VLOOKUP(CV36,'Footnotes list'!$D$9:$E$58,2,FALSE) ) ) ->  | CX36: 25440.27 | DB36: =IF(TRIM(DA36)="", "", IF(VLOOKUP(DA36,'Footnotes list'!$D$9:$E$58,2,FALSE)=0,"",VLOOKUP(DA36,'Footnotes list'!$D$9:$E$58,2,FALSE) ) ) ->  | DC36: 33921.702 | DG36: =IF(TRIM(DF36)="", "", IF(VLOOKUP(DF36,'Footnotes list'!$D$9:$E$58,2,FALSE)=0,"",VLOOKUP(DF36,'Footnotes list'!$D$9:$E$58,2,FALSE) ) ) ->  | DH36: =IF(AND(TRIM(G36)="",TRIM(L36)="",TRIM(BO36)="",TRIM(BT36)="",TRIM(CI36)="",TRIM(CN36)="",TRIM(CS36)="",TRIM(CX36)="",TRIM(DC36)=""),"",SUM(G36,L36,BO36,BT36,CI36,CN36,CS36,CX36,DC36)) -> 75291.951 | DL36: =IF(TRIM(DK36)="", "", IF(VLOOKUP(DK36,'Footnotes list'!$D$9:$E$58,2,FALSE)=0,"",VLOOKUP(DK36,'Footnotes list'!$D$9:$E$58,2,FALSE) ) ) -> 
C37: W063 | E37: HAZ_NHAZ | F37: Total | G37: =IF(AND(TRIM(G35)="",TRIM(G36)=""),"",G35+G36) -> 5.72 | K37: =IF(TRIM(J37)="", "", IF(VLOOKUP(J37,'Footnotes list'!$D$9:$E$58,2,FALSE)=0,"",VLOOKUP(J37,'Footnotes list'!$D$9:$E$58,2,FALSE) ) ) ->  | L37: =IF(AND(TRIM(L35)="",TRIM(L36)=""),"",L35+L36) -> 159.796 | P37: =IF(TRIM(O37)="", "", IF(VLOOKUP(O37,'Footnotes list'!$D$9:$E$58,2,FALSE)=0,"",VLOOKUP(O37,'Footnotes list'!$D$9:$E$58,2,FALSE) ) ) ->  | Q37: =IF(AND(TRIM(Q35)="",TRIM(Q36)=""),"",Q35+Q36) -> 503.692 | U37: =IF(TRIM(T37)="", "", IF(VLOOKUP(T37,'Footnotes list'!$D$9:$E$58,2,FALSE)=0,"",VLOOKUP(T37,'Footnotes list'!$D$9:$E$58,2,FALSE) ) ) ->  | V37: =IF(AND(TRIM(V35)="",TRIM(V36)=""),"",V35+V36) -> 61.81 | Z37: =IF(TRIM(Y37)="", "", IF(VLOOKUP(Y37,'Footnotes list'!$D$9:$E$58,2,FALSE)=0,"",VLOOKUP(Y37,'Footnotes list'!$D$9:$E$58,2,FALSE) ) ) ->  | AA37: =IF(AND(TRIM(AA35)="",TRIM(AA36)=""),"",AA35+AA36) -> 7.4 | AE37: =IF(TRIM(AD37)="", "", IF(VLOOKUP(AD37,'Footnotes list'!$D$9:$E$58,2,FALSE)=0,"",VLOOKUP(AD37,'Footnotes list'!$D$9:$E$58,2,FALSE) ) ) ->  | AF37: =IF(AND(TRIM(AF35)="",TRIM(AF36)=""),"",AF35+AF36) -> 5.805 | AJ37: =IF(TRIM(AI37)="", "", IF(VLOOKUP(AI37,'Footnotes list'!$D$9:$E$58,2,FALSE)=0,"",VLOOKUP(AI37,'Footnotes list'!$D$9:$E$58,2,FALSE) ) ) ->  | AK37: =IF(AND(TRIM(AK35)="",TRIM(AK36)=""),"",AK35+AK36) -> 5.63 | AO37: =IF(TRIM(AN37)="", "", IF(VLOOKUP(AN37,'Footnotes list'!$D$9:$E$58,2,FALSE)=0,"",VLOOKUP(AN37,'Footnotes list'!$D$9:$E$58,2,FALSE) ) ) ->  | AP37: =IF(AND(TRIM(AP35)="",TRIM(AP36)=""),"",AP35+AP36) -> 493.481 | AT37: =IF(TRIM(AS37)="", "", IF(VLOOKUP(AS37,'Footnotes list'!$D$9:$E$58,2,FALSE)=0,"",VLOOKUP(AS37,'Footnotes list'!$D$9:$E$58,2,FALSE) ) ) ->  | AU37: =IF(AND(TRIM(AU35)="",TRIM(AU36)=""),"",AU35+AU36) -> 32.72 | AY37: =IF(TRIM(AX37)="", "", IF(VLOOKUP(AX37,'Footnotes list'!$D$9:$E$58,2,FALSE)=0,"",VLOOKUP(AX37,'Footnotes list'!$D$9:$E$58,2,FALSE) ) ) ->  | AZ37: =IF(AND(TRIM(AZ35)="",TRIM(AZ36)=""),"",AZ35+AZ36) -> 93.481 | BD37: =IF(TRIM(BC37)="", "", IF(VLOOKUP(BC37,'Footnotes list'!$D$9:$E$58,2,FALSE)=0,"",VLOOKUP(BC37,'Footnotes list'!$D$9:$E$58,2,FALSE) ) ) ->  | BE37: =IF(AND(TRIM(BE35)="",TRIM(BE36)=""),"",BE35+BE36) -> 69.166 | BI37: =IF(TRIM(BH37)="", "", IF(VLOOKUP(BH37,'Footnotes list'!$D$9:$E$58,2,FALSE)=0,"",VLOOKUP(BH37,'Footnotes list'!$D$9:$E$58,2,FALSE) ) ) ->  | BJ37: =IF(AND(TRIM(BJ35)="",TRIM(BJ36)=""),"",BJ35+BJ36) -> 2.466 | BN37: =IF(TRIM(BM37)="", "", IF(VLOOKUP(BM37,'Footnotes list'!$D$9:$E$58,2,FALSE)=0,"",VLOOKUP(BM37,'Footnotes list'!$D$9:$E$58,2,FALSE) ) ) ->  | BO37: =IF(AND(TRIM(BO35)="", TRIM(BO36)=""), "", (IF(ISNUMBER(BO35),BO35,0)+IF(ISNUMBER(BO36),BO36,0))) -> 1275.651 | BS37: =IF(TRIM(BR37)="", "", IF(VLOOKUP(BR37,'Footnotes list'!$D$9:$E$58,2,FALSE)=0,"",VLOOKUP(BR37,'Footnotes list'!$D$9:$E$58,2,FALSE) ) ) ->  | BT37: =IF(AND(TRIM(BT35)="",TRIM(BT36)=""),"",BT35+BT36) -> 0.36 | BX37: =IF(TRIM(BW37)="", "", IF(VLOOKUP(BW37,'Footnotes list'!$D$9:$E$58,2,FALSE)=0,"",VLOOKUP(BW37,'Footnotes list'!$D$9:$E$58,2,FALSE) ) ) ->  | BY37: =IF(AND(TRIM(BY35)="",TRIM(BY36)=""),"",BY35+BY36) -> 44.417 | CC37: =IF(TRIM(CB37)="", "", IF(VLOOKUP(CB37,'Footnotes list'!$D$9:$E$58,2,FALSE)=0,"",VLOOKUP(CB37,'Footnotes list'!$D$9:$E$58,2,FALSE) ) ) ->  | CD37: =IF(AND(TRIM(CD35)="",TRIM(CD36)=""),"",CD35+CD36) -> 6346.356 | CH37: =IF(TRIM(CG37)="", "", IF(VLOOKUP(CG37,'Footnotes list'!$D$9:$E$58,2,FALSE)=0,"",VLOOKUP(CG37,'Footnotes list'!$D$9:$E$58,2,FALSE) ) ) ->  | CI37: =IF(AND(TRIM(CI35)="", TRIM(CI36)=""), "", (IF(ISNUMBER(CI35),CI35,0)+IF(ISNUMBER(CI36),CI36,0))) -> 6390.773 | CM37: =IF(TRIM(CL37)="", "", IF(VLOOKUP(CL37,'Footnotes list'!$D$9:$E$58,2,FALSE)=0,"",VLOOKUP(CL37,'Footnotes list'!$D$9:$E$58,2,FALSE) ) ) ->  | CN37: =IF(AND(TRIM(CN35)="",TRIM(CN36)=""),"",CN35+CN36) -> 3087.362 | CR37: =IF(TRIM(CQ37)="", "", IF(VLOOKUP(CQ37,'Footnotes list'!$D$9:$E$58,2,FALSE)=0,"",VLOOKUP(CQ37,'Footnotes list'!$D$9:$E$58,2,FALSE) ) ) ->  | CS37: =IF(AND(TRIM(CS35)="",TRIM(CS36)=""),"",CS35+CS36) -> 5010.317 | CW37: =IF(TRIM(CV37)="", "", IF(VLOOKUP(CV37,'Footnotes list'!$D$9:$E$58,2,FALSE)=0,"",VLOOKUP(CV37,'Footnotes list'!$D$9:$E$58,2,FALSE) ) ) ->  | CX37: =IF(AND(TRIM(CX35)="",TRIM(CX36)=""),"",CX35+CX36) -> 25440.27 | DB37: =IF(TRIM(DA37)="", "", IF(VLOOKUP(DA37,'Footnotes list'!$D$9:$E$58,2,FALSE)=0,"",VLOOKUP(DA37,'Footnotes list'!$D$9:$E$58,2,FALSE) ) ) ->  | DC37: =IF(AND(TRIM(DC35)="",TRIM(DC36)=""),"",DC35+DC36) -> 33921.702 | DG37: =IF(TRIM(DF37)="", "", IF(VLOOKUP(DF37,'Footnotes list'!$D$9:$E$58,2,FALSE)=0,"",VLOOKUP(DF37,'Footnotes list'!$D$9:$E$58,2,FALSE) ) ) ->  | DH37: =IF(AND(TRIM(DH35)="", TRIM(DH36)=""), "", SUM(DH35,DH36) ) -> 75291.951 | DL37: =IF(TRIM(DK37)="", "", IF(VLOOKUP(DK37,'Footnotes list'!$D$9:$E$58,2,FALSE)=0,"",VLOOKUP(DK37,'Footnotes list'!$D$9:$E$58,2,FALSE) ) ) -> 
B38: W071 | C38: W071 | D38: Glass wastes | E38: HAZ | F38: Hazardous | G38: 0 | K38: =IF(TRIM(J38)="", "", IF(VLOOKUP(J38,'Footnotes list'!$D$9:$E$58,2,FALSE)=0,"",VLOOKUP(J38,'Footnotes list'!$D$9:$E$58,2,FALSE) ) ) ->  | L38: 0 | P38: =IF(TRIM(O38)="", "", IF(VLOOKUP(O38,'Footnotes list'!$D$9:$E$58,2,FALSE)=0,"",VLOOKUP(O38,'Footnotes list'!$D$9:$E$58,2,FALSE) ) ) ->  | Q38: 0 | U38: =IF(TRIM(T38)="", "", IF(VLOOKUP(T38,'Footnotes list'!$D$9:$E$58,2,FALSE)=0,"",VLOOKUP(T38,'Footnotes list'!$D$9:$E$58,2,FALSE) ) ) ->  | V38: 0 | Z38: =IF(TRIM(Y38)="", "", IF(VLOOKUP(Y38,'Footnotes list'!$D$9:$E$58,2,FALSE)=0,"",VLOOKUP(Y38,'Footnotes list'!$D$9:$E$58,2,FALSE) ) ) ->  | AA38: 0 | AE38: =IF(TRIM(AD38)="", "", IF(VLOOKUP(AD38,'Footnotes list'!$D$9:$E$58,2,FALSE)=0,"",VLOOKUP(AD38,'Footnotes list'!$D$9:$E$58,2,FALSE) ) ) ->  | AF38: 0 | AJ38: =IF(TRIM(AI38)="", "", IF(VLOOKUP(AI38,'Footnotes list'!$D$9:$E$58,2,FALSE)=0,"",VLOOKUP(AI38,'Footnotes list'!$D$9:$E$58,2,FALSE) ) ) ->  | AK38: 0 | AO38: =IF(TRIM(AN38)="", "", IF(VLOOKUP(AN38,'Footnotes list'!$D$9:$E$58,2,FALSE)=0,"",VLOOKUP(AN38,'Footnotes list'!$D$9:$E$58,2,FALSE) ) ) ->  | AP38: 0 | AT38: =IF(TRIM(AS38)="", "", IF(VLOOKUP(AS38,'Footnotes list'!$D$9:$E$58,2,FALSE)=0,"",VLOOKUP(AS38,'Footnotes list'!$D$9:$E$58,2,FALSE) ) ) ->  | AU38: 0 | AY38: =IF(TRIM(AX38)="", "", IF(VLOOKUP(AX38,'Footnotes list'!$D$9:$E$58,2,FALSE)=0,"",VLOOKUP(AX38,'Footnotes list'!$D$9:$E$58,2,FALSE) ) ) ->  | AZ38: 0 | BD38: =IF(TRIM(BC38)="", "", IF(VLOOKUP(BC38,'Footnotes list'!$D$9:$E$58,2,FALSE)=0,"",VLOOKUP(BC38,'Footnotes list'!$D$9:$E$58,2,FALSE) ) ) ->  | BE38: 0 | BI38: =IF(TRIM(BH38)="", "", IF(VLOOKUP(BH38,'Footnotes list'!$D$9:$E$58,2,FALSE)=0,"",VLOOKUP(BH38,'Footnotes list'!$D$9:$E$58,2,FALSE) ) ) ->  | BJ38: 0 | BN38: =IF(TRIM(BM38)="", "", IF(VLOOKUP(BM38,'Footnotes list'!$D$9:$E$58,2,FALSE)=0,"",VLOOKUP(BM38,'Footnotes list'!$D$9:$E$58,2,FALSE) ) ) ->  | BO38: =IF(AND(TRIM(Q38)="",TRIM(V38)="",TRIM(AA38)="", TRIM(AF38)="", TRIM(AK38)="", TRIM(AP38)="", TRIM(AU38)="", TRIM(AZ38)="", TRIM(BE38)="", TRIM(BJ38)=""),"",Q38+V38+AA38+AF38+AK38+AP38+AU38+AZ38+BE38+BJ38) -> 0 | BS38: =IF(TRIM(BR38)="", "", IF(VLOOKUP(BR38,'Footnotes list'!$D$9:$E$58,2,FALSE)=0,"",VLOOKUP(BR38,'Footnotes list'!$D$9:$E$58,2,FALSE) ) ) ->  | BT38: 0 | BX38: =IF(TRIM(BW38)="", "", IF(VLOOKUP(BW38,'Footnotes list'!$D$9:$E$58,2,FALSE)=0,"",VLOOKUP(BW38,'Footnotes list'!$D$9:$E$58,2,FALSE) ) ) ->  | BY38: 0 | CC38: =IF(TRIM(CB38)="", "", IF(VLOOKUP(CB38,'Footnotes list'!$D$9:$E$58,2,FALSE)=0,"",VLOOKUP(CB38,'Footnotes list'!$D$9:$E$58,2,FALSE) ) ) ->  | CD38: 0 | CH38: =IF(TRIM(CG38)="", "", IF(VLOOKUP(CG38,'Footnotes list'!$D$9:$E$58,2,FALSE)=0,"",VLOOKUP(CG38,'Footnotes list'!$D$9:$E$58,2,FALSE) ) ) ->  | CI38: =IF(AND(TRIM(BY38)="",TRIM(CD38)=""),"",BY38+CD38) -> 0 | CM38: =IF(TRIM(CL38)="", "", IF(VLOOKUP(CL38,'Footnotes list'!$D$9:$E$58,2,FALSE)=0,"",VLOOKUP(CL38,'Footnotes list'!$D$9:$E$58,2,FALSE) ) ) ->  | CN38: 0 | CR38: =IF(TRIM(CQ38)="", "", IF(VLOOKUP(CQ38,'Footnotes list'!$D$9:$E$58,2,FALSE)=0,"",VLOOKUP(CQ38,'Footnotes list'!$D$9:$E$58,2,FALSE) ) ) ->  | CS38: 0 | CW38: =IF(TRIM(CV38)="", "", IF(VLOOKUP(CV38,'Footnotes list'!$D$9:$E$58,2,FALSE)=0,"",VLOOKUP(CV38,'Footnotes list'!$D$9:$E$58,2,FALSE) ) ) ->  | CX38: 0 | DB38: =IF(TRIM(DA38)="", "", IF(VLOOKUP(DA38,'Footnotes list'!$D$9:$E$58,2,FALSE)=0,"",VLOOKUP(DA38,'Footnotes list'!$D$9:$E$58,2,FALSE) ) ) ->  | DC38: 0 | DG38: =IF(TRIM(DF38)="", "", IF(VLOOKUP(DF38,'Footnotes list'!$D$9:$E$58,2,FALSE)=0,"",VLOOKUP(DF38,'Footnotes list'!$D$9:$E$58,2,FALSE) ) ) ->  | DH38: =IF(AND(TRIM(G38)="",TRIM(L38)="",TRIM(BO38)="",TRIM(BT38)="",TRIM(CI38)="",TRIM(CN38)="",TRIM(CS38)="",TRIM(CX38)="",TRIM(DC38)=""),"",SUM(G38,L38,BO38,BT38,CI38,CN38,CS38,CX38,DC38)) -> 0 | DL38: =IF(TRIM(DK38)="", "", IF(VLOOKUP(DK38,'Footnotes list'!$D$9:$E$58,2,FALSE)=0,"",VLOOKUP(DK38,'Footnotes list'!$D$9:$E$58,2,FALSE) ) ) -> 
C39: W071 | E39: NHAZ | F39: Non-hazardous | G39: 1.37 | K39: =IF(TRIM(J39)="", "", IF(VLOOKUP(J39,'Footnotes list'!$D$9:$E$58,2,FALSE)=0,"",VLOOKUP(J39,'Footnotes list'!$D$9:$E$58,2,FALSE) ) ) ->  | L39: 0 | P39: =IF(TRIM(O39)="", "", IF(VLOOKUP(O39,'Footnotes list'!$D$9:$E$58,2,FALSE)=0,"",VLOOKUP(O39,'Footnotes list'!$D$9:$E$58,2,FALSE) ) ) ->  | Q39: 6439.879 | U39: =IF(TRIM(T39)="", "", IF(VLOOKUP(T39,'Footnotes list'!$D$9:$E$58,2,FALSE)=0,"",VLOOKUP(T39,'Footnotes list'!$D$9:$E$58,2,FALSE) ) ) ->  | V39: 2.028 | Z39: =IF(TRIM(Y39)="", "", IF(VLOOKUP(Y39,'Footnotes list'!$D$9:$E$58,2,FALSE)=0,"",VLOOKUP(Y39,'Footnotes list'!$D$9:$E$58,2,FALSE) ) ) ->  | AA39: 7.3 | AE39: =IF(TRIM(AD39)="", "", IF(VLOOKUP(AD39,'Footnotes list'!$D$9:$E$58,2,FALSE)=0,"",VLOOKUP(AD39,'Footnotes list'!$D$9:$E$58,2,FALSE) ) ) ->  | AF39: 1.645 | AJ39: =IF(TRIM(AI39)="", "", IF(VLOOKUP(AI39,'Footnotes list'!$D$9:$E$58,2,FALSE)=0,"",VLOOKUP(AI39,'Footnotes list'!$D$9:$E$58,2,FALSE) ) ) ->  | AK39: 0.06 | AO39: =IF(TRIM(AN39)="", "", IF(VLOOKUP(AN39,'Footnotes list'!$D$9:$E$58,2,FALSE)=0,"",VLOOKUP(AN39,'Footnotes list'!$D$9:$E$58,2,FALSE) ) ) ->  | AP39: 223.155 | AT39: =IF(TRIM(AS39)="", "", IF(VLOOKUP(AS39,'Footnotes list'!$D$9:$E$58,2,FALSE)=0,"",VLOOKUP(AS39,'Footnotes list'!$D$9:$E$58,2,FALSE) ) ) ->  | AU39: 22170.54 | AY39: =IF(TRIM(AX39)="", "", IF(VLOOKUP(AX39,'Footnotes list'!$D$9:$E$58,2,FALSE)=0,"",VLOOKUP(AX39,'Footnotes list'!$D$9:$E$58,2,FALSE) ) ) ->  | AZ39: 19.35 | BD39: =IF(TRIM(BC39)="", "", IF(VLOOKUP(BC39,'Footnotes list'!$D$9:$E$58,2,FALSE)=0,"",VLOOKUP(BC39,'Footnotes list'!$D$9:$E$58,2,FALSE) ) ) ->  | BE39: 7.581 | BI39: =IF(TRIM(BH39)="", "", IF(VLOOKUP(BH39,'Footnotes list'!$D$9:$E$58,2,FALSE)=0,"",VLOOKUP(BH39,'Footnotes list'!$D$9:$E$58,2,FALSE) ) ) ->  | BJ39: 9.227 | BN39: =IF(TRIM(BM39)="", "", IF(VLOOKUP(BM39,'Footnotes list'!$D$9:$E$58,2,FALSE)=0,"",VLOOKUP(BM39,'Footnotes list'!$D$9:$E$58,2,FALSE) ) ) ->  | BO39: =IF(AND(TRIM(Q39)="",TRIM(V39)="",TRIM(AA39)="", TRIM(AF39)="", TRIM(AK39)="", TRIM(AP39)="", TRIM(AU39)="", TRIM(AZ39)="", TRIM(BE39)="", TRIM(BJ39)=""),"",Q39+V39+AA39+AF39+AK39+AP39+AU39+AZ39+BE39+BJ39) -> 28880.765 | BS39: =IF(TRIM(BR39)="", "", IF(VLOOKUP(BR39,'Footnotes list'!$D$9:$E$58,2,FALSE)=0,"",VLOOKUP(BR39,'Footnotes list'!$D$9:$E$58,2,FALSE) ) ) ->  | BT39: 1.005 | BX39: =IF(TRIM(BW39)="", "", IF(VLOOKUP(BW39,'Footnotes list'!$D$9:$E$58,2,FALSE)=0,"",VLOOKUP(BW39,'Footnotes list'!$D$9:$E$58,2,FALSE) ) ) ->  | BY39: 0 | CC39: =IF(TRIM(CB39)="", "", IF(VLOOKUP(CB39,'Footnotes list'!$D$9:$E$58,2,FALSE)=0,"",VLOOKUP(CB39,'Footnotes list'!$D$9:$E$58,2,FALSE) ) ) ->  | CD39: 26911.331 | CH39: =IF(TRIM(CG39)="", "", IF(VLOOKUP(CG39,'Footnotes list'!$D$9:$E$58,2,FALSE)=0,"",VLOOKUP(CG39,'Footnotes list'!$D$9:$E$58,2,FALSE) ) ) ->  | CI39: =IF(AND(TRIM(BY39)="",TRIM(CD39)=""),"",BY39+CD39) -> 26911.331 | CM39: =IF(TRIM(CL39)="", "", IF(VLOOKUP(CL39,'Footnotes list'!$D$9:$E$58,2,FALSE)=0,"",VLOOKUP(CL39,'Footnotes list'!$D$9:$E$58,2,FALSE) ) ) ->  | CN39: 9974.421 | CR39: =IF(TRIM(CQ39)="", "", IF(VLOOKUP(CQ39,'Footnotes list'!$D$9:$E$58,2,FALSE)=0,"",VLOOKUP(CQ39,'Footnotes list'!$D$9:$E$58,2,FALSE) ) ) ->  | CS39: 41283.501 | CW39: =IF(TRIM(CV39)="", "", IF(VLOOKUP(CV39,'Footnotes list'!$D$9:$E$58,2,FALSE)=0,"",VLOOKUP(CV39,'Footnotes list'!$D$9:$E$58,2,FALSE) ) ) ->  | CX39: 283.359 | DB39: =IF(TRIM(DA39)="", "", IF(VLOOKUP(DA39,'Footnotes list'!$D$9:$E$58,2,FALSE)=0,"",VLOOKUP(DA39,'Footnotes list'!$D$9:$E$58,2,FALSE) ) ) ->  | DC39: 20483.185 | DG39: =IF(TRIM(DF39)="", "", IF(VLOOKUP(DF39,'Footnotes list'!$D$9:$E$58,2,FALSE)=0,"",VLOOKUP(DF39,'Footnotes list'!$D$9:$E$58,2,FALSE) ) ) ->  | DH39: =IF(AND(TRIM(G39)="",TRIM(L39)="",TRIM(BO39)="",TRIM(BT39)="",TRIM(CI39)="",TRIM(CN39)="",TRIM(CS39)="",TRIM(CX39)="",TRIM(DC39)=""),"",SUM(G39,L39,BO39,BT39,CI39,CN39,CS39,CX39,DC39)) -> 127818.937 | DL39: =IF(TRIM(DK39)="", "", IF(VLOOKUP(DK39,'Footnotes list'!$D$9:$E$58,2,FALSE)=0,"",VLOOKUP(DK39,'Footnotes list'!$D$9:$E$58,2,FALSE) ) ) -> 
C40: W071 | E40: HAZ_NHAZ | F40: Total | G40: =IF(AND(TRIM(G38)="",TRIM(G39)=""),"",G38+G39) -> 1.37 | K40: =IF(TRIM(J40)="", "", IF(VLOOKUP(J40,'Footnotes list'!$D$9:$E$58,2,FALSE)=0,"",VLOOKUP(J40,'Footnotes list'!$D$9:$E$58,2,FALSE) ) ) ->  | L40: =IF(AND(TRIM(L38)="",TRIM(L39)=""),"",L38+L39) -> 0 | P40: =IF(TRIM(O40)="", "", IF(VLOOKUP(O40,'Footnotes list'!$D$9:$E$58,2,FALSE)=0,"",VLOOKUP(O40,'Footnotes list'!$D$9:$E$58,2,FALSE) ) ) ->  | Q40: =IF(AND(TRIM(Q38)="",TRIM(Q39)=""),"",Q38+Q39) -> 6439.879 | U40: =IF(TRIM(T40)="", "", IF(VLOOKUP(T40,'Footnotes list'!$D$9:$E$58,2,FALSE)=0,"",VLOOKUP(T40,'Footnotes list'!$D$9:$E$58,2,FALSE) ) ) ->  | V40: =IF(AND(TRIM(V38)="",TRIM(V39)=""),"",V38+V39) -> 2.028 | Z40: =IF(TRIM(Y40)="", "", IF(VLOOKUP(Y40,'Footnotes list'!$D$9:$E$58,2,FALSE)=0,"",VLOOKUP(Y40,'Footnotes list'!$D$9:$E$58,2,FALSE) ) ) ->  | AA40: =IF(AND(TRIM(AA38)="",TRIM(AA39)=""),"",AA38+AA39) -> 7.3 | AE40: =IF(TRIM(AD40)="", "", IF(VLOOKUP(AD40,'Footnotes list'!$D$9:$E$58,2,FALSE)=0,"",VLOOKUP(AD40,'Footnotes list'!$D$9:$E$58,2,FALSE) ) ) ->  | AF40: =IF(AND(TRIM(AF38)="",TRIM(AF39)=""),"",AF38+AF39) -> 1.645 | AJ40: =IF(TRIM(AI40)="", "", IF(VLOOKUP(AI40,'Footnotes list'!$D$9:$E$58,2,FALSE)=0,"",VLOOKUP(AI40,'Footnotes list'!$D$9:$E$58,2,FALSE) ) ) ->  | AK40: =IF(AND(TRIM(AK38)="",TRIM(AK39)=""),"",AK38+AK39) -> 0.06 | AO40: =IF(TRIM(AN40)="", "", IF(VLOOKUP(AN40,'Footnotes list'!$D$9:$E$58,2,FALSE)=0,"",VLOOKUP(AN40,'Footnotes list'!$D$9:$E$58,2,FALSE) ) ) ->  | AP40: =IF(AND(TRIM(AP38)="",TRIM(AP39)=""),"",AP38+AP39) -> 223.155 | AT40: =IF(TRIM(AS40)="", "", IF(VLOOKUP(AS40,'Footnotes list'!$D$9:$E$58,2,FALSE)=0,"",VLOOKUP(AS40,'Footnotes list'!$D$9:$E$58,2,FALSE) ) ) ->  | AU40: =IF(AND(TRIM(AU38)="",TRIM(AU39)=""),"",AU38+AU39) -> 22170.54 | AY40: =IF(TRIM(AX40)="", "", IF(VLOOKUP(AX40,'Footnotes list'!$D$9:$E$58,2,FALSE)=0,"",VLOOKUP(AX40,'Footnotes list'!$D$9:$E$58,2,FALSE) ) ) ->  | AZ40: =IF(AND(TRIM(AZ38)="",TRIM(AZ39)=""),"",AZ38+AZ39) -> 19.35 | BD40: =IF(TRIM(BC40)="", "", IF(VLOOKUP(BC40,'Footnotes list'!$D$9:$E$58,2,FALSE)=0,"",VLOOKUP(BC40,'Footnotes list'!$D$9:$E$58,2,FALSE) ) ) ->  | BE40: =IF(AND(TRIM(BE38)="",TRIM(BE39)=""),"",BE38+BE39) -> 7.581 | BI40: =IF(TRIM(BH40)="", "", IF(VLOOKUP(BH40,'Footnotes list'!$D$9:$E$58,2,FALSE)=0,"",VLOOKUP(BH40,'Footnotes list'!$D$9:$E$58,2,FALSE) ) ) ->  | BJ40: =IF(AND(TRIM(BJ38)="",TRIM(BJ39)=""),"",BJ38+BJ39) -> 9.227 | BN40: =IF(TRIM(BM40)="", "", IF(VLOOKUP(BM40,'Footnotes list'!$D$9:$E$58,2,FALSE)=0,"",VLOOKUP(BM40,'Footnotes list'!$D$9:$E$58,2,FALSE) ) ) ->  | BO40: =IF(AND(TRIM(BO38)="", TRIM(BO39)=""), "", (IF(ISNUMBER(BO38),BO38,0)+IF(ISNUMBER(BO39),BO39,0))) -> 28880.765 | BS40: =IF(TRIM(BR40)="", "", IF(VLOOKUP(BR40,'Footnotes list'!$D$9:$E$58,2,FALSE)=0,"",VLOOKUP(BR40,'Footnotes list'!$D$9:$E$58,2,FALSE) ) ) ->  | BT40: =IF(AND(TRIM(BT38)="",TRIM(BT39)=""),"",BT38+BT39) -> 1.005 | BX40: =IF(TRIM(BW40)="", "", IF(VLOOKUP(BW40,'Footnotes list'!$D$9:$E$58,2,FALSE)=0,"",VLOOKUP(BW40,'Footnotes list'!$D$9:$E$58,2,FALSE) ) ) ->  | BY40: =IF(AND(TRIM(BY38)="",TRIM(BY39)=""),"",BY38+BY39) -> 0 | CC40: =IF(TRIM(CB40)="", "", IF(VLOOKUP(CB40,'Footnotes list'!$D$9:$E$58,2,FALSE)=0,"",VLOOKUP(CB40,'Footnotes list'!$D$9:$E$58,2,FALSE) ) ) ->  | CD40: =IF(AND(TRIM(CD38)="",TRIM(CD39)=""),"",CD38+CD39) -> 26911.331 | CH40: =IF(TRIM(CG40)="", "", IF(VLOOKUP(CG40,'Footnotes list'!$D$9:$E$58,2,FALSE)=0,"",VLOOKUP(CG40,'Footnotes list'!$D$9:$E$58,2,FALSE) ) ) ->  | CI40: =IF(AND(TRIM(CI38)="", TRIM(CI39)=""), "", (IF(ISNUMBER(CI38),CI38,0)+IF(ISNUMBER(CI39),CI39,0))) -> 26911.331 | CM40: =IF(TRIM(CL40)="", "", IF(VLOOKUP(CL40,'Footnotes list'!$D$9:$E$58,2,FALSE)=0,"",VLOOKUP(CL40,'Footnotes list'!$D$9:$E$58,2,FALSE) ) ) ->  | CN40: =IF(AND(TRIM(CN38)="",TRIM(CN39)=""),"",CN38+CN39) -> 9974.421 | CR40: =IF(TRIM(CQ40)="", "", IF(VLOOKUP(CQ40,'Footnotes list'!$D$9:$E$58,2,FALSE)=0,"",VLOOKUP(CQ40,'Footnotes list'!$D$9:$E$58,2,FALSE) ) ) ->  | CS40: =IF(AND(TRIM(CS38)="",TRIM(CS39)=""),"",CS38+CS39) -> 41283.501 | CW40: =IF(TRIM(CV40)="", "", IF(VLOOKUP(CV40,'Footnotes list'!$D$9:$E$58,2,FALSE)=0,"",VLOOKUP(CV40,'Footnotes list'!$D$9:$E$58,2,FALSE) ) ) ->  | CX40: =IF(AND(TRIM(CX38)="",TRIM(CX39)=""),"",CX38+CX39) -> 283.359 | DB40: =IF(TRIM(DA40)="", "", IF(VLOOKUP(DA40,'Footnotes list'!$D$9:$E$58,2,FALSE)=0,"",VLOOKUP(DA40,'Footnotes list'!$D$9:$E$58,2,FALSE) ) ) ->  | DC40: =IF(AND(TRIM(DC38)="",TRIM(DC39)=""),"",DC38+DC39) -> 20483.185 | DG40: =IF(TRIM(DF40)="", "", IF(VLOOKUP(DF40,'Footnotes list'!$D$9:$E$58,2,FALSE)=0,"",VLOOKUP(DF40,'Footnotes list'!$D$9:$E$58,2,FALSE) ) ) ->  | DH40: =IF(AND(TRIM(DH38)="", TRIM(DH39)=""), "", SUM(DH38,DH39) ) -> 127818.937 | DL40: =IF(TRIM(DK40)="", "", IF(VLOOKUP(DK40,'Footnotes list'!$D$9:$E$58,2,FALSE)=0,"",VLOOKUP(DK40,'Footnotes list'!$D$9:$E$58,2,FALSE) ) ) -> 
B41: W072 | D41: Paper and cardboard wastes | F41: Not applicable
C42: W072 | E42: NHAZ | F42: Non-hazardous | G42: 1099.675 | K42: =IF(TRIM(J42)="", "", IF(VLOOKUP(J42,'Footnotes list'!$D$9:$E$58,2,FALSE)=0,"",VLOOKUP(J42,'Footnotes list'!$D$9:$E$58,2,FALSE) ) ) ->  | L42: 65.709 | P42: =IF(TRIM(O42)="", "", IF(VLOOKUP(O42,'Footnotes list'!$D$9:$E$58,2,FALSE)=0,"",VLOOKUP(O42,'Footnotes list'!$D$9:$E$58,2,FALSE) ) ) ->  | Q42: 10533.758 | U42: =IF(TRIM(T42)="", "", IF(VLOOKUP(T42,'Footnotes list'!$D$9:$E$58,2,FALSE)=0,"",VLOOKUP(T42,'Footnotes list'!$D$9:$E$58,2,FALSE) ) ) ->  | V42: 1311.782 | Z42: =IF(TRIM(Y42)="", "", IF(VLOOKUP(Y42,'Footnotes list'!$D$9:$E$58,2,FALSE)=0,"",VLOOKUP(Y42,'Footnotes list'!$D$9:$E$58,2,FALSE) ) ) ->  | AA42: 148.971 | AE42: =IF(TRIM(AD42)="", "", IF(VLOOKUP(AD42,'Footnotes list'!$D$9:$E$58,2,FALSE)=0,"",VLOOKUP(AD42,'Footnotes list'!$D$9:$E$58,2,FALSE) ) ) ->  | AF42: 29247.39 | AJ42: =IF(TRIM(AI42)="", "", IF(VLOOKUP(AI42,'Footnotes list'!$D$9:$E$58,2,FALSE)=0,"",VLOOKUP(AI42,'Footnotes list'!$D$9:$E$58,2,FALSE) ) ) ->  | AK42: 159.73 | AO42: =IF(TRIM(AN42)="", "", IF(VLOOKUP(AN42,'Footnotes list'!$D$9:$E$58,2,FALSE)=0,"",VLOOKUP(AN42,'Footnotes list'!$D$9:$E$58,2,FALSE) ) ) ->  | AP42: 3419.979 | AT42: =IF(TRIM(AS42)="", "", IF(VLOOKUP(AS42,'Footnotes list'!$D$9:$E$58,2,FALSE)=0,"",VLOOKUP(AS42,'Footnotes list'!$D$9:$E$58,2,FALSE) ) ) ->  | AU42: 408.46 | AY42: =IF(TRIM(AX42)="", "", IF(VLOOKUP(AX42,'Footnotes list'!$D$9:$E$58,2,FALSE)=0,"",VLOOKUP(AX42,'Footnotes list'!$D$9:$E$58,2,FALSE) ) ) ->  | AZ42: 1166.228 | BD42: =IF(TRIM(BC42)="", "", IF(VLOOKUP(BC42,'Footnotes list'!$D$9:$E$58,2,FALSE)=0,"",VLOOKUP(BC42,'Footnotes list'!$D$9:$E$58,2,FALSE) ) ) ->  | BE42: 1842.999 | BI42: =IF(TRIM(BH42)="", "", IF(VLOOKUP(BH42,'Footnotes list'!$D$9:$E$58,2,FALSE)=0,"",VLOOKUP(BH42,'Footnotes list'!$D$9:$E$58,2,FALSE) ) ) ->  | BJ42: 806.875 | BN42: =IF(TRIM(BM42)="", "", IF(VLOOKUP(BM42,'Footnotes list'!$D$9:$E$58,2,FALSE)=0,"",VLOOKUP(BM42,'Footnotes list'!$D$9:$E$58,2,FALSE) ) ) ->  | BO42: =IF(AND(TRIM(Q42)="",TRIM(V42)="",TRIM(AA42)="", TRIM(AF42)="", TRIM(AK42)="", TRIM(AP42)="", TRIM(AU42)="", TRIM(AZ42)="", TRIM(BE42)="", TRIM(BJ42)=""),"",Q42+V42+AA42+AF42+AK42+AP42+AU42+AZ42+BE42+BJ42) -> 49046.172 | BS42: =IF(TRIM(BR42)="", "", IF(VLOOKUP(BR42,'Footnotes list'!$D$9:$E$58,2,FALSE)=0,"",VLOOKUP(BR42,'Footnotes list'!$D$9:$E$58,2,FALSE) ) ) ->  | BT42: 79.438 | BX42: =IF(TRIM(BW42)="", "", IF(VLOOKUP(BW42,'Footnotes list'!$D$9:$E$58,2,FALSE)=0,"",VLOOKUP(BW42,'Footnotes list'!$D$9:$E$58,2,FALSE) ) ) ->  | BY42: 28.024 | CC42: =IF(TRIM(CB42)="", "", IF(VLOOKUP(CB42,'Footnotes list'!$D$9:$E$58,2,FALSE)=0,"",VLOOKUP(CB42,'Footnotes list'!$D$9:$E$58,2,FALSE) ) ) ->  | CD42: 274004.332 | CH42: =IF(TRIM(CG42)="", "", IF(VLOOKUP(CG42,'Footnotes list'!$D$9:$E$58,2,FALSE)=0,"",VLOOKUP(CG42,'Footnotes list'!$D$9:$E$58,2,FALSE) ) ) ->  | CI42: =IF(AND(TRIM(BY42)="",TRIM(CD42)=""),"",BY42+CD42) -> 274032.356 | CM42: =IF(TRIM(CL42)="", "", IF(VLOOKUP(CL42,'Footnotes list'!$D$9:$E$58,2,FALSE)=0,"",VLOOKUP(CL42,'Footnotes list'!$D$9:$E$58,2,FALSE) ) ) ->  | CN42: 218.09 | CR42: =IF(TRIM(CQ42)="", "", IF(VLOOKUP(CQ42,'Footnotes list'!$D$9:$E$58,2,FALSE)=0,"",VLOOKUP(CQ42,'Footnotes list'!$D$9:$E$58,2,FALSE) ) ) ->  | CS42: 163129.522 | CW42: =IF(TRIM(CV42)="", "", IF(VLOOKUP(CV42,'Footnotes list'!$D$9:$E$58,2,FALSE)=0,"",VLOOKUP(CV42,'Footnotes list'!$D$9:$E$58,2,FALSE) ) ) ->  | CX42: 1695.194 | DB42: =IF(TRIM(DA42)="", "", IF(VLOOKUP(DA42,'Footnotes list'!$D$9:$E$58,2,FALSE)=0,"",VLOOKUP(DA42,'Footnotes list'!$D$9:$E$58,2,FALSE) ) ) ->  | DC42: 93078.846 | DG42: =IF(TRIM(DF42)="", "", IF(VLOOKUP(DF42,'Footnotes list'!$D$9:$E$58,2,FALSE)=0,"",VLOOKUP(DF42,'Footnotes list'!$D$9:$E$58,2,FALSE) ) ) ->  | DH42: =IF(AND(TRIM(G42)="",TRIM(L42)="",TRIM(BO42)="",TRIM(BT42)="",TRIM(CI42)="",TRIM(CN42)="",TRIM(CS42)="",TRIM(CX42)="",TRIM(DC42)=""),"",SUM(G42,L42,BO42,BT42,CI42,CN42,CS42,CX42,DC42)) -> 582445.002 | DL42: =IF(TRIM(DK42)="", "", IF(VLOOKUP(DK42,'Footnotes list'!$D$9:$E$58,2,FALSE)=0,"",VLOOKUP(DK42,'Footnotes list'!$D$9:$E$58,2,FALSE) ) ) -> 
C43: W072 | E43: HAZ_NHAZ | F43: Total | G43: =IF(AND(TRIM(G41)="",TRIM(G42)=""),"",G41+G42) -> 1099.675 | K43: =IF(TRIM(J43)="", "", IF(VLOOKUP(J43,'Footnotes list'!$D$9:$E$58,2,FALSE)=0,"",VLOOKUP(J43,'Footnotes list'!$D$9:$E$58,2,FALSE) ) ) ->  | L43: =IF(AND(TRIM(L41)="",TRIM(L42)=""),"",L41+L42) -> 65.709 | P43: =IF(TRIM(O43)="", "", IF(VLOOKUP(O43,'Footnotes list'!$D$9:$E$58,2,FALSE)=0,"",VLOOKUP(O43,'Footnotes list'!$D$9:$E$58,2,FALSE) ) ) ->  | Q43: =IF(AND(TRIM(Q41)="",TRIM(Q42)=""),"",Q41+Q42) -> 10533.758 | U43: =IF(TRIM(T43)="", "", IF(VLOOKUP(T43,'Footnotes list'!$D$9:$E$58,2,FALSE)=0,"",VLOOKUP(T43,'Footnotes list'!$D$9:$E$58,2,FALSE) ) ) ->  | V43: =IF(AND(TRIM(V41)="",TRIM(V42)=""),"",V41+V42) -> 1311.782 | Z43: =IF(TRIM(Y43)="", "", IF(VLOOKUP(Y43,'Footnotes list'!$D$9:$E$58,2,FALSE)=0,"",VLOOKUP(Y43,'Footnotes list'!$D$9:$E$58,2,FALSE) ) ) ->  | AA43: =IF(AND(TRIM(AA41)="",TRIM(AA42)=""),"",AA41+AA42) -> 148.971 | AE43: =IF(TRIM(AD43)="", "", IF(VLOOKUP(AD43,'Footnotes list'!$D$9:$E$58,2,FALSE)=0,"",VLOOKUP(AD43,'Footnotes list'!$D$9:$E$58,2,FALSE) ) ) ->  | AF43: =IF(AND(TRIM(AF41)="",TRIM(AF42)=""),"",AF41+AF42) -> 29247.39 | AJ43: =IF(TRIM(AI43)="", "", IF(VLOOKUP(AI43,'Footnotes list'!$D$9:$E$58,2,FALSE)=0,"",VLOOKUP(AI43,'Footnotes list'!$D$9:$E$58,2,FALSE) ) ) ->  | AK43: =IF(AND(TRIM(AK41)="",TRIM(AK42)=""),"",AK41+AK42) -> 159.73 | AO43: =IF(TRIM(AN43)="", "", IF(VLOOKUP(AN43,'Footnotes list'!$D$9:$E$58,2,FALSE)=0,"",VLOOKUP(AN43,'Footnotes list'!$D$9:$E$58,2,FALSE) ) ) ->  | AP43: =IF(AND(TRIM(AP41)="",TRIM(AP42)=""),"",AP41+AP42) -> 3419.979 | AT43: =IF(TRIM(AS43)="", "", IF(VLOOKUP(AS43,'Footnotes list'!$D$9:$E$58,2,FALSE)=0,"",VLOOKUP(AS43,'Footnotes list'!$D$9:$E$58,2,FALSE) ) ) ->  | AU43: =IF(AND(TRIM(AU41)="",TRIM(AU42)=""),"",AU41+AU42) -> 408.46 | AY43: =IF(TRIM(AX43)="", "", IF(VLOOKUP(AX43,'Footnotes list'!$D$9:$E$58,2,FALSE)=0,"",VLOOKUP(AX43,'Footnotes list'!$D$9:$E$58,2,FALSE) ) ) ->  | AZ43: =IF(AND(TRIM(AZ41)="",TRIM(AZ42)=""),"",AZ41+AZ42) -> 1166.228 | BD43: =IF(TRIM(BC43)="", "", IF(VLOOKUP(BC43,'Footnotes list'!$D$9:$E$58,2,FALSE)=0,"",VLOOKUP(BC43,'Footnotes list'!$D$9:$E$58,2,FALSE) ) ) ->  | BE43: =IF(AND(TRIM(BE41)="",TRIM(BE42)=""),"",BE41+BE42) -> 1842.999 | BI43: =IF(TRIM(BH43)="", "", IF(VLOOKUP(BH43,'Footnotes list'!$D$9:$E$58,2,FALSE)=0,"",VLOOKUP(BH43,'Footnotes list'!$D$9:$E$58,2,FALSE) ) ) ->  | BJ43: =IF(AND(TRIM(BJ41)="",TRIM(BJ42)=""),"",BJ41+BJ42) -> 806.875 | BN43: =IF(TRIM(BM43)="", "", IF(VLOOKUP(BM43,'Footnotes list'!$D$9:$E$58,2,FALSE)=0,"",VLOOKUP(BM43,'Footnotes list'!$D$9:$E$58,2,FALSE) ) ) ->  | BO43: =IF(AND(TRIM(BO41)="", TRIM(BO42)=""), "", (IF(ISNUMBER(BO41),BO41,0)+IF(ISNUMBER(BO42),BO42,0))) -> 49046.172 | BS43: =IF(TRIM(BR43)="", "", IF(VLOOKUP(BR43,'Footnotes list'!$D$9:$E$58,2,FALSE)=0,"",VLOOKUP(BR43,'Footnotes list'!$D$9:$E$58,2,FALSE) ) ) ->  | BT43: =IF(AND(TRIM(BT41)="",TRIM(BT42)=""),"",BT41+BT42) -> 79.438 | BX43: =IF(TRIM(BW43)="", "", IF(VLOOKUP(BW43,'Footnotes list'!$D$9:$E$58,2,FALSE)=0,"",VLOOKUP(BW43,'Footnotes list'!$D$9:$E$58,2,FALSE) ) ) ->  | BY43: =IF(AND(TRIM(BY41)="",TRIM(BY42)=""),"",BY41+BY42) -> 28.024 | CC43: =IF(TRIM(CB43)="", "", IF(VLOOKUP(CB43,'Footnotes list'!$D$9:$E$58,2,FALSE)=0,"",VLOOKUP(CB43,'Footnotes list'!$D$9:$E$58,2,FALSE) ) ) ->  | CD43: =IF(AND(TRIM(CD41)="",TRIM(CD42)=""),"",CD41+CD42) -> 274004.332 | CH43: =IF(TRIM(CG43)="", "", IF(VLOOKUP(CG43,'Footnotes list'!$D$9:$E$58,2,FALSE)=0,"",VLOOKUP(CG43,'Footnotes list'!$D$9:$E$58,2,FALSE) ) ) ->  | CI43: =IF(AND(TRIM(CI41)="", TRIM(CI42)=""), "", (IF(ISNUMBER(CI41),CI41,0)+IF(ISNUMBER(CI42),CI42,0))) -> 274032.356 | CM43: =IF(TRIM(CL43)="", "", IF(VLOOKUP(CL43,'Footnotes list'!$D$9:$E$58,2,FALSE)=0,"",VLOOKUP(CL43,'Footnotes list'!$D$9:$E$58,2,FALSE) ) ) ->  | CN43: =IF(AND(TRIM(CN41)="",TRIM(CN42)=""),"",CN41+CN42) -> 218.09 | CR43: =IF(TRIM(CQ43)="", "", IF(VLOOKUP(CQ43,'Footnotes list'!$D$9:$E$58,2,FALSE)=0,"",VLOOKUP(CQ43,'Footnotes list'!$D$9:$E$58,2,FALSE) ) ) ->  | CS43: =IF(AND(TRIM(CS41)="",TRIM(CS42)=""),"",CS41+CS42) -> 163129.522 | CW43: =IF(TRIM(CV43)="", "", IF(VLOOKUP(CV43,'Footnotes list'!$D$9:$E$58,2,FALSE)=0,"",VLOOKUP(CV43,'Footnotes list'!$D$9:$E$58,2,FALSE) ) ) ->  | CX43: =IF(AND(TRIM(CX41)="",TRIM(CX42)=""),"",CX41+CX42) -> 1695.194 | DB43: =IF(TRIM(DA43)="", "", IF(VLOOKUP(DA43,'Footnotes list'!$D$9:$E$58,2,FALSE)=0,"",VLOOKUP(DA43,'Footnotes list'!$D$9:$E$58,2,FALSE) ) ) ->  | DC43: =IF(AND(TRIM(DC41)="",TRIM(DC42)=""),"",DC41+DC42) -> 93078.846 | DG43: =IF(TRIM(DF43)="", "", IF(VLOOKUP(DF43,'Footnotes list'!$D$9:$E$58,2,FALSE)=0,"",VLOOKUP(DF43,'Footnotes list'!$D$9:$E$58,2,FALSE) ) ) ->  | DH43: =IF(AND(TRIM(DH41)="", TRIM(DH42)=""), "", SUM(DH41,DH42) ) -> 582445.002 | DL43: =IF(TRIM(DK43)="", "", IF(VLOOKUP(DK43,'Footnotes list'!$D$9:$E$58,2,FALSE)=0,"",VLOOKUP(DK43,'Footnotes list'!$D$9:$E$58,2,FALSE) ) ) -> 
B44: W073 | D44: Rubber wastes | F44: Not applicable
C45: W073 | E45: NHAZ | F45: Non-hazardous | G45: 196.755 | K45: =IF(TRIM(J45)="", "", IF(VLOOKUP(J45,'Footnotes list'!$D$9:$E$58,2,FALSE)=0,"",VLOOKUP(J45,'Footnotes list'!$D$9:$E$58,2,FALSE) ) ) ->  | L45: 43.393 | P45: =IF(TRIM(O45)="", "", IF(VLOOKUP(O45,'Footnotes list'!$D$9:$E$58,2,FALSE)=0,"",VLOOKUP(O45,'Footnotes list'!$D$9:$E$58,2,FALSE) ) ) ->  | Q45: 39.276 | U45: =IF(TRIM(T45)="", "", IF(VLOOKUP(T45,'Footnotes list'!$D$9:$E$58,2,FALSE)=0,"",VLOOKUP(T45,'Footnotes list'!$D$9:$E$58,2,FALSE) ) ) ->  | V45: 0.87 | Z45: =IF(TRIM(Y45)="", "", IF(VLOOKUP(Y45,'Footnotes list'!$D$9:$E$58,2,FALSE)=0,"",VLOOKUP(Y45,'Footnotes list'!$D$9:$E$58,2,FALSE) ) ) ->  | AA45: 19.448 | AE45: =IF(TRIM(AD45)="", "", IF(VLOOKUP(AD45,'Footnotes list'!$D$9:$E$58,2,FALSE)=0,"",VLOOKUP(AD45,'Footnotes list'!$D$9:$E$58,2,FALSE) ) ) ->  | AF45: 0.566 | AJ45: =IF(TRIM(AI45)="", "", IF(VLOOKUP(AI45,'Footnotes list'!$D$9:$E$58,2,FALSE)=0,"",VLOOKUP(AI45,'Footnotes list'!$D$9:$E$58,2,FALSE) ) ) ->  | AK45: 0 | AO45: =IF(TRIM(AN45)="", "", IF(VLOOKUP(AN45,'Footnotes list'!$D$9:$E$58,2,FALSE)=0,"",VLOOKUP(AN45,'Footnotes list'!$D$9:$E$58,2,FALSE) ) ) ->  | AP45: 2485.872 | AT45: =IF(TRIM(AS45)="", "", IF(VLOOKUP(AS45,'Footnotes list'!$D$9:$E$58,2,FALSE)=0,"",VLOOKUP(AS45,'Footnotes list'!$D$9:$E$58,2,FALSE) ) ) ->  | AU45: 109.976 | AY45: =IF(TRIM(AX45)="", "", IF(VLOOKUP(AX45,'Footnotes list'!$D$9:$E$58,2,FALSE)=0,"",VLOOKUP(AX45,'Footnotes list'!$D$9:$E$58,2,FALSE) ) ) ->  | AZ45: 78.131 | BD45: =IF(TRIM(BC45)="", "", IF(VLOOKUP(BC45,'Footnotes list'!$D$9:$E$58,2,FALSE)=0,"",VLOOKUP(BC45,'Footnotes list'!$D$9:$E$58,2,FALSE) ) ) ->  | BE45: 77.136 | BI45: =IF(TRIM(BH45)="", "", IF(VLOOKUP(BH45,'Footnotes list'!$D$9:$E$58,2,FALSE)=0,"",VLOOKUP(BH45,'Footnotes list'!$D$9:$E$58,2,FALSE) ) ) ->  | BJ45: 92.681 | BN45: =IF(TRIM(BM45)="", "", IF(VLOOKUP(BM45,'Footnotes list'!$D$9:$E$58,2,FALSE)=0,"",VLOOKUP(BM45,'Footnotes list'!$D$9:$E$58,2,FALSE) ) ) ->  | BO45: =IF(AND(TRIM(Q45)="",TRIM(V45)="",TRIM(AA45)="", TRIM(AF45)="", TRIM(AK45)="", TRIM(AP45)="", TRIM(AU45)="", TRIM(AZ45)="", TRIM(BE45)="", TRIM(BJ45)=""),"",Q45+V45+AA45+AF45+AK45+AP45+AU45+AZ45+BE45+BJ45) -> 2903.956 | BS45: =IF(TRIM(BR45)="", "", IF(VLOOKUP(BR45,'Footnotes list'!$D$9:$E$58,2,FALSE)=0,"",VLOOKUP(BR45,'Footnotes list'!$D$9:$E$58,2,FALSE) ) ) ->  | BT45: 16.818 | BX45: =IF(TRIM(BW45)="", "", IF(VLOOKUP(BW45,'Footnotes list'!$D$9:$E$58,2,FALSE)=0,"",VLOOKUP(BW45,'Footnotes list'!$D$9:$E$58,2,FALSE) ) ) ->  | BY45: 9.24 | CC45: =IF(TRIM(CB45)="", "", IF(VLOOKUP(CB45,'Footnotes list'!$D$9:$E$58,2,FALSE)=0,"",VLOOKUP(CB45,'Footnotes list'!$D$9:$E$58,2,FALSE) ) ) ->  | CD45: 1905.696 | CH45: =IF(TRIM(CG45)="", "", IF(VLOOKUP(CG45,'Footnotes list'!$D$9:$E$58,2,FALSE)=0,"",VLOOKUP(CG45,'Footnotes list'!$D$9:$E$58,2,FALSE) ) ) ->  | CI45: =IF(AND(TRIM(BY45)="",TRIM(CD45)=""),"",BY45+CD45) -> 1914.936 | CM45: =IF(TRIM(CL45)="", "", IF(VLOOKUP(CL45,'Footnotes list'!$D$9:$E$58,2,FALSE)=0,"",VLOOKUP(CL45,'Footnotes list'!$D$9:$E$58,2,FALSE) ) ) ->  | CN45: 219.771 | CR45: =IF(TRIM(CQ45)="", "", IF(VLOOKUP(CQ45,'Footnotes list'!$D$9:$E$58,2,FALSE)=0,"",VLOOKUP(CQ45,'Footnotes list'!$D$9:$E$58,2,FALSE) ) ) ->  | CS45: 21466.359 | CW45: =IF(TRIM(CV45)="", "", IF(VLOOKUP(CV45,'Footnotes list'!$D$9:$E$58,2,FALSE)=0,"",VLOOKUP(CV45,'Footnotes list'!$D$9:$E$58,2,FALSE) ) ) ->  | CX45: 2.085 | DB45: =IF(TRIM(DA45)="", "", IF(VLOOKUP(DA45,'Footnotes list'!$D$9:$E$58,2,FALSE)=0,"",VLOOKUP(DA45,'Footnotes list'!$D$9:$E$58,2,FALSE) ) ) ->  | DC45: 2634.836 | DG45: =IF(TRIM(DF45)="", "", IF(VLOOKUP(DF45,'Footnotes list'!$D$9:$E$58,2,FALSE)=0,"",VLOOKUP(DF45,'Footnotes list'!$D$9:$E$58,2,FALSE) ) ) ->  | DH45: =IF(AND(TRIM(G45)="",TRIM(L45)="",TRIM(BO45)="",TRIM(BT45)="",TRIM(CI45)="",TRIM(CN45)="",TRIM(CS45)="",TRIM(CX45)="",TRIM(DC45)=""),"",SUM(G45,L45,BO45,BT45,CI45,CN45,CS45,CX45,DC45)) -> 29398.909 | DL45: =IF(TRIM(DK45)="", "", IF(VLOOKUP(DK45,'Footnotes list'!$D$9:$E$58,2,FALSE)=0,"",VLOOKUP(DK45,'Footnotes list'!$D$9:$E$58,2,FALSE) ) ) -> 
C46: W073 | E46: HAZ_NHAZ | F46: Total | G46: =IF(AND(TRIM(G44)="",TRIM(G45)=""),"",G44+G45) -> 196.755 | K46: =IF(TRIM(J46)="", "", IF(VLOOKUP(J46,'Footnotes list'!$D$9:$E$58,2,FALSE)=0,"",VLOOKUP(J46,'Footnotes list'!$D$9:$E$58,2,FALSE) ) ) ->  | L46: =IF(AND(TRIM(L44)="",TRIM(L45)=""),"",L44+L45) -> 43.393 | P46: =IF(TRIM(O46)="", "", IF(VLOOKUP(O46,'Footnotes list'!$D$9:$E$58,2,FALSE)=0,"",VLOOKUP(O46,'Footnotes list'!$D$9:$E$58,2,FALSE) ) ) ->  | Q46: =IF(AND(TRIM(Q44)="",TRIM(Q45)=""),"",Q44+Q45) -> 39.276 | U46: =IF(TRIM(T46)="", "", IF(VLOOKUP(T46,'Footnotes list'!$D$9:$E$58,2,FALSE)=0,"",VLOOKUP(T46,'Footnotes list'!$D$9:$E$58,2,FALSE) ) ) ->  | V46: =IF(AND(TRIM(V44)="",TRIM(V45)=""),"",V44+V45) -> 0.87 | Z46: =IF(TRIM(Y46)="", "", IF(VLOOKUP(Y46,'Footnotes list'!$D$9:$E$58,2,FALSE)=0,"",VLOOKUP(Y46,'Footnotes list'!$D$9:$E$58,2,FALSE) ) ) ->  | AA46: =IF(AND(TRIM(AA44)="",TRIM(AA45)=""),"",AA44+AA45) -> 19.448 | AE46: =IF(TRIM(AD46)="", "", IF(VLOOKUP(AD46,'Footnotes list'!$D$9:$E$58,2,FALSE)=0,"",VLOOKUP(AD46,'Footnotes list'!$D$9:$E$58,2,FALSE) ) ) ->  | AF46: =IF(AND(TRIM(AF44)="",TRIM(AF45)=""),"",AF44+AF45) -> 0.566 | AJ46: =IF(TRIM(AI46)="", "", IF(VLOOKUP(AI46,'Footnotes list'!$D$9:$E$58,2,FALSE)=0,"",VLOOKUP(AI46,'Footnotes list'!$D$9:$E$58,2,FALSE) ) ) ->  | AK46: =IF(AND(TRIM(AK44)="",TRIM(AK45)=""),"",AK44+AK45) -> 0 | AO46: =IF(TRIM(AN46)="", "", IF(VLOOKUP(AN46,'Footnotes list'!$D$9:$E$58,2,FALSE)=0,"",VLOOKUP(AN46,'Footnotes list'!$D$9:$E$58,2,FALSE) ) ) ->  | AP46: =IF(AND(TRIM(AP44)="",TRIM(AP45)=""),"",AP44+AP45) -> 2485.872 | AT46: =IF(TRIM(AS46)="", "", IF(VLOOKUP(AS46,'Footnotes list'!$D$9:$E$58,2,FALSE)=0,"",VLOOKUP(AS46,'Footnotes list'!$D$9:$E$58,2,FALSE) ) ) ->  | AU46: =IF(AND(TRIM(AU44)="",TRIM(AU45)=""),"",AU44+AU45) -> 109.976 | AY46: =IF(TRIM(AX46)="", "", IF(VLOOKUP(AX46,'Footnotes list'!$D$9:$E$58,2,FALSE)=0,"",VLOOKUP(AX46,'Footnotes list'!$D$9:$E$58,2,FALSE) ) ) ->  | AZ46: =IF(AND(TRIM(AZ44)="",TRIM(AZ45)=""),"",AZ44+AZ45) -> 78.131 | BD46: =IF(TRIM(BC46)="", "", IF(VLOOKUP(BC46,'Footnotes list'!$D$9:$E$58,2,FALSE)=0,"",VLOOKUP(BC46,'Footnotes list'!$D$9:$E$58,2,FALSE) ) ) ->  | BE46: =IF(AND(TRIM(BE44)="",TRIM(BE45)=""),"",BE44+BE45) -> 77.136 | BI46: =IF(TRIM(BH46)="", "", IF(VLOOKUP(BH46,'Footnotes list'!$D$9:$E$58,2,FALSE)=0,"",VLOOKUP(BH46,'Footnotes list'!$D$9:$E$58,2,FALSE) ) ) ->  | BJ46: =IF(AND(TRIM(BJ44)="",TRIM(BJ45)=""),"",BJ44+BJ45) -> 92.681 | BN46: =IF(TRIM(BM46)="", "", IF(VLOOKUP(BM46,'Footnotes list'!$D$9:$E$58,2,FALSE)=0,"",VLOOKUP(BM46,'Footnotes list'!$D$9:$E$58,2,FALSE) ) ) ->  | BO46: =IF(AND(TRIM(BO44)="", TRIM(BO45)=""), "", (IF(ISNUMBER(BO44),BO44,0)+IF(ISNUMBER(BO45),BO45,0))) -> 2903.956 | BS46: =IF(TRIM(BR46)="", "", IF(VLOOKUP(BR46,'Footnotes list'!$D$9:$E$58,2,FALSE)=0,"",VLOOKUP(BR46,'Footnotes list'!$D$9:$E$58,2,FALSE) ) ) ->  | BT46: =IF(AND(TRIM(BT44)="",TRIM(BT45)=""),"",BT44+BT45) -> 16.818 | BX46: =IF(TRIM(BW46)="", "", IF(VLOOKUP(BW46,'Footnotes list'!$D$9:$E$58,2,FALSE)=0,"",VLOOKUP(BW46,'Footnotes list'!$D$9:$E$58,2,FALSE) ) ) ->  | BY46: =IF(AND(TRIM(BY44)="",TRIM(BY45)=""),"",BY44+BY45) -> 9.24 | CC46: =IF(TRIM(CB46)="", "", IF(VLOOKUP(CB46,'Footnotes list'!$D$9:$E$58,2,FALSE)=0,"",VLOOKUP(CB46,'Footnotes list'!$D$9:$E$58,2,FALSE) ) ) ->  | CD46: =IF(AND(TRIM(CD44)="",TRIM(CD45)=""),"",CD44+CD45) -> 1905.696 | CH46: =IF(TRIM(CG46)="", "", IF(VLOOKUP(CG46,'Footnotes list'!$D$9:$E$58,2,FALSE)=0,"",VLOOKUP(CG46,'Footnotes list'!$D$9:$E$58,2,FALSE) ) ) ->  | CI46: =IF(AND(TRIM(CI44)="", TRIM(CI45)=""), "", (IF(ISNUMBER(CI44),CI44,0)+IF(ISNUMBER(CI45),CI45,0))) -> 1914.936 | CM46: =IF(TRIM(CL46)="", "", IF(VLOOKUP(CL46,'Footnotes list'!$D$9:$E$58,2,FALSE)=0,"",VLOOKUP(CL46,'Footnotes list'!$D$9:$E$58,2,FALSE) ) ) ->  | CN46: =IF(AND(TRIM(CN44)="",TRIM(CN45)=""),"",CN44+CN45) -> 219.771 | CR46: =IF(TRIM(CQ46)="", "", IF(VLOOKUP(CQ46,'Footnotes list'!$D$9:$E$58,2,FALSE)=0,"",VLOOKUP(CQ46,'Footnotes list'!$D$9:$E$58,2,FALSE) ) ) ->  | CS46: =IF(AND(TRIM(CS44)="",TRIM(CS45)=""),"",CS44+CS45) -> 21466.359 | CW46: =IF(TRIM(CV46)="", "", IF(VLOOKUP(CV46,'Footnotes list'!$D$9:$E$58,2,FALSE)=0,"",VLOOKUP(CV46,'Footnotes list'!$D$9:$E$58,2,FALSE) ) ) ->  | CX46: =IF(AND(TRIM(CX44)="",TRIM(CX45)=""),"",CX44+CX45) -> 2.085 | DB46: =IF(TRIM(DA46)="", "", IF(VLOOKUP(DA46,'Footnotes list'!$D$9:$E$58,2,FALSE)=0,"",VLOOKUP(DA46,'Footnotes list'!$D$9:$E$58,2,FALSE) ) ) ->  | DC46: =IF(AND(TRIM(DC44)="",TRIM(DC45)=""),"",DC44+DC45) -> 2634.836 | DG46: =IF(TRIM(DF46)="", "", IF(VLOOKUP(DF46,'Footnotes list'!$D$9:$E$58,2,FALSE)=0,"",VLOOKUP(DF46,'Footnotes list'!$D$9:$E$58,2,FALSE) ) ) ->  | DH46: =IF(AND(TRIM(DH44)="", TRIM(DH45)=""), "", SUM(DH44,DH45) ) -> 29398.909 | DL46: =IF(TRIM(DK46)="", "", IF(VLOOKUP(DK46,'Footnotes list'!$D$9:$E$58,2,FALSE)=0,"",VLOOKUP(DK46,'Footnotes list'!$D$9:$E$58,2,FALSE) ) ) -> 
B47: W074 | D47: Plastic wastes | F47: Not applicable
C48: W074 | E48: NHAZ | F48: Non-hazardous | G48: 586.43 | K48: =IF(TRIM(J48)="", "", IF(VLOOKUP(J48,'Footnotes list'!$D$9:$E$58,2,FALSE)=0,"",VLOOKUP(J48,'Footnotes list'!$D$9:$E$58,2,FALSE) ) ) ->  | L48: 48.062 | P48: =IF(TRIM(O48)="", "", IF(VLOOKUP(O48,'Footnotes list'!$D$9:$E$58,2,FALSE)=0,"",VLOOKUP(O48,'Footnotes list'!$D$9:$E$58,2,FALSE) ) ) ->  | Q48: 3831.724 | U48: =IF(TRIM(T48)="", "", IF(VLOOKUP(T48,'Footnotes list'!$D$9:$E$58,2,FALSE)=0,"",VLOOKUP(T48,'Footnotes list'!$D$9:$E$58,2,FALSE) ) ) ->  | V48: 231.936 | Z48: =IF(TRIM(Y48)="", "", IF(VLOOKUP(Y48,'Footnotes list'!$D$9:$E$58,2,FALSE)=0,"",VLOOKUP(Y48,'Footnotes list'!$D$9:$E$58,2,FALSE) ) ) ->  | AA48: 185.643 | AE48: =IF(TRIM(AD48)="", "", IF(VLOOKUP(AD48,'Footnotes list'!$D$9:$E$58,2,FALSE)=0,"",VLOOKUP(AD48,'Footnotes list'!$D$9:$E$58,2,FALSE) ) ) ->  | AF48: 1165.053 | AJ48: =IF(TRIM(AI48)="", "", IF(VLOOKUP(AI48,'Footnotes list'!$D$9:$E$58,2,FALSE)=0,"",VLOOKUP(AI48,'Footnotes list'!$D$9:$E$58,2,FALSE) ) ) ->  | AK48: 12.5 | AO48: =IF(TRIM(AN48)="", "", IF(VLOOKUP(AN48,'Footnotes list'!$D$9:$E$58,2,FALSE)=0,"",VLOOKUP(AN48,'Footnotes list'!$D$9:$E$58,2,FALSE) ) ) ->  | AP48: 18293.517 | AT48: =IF(TRIM(AS48)="", "", IF(VLOOKUP(AS48,'Footnotes list'!$D$9:$E$58,2,FALSE)=0,"",VLOOKUP(AS48,'Footnotes list'!$D$9:$E$58,2,FALSE) ) ) ->  | AU48: 436.995 | AY48: =IF(TRIM(AX48)="", "", IF(VLOOKUP(AX48,'Footnotes list'!$D$9:$E$58,2,FALSE)=0,"",VLOOKUP(AX48,'Footnotes list'!$D$9:$E$58,2,FALSE) ) ) ->  | AZ48: 1466.177 | BD48: =IF(TRIM(BC48)="", "", IF(VLOOKUP(BC48,'Footnotes list'!$D$9:$E$58,2,FALSE)=0,"",VLOOKUP(BC48,'Footnotes list'!$D$9:$E$58,2,FALSE) ) ) ->  | BE48: 1605.036 | BI48: =IF(TRIM(BH48)="", "", IF(VLOOKUP(BH48,'Footnotes list'!$D$9:$E$58,2,FALSE)=0,"",VLOOKUP(BH48,'Footnotes list'!$D$9:$E$58,2,FALSE) ) ) ->  | BJ48: 680.109 | BN48: =IF(TRIM(BM48)="", "", IF(VLOOKUP(BM48,'Footnotes list'!$D$9:$E$58,2,FALSE)=0,"",VLOOKUP(BM48,'Footnotes list'!$D$9:$E$58,2,FALSE) ) ) ->  | BO48: =IF(AND(TRIM(Q48)="",TRIM(V48)="",TRIM(AA48)="", TRIM(AF48)="", TRIM(AK48)="", TRIM(AP48)="", TRIM(AU48)="", TRIM(AZ48)="", TRIM(BE48)="", TRIM(BJ48)=""),"",Q48+V48+AA48+AF48+AK48+AP48+AU48+AZ48+BE48+BJ48) -> 27908.69 | BS48: =IF(TRIM(BR48)="", "", IF(VLOOKUP(BR48,'Footnotes list'!$D$9:$E$58,2,FALSE)=0,"",VLOOKUP(BR48,'Footnotes list'!$D$9:$E$58,2,FALSE) ) ) ->  | BT48: 94.985 | BX48: =IF(TRIM(BW48)="", "", IF(VLOOKUP(BW48,'Footnotes list'!$D$9:$E$58,2,FALSE)=0,"",VLOOKUP(BW48,'Footnotes list'!$D$9:$E$58,2,FALSE) ) ) ->  | BY48: 17.09 | CC48: =IF(TRIM(CB48)="", "", IF(VLOOKUP(CB48,'Footnotes list'!$D$9:$E$58,2,FALSE)=0,"",VLOOKUP(CB48,'Footnotes list'!$D$9:$E$58,2,FALSE) ) ) ->  | CD48: 118161.652 | CH48: =IF(TRIM(CG48)="", "", IF(VLOOKUP(CG48,'Footnotes list'!$D$9:$E$58,2,FALSE)=0,"",VLOOKUP(CG48,'Footnotes list'!$D$9:$E$58,2,FALSE) ) ) ->  | CI48: =IF(AND(TRIM(BY48)="",TRIM(CD48)=""),"",BY48+CD48) -> 118178.742 | CM48: =IF(TRIM(CL48)="", "", IF(VLOOKUP(CL48,'Footnotes list'!$D$9:$E$58,2,FALSE)=0,"",VLOOKUP(CL48,'Footnotes list'!$D$9:$E$58,2,FALSE) ) ) ->  | CN48: 1763.173 | CR48: =IF(TRIM(CQ48)="", "", IF(VLOOKUP(CQ48,'Footnotes list'!$D$9:$E$58,2,FALSE)=0,"",VLOOKUP(CQ48,'Footnotes list'!$D$9:$E$58,2,FALSE) ) ) ->  | CS48: 44892.391 | CW48: =IF(TRIM(CV48)="", "", IF(VLOOKUP(CV48,'Footnotes list'!$D$9:$E$58,2,FALSE)=0,"",VLOOKUP(CV48,'Footnotes list'!$D$9:$E$58,2,FALSE) ) ) ->  | CX48: 371.002 | DB48: =IF(TRIM(DA48)="", "", IF(VLOOKUP(DA48,'Footnotes list'!$D$9:$E$58,2,FALSE)=0,"",VLOOKUP(DA48,'Footnotes list'!$D$9:$E$58,2,FALSE) ) ) ->  | DC48: 66931.693 | DG48: =IF(TRIM(DF48)="", "", IF(VLOOKUP(DF48,'Footnotes list'!$D$9:$E$58,2,FALSE)=0,"",VLOOKUP(DF48,'Footnotes list'!$D$9:$E$58,2,FALSE) ) ) ->  | DH48: =IF(AND(TRIM(G48)="",TRIM(L48)="",TRIM(BO48)="",TRIM(BT48)="",TRIM(CI48)="",TRIM(CN48)="",TRIM(CS48)="",TRIM(CX48)="",TRIM(DC48)=""),"",SUM(G48,L48,BO48,BT48,CI48,CN48,CS48,CX48,DC48)) -> 260775.168 | DL48: =IF(TRIM(DK48)="", "", IF(VLOOKUP(DK48,'Footnotes list'!$D$9:$E$58,2,FALSE)=0,"",VLOOKUP(DK48,'Footnotes list'!$D$9:$E$58,2,FALSE) ) ) -> 
C49: W074 | E49: HAZ_NHAZ | F49: Total | G49: =IF(AND(TRIM(G47)="",TRIM(G48)=""),"",G47+G48) -> 586.43 | K49: =IF(TRIM(J49)="", "", IF(VLOOKUP(J49,'Footnotes list'!$D$9:$E$58,2,FALSE)=0,"",VLOOKUP(J49,'Footnotes list'!$D$9:$E$58,2,FALSE) ) ) ->  | L49: =IF(AND(TRIM(L47)="",TRIM(L48)=""),"",L47+L48) -> 48.062 | P49: =IF(TRIM(O49)="", "", IF(VLOOKUP(O49,'Footnotes list'!$D$9:$E$58,2,FALSE)=0,"",VLOOKUP(O49,'Footnotes list'!$D$9:$E$58,2,FALSE) ) ) ->  | Q49: =IF(AND(TRIM(Q47)="",TRIM(Q48)=""),"",Q47+Q48) -> 3831.724 | U49: =IF(TRIM(T49)="", "", IF(VLOOKUP(T49,'Footnotes list'!$D$9:$E$58,2,FALSE)=0,"",VLOOKUP(T49,'Footnotes list'!$D$9:$E$58,2,FALSE) ) ) ->  | V49: =IF(AND(TRIM(V47)="",TRIM(V48)=""),"",V47+V48) -> 231.936 | Z49: =IF(TRIM(Y49)="", "", IF(VLOOKUP(Y49,'Footnotes list'!$D$9:$E$58,2,FALSE)=0,"",VLOOKUP(Y49,'Footnotes list'!$D$9:$E$58,2,FALSE) ) ) ->  | AA49: =IF(AND(TRIM(AA47)="",TRIM(AA48)=""),"",AA47+AA48) -> 185.643 | AE49: =IF(TRIM(AD49)="", "", IF(VLOOKUP(AD49,'Footnotes list'!$D$9:$E$58,2,FALSE)=0,"",VLOOKUP(AD49,'Footnotes list'!$D$9:$E$58,2,FALSE) ) ) ->  | AF49: =IF(AND(TRIM(AF47)="",TRIM(AF48)=""),"",AF47+AF48) -> 1165.053 | AJ49: =IF(TRIM(AI49)="", "", IF(VLOOKUP(AI49,'Footnotes list'!$D$9:$E$58,2,FALSE)=0,"",VLOOKUP(AI49,'Footnotes list'!$D$9:$E$58,2,FALSE) ) ) ->  | AK49: =IF(AND(TRIM(AK47)="",TRIM(AK48)=""),"",AK47+AK48) -> 12.5 | AO49: =IF(TRIM(AN49)="", "", IF(VLOOKUP(AN49,'Footnotes list'!$D$9:$E$58,2,FALSE)=0,"",VLOOKUP(AN49,'Footnotes list'!$D$9:$E$58,2,FALSE) ) ) ->  | AP49: =IF(AND(TRIM(AP47)="",TRIM(AP48)=""),"",AP47+AP48) -> 18293.517 | AT49: =IF(TRIM(AS49)="", "", IF(VLOOKUP(AS49,'Footnotes list'!$D$9:$E$58,2,FALSE)=0,"",VLOOKUP(AS49,'Footnotes list'!$D$9:$E$58,2,FALSE) ) ) ->  | AU49: =IF(AND(TRIM(AU47)="",TRIM(AU48)=""),"",AU47+AU48) -> 436.995 | AY49: =IF(TRIM(AX49)="", "", IF(VLOOKUP(AX49,'Footnotes list'!$D$9:$E$58,2,FALSE)=0,"",VLOOKUP(AX49,'Footnotes list'!$D$9:$E$58,2,FALSE) ) ) ->  | AZ49: =IF(AND(TRIM(AZ47)="",TRIM(AZ48)=""),"",AZ47+AZ48) -> 1466.177 | BD49: =IF(TRIM(BC49)="", "", IF(VLOOKUP(BC49,'Footnotes list'!$D$9:$E$58,2,FALSE)=0,"",VLOOKUP(BC49,'Footnotes list'!$D$9:$E$58,2,FALSE) ) ) ->  | BE49: =IF(AND(TRIM(BE47)="",TRIM(BE48)=""),"",BE47+BE48) -> 1605.036 | BI49: =IF(TRIM(BH49)="", "", IF(VLOOKUP(BH49,'Footnotes list'!$D$9:$E$58,2,FALSE)=0,"",VLOOKUP(BH49,'Footnotes list'!$D$9:$E$58,2,FALSE) ) ) ->  | BJ49: =IF(AND(TRIM(BJ47)="",TRIM(BJ48)=""),"",BJ47+BJ48) -> 680.109 | BN49: =IF(TRIM(BM49)="", "", IF(VLOOKUP(BM49,'Footnotes list'!$D$9:$E$58,2,FALSE)=0,"",VLOOKUP(BM49,'Footnotes list'!$D$9:$E$58,2,FALSE) ) ) ->  | BO49: =IF(AND(TRIM(BO47)="", TRIM(BO48)=""), "", (IF(ISNUMBER(BO47),BO47,0)+IF(ISNUMBER(BO48),BO48,0))) -> 27908.69 | BS49: =IF(TRIM(BR49)="", "", IF(VLOOKUP(BR49,'Footnotes list'!$D$9:$E$58,2,FALSE)=0,"",VLOOKUP(BR49,'Footnotes list'!$D$9:$E$58,2,FALSE) ) ) ->  | BT49: =IF(AND(TRIM(BT47)="",TRIM(BT48)=""),"",BT47+BT48) -> 94.985 | BX49: =IF(TRIM(BW49)="", "", IF(VLOOKUP(BW49,'Footnotes list'!$D$9:$E$58,2,FALSE)=0,"",VLOOKUP(BW49,'Footnotes list'!$D$9:$E$58,2,FALSE) ) ) ->  | BY49: =IF(AND(TRIM(BY47)="",TRIM(BY48)=""),"",BY47+BY48) -> 17.09 | CC49: =IF(TRIM(CB49)="", "", IF(VLOOKUP(CB49,'Footnotes list'!$D$9:$E$58,2,FALSE)=0,"",VLOOKUP(CB49,'Footnotes list'!$D$9:$E$58,2,FALSE) ) ) ->  | CD49: =IF(AND(TRIM(CD47)="",TRIM(CD48)=""),"",CD47+CD48) -> 118161.652 | CH49: =IF(TRIM(CG49)="", "", IF(VLOOKUP(CG49,'Footnotes list'!$D$9:$E$58,2,FALSE)=0,"",VLOOKUP(CG49,'Footnotes list'!$D$9:$E$58,2,FALSE) ) ) ->  | CI49: =IF(AND(TRIM(CI47)="", TRIM(CI48)=""), "", (IF(ISNUMBER(CI47),CI47,0)+IF(ISNUMBER(CI48),CI48,0))) -> 118178.742 | CM49: =IF(TRIM(CL49)="", "", IF(VLOOKUP(CL49,'Footnotes list'!$D$9:$E$58,2,FALSE)=0,"",VLOOKUP(CL49,'Footnotes list'!$D$9:$E$58,2,FALSE) ) ) ->  | CN49: =IF(AND(TRIM(CN47)="",TRIM(CN48)=""),"",CN47+CN48) -> 1763.173 | CR49: =IF(TRIM(CQ49)="", "", IF(VLOOKUP(CQ49,'Footnotes list'!$D$9:$E$58,2,FALSE)=0,"",VLOOKUP(CQ49,'Footnotes list'!$D$9:$E$58,2,FALSE) ) ) ->  | CS49: =IF(AND(TRIM(CS47)="",TRIM(CS48)=""),"",CS47+CS48) -> 44892.391 | CW49: =IF(TRIM(CV49)="", "", IF(VLOOKUP(CV49,'Footnotes list'!$D$9:$E$58,2,FALSE)=0,"",VLOOKUP(CV49,'Footnotes list'!$D$9:$E$58,2,FALSE) ) ) ->  | CX49: =IF(AND(TRIM(CX47)="",TRIM(CX48)=""),"",CX47+CX48) -> 371.002 | DB49: =IF(TRIM(DA49)="", "", IF(VLOOKUP(DA49,'Footnotes list'!$D$9:$E$58,2,FALSE)=0,"",VLOOKUP(DA49,'Footnotes list'!$D$9:$E$58,2,FALSE) ) ) ->  | DC49: =IF(AND(TRIM(DC47)="",TRIM(DC48)=""),"",DC47+DC48) -> 66931.693 | DG49: =IF(TRIM(DF49)="", "", IF(VLOOKUP(DF49,'Footnotes list'!$D$9:$E$58,2,FALSE)=0,"",VLOOKUP(DF49,'Footnotes list'!$D$9:$E$58,2,FALSE) ) ) ->  | DH49: =IF(AND(TRIM(DH47)="", TRIM(DH48)=""), "", SUM(DH47,DH48) ) -> 260775.168 | DL49: =IF(TRIM(DK49)="", "", IF(VLOOKUP(DK49,'Footnotes list'!$D$9:$E$58,2,FALSE)=0,"",VLOOKUP(DK49,'Footnotes list'!$D$9:$E$58,2,FALSE) ) ) -> 
B50: W075 | C50: W075 | D50: Wood wastes | E50: HAZ | F50: Hazardous | G50: 0 | K50: =IF(TRIM(J50)="", "", IF(VLOOKUP(J50,'Footnotes list'!$D$9:$E$58,2,FALSE)=0,"",VLOOKUP(J50,'Footnotes list'!$D$9:$E$58,2,FALSE) ) ) ->  | L50: 0 | P50: =IF(TRIM(O50)="", "", IF(VLOOKUP(O50,'Footnotes list'!$D$9:$E$58,2,FALSE)=0,"",VLOOKUP(O50,'Footnotes list'!$D$9:$E$58,2,FALSE) ) ) ->  | Q50: 0 | U50: =IF(TRIM(T50)="", "", IF(VLOOKUP(T50,'Footnotes list'!$D$9:$E$58,2,FALSE)=0,"",VLOOKUP(T50,'Footnotes list'!$D$9:$E$58,2,FALSE) ) ) ->  | V50: 0 | Z50: =IF(TRIM(Y50)="", "", IF(VLOOKUP(Y50,'Footnotes list'!$D$9:$E$58,2,FALSE)=0,"",VLOOKUP(Y50,'Footnotes list'!$D$9:$E$58,2,FALSE) ) ) ->  | AA50: 1.093 | AE50: =IF(TRIM(AD50)="", "", IF(VLOOKUP(AD50,'Footnotes list'!$D$9:$E$58,2,FALSE)=0,"",VLOOKUP(AD50,'Footnotes list'!$D$9:$E$58,2,FALSE) ) ) ->  | AF50: 0 | AJ50: =IF(TRIM(AI50)="", "", IF(VLOOKUP(AI50,'Footnotes list'!$D$9:$E$58,2,FALSE)=0,"",VLOOKUP(AI50,'Footnotes list'!$D$9:$E$58,2,FALSE) ) ) ->  | AK50: 0 | AO50: =IF(TRIM(AN50)="", "", IF(VLOOKUP(AN50,'Footnotes list'!$D$9:$E$58,2,FALSE)=0,"",VLOOKUP(AN50,'Footnotes list'!$D$9:$E$58,2,FALSE) ) ) ->  | AP50: 11.532 | AT50: =IF(TRIM(AS50)="", "", IF(VLOOKUP(AS50,'Footnotes list'!$D$9:$E$58,2,FALSE)=0,"",VLOOKUP(AS50,'Footnotes list'!$D$9:$E$58,2,FALSE) ) ) ->  | AU50: 0 | AY50: =IF(TRIM(AX50)="", "", IF(VLOOKUP(AX50,'Footnotes list'!$D$9:$E$58,2,FALSE)=0,"",VLOOKUP(AX50,'Footnotes list'!$D$9:$E$58,2,FALSE) ) ) ->  | AZ50: 1.57 | BD50: =IF(TRIM(BC50)="", "", IF(VLOOKUP(BC50,'Footnotes list'!$D$9:$E$58,2,FALSE)=0,"",VLOOKUP(BC50,'Footnotes list'!$D$9:$E$58,2,FALSE) ) ) ->  | BE50: 6.132 | BI50: =IF(TRIM(BH50)="", "", IF(VLOOKUP(BH50,'Footnotes list'!$D$9:$E$58,2,FALSE)=0,"",VLOOKUP(BH50,'Footnotes list'!$D$9:$E$58,2,FALSE) ) ) ->  | BJ50: 0.036 | BN50: =IF(TRIM(BM50)="", "", IF(VLOOKUP(BM50,'Footnotes list'!$D$9:$E$58,2,FALSE)=0,"",VLOOKUP(BM50,'Footnotes list'!$D$9:$E$58,2,FALSE) ) ) ->  | BO50: =IF(AND(TRIM(Q50)="",TRIM(V50)="",TRIM(AA50)="", TRIM(AF50)="", TRIM(AK50)="", TRIM(AP50)="", TRIM(AU50)="", TRIM(AZ50)="", TRIM(BE50)="", TRIM(BJ50)=""),"",Q50+V50+AA50+AF50+AK50+AP50+AU50+AZ50+BE50+BJ50) -> 20.363 | BS50: =IF(TRIM(BR50)="", "", IF(VLOOKUP(BR50,'Footnotes list'!$D$9:$E$58,2,FALSE)=0,"",VLOOKUP(BR50,'Footnotes list'!$D$9:$E$58,2,FALSE) ) ) ->  | BT50: 0 | BX50: =IF(TRIM(BW50)="", "", IF(VLOOKUP(BW50,'Footnotes list'!$D$9:$E$58,2,FALSE)=0,"",VLOOKUP(BW50,'Footnotes list'!$D$9:$E$58,2,FALSE) ) ) ->  | BY50: 0 | CC50: =IF(TRIM(CB50)="", "", IF(VLOOKUP(CB50,'Footnotes list'!$D$9:$E$58,2,FALSE)=0,"",VLOOKUP(CB50,'Footnotes list'!$D$9:$E$58,2,FALSE) ) ) ->  | CD50: 3.195 | CH50: =IF(TRIM(CG50)="", "", IF(VLOOKUP(CG50,'Footnotes list'!$D$9:$E$58,2,FALSE)=0,"",VLOOKUP(CG50,'Footnotes list'!$D$9:$E$58,2,FALSE) ) ) ->  | CI50: =IF(AND(TRIM(BY50)="",TRIM(CD50)=""),"",BY50+CD50) -> 3.195 | CM50: =IF(TRIM(CL50)="", "", IF(VLOOKUP(CL50,'Footnotes list'!$D$9:$E$58,2,FALSE)=0,"",VLOOKUP(CL50,'Footnotes list'!$D$9:$E$58,2,FALSE) ) ) ->  | CN50: 13.55 | CR50: =IF(TRIM(CQ50)="", "", IF(VLOOKUP(CQ50,'Footnotes list'!$D$9:$E$58,2,FALSE)=0,"",VLOOKUP(CQ50,'Footnotes list'!$D$9:$E$58,2,FALSE) ) ) ->  | CS50: 32.533 | CW50: =IF(TRIM(CV50)="", "", IF(VLOOKUP(CV50,'Footnotes list'!$D$9:$E$58,2,FALSE)=0,"",VLOOKUP(CV50,'Footnotes list'!$D$9:$E$58,2,FALSE) ) ) ->  | CX50: 0 | DB50: =IF(TRIM(DA50)="", "", IF(VLOOKUP(DA50,'Footnotes list'!$D$9:$E$58,2,FALSE)=0,"",VLOOKUP(DA50,'Footnotes list'!$D$9:$E$58,2,FALSE) ) ) ->  | DC50: 30.917 | DG50: =IF(TRIM(DF50)="", "", IF(VLOOKUP(DF50,'Footnotes list'!$D$9:$E$58,2,FALSE)=0,"",VLOOKUP(DF50,'Footnotes list'!$D$9:$E$58,2,FALSE) ) ) ->  | DH50: =IF(AND(TRIM(G50)="",TRIM(L50)="",TRIM(BO50)="",TRIM(BT50)="",TRIM(CI50)="",TRIM(CN50)="",TRIM(CS50)="",TRIM(CX50)="",TRIM(DC50)=""),"",SUM(G50,L50,BO50,BT50,CI50,CN50,CS50,CX50,DC50)) -> 100.558 | DL50: =IF(TRIM(DK50)="", "", IF(VLOOKUP(DK50,'Footnotes list'!$D$9:$E$58,2,FALSE)=0,"",VLOOKUP(DK50,'Footnotes list'!$D$9:$E$58,2,FALSE) ) ) -> 
C51: W075 | E51: NHAZ | F51: Non-hazardous | G51: 215.24 | K51: =IF(TRIM(J51)="", "", IF(VLOOKUP(J51,'Footnotes list'!$D$9:$E$58,2,FALSE)=0,"",VLOOKUP(J51,'Footnotes list'!$D$9:$E$58,2,FALSE) ) ) ->  | L51: 89.09 | P51: =IF(TRIM(O51)="", "", IF(VLOOKUP(O51,'Footnotes list'!$D$9:$E$58,2,FALSE)=0,"",VLOOKUP(O51,'Footnotes list'!$D$9:$E$58,2,FALSE) ) ) ->  | Q51: 1009.835 | U51: =IF(TRIM(T51)="", "", IF(VLOOKUP(T51,'Footnotes list'!$D$9:$E$58,2,FALSE)=0,"",VLOOKUP(T51,'Footnotes list'!$D$9:$E$58,2,FALSE) ) ) ->  | V51: 230.07 | Z51: =IF(TRIM(Y51)="", "", IF(VLOOKUP(Y51,'Footnotes list'!$D$9:$E$58,2,FALSE)=0,"",VLOOKUP(Y51,'Footnotes list'!$D$9:$E$58,2,FALSE) ) ) ->  | AA51: 43260.227 | AE51: =IF(TRIM(AD51)="", "", IF(VLOOKUP(AD51,'Footnotes list'!$D$9:$E$58,2,FALSE)=0,"",VLOOKUP(AD51,'Footnotes list'!$D$9:$E$58,2,FALSE) ) ) ->  | AF51: 260.002 | AJ51: =IF(TRIM(AI51)="", "", IF(VLOOKUP(AI51,'Footnotes list'!$D$9:$E$58,2,FALSE)=0,"",VLOOKUP(AI51,'Footnotes list'!$D$9:$E$58,2,FALSE) ) ) ->  | AK51: 99.11 | AO51: =IF(TRIM(AN51)="", "", IF(VLOOKUP(AN51,'Footnotes list'!$D$9:$E$58,2,FALSE)=0,"",VLOOKUP(AN51,'Footnotes list'!$D$9:$E$58,2,FALSE) ) ) ->  | AP51: 1475.884 | AT51: =IF(TRIM(AS51)="", "", IF(VLOOKUP(AS51,'Footnotes list'!$D$9:$E$58,2,FALSE)=0,"",VLOOKUP(AS51,'Footnotes list'!$D$9:$E$58,2,FALSE) ) ) ->  | AU51: 471.56 | AY51: =IF(TRIM(AX51)="", "", IF(VLOOKUP(AX51,'Footnotes list'!$D$9:$E$58,2,FALSE)=0,"",VLOOKUP(AX51,'Footnotes list'!$D$9:$E$58,2,FALSE) ) ) ->  | AZ51: 1468.623 | BD51: =IF(TRIM(BC51)="", "", IF(VLOOKUP(BC51,'Footnotes list'!$D$9:$E$58,2,FALSE)=0,"",VLOOKUP(BC51,'Footnotes list'!$D$9:$E$58,2,FALSE) ) ) ->  | BE51: 3195.339 | BI51: =IF(TRIM(BH51)="", "", IF(VLOOKUP(BH51,'Footnotes list'!$D$9:$E$58,2,FALSE)=0,"",VLOOKUP(BH51,'Footnotes list'!$D$9:$E$58,2,FALSE) ) ) ->  | BJ51: 8084.378 | BN51: =IF(TRIM(BM51)="", "", IF(VLOOKUP(BM51,'Footnotes list'!$D$9:$E$58,2,FALSE)=0,"",VLOOKUP(BM51,'Footnotes list'!$D$9:$E$58,2,FALSE) ) ) ->  | BO51: =IF(AND(TRIM(Q51)="",TRIM(V51)="",TRIM(AA51)="", TRIM(AF51)="", TRIM(AK51)="", TRIM(AP51)="", TRIM(AU51)="", TRIM(AZ51)="", TRIM(BE51)="", TRIM(BJ51)=""),"",Q51+V51+AA51+AF51+AK51+AP51+AU51+AZ51+BE51+BJ51) -> 59555.028 | BS51: =IF(TRIM(BR51)="", "", IF(VLOOKUP(BR51,'Footnotes list'!$D$9:$E$58,2,FALSE)=0,"",VLOOKUP(BR51,'Footnotes list'!$D$9:$E$58,2,FALSE) ) ) ->  | BT51: 787.048 | BX51: =IF(TRIM(BW51)="", "", IF(VLOOKUP(BW51,'Footnotes list'!$D$9:$E$58,2,FALSE)=0,"",VLOOKUP(BW51,'Footnotes list'!$D$9:$E$58,2,FALSE) ) ) ->  | BY51: 169.262 | CC51: =IF(TRIM(CB51)="", "", IF(VLOOKUP(CB51,'Footnotes list'!$D$9:$E$58,2,FALSE)=0,"",VLOOKUP(CB51,'Footnotes list'!$D$9:$E$58,2,FALSE) ) ) ->  | CD51: 61719.754 | CH51: =IF(TRIM(CG51)="", "", IF(VLOOKUP(CG51,'Footnotes list'!$D$9:$E$58,2,FALSE)=0,"",VLOOKUP(CG51,'Footnotes list'!$D$9:$E$58,2,FALSE) ) ) ->  | CI51: =IF(AND(TRIM(BY51)="",TRIM(CD51)=""),"",BY51+CD51) -> 61889.016 | CM51: =IF(TRIM(CL51)="", "", IF(VLOOKUP(CL51,'Footnotes list'!$D$9:$E$58,2,FALSE)=0,"",VLOOKUP(CL51,'Footnotes list'!$D$9:$E$58,2,FALSE) ) ) ->  | CN51: 17150.11 | CR51: =IF(TRIM(CQ51)="", "", IF(VLOOKUP(CQ51,'Footnotes list'!$D$9:$E$58,2,FALSE)=0,"",VLOOKUP(CQ51,'Footnotes list'!$D$9:$E$58,2,FALSE) ) ) ->  | CS51: 5407.993 | CW51: =IF(TRIM(CV51)="", "", IF(VLOOKUP(CV51,'Footnotes list'!$D$9:$E$58,2,FALSE)=0,"",VLOOKUP(CV51,'Footnotes list'!$D$9:$E$58,2,FALSE) ) ) ->  | CX51: 1246.55 | DB51: =IF(TRIM(DA51)="", "", IF(VLOOKUP(DA51,'Footnotes list'!$D$9:$E$58,2,FALSE)=0,"",VLOOKUP(DA51,'Footnotes list'!$D$9:$E$58,2,FALSE) ) ) ->  | DC51: 27110.035 | DG51: =IF(TRIM(DF51)="", "", IF(VLOOKUP(DF51,'Footnotes list'!$D$9:$E$58,2,FALSE)=0,"",VLOOKUP(DF51,'Footnotes list'!$D$9:$E$58,2,FALSE) ) ) ->  | DH51: =IF(AND(TRIM(G51)="",TRIM(L51)="",TRIM(BO51)="",TRIM(BT51)="",TRIM(CI51)="",TRIM(CN51)="",TRIM(CS51)="",TRIM(CX51)="",TRIM(DC51)=""),"",SUM(G51,L51,BO51,BT51,CI51,CN51,CS51,CX51,DC51)) -> 173450.11 | DL51: =IF(TRIM(DK51)="", "", IF(VLOOKUP(DK51,'Footnotes list'!$D$9:$E$58,2,FALSE)=0,"",VLOOKUP(DK51,'Footnotes list'!$D$9:$E$58,2,FALSE) ) ) -> 
C52: W075 | E52: HAZ_NHAZ | F52: Total | G52: =IF(AND(TRIM(G50)="",TRIM(G51)=""),"",G50+G51) -> 215.24 | K52: =IF(TRIM(J52)="", "", IF(VLOOKUP(J52,'Footnotes list'!$D$9:$E$58,2,FALSE)=0,"",VLOOKUP(J52,'Footnotes list'!$D$9:$E$58,2,FALSE) ) ) ->  | L52: =IF(AND(TRIM(L50)="",TRIM(L51)=""),"",L50+L51) -> 89.09 | P52: =IF(TRIM(O52)="", "", IF(VLOOKUP(O52,'Footnotes list'!$D$9:$E$58,2,FALSE)=0,"",VLOOKUP(O52,'Footnotes list'!$D$9:$E$58,2,FALSE) ) ) ->  | Q52: =IF(AND(TRIM(Q50)="",TRIM(Q51)=""),"",Q50+Q51) -> 1009.835 | U52: =IF(TRIM(T52)="", "", IF(VLOOKUP(T52,'Footnotes list'!$D$9:$E$58,2,FALSE)=0,"",VLOOKUP(T52,'Footnotes list'!$D$9:$E$58,2,FALSE) ) ) ->  | V52: =IF(AND(TRIM(V50)="",TRIM(V51)=""),"",V50+V51) -> 230.07 | Z52: =IF(TRIM(Y52)="", "", IF(VLOOKUP(Y52,'Footnotes list'!$D$9:$E$58,2,FALSE)=0,"",VLOOKUP(Y52,'Footnotes list'!$D$9:$E$58,2,FALSE) ) ) ->  | AA52: =IF(AND(TRIM(AA50)="",TRIM(AA51)=""),"",AA50+AA51) -> 43261.32 | AE52: =IF(TRIM(AD52)="", "", IF(VLOOKUP(AD52,'Footnotes list'!$D$9:$E$58,2,FALSE)=0,"",VLOOKUP(AD52,'Footnotes list'!$D$9:$E$58,2,FALSE) ) ) ->  | AF52: =IF(AND(TRIM(AF50)="",TRIM(AF51)=""),"",AF50+AF51) -> 260.002 | AJ52: =IF(TRIM(AI52)="", "", IF(VLOOKUP(AI52,'Footnotes list'!$D$9:$E$58,2,FALSE)=0,"",VLOOKUP(AI52,'Footnotes list'!$D$9:$E$58,2,FALSE) ) ) ->  | AK52: =IF(AND(TRIM(AK50)="",TRIM(AK51)=""),"",AK50+AK51) -> 99.11 | AO52: =IF(TRIM(AN52)="", "", IF(VLOOKUP(AN52,'Footnotes list'!$D$9:$E$58,2,FALSE)=0,"",VLOOKUP(AN52,'Footnotes list'!$D$9:$E$58,2,FALSE) ) ) ->  | AP52: =IF(AND(TRIM(AP50)="",TRIM(AP51)=""),"",AP50+AP51) -> 1487.416 | AT52: =IF(TRIM(AS52)="", "", IF(VLOOKUP(AS52,'Footnotes list'!$D$9:$E$58,2,FALSE)=0,"",VLOOKUP(AS52,'Footnotes list'!$D$9:$E$58,2,FALSE) ) ) ->  | AU52: =IF(AND(TRIM(AU50)="",TRIM(AU51)=""),"",AU50+AU51) -> 471.56 | AY52: =IF(TRIM(AX52)="", "", IF(VLOOKUP(AX52,'Footnotes list'!$D$9:$E$58,2,FALSE)=0,"",VLOOKUP(AX52,'Footnotes list'!$D$9:$E$58,2,FALSE) ) ) ->  | AZ52: =IF(AND(TRIM(AZ50)="",TRIM(AZ51)=""),"",AZ50+AZ51) -> 1470.193 | BD52: =IF(TRIM(BC52)="", "", IF(VLOOKUP(BC52,'Footnotes list'!$D$9:$E$58,2,FALSE)=0,"",VLOOKUP(BC52,'Footnotes list'!$D$9:$E$58,2,FALSE) ) ) ->  | BE52: =IF(AND(TRIM(BE50)="",TRIM(BE51)=""),"",BE50+BE51) -> 3201.471 | BI52: =IF(TRIM(BH52)="", "", IF(VLOOKUP(BH52,'Footnotes list'!$D$9:$E$58,2,FALSE)=0,"",VLOOKUP(BH52,'Footnotes list'!$D$9:$E$58,2,FALSE) ) ) ->  | BJ52: =IF(AND(TRIM(BJ50)="",TRIM(BJ51)=""),"",BJ50+BJ51) -> 8084.414 | BN52: =IF(TRIM(BM52)="", "", IF(VLOOKUP(BM52,'Footnotes list'!$D$9:$E$58,2,FALSE)=0,"",VLOOKUP(BM52,'Footnotes list'!$D$9:$E$58,2,FALSE) ) ) ->  | BO52: =IF(AND(TRIM(BO50)="", TRIM(BO51)=""), "", (IF(ISNUMBER(BO50),BO50,0)+IF(ISNUMBER(BO51),BO51,0))) -> 59575.391 | BS52: =IF(TRIM(BR52)="", "", IF(VLOOKUP(BR52,'Footnotes list'!$D$9:$E$58,2,FALSE)=0,"",VLOOKUP(BR52,'Footnotes list'!$D$9:$E$58,2,FALSE) ) ) ->  | BT52: =IF(AND(TRIM(BT50)="",TRIM(BT51)=""),"",BT50+BT51) -> 787.048 | BX52: =IF(TRIM(BW52)="", "", IF(VLOOKUP(BW52,'Footnotes list'!$D$9:$E$58,2,FALSE)=0,"",VLOOKUP(BW52,'Footnotes list'!$D$9:$E$58,2,FALSE) ) ) ->  | BY52: =IF(AND(TRIM(BY50)="",TRIM(BY51)=""),"",BY50+BY51) -> 169.262 | CC52: =IF(TRIM(CB52)="", "", IF(VLOOKUP(CB52,'Footnotes list'!$D$9:$E$58,2,FALSE)=0,"",VLOOKUP(CB52,'Footnotes list'!$D$9:$E$58,2,FALSE) ) ) ->  | CD52: =IF(AND(TRIM(CD50)="",TRIM(CD51)=""),"",CD50+CD51) -> 61722.949 | CH52: =IF(TRIM(CG52)="", "", IF(VLOOKUP(CG52,'Footnotes list'!$D$9:$E$58,2,FALSE)=0,"",VLOOKUP(CG52,'Footnotes list'!$D$9:$E$58,2,FALSE) ) ) ->  | CI52: =IF(AND(TRIM(CI50)="", TRIM(CI51)=""), "", (IF(ISNUMBER(CI50),CI50,0)+IF(ISNUMBER(CI51),CI51,0))) -> 61892.211 | CM52: =IF(TRIM(CL52)="", "", IF(VLOOKUP(CL52,'Footnotes list'!$D$9:$E$58,2,FALSE)=0,"",VLOOKUP(CL52,'Footnotes list'!$D$9:$E$58,2,FALSE) ) ) ->  | CN52: =IF(AND(TRIM(CN50)="",TRIM(CN51)=""),"",CN50+CN51) -> 17163.66 | CR52: =IF(TRIM(CQ52)="", "", IF(VLOOKUP(CQ52,'Footnotes list'!$D$9:$E$58,2,FALSE)=0,"",VLOOKUP(CQ52,'Footnotes list'!$D$9:$E$58,2,FALSE) ) ) ->  | CS52: =IF(AND(TRIM(CS50)="",TRIM(CS51)=""),"",CS50+CS51) -> 5440.526 | CW52: =IF(TRIM(CV52)="", "", IF(VLOOKUP(CV52,'Footnotes list'!$D$9:$E$58,2,FALSE)=0,"",VLOOKUP(CV52,'Footnotes list'!$D$9:$E$58,2,FALSE) ) ) ->  | CX52: =IF(AND(TRIM(CX50)="",TRIM(CX51)=""),"",CX50+CX51) -> 1246.55 | DB52: =IF(TRIM(DA52)="", "", IF(VLOOKUP(DA52,'Footnotes list'!$D$9:$E$58,2,FALSE)=0,"",VLOOKUP(DA52,'Footnotes list'!$D$9:$E$58,2,FALSE) ) ) ->  | DC52: =IF(AND(TRIM(DC50)="",TRIM(DC51)=""),"",DC50+DC51) -> 27140.952 | DG52: =IF(TRIM(DF52)="", "", IF(VLOOKUP(DF52,'Footnotes list'!$D$9:$E$58,2,FALSE)=0,"",VLOOKUP(DF52,'Footnotes list'!$D$9:$E$58,2,FALSE) ) ) ->  | DH52: =IF(AND(TRIM(DH50)="", TRIM(DH51)=""), "", SUM(DH50,DH51) ) -> 173550.668 | DL52: =IF(TRIM(DK52)="", "", IF(VLOOKUP(DK52,'Footnotes list'!$D$9:$E$58,2,FALSE)=0,"",VLOOKUP(DK52,'Footnotes list'!$D$9:$E$58,2,FALSE) ) ) -> 
B53: W076 | D53: Textile wastes | F53: Not applicable
C54: W076 | E54: NHAZ | F54: Non-hazardous | G54: 0.035 | K54: =IF(TRIM(J54)="", "", IF(VLOOKUP(J54,'Footnotes list'!$D$9:$E$58,2,FALSE)=0,"",VLOOKUP(J54,'Footnotes list'!$D$9:$E$58,2,FALSE) ) ) ->  | L54: 0 | P54: =IF(TRIM(O54)="", "", IF(VLOOKUP(O54,'Footnotes list'!$D$9:$E$58,2,FALSE)=0,"",VLOOKUP(O54,'Footnotes list'!$D$9:$E$58,2,FALSE) ) ) ->  | Q54: 16.065 | U54: =IF(TRIM(T54)="", "", IF(VLOOKUP(T54,'Footnotes list'!$D$9:$E$58,2,FALSE)=0,"",VLOOKUP(T54,'Footnotes list'!$D$9:$E$58,2,FALSE) ) ) ->  | V54: 2848.369 | Z54: =IF(TRIM(Y54)="", "", IF(VLOOKUP(Y54,'Footnotes list'!$D$9:$E$58,2,FALSE)=0,"",VLOOKUP(Y54,'Footnotes list'!$D$9:$E$58,2,FALSE) ) ) ->  | AA54: 0.026 | AE54: =IF(TRIM(AD54)="", "", IF(VLOOKUP(AD54,'Footnotes list'!$D$9:$E$58,2,FALSE)=0,"",VLOOKUP(AD54,'Footnotes list'!$D$9:$E$58,2,FALSE) ) ) ->  | AF54: 8.303 | AJ54: =IF(TRIM(AI54)="", "", IF(VLOOKUP(AI54,'Footnotes list'!$D$9:$E$58,2,FALSE)=0,"",VLOOKUP(AI54,'Footnotes list'!$D$9:$E$58,2,FALSE) ) ) ->  | AK54: 0 | AO54: =IF(TRIM(AN54)="", "", IF(VLOOKUP(AN54,'Footnotes list'!$D$9:$E$58,2,FALSE)=0,"",VLOOKUP(AN54,'Footnotes list'!$D$9:$E$58,2,FALSE) ) ) ->  | AP54: 2289.351 | AT54: =IF(TRIM(AS54)="", "", IF(VLOOKUP(AS54,'Footnotes list'!$D$9:$E$58,2,FALSE)=0,"",VLOOKUP(AS54,'Footnotes list'!$D$9:$E$58,2,FALSE) ) ) ->  | AU54: 22 | AY54: =IF(TRIM(AX54)="", "", IF(VLOOKUP(AX54,'Footnotes list'!$D$9:$E$58,2,FALSE)=0,"",VLOOKUP(AX54,'Footnotes list'!$D$9:$E$58,2,FALSE) ) ) ->  | AZ54: 8.22 | BD54: =IF(TRIM(BC54)="", "", IF(VLOOKUP(BC54,'Footnotes list'!$D$9:$E$58,2,FALSE)=0,"",VLOOKUP(BC54,'Footnotes list'!$D$9:$E$58,2,FALSE) ) ) ->  | BE54: 147.26 | BI54: =IF(TRIM(BH54)="", "", IF(VLOOKUP(BH54,'Footnotes list'!$D$9:$E$58,2,FALSE)=0,"",VLOOKUP(BH54,'Footnotes list'!$D$9:$E$58,2,FALSE) ) ) ->  | BJ54: 167.024 | BN54: =IF(TRIM(BM54)="", "", IF(VLOOKUP(BM54,'Footnotes list'!$D$9:$E$58,2,FALSE)=0,"",VLOOKUP(BM54,'Footnotes list'!$D$9:$E$58,2,FALSE) ) ) ->  | BO54: =IF(AND(TRIM(Q54)="",TRIM(V54)="",TRIM(AA54)="", TRIM(AF54)="", TRIM(AK54)="", TRIM(AP54)="", TRIM(AU54)="", TRIM(AZ54)="", TRIM(BE54)="", TRIM(BJ54)=""),"",Q54+V54+AA54+AF54+AK54+AP54+AU54+AZ54+BE54+BJ54) -> 5506.618 | BS54: =IF(TRIM(BR54)="", "", IF(VLOOKUP(BR54,'Footnotes list'!$D$9:$E$58,2,FALSE)=0,"",VLOOKUP(BR54,'Footnotes list'!$D$9:$E$58,2,FALSE) ) ) ->  | BT54: 0.276 | BX54: =IF(TRIM(BW54)="", "", IF(VLOOKUP(BW54,'Footnotes list'!$D$9:$E$58,2,FALSE)=0,"",VLOOKUP(BW54,'Footnotes list'!$D$9:$E$58,2,FALSE) ) ) ->  | BY54: 0 | CC54: =IF(TRIM(CB54)="", "", IF(VLOOKUP(CB54,'Footnotes list'!$D$9:$E$58,2,FALSE)=0,"",VLOOKUP(CB54,'Footnotes list'!$D$9:$E$58,2,FALSE) ) ) ->  | CD54: 738.91 | CH54: =IF(TRIM(CG54)="", "", IF(VLOOKUP(CG54,'Footnotes list'!$D$9:$E$58,2,FALSE)=0,"",VLOOKUP(CG54,'Footnotes list'!$D$9:$E$58,2,FALSE) ) ) ->  | CI54: =IF(AND(TRIM(BY54)="",TRIM(CD54)=""),"",BY54+CD54) -> 738.91 | CM54: =IF(TRIM(CL54)="", "", IF(VLOOKUP(CL54,'Footnotes list'!$D$9:$E$58,2,FALSE)=0,"",VLOOKUP(CL54,'Footnotes list'!$D$9:$E$58,2,FALSE) ) ) ->  | CN54: 570.082 | CR54: =IF(TRIM(CQ54)="", "", IF(VLOOKUP(CQ54,'Footnotes list'!$D$9:$E$58,2,FALSE)=0,"",VLOOKUP(CQ54,'Footnotes list'!$D$9:$E$58,2,FALSE) ) ) ->  | CS54: 879.854 | CW54: =IF(TRIM(CV54)="", "", IF(VLOOKUP(CV54,'Footnotes list'!$D$9:$E$58,2,FALSE)=0,"",VLOOKUP(CV54,'Footnotes list'!$D$9:$E$58,2,FALSE) ) ) ->  | CX54: 0 | DB54: =IF(TRIM(DA54)="", "", IF(VLOOKUP(DA54,'Footnotes list'!$D$9:$E$58,2,FALSE)=0,"",VLOOKUP(DA54,'Footnotes list'!$D$9:$E$58,2,FALSE) ) ) ->  | DC54: 4667.629 | DG54: =IF(TRIM(DF54)="", "", IF(VLOOKUP(DF54,'Footnotes list'!$D$9:$E$58,2,FALSE)=0,"",VLOOKUP(DF54,'Footnotes list'!$D$9:$E$58,2,FALSE) ) ) ->  | DH54: =IF(AND(TRIM(G54)="",TRIM(L54)="",TRIM(BO54)="",TRIM(BT54)="",TRIM(CI54)="",TRIM(CN54)="",TRIM(CS54)="",TRIM(CX54)="",TRIM(DC54)=""),"",SUM(G54,L54,BO54,BT54,CI54,CN54,CS54,CX54,DC54)) -> 12363.404 | DL54: =IF(TRIM(DK54)="", "", IF(VLOOKUP(DK54,'Footnotes list'!$D$9:$E$58,2,FALSE)=0,"",VLOOKUP(DK54,'Footnotes list'!$D$9:$E$58,2,FALSE) ) ) -> 
C55: W076 | E55: HAZ_NHAZ | F55: Total | G55: =IF(AND(TRIM(G53)="",TRIM(G54)=""),"",G53+G54) -> 0.035 | K55: =IF(TRIM(J55)="", "", IF(VLOOKUP(J55,'Footnotes list'!$D$9:$E$58,2,FALSE)=0,"",VLOOKUP(J55,'Footnotes list'!$D$9:$E$58,2,FALSE) ) ) ->  | L55: =IF(AND(TRIM(L53)="",TRIM(L54)=""),"",L53+L54) -> 0 | P55: =IF(TRIM(O55)="", "", IF(VLOOKUP(O55,'Footnotes list'!$D$9:$E$58,2,FALSE)=0,"",VLOOKUP(O55,'Footnotes list'!$D$9:$E$58,2,FALSE) ) ) ->  | Q55: =IF(AND(TRIM(Q53)="",TRIM(Q54)=""),"",Q53+Q54) -> 16.065 | U55: =IF(TRIM(T55)="", "", IF(VLOOKUP(T55,'Footnotes list'!$D$9:$E$58,2,FALSE)=0,"",VLOOKUP(T55,'Footnotes list'!$D$9:$E$58,2,FALSE) ) ) ->  | V55: =IF(AND(TRIM(V53)="",TRIM(V54)=""),"",V53+V54) -> 2848.369 | Z55: =IF(TRIM(Y55)="", "", IF(VLOOKUP(Y55,'Footnotes list'!$D$9:$E$58,2,FALSE)=0,"",VLOOKUP(Y55,'Footnotes list'!$D$9:$E$58,2,FALSE) ) ) ->  | AA55: =IF(AND(TRIM(AA53)="",TRIM(AA54)=""),"",AA53+AA54) -> 0.026 | AE55: =IF(TRIM(AD55)="", "", IF(VLOOKUP(AD55,'Footnotes list'!$D$9:$E$58,2,FALSE)=0,"",VLOOKUP(AD55,'Footnotes list'!$D$9:$E$58,2,FALSE) ) ) ->  | AF55: =IF(AND(TRIM(AF53)="",TRIM(AF54)=""),"",AF53+AF54) -> 8.303 | AJ55: =IF(TRIM(AI55)="", "", IF(VLOOKUP(AI55,'Footnotes list'!$D$9:$E$58,2,FALSE)=0,"",VLOOKUP(AI55,'Footnotes list'!$D$9:$E$58,2,FALSE) ) ) ->  | AK55: =IF(AND(TRIM(AK53)="",TRIM(AK54)=""),"",AK53+AK54) -> 0 | AO55: =IF(TRIM(AN55)="", "", IF(VLOOKUP(AN55,'Footnotes list'!$D$9:$E$58,2,FALSE)=0,"",VLOOKUP(AN55,'Footnotes list'!$D$9:$E$58,2,FALSE) ) ) ->  | AP55: =IF(AND(TRIM(AP53)="",TRIM(AP54)=""),"",AP53+AP54) -> 2289.351 | AT55: =IF(TRIM(AS55)="", "", IF(VLOOKUP(AS55,'Footnotes list'!$D$9:$E$58,2,FALSE)=0,"",VLOOKUP(AS55,'Footnotes list'!$D$9:$E$58,2,FALSE) ) ) ->  | AU55: =IF(AND(TRIM(AU53)="",TRIM(AU54)=""),"",AU53+AU54) -> 22 | AY55: =IF(TRIM(AX55)="", "", IF(VLOOKUP(AX55,'Footnotes list'!$D$9:$E$58,2,FALSE)=0,"",VLOOKUP(AX55,'Footnotes list'!$D$9:$E$58,2,FALSE) ) ) ->  | AZ55: =IF(AND(TRIM(AZ53)="",TRIM(AZ54)=""),"",AZ53+AZ54) -> 8.22 | BD55: =IF(TRIM(BC55)="", "", IF(VLOOKUP(BC55,'Footnotes list'!$D$9:$E$58,2,FALSE)=0,"",VLOOKUP(BC55,'Footnotes list'!$D$9:$E$58,2,FALSE) ) ) ->  | BE55: =IF(AND(TRIM(BE53)="",TRIM(BE54)=""),"",BE53+BE54) -> 147.26 | BI55: =IF(TRIM(BH55)="", "", IF(VLOOKUP(BH55,'Footnotes list'!$D$9:$E$58,2,FALSE)=0,"",VLOOKUP(BH55,'Footnotes list'!$D$9:$E$58,2,FALSE) ) ) ->  | BJ55: =IF(AND(TRIM(BJ53)="",TRIM(BJ54)=""),"",BJ53+BJ54) -> 167.024 | BN55: =IF(TRIM(BM55)="", "", IF(VLOOKUP(BM55,'Footnotes list'!$D$9:$E$58,2,FALSE)=0,"",VLOOKUP(BM55,'Footnotes list'!$D$9:$E$58,2,FALSE) ) ) ->  | BO55: =IF(AND(TRIM(BO53)="", TRIM(BO54)=""), "", (IF(ISNUMBER(BO53),BO53,0)+IF(ISNUMBER(BO54),BO54,0))) -> 5506.618 | BS55: =IF(TRIM(BR55)="", "", IF(VLOOKUP(BR55,'Footnotes list'!$D$9:$E$58,2,FALSE)=0,"",VLOOKUP(BR55,'Footnotes list'!$D$9:$E$58,2,FALSE) ) ) ->  | BT55: =IF(AND(TRIM(BT53)="",TRIM(BT54)=""),"",BT53+BT54) -> 0.276 | BX55: =IF(TRIM(BW55)="", "", IF(VLOOKUP(BW55,'Footnotes list'!$D$9:$E$58,2,FALSE)=0,"",VLOOKUP(BW55,'Footnotes list'!$D$9:$E$58,2,FALSE) ) ) ->  | BY55: =IF(AND(TRIM(BY53)="",TRIM(BY54)=""),"",BY53+BY54) -> 0 | CC55: =IF(TRIM(CB55)="", "", IF(VLOOKUP(CB55,'Footnotes list'!$D$9:$E$58,2,FALSE)=0,"",VLOOKUP(CB55,'Footnotes list'!$D$9:$E$58,2,FALSE) ) ) ->  | CD55: =IF(AND(TRIM(CD53)="",TRIM(CD54)=""),"",CD53+CD54) -> 738.91 | CH55: =IF(TRIM(CG55)="", "", IF(VLOOKUP(CG55,'Footnotes list'!$D$9:$E$58,2,FALSE)=0,"",VLOOKUP(CG55,'Footnotes list'!$D$9:$E$58,2,FALSE) ) ) ->  | CI55: =IF(AND(TRIM(CI53)="", TRIM(CI54)=""), "", (IF(ISNUMBER(CI53),CI53,0)+IF(ISNUMBER(CI54),CI54,0))) -> 738.91 | CM55: =IF(TRIM(CL55)="", "", IF(VLOOKUP(CL55,'Footnotes list'!$D$9:$E$58,2,FALSE)=0,"",VLOOKUP(CL55,'Footnotes list'!$D$9:$E$58,2,FALSE) ) ) ->  | CN55: =IF(AND(TRIM(CN53)="",TRIM(CN54)=""),"",CN53+CN54) -> 570.082 | CR55: =IF(TRIM(CQ55)="", "", IF(VLOOKUP(CQ55,'Footnotes list'!$D$9:$E$58,2,FALSE)=0,"",VLOOKUP(CQ55,'Footnotes list'!$D$9:$E$58,2,FALSE) ) ) ->  | CS55: =IF(AND(TRIM(CS53)="",TRIM(CS54)=""),"",CS53+CS54) -> 879.854 | CW55: =IF(TRIM(CV55)="", "", IF(VLOOKUP(CV55,'Footnotes list'!$D$9:$E$58,2,FALSE)=0,"",VLOOKUP(CV55,'Footnotes list'!$D$9:$E$58,2,FALSE) ) ) ->  | CX55: =IF(AND(TRIM(CX53)="",TRIM(CX54)=""),"",CX53+CX54) -> 0 | DB55: =IF(TRIM(DA55)="", "", IF(VLOOKUP(DA55,'Footnotes list'!$D$9:$E$58,2,FALSE)=0,"",VLOOKUP(DA55,'Footnotes list'!$D$9:$E$58,2,FALSE) ) ) ->  | DC55: =IF(AND(TRIM(DC53)="",TRIM(DC54)=""),"",DC53+DC54) -> 4667.629 | DG55: =IF(TRIM(DF55)="", "", IF(VLOOKUP(DF55,'Footnotes list'!$D$9:$E$58,2,FALSE)=0,"",VLOOKUP(DF55,'Footnotes list'!$D$9:$E$58,2,FALSE) ) ) ->  | DH55: =IF(AND(TRIM(DH53)="", TRIM(DH54)=""), "", SUM(DH53,DH54) ) -> 12363.404 | DL55: =IF(TRIM(DK55)="", "", IF(VLOOKUP(DK55,'Footnotes list'!$D$9:$E$58,2,FALSE)=0,"",VLOOKUP(DK55,'Footnotes list'!$D$9:$E$58,2,FALSE) ) ) -> 
B56: W077 | C56: W077 | D56: Waste containing PCB | E56: HAZ | F56: Hazardous | G56: 0 | K56: =IF(TRIM(J56)="", "", IF(VLOOKUP(J56,'Footnotes list'!$D$9:$E$58,2,FALSE)=0,"",VLOOKUP(J56,'Footnotes list'!$D$9:$E$58,2,FALSE) ) ) ->  | L56: 0 | P56: =IF(TRIM(O56)="", "", IF(VLOOKUP(O56,'Footnotes list'!$D$9:$E$58,2,FALSE)=0,"",VLOOKUP(O56,'Footnotes list'!$D$9:$E$58,2,FALSE) ) ) ->  | Q56: 0 | U56: =IF(TRIM(T56)="", "", IF(VLOOKUP(T56,'Footnotes list'!$D$9:$E$58,2,FALSE)=0,"",VLOOKUP(T56,'Footnotes list'!$D$9:$E$58,2,FALSE) ) ) ->  | V56: 1.42 | Z56: =IF(TRIM(Y56)="", "", IF(VLOOKUP(Y56,'Footnotes list'!$D$9:$E$58,2,FALSE)=0,"",VLOOKUP(Y56,'Footnotes list'!$D$9:$E$58,2,FALSE) ) ) ->  | AA56: 0 | AE56: =IF(TRIM(AD56)="", "", IF(VLOOKUP(AD56,'Footnotes list'!$D$9:$E$58,2,FALSE)=0,"",VLOOKUP(AD56,'Footnotes list'!$D$9:$E$58,2,FALSE) ) ) ->  | AF56: 0 | AJ56: =IF(TRIM(AI56)="", "", IF(VLOOKUP(AI56,'Footnotes list'!$D$9:$E$58,2,FALSE)=0,"",VLOOKUP(AI56,'Footnotes list'!$D$9:$E$58,2,FALSE) ) ) ->  | AK56: 0 | AO56: =IF(TRIM(AN56)="", "", IF(VLOOKUP(AN56,'Footnotes list'!$D$9:$E$58,2,FALSE)=0,"",VLOOKUP(AN56,'Footnotes list'!$D$9:$E$58,2,FALSE) ) ) ->  | AP56: 0 | AT56: =IF(TRIM(AS56)="", "", IF(VLOOKUP(AS56,'Footnotes list'!$D$9:$E$58,2,FALSE)=0,"",VLOOKUP(AS56,'Footnotes list'!$D$9:$E$58,2,FALSE) ) ) ->  | AU56: 1.33 | AY56: =IF(TRIM(AX56)="", "", IF(VLOOKUP(AX56,'Footnotes list'!$D$9:$E$58,2,FALSE)=0,"",VLOOKUP(AX56,'Footnotes list'!$D$9:$E$58,2,FALSE) ) ) ->  | AZ56: 33.104 | BD56: =IF(TRIM(BC56)="", "", IF(VLOOKUP(BC56,'Footnotes list'!$D$9:$E$58,2,FALSE)=0,"",VLOOKUP(BC56,'Footnotes list'!$D$9:$E$58,2,FALSE) ) ) ->  | BE56: 0.17 | BI56: =IF(TRIM(BH56)="", "", IF(VLOOKUP(BH56,'Footnotes list'!$D$9:$E$58,2,FALSE)=0,"",VLOOKUP(BH56,'Footnotes list'!$D$9:$E$58,2,FALSE) ) ) ->  | BJ56: 0 | BN56: =IF(TRIM(BM56)="", "", IF(VLOOKUP(BM56,'Footnotes list'!$D$9:$E$58,2,FALSE)=0,"",VLOOKUP(BM56,'Footnotes list'!$D$9:$E$58,2,FALSE) ) ) ->  | BO56: =IF(AND(TRIM(Q56)="",TRIM(V56)="",TRIM(AA56)="", TRIM(AF56)="", TRIM(AK56)="", TRIM(AP56)="", TRIM(AU56)="", TRIM(AZ56)="", TRIM(BE56)="", TRIM(BJ56)=""),"",Q56+V56+AA56+AF56+AK56+AP56+AU56+AZ56+BE56+BJ56) -> 36.024 | BS56: =IF(TRIM(BR56)="", "", IF(VLOOKUP(BR56,'Footnotes list'!$D$9:$E$58,2,FALSE)=0,"",VLOOKUP(BR56,'Footnotes list'!$D$9:$E$58,2,FALSE) ) ) ->  | BT56: 0.038 | BX56: =IF(TRIM(BW56)="", "", IF(VLOOKUP(BW56,'Footnotes list'!$D$9:$E$58,2,FALSE)=0,"",VLOOKUP(BW56,'Footnotes list'!$D$9:$E$58,2,FALSE) ) ) ->  | BY56: 0 | CC56: =IF(TRIM(CB56)="", "", IF(VLOOKUP(CB56,'Footnotes list'!$D$9:$E$58,2,FALSE)=0,"",VLOOKUP(CB56,'Footnotes list'!$D$9:$E$58,2,FALSE) ) ) ->  | CD56: 0 | CH56: =IF(TRIM(CG56)="", "", IF(VLOOKUP(CG56,'Footnotes list'!$D$9:$E$58,2,FALSE)=0,"",VLOOKUP(CG56,'Footnotes list'!$D$9:$E$58,2,FALSE) ) ) ->  | CI56: =IF(AND(TRIM(BY56)="",TRIM(CD56)=""),"",BY56+CD56) -> 0 | CM56: =IF(TRIM(CL56)="", "", IF(VLOOKUP(CL56,'Footnotes list'!$D$9:$E$58,2,FALSE)=0,"",VLOOKUP(CL56,'Footnotes list'!$D$9:$E$58,2,FALSE) ) ) ->  | CN56: 0 | CR56: =IF(TRIM(CQ56)="", "", IF(VLOOKUP(CQ56,'Footnotes list'!$D$9:$E$58,2,FALSE)=0,"",VLOOKUP(CQ56,'Footnotes list'!$D$9:$E$58,2,FALSE) ) ) ->  | CS56: 2.75 | CW56: =IF(TRIM(CV56)="", "", IF(VLOOKUP(CV56,'Footnotes list'!$D$9:$E$58,2,FALSE)=0,"",VLOOKUP(CV56,'Footnotes list'!$D$9:$E$58,2,FALSE) ) ) ->  | CX56: 0 | DB56: =IF(TRIM(DA56)="", "", IF(VLOOKUP(DA56,'Footnotes list'!$D$9:$E$58,2,FALSE)=0,"",VLOOKUP(DA56,'Footnotes list'!$D$9:$E$58,2,FALSE) ) ) ->  | DC56: 0 | DG56: =IF(TRIM(DF56)="", "", IF(VLOOKUP(DF56,'Footnotes list'!$D$9:$E$58,2,FALSE)=0,"",VLOOKUP(DF56,'Footnotes list'!$D$9:$E$58,2,FALSE) ) ) ->  | DH56: =IF(AND(TRIM(G56)="",TRIM(L56)="",TRIM(BO56)="",TRIM(BT56)="",TRIM(CI56)="",TRIM(CN56)="",TRIM(CS56)="",TRIM(CX56)="",TRIM(DC56)=""),"",SUM(G56,L56,BO56,BT56,CI56,CN56,CS56,CX56,DC56)) -> 38.812 | DL56: =IF(TRIM(DK56)="", "", IF(VLOOKUP(DK56,'Footnotes list'!$D$9:$E$58,2,FALSE)=0,"",VLOOKUP(DK56,'Footnotes list'!$D$9:$E$58,2,FALSE) ) ) -> 
F57: Not applicable
C58: W077 | E58: HAZ_NHAZ | F58: Total | G58: =IF(AND(TRIM(G56)="",TRIM(G57)=""),"",G56+G57) -> 0 | K58: =IF(TRIM(J58)="", "", IF(VLOOKUP(J58,'Footnotes list'!$D$9:$E$58,2,FALSE)=0,"",VLOOKUP(J58,'Footnotes list'!$D$9:$E$58,2,FALSE) ) ) ->  | L58: =IF(AND(TRIM(L56)="",TRIM(L57)=""),"",L56+L57) -> 0 | P58: =IF(TRIM(O58)="", "", IF(VLOOKUP(O58,'Footnotes list'!$D$9:$E$58,2,FALSE)=0,"",VLOOKUP(O58,'Footnotes list'!$D$9:$E$58,2,FALSE) ) ) ->  | Q58: =IF(AND(TRIM(Q56)="",TRIM(Q57)=""),"",Q56+Q57) -> 0 | U58: =IF(TRIM(T58)="", "", IF(VLOOKUP(T58,'Footnotes list'!$D$9:$E$58,2,FALSE)=0,"",VLOOKUP(T58,'Footnotes list'!$D$9:$E$58,2,FALSE) ) ) ->  | V58: =IF(AND(TRIM(V56)="",TRIM(V57)=""),"",V56+V57) -> 1.42 | Z58: =IF(TRIM(Y58)="", "", IF(VLOOKUP(Y58,'Footnotes list'!$D$9:$E$58,2,FALSE)=0,"",VLOOKUP(Y58,'Footnotes list'!$D$9:$E$58,2,FALSE) ) ) ->  | AA58: =IF(AND(TRIM(AA56)="",TRIM(AA57)=""),"",AA56+AA57) -> 0 | AE58: =IF(TRIM(AD58)="", "", IF(VLOOKUP(AD58,'Footnotes list'!$D$9:$E$58,2,FALSE)=0,"",VLOOKUP(AD58,'Footnotes list'!$D$9:$E$58,2,FALSE) ) ) ->  | AF58: =IF(AND(TRIM(AF56)="",TRIM(AF57)=""),"",AF56+AF57) -> 0 | AJ58: =IF(TRIM(AI58)="", "", IF(VLOOKUP(AI58,'Footnotes list'!$D$9:$E$58,2,FALSE)=0,"",VLOOKUP(AI58,'Footnotes list'!$D$9:$E$58,2,FALSE) ) ) ->  | AK58: =IF(AND(TRIM(AK56)="",TRIM(AK57)=""),"",AK56+AK57) -> 0 | AO58: =IF(TRIM(AN58)="", "", IF(VLOOKUP(AN58,'Footnotes list'!$D$9:$E$58,2,FALSE)=0,"",VLOOKUP(AN58,'Footnotes list'!$D$9:$E$58,2,FALSE) ) ) ->  | AP58: =IF(AND(TRIM(AP56)="",TRIM(AP57)=""),"",AP56+AP57) -> 0 | AT58: =IF(TRIM(AS58)="", "", IF(VLOOKUP(AS58,'Footnotes list'!$D$9:$E$58,2,FALSE)=0,"",VLOOKUP(AS58,'Footnotes list'!$D$9:$E$58,2,FALSE) ) ) ->  | AU58: =IF(AND(TRIM(AU56)="",TRIM(AU57)=""),"",AU56+AU57) -> 1.33 | AY58: =IF(TRIM(AX58)="", "", IF(VLOOKUP(AX58,'Footnotes list'!$D$9:$E$58,2,FALSE)=0,"",VLOOKUP(AX58,'Footnotes list'!$D$9:$E$58,2,FALSE) ) ) ->  | AZ58: =IF(AND(TRIM(AZ56)="",TRIM(AZ57)=""),"",AZ56+AZ57) -> 33.104 | BD58: =IF(TRIM(BC58)="", "", IF(VLOOKUP(BC58,'Footnotes list'!$D$9:$E$58,2,FALSE)=0,"",VLOOKUP(BC58,'Footnotes list'!$D$9:$E$58,2,FALSE) ) ) ->  | BE58: =IF(AND(TRIM(BE56)="",TRIM(BE57)=""),"",BE56+BE57) -> 0.17 | BI58: =IF(TRIM(BH58)="", "", IF(VLOOKUP(BH58,'Footnotes list'!$D$9:$E$58,2,FALSE)=0,"",VLOOKUP(BH58,'Footnotes list'!$D$9:$E$58,2,FALSE) ) ) ->  | BJ58: =IF(AND(TRIM(BJ56)="",TRIM(BJ57)=""),"",BJ56+BJ57) -> 0 | BN58: =IF(TRIM(BM58)="", "", IF(VLOOKUP(BM58,'Footnotes list'!$D$9:$E$58,2,FALSE)=0,"",VLOOKUP(BM58,'Footnotes list'!$D$9:$E$58,2,FALSE) ) ) ->  | BO58: =IF(AND(TRIM(BO56)="", TRIM(BO57)=""), "", (IF(ISNUMBER(BO56),BO56,0)+IF(ISNUMBER(BO57),BO57,0))) -> 36.024 | BS58: =IF(TRIM(BR58)="", "", IF(VLOOKUP(BR58,'Footnotes list'!$D$9:$E$58,2,FALSE)=0,"",VLOOKUP(BR58,'Footnotes list'!$D$9:$E$58,2,FALSE) ) ) ->  | BT58: =IF(AND(TRIM(BT56)="",TRIM(BT57)=""),"",BT56+BT57) -> 0.038 | BX58: =IF(TRIM(BW58)="", "", IF(VLOOKUP(BW58,'Footnotes list'!$D$9:$E$58,2,FALSE)=0,"",VLOOKUP(BW58,'Footnotes list'!$D$9:$E$58,2,FALSE) ) ) ->  | BY58: =IF(AND(TRIM(BY56)="",TRIM(BY57)=""),"",BY56+BY57) -> 0 | CC58: =IF(TRIM(CB58)="", "", IF(VLOOKUP(CB58,'Footnotes list'!$D$9:$E$58,2,FALSE)=0,"",VLOOKUP(CB58,'Footnotes list'!$D$9:$E$58,2,FALSE) ) ) ->  | CD58: =IF(AND(TRIM(CD56)="",TRIM(CD57)=""),"",CD56+CD57) -> 0 | CH58: =IF(TRIM(CG58)="", "", IF(VLOOKUP(CG58,'Footnotes list'!$D$9:$E$58,2,FALSE)=0,"",VLOOKUP(CG58,'Footnotes list'!$D$9:$E$58,2,FALSE) ) ) ->  | CI58: =IF(AND(TRIM(CI56)="", TRIM(CI57)=""), "", (IF(ISNUMBER(CI56),CI56,0)+IF(ISNUMBER(CI57),CI57,0))) -> 0 | CM58: =IF(TRIM(CL58)="", "", IF(VLOOKUP(CL58,'Footnotes list'!$D$9:$E$58,2,FALSE)=0,"",VLOOKUP(CL58,'Footnotes list'!$D$9:$E$58,2,FALSE) ) ) ->  | CN58: =IF(AND(TRIM(CN56)="",TRIM(CN57)=""),"",CN56+CN57) -> 0 | CR58: =IF(TRIM(CQ58)="", "", IF(VLOOKUP(CQ58,'Footnotes list'!$D$9:$E$58,2,FALSE)=0,"",VLOOKUP(CQ58,'Footnotes list'!$D$9:$E$58,2,FALSE) ) ) ->  | CS58: =IF(AND(TRIM(CS56)="",TRIM(CS57)=""),"",CS56+CS57) -> 2.75 | CW58: =IF(TRIM(CV58)="", "", IF(VLOOKUP(CV58,'Footnotes list'!$D$9:$E$58,2,FALSE)=0,"",VLOOKUP(CV58,'Footnotes list'!$D$9:$E$58,2,FALSE) ) ) ->  | CX58: =IF(AND(TRIM(CX56)="",TRIM(CX57)=""),"",CX56+CX57) -> 0 | DB58: =IF(TRIM(DA58)="", "", IF(VLOOKUP(DA58,'Footnotes list'!$D$9:$E$58,2,FALSE)=0,"",VLOOKUP(DA58,'Footnotes list'!$D$9:$E$58,2,FALSE) ) ) ->  | DC58: =IF(AND(TRIM(DC56)="",TRIM(DC57)=""),"",DC56+DC57) -> 0 | DG58: =IF(TRIM(DF58)="", "", IF(VLOOKUP(DF58,'Footnotes list'!$D$9:$E$58,2,FALSE)=0,"",VLOOKUP(DF58,'Footnotes list'!$D$9:$E$58,2,FALSE) ) ) ->  | DH58: =IF(AND(TRIM(DH56)="", TRIM(DH57)=""), "", SUM(DH56,DH57) ) -> 38.812 | DL58: =IF(TRIM(DK58)="", "", IF(VLOOKUP(DK58,'Footnotes list'!$D$9:$E$58,2,FALSE)=0,"",VLOOKUP(DK58,'Footnotes list'!$D$9:$E$58,2,FALSE) ) ) -> 
B59: W08A | C59: W08A | D59: Discarded equipment (except discarded vehicles and batteries and accumulators waste) (W08 except W081, W0841) | E59: HAZ | F59: Hazardous | G59: 38.403 | K59: =IF(TRIM(J59)="", "", IF(VLOOKUP(J59,'Footnotes list'!$D$9:$E$58,2,FALSE)=0,"",VLOOKUP(J59,'Footnotes list'!$D$9:$E$58,2,FALSE) ) ) ->  | L59: 21.938 | P59: =IF(TRIM(O59)="", "", IF(VLOOKUP(O59,'Footnotes list'!$D$9:$E$58,2,FALSE)=0,"",VLOOKUP(O59,'Footnotes list'!$D$9:$E$58,2,FALSE) ) ) ->  | Q59: 593.876 | U59: =IF(TRIM(T59)="", "", IF(VLOOKUP(T59,'Footnotes list'!$D$9:$E$58,2,FALSE)=0,"",VLOOKUP(T59,'Footnotes list'!$D$9:$E$58,2,FALSE) ) ) ->  | V59: 8.09 | Z59: =IF(TRIM(Y59)="", "", IF(VLOOKUP(Y59,'Footnotes list'!$D$9:$E$58,2,FALSE)=0,"",VLOOKUP(Y59,'Footnotes list'!$D$9:$E$58,2,FALSE) ) ) ->  | AA59: 7.294 | AE59: =IF(TRIM(AD59)="", "", IF(VLOOKUP(AD59,'Footnotes list'!$D$9:$E$58,2,FALSE)=0,"",VLOOKUP(AD59,'Footnotes list'!$D$9:$E$58,2,FALSE) ) ) ->  | AF59: 12.786 | AJ59: =IF(TRIM(AI59)="", "", IF(VLOOKUP(AI59,'Footnotes list'!$D$9:$E$58,2,FALSE)=0,"",VLOOKUP(AI59,'Footnotes list'!$D$9:$E$58,2,FALSE) ) ) ->  | AK59: 10.843 | AO59: =IF(TRIM(AN59)="", "", IF(VLOOKUP(AN59,'Footnotes list'!$D$9:$E$58,2,FALSE)=0,"",VLOOKUP(AN59,'Footnotes list'!$D$9:$E$58,2,FALSE) ) ) ->  | AP59: 39.991 | AT59: =IF(TRIM(AS59)="", "", IF(VLOOKUP(AS59,'Footnotes list'!$D$9:$E$58,2,FALSE)=0,"",VLOOKUP(AS59,'Footnotes list'!$D$9:$E$58,2,FALSE) ) ) ->  | AU59: 26.55 | AY59: =IF(TRIM(AX59)="", "", IF(VLOOKUP(AX59,'Footnotes list'!$D$9:$E$58,2,FALSE)=0,"",VLOOKUP(AX59,'Footnotes list'!$D$9:$E$58,2,FALSE) ) ) ->  | AZ59: 81.723 | BD59: =IF(TRIM(BC59)="", "", IF(VLOOKUP(BC59,'Footnotes list'!$D$9:$E$58,2,FALSE)=0,"",VLOOKUP(BC59,'Footnotes list'!$D$9:$E$58,2,FALSE) ) ) ->  | BE59: 269.51 | BI59: =IF(TRIM(BH59)="", "", IF(VLOOKUP(BH59,'Footnotes list'!$D$9:$E$58,2,FALSE)=0,"",VLOOKUP(BH59,'Footnotes list'!$D$9:$E$58,2,FALSE) ) ) ->  | BJ59: 54.237 | BN59: =IF(TRIM(BM59)="", "", IF(VLOOKUP(BM59,'Footnotes list'!$D$9:$E$58,2,FALSE)=0,"",VLOOKUP(BM59,'Footnotes list'!$D$9:$E$58,2,FALSE) ) ) ->  | BO59: =IF(AND(TRIM(Q59)="",TRIM(V59)="",TRIM(AA59)="", TRIM(AF59)="", TRIM(AK59)="", TRIM(AP59)="", TRIM(AU59)="", TRIM(AZ59)="", TRIM(BE59)="", TRIM(BJ59)=""),"",Q59+V59+AA59+AF59+AK59+AP59+AU59+AZ59+BE59+BJ59) -> 1104.9 | BS59: =IF(TRIM(BR59)="", "", IF(VLOOKUP(BR59,'Footnotes list'!$D$9:$E$58,2,FALSE)=0,"",VLOOKUP(BR59,'Footnotes list'!$D$9:$E$58,2,FALSE) ) ) ->  | BT59: 158.375 | BX59: =IF(TRIM(BW59)="", "", IF(VLOOKUP(BW59,'Footnotes list'!$D$9:$E$58,2,FALSE)=0,"",VLOOKUP(BW59,'Footnotes list'!$D$9:$E$58,2,FALSE) ) ) ->  | BY59: 15.791 | CC59: =IF(TRIM(CB59)="", "", IF(VLOOKUP(CB59,'Footnotes list'!$D$9:$E$58,2,FALSE)=0,"",VLOOKUP(CB59,'Footnotes list'!$D$9:$E$58,2,FALSE) ) ) ->  | CD59: 228.611 | CH59: =IF(TRIM(CG59)="", "", IF(VLOOKUP(CG59,'Footnotes list'!$D$9:$E$58,2,FALSE)=0,"",VLOOKUP(CG59,'Footnotes list'!$D$9:$E$58,2,FALSE) ) ) ->  | CI59: =IF(AND(TRIM(BY59)="",TRIM(CD59)=""),"",BY59+CD59) -> 244.402 | CM59: =IF(TRIM(CL59)="", "", IF(VLOOKUP(CL59,'Footnotes list'!$D$9:$E$58,2,FALSE)=0,"",VLOOKUP(CL59,'Footnotes list'!$D$9:$E$58,2,FALSE) ) ) ->  | CN59: 67.395 | CR59: =IF(TRIM(CQ59)="", "", IF(VLOOKUP(CQ59,'Footnotes list'!$D$9:$E$58,2,FALSE)=0,"",VLOOKUP(CQ59,'Footnotes list'!$D$9:$E$58,2,FALSE) ) ) ->  | CS59: 2410.449 | CW59: =IF(TRIM(CV59)="", "", IF(VLOOKUP(CV59,'Footnotes list'!$D$9:$E$58,2,FALSE)=0,"",VLOOKUP(CV59,'Footnotes list'!$D$9:$E$58,2,FALSE) ) ) ->  | CX59: 0.021 | DB59: =IF(TRIM(DA59)="", "", IF(VLOOKUP(DA59,'Footnotes list'!$D$9:$E$58,2,FALSE)=0,"",VLOOKUP(DA59,'Footnotes list'!$D$9:$E$58,2,FALSE) ) ) ->  | DC59: 26197.763 | DG59: =IF(TRIM(DF59)="", "", IF(VLOOKUP(DF59,'Footnotes list'!$D$9:$E$58,2,FALSE)=0,"",VLOOKUP(DF59,'Footnotes list'!$D$9:$E$58,2,FALSE) ) ) ->  | DH59: =IF(AND(TRIM(G59)="",TRIM(L59)="",TRIM(BO59)="",TRIM(BT59)="",TRIM(CI59)="",TRIM(CN59)="",TRIM(CS59)="",TRIM(CX59)="",TRIM(DC59)=""),"",SUM(G59,L59,BO59,BT59,CI59,CN59,CS59,CX59,DC59)) -> 30243.646 | DL59: =IF(TRIM(DK59)="", "", IF(VLOOKUP(DK59,'Footnotes list'!$D$9:$E$58,2,FALSE)=0,"",VLOOKUP(DK59,'Footnotes list'!$D$9:$E$58,2,FALSE) ) ) -> 
C60: W08A | E60: NHAZ | F60: Non-hazardous | G60: 0 | K60: =IF(TRIM(J60)="", "", IF(VLOOKUP(J60,'Footnotes list'!$D$9:$E$58,2,FALSE)=0,"",VLOOKUP(J60,'Footnotes list'!$D$9:$E$58,2,FALSE) ) ) ->  | L60: 1.757 | P60: =IF(TRIM(O60)="", "", IF(VLOOKUP(O60,'Footnotes list'!$D$9:$E$58,2,FALSE)=0,"",VLOOKUP(O60,'Footnotes list'!$D$9:$E$58,2,FALSE) ) ) ->  | Q60: 60.745 | U60: =IF(TRIM(T60)="", "", IF(VLOOKUP(T60,'Footnotes list'!$D$9:$E$58,2,FALSE)=0,"",VLOOKUP(T60,'Footnotes list'!$D$9:$E$58,2,FALSE) ) ) ->  | V60: 0.773 | Z60: =IF(TRIM(Y60)="", "", IF(VLOOKUP(Y60,'Footnotes list'!$D$9:$E$58,2,FALSE)=0,"",VLOOKUP(Y60,'Footnotes list'!$D$9:$E$58,2,FALSE) ) ) ->  | AA60: 60.06 | AE60: =IF(TRIM(AD60)="", "", IF(VLOOKUP(AD60,'Footnotes list'!$D$9:$E$58,2,FALSE)=0,"",VLOOKUP(AD60,'Footnotes list'!$D$9:$E$58,2,FALSE) ) ) ->  | AF60: 4.792 | AJ60: =IF(TRIM(AI60)="", "", IF(VLOOKUP(AI60,'Footnotes list'!$D$9:$E$58,2,FALSE)=0,"",VLOOKUP(AI60,'Footnotes list'!$D$9:$E$58,2,FALSE) ) ) ->  | AK60: 68.683 | AO60: =IF(TRIM(AN60)="", "", IF(VLOOKUP(AN60,'Footnotes list'!$D$9:$E$58,2,FALSE)=0,"",VLOOKUP(AN60,'Footnotes list'!$D$9:$E$58,2,FALSE) ) ) ->  | AP60: 1.355 | AT60: =IF(TRIM(AS60)="", "", IF(VLOOKUP(AS60,'Footnotes list'!$D$9:$E$58,2,FALSE)=0,"",VLOOKUP(AS60,'Footnotes list'!$D$9:$E$58,2,FALSE) ) ) ->  | AU60: 13.573 | AY60: =IF(TRIM(AX60)="", "", IF(VLOOKUP(AX60,'Footnotes list'!$D$9:$E$58,2,FALSE)=0,"",VLOOKUP(AX60,'Footnotes list'!$D$9:$E$58,2,FALSE) ) ) ->  | AZ60: 4.764 | BD60: =IF(TRIM(BC60)="", "", IF(VLOOKUP(BC60,'Footnotes list'!$D$9:$E$58,2,FALSE)=0,"",VLOOKUP(BC60,'Footnotes list'!$D$9:$E$58,2,FALSE) ) ) ->  | BE60: 77.557 | BI60: =IF(TRIM(BH60)="", "", IF(VLOOKUP(BH60,'Footnotes list'!$D$9:$E$58,2,FALSE)=0,"",VLOOKUP(BH60,'Footnotes list'!$D$9:$E$58,2,FALSE) ) ) ->  | BJ60: 222.46 | BN60: =IF(TRIM(BM60)="", "", IF(VLOOKUP(BM60,'Footnotes list'!$D$9:$E$58,2,FALSE)=0,"",VLOOKUP(BM60,'Footnotes list'!$D$9:$E$58,2,FALSE) ) ) ->  | BO60: =IF(AND(TRIM(Q60)="",TRIM(V60)="",TRIM(AA60)="", TRIM(AF60)="", TRIM(AK60)="", TRIM(AP60)="", TRIM(AU60)="", TRIM(AZ60)="", TRIM(BE60)="", TRIM(BJ60)=""),"",Q60+V60+AA60+AF60+AK60+AP60+AU60+AZ60+BE60+BJ60) -> 514.762 | BS60: =IF(TRIM(BR60)="", "", IF(VLOOKUP(BR60,'Footnotes list'!$D$9:$E$58,2,FALSE)=0,"",VLOOKUP(BR60,'Footnotes list'!$D$9:$E$58,2,FALSE) ) ) ->  | BT60: 6.849 | BX60: =IF(TRIM(BW60)="", "", IF(VLOOKUP(BW60,'Footnotes list'!$D$9:$E$58,2,FALSE)=0,"",VLOOKUP(BW60,'Footnotes list'!$D$9:$E$58,2,FALSE) ) ) ->  | BY60: 0.11 | CC60: =IF(TRIM(CB60)="", "", IF(VLOOKUP(CB60,'Footnotes list'!$D$9:$E$58,2,FALSE)=0,"",VLOOKUP(CB60,'Footnotes list'!$D$9:$E$58,2,FALSE) ) ) ->  | CD60: 4105.707 | CH60: =IF(TRIM(CG60)="", "", IF(VLOOKUP(CG60,'Footnotes list'!$D$9:$E$58,2,FALSE)=0,"",VLOOKUP(CG60,'Footnotes list'!$D$9:$E$58,2,FALSE) ) ) ->  | CI60: =IF(AND(TRIM(BY60)="",TRIM(CD60)=""),"",BY60+CD60) -> 4105.817 | CM60: =IF(TRIM(CL60)="", "", IF(VLOOKUP(CL60,'Footnotes list'!$D$9:$E$58,2,FALSE)=0,"",VLOOKUP(CL60,'Footnotes list'!$D$9:$E$58,2,FALSE) ) ) ->  | CN60: 1.955 | CR60: =IF(TRIM(CQ60)="", "", IF(VLOOKUP(CQ60,'Footnotes list'!$D$9:$E$58,2,FALSE)=0,"",VLOOKUP(CQ60,'Footnotes list'!$D$9:$E$58,2,FALSE) ) ) ->  | CS60: 239.906 | CW60: =IF(TRIM(CV60)="", "", IF(VLOOKUP(CV60,'Footnotes list'!$D$9:$E$58,2,FALSE)=0,"",VLOOKUP(CV60,'Footnotes list'!$D$9:$E$58,2,FALSE) ) ) ->  | CX60: 45.94 | DB60: =IF(TRIM(DA60)="", "", IF(VLOOKUP(DA60,'Footnotes list'!$D$9:$E$58,2,FALSE)=0,"",VLOOKUP(DA60,'Footnotes list'!$D$9:$E$58,2,FALSE) ) ) ->  | DC60: 9770.213 | DG60: =IF(TRIM(DF60)="", "", IF(VLOOKUP(DF60,'Footnotes list'!$D$9:$E$58,2,FALSE)=0,"",VLOOKUP(DF60,'Footnotes list'!$D$9:$E$58,2,FALSE) ) ) ->  | DH60: =IF(AND(TRIM(G60)="",TRIM(L60)="",TRIM(BO60)="",TRIM(BT60)="",TRIM(CI60)="",TRIM(CN60)="",TRIM(CS60)="",TRIM(CX60)="",TRIM(DC60)=""),"",SUM(G60,L60,BO60,BT60,CI60,CN60,CS60,CX60,DC60)) -> 14687.199 | DL60: =IF(TRIM(DK60)="", "", IF(VLOOKUP(DK60,'Footnotes list'!$D$9:$E$58,2,FALSE)=0,"",VLOOKUP(DK60,'Footnotes list'!$D$9:$E$58,2,FALSE) ) ) -> 
C61: W08A | E61: HAZ_NHAZ | F61: Total | G61: =IF(AND(TRIM(G59)="",TRIM(G60)=""),"",G59+G60) -> 38.403 | K61: =IF(TRIM(J61)="", "", IF(VLOOKUP(J61,'Footnotes list'!$D$9:$E$58,2,FALSE)=0,"",VLOOKUP(J61,'Footnotes list'!$D$9:$E$58,2,FALSE) ) ) ->  | L61: =IF(AND(TRIM(L59)="",TRIM(L60)=""),"",L59+L60) -> 23.695 | P61: =IF(TRIM(O61)="", "", IF(VLOOKUP(O61,'Footnotes list'!$D$9:$E$58,2,FALSE)=0,"",VLOOKUP(O61,'Footnotes list'!$D$9:$E$58,2,FALSE) ) ) ->  | Q61: =IF(AND(TRIM(Q59)="",TRIM(Q60)=""),"",Q59+Q60) -> 654.621 | U61: =IF(TRIM(T61)="", "", IF(VLOOKUP(T61,'Footnotes list'!$D$9:$E$58,2,FALSE)=0,"",VLOOKUP(T61,'Footnotes list'!$D$9:$E$58,2,FALSE) ) ) ->  | V61: =IF(AND(TRIM(V59)="",TRIM(V60)=""),"",V59+V60) -> 8.863 | Z61: =IF(TRIM(Y61)="", "", IF(VLOOKUP(Y61,'Footnotes list'!$D$9:$E$58,2,FALSE)=0,"",VLOOKUP(Y61,'Footnotes list'!$D$9:$E$58,2,FALSE) ) ) ->  | AA61: =IF(AND(TRIM(AA59)="",TRIM(AA60)=""),"",AA59+AA60) -> 67.354 | AE61: =IF(TRIM(AD61)="", "", IF(VLOOKUP(AD61,'Footnotes list'!$D$9:$E$58,2,FALSE)=0,"",VLOOKUP(AD61,'Footnotes list'!$D$9:$E$58,2,FALSE) ) ) ->  | AF61: =IF(AND(TRIM(AF59)="",TRIM(AF60)=""),"",AF59+AF60) -> 17.578 | AJ61: =IF(TRIM(AI61)="", "", IF(VLOOKUP(AI61,'Footnotes list'!$D$9:$E$58,2,FALSE)=0,"",VLOOKUP(AI61,'Footnotes list'!$D$9:$E$58,2,FALSE) ) ) ->  | AK61: =IF(AND(TRIM(AK59)="",TRIM(AK60)=""),"",AK59+AK60) -> 79.526 | AO61: =IF(TRIM(AN61)="", "", IF(VLOOKUP(AN61,'Footnotes list'!$D$9:$E$58,2,FALSE)=0,"",VLOOKUP(AN61,'Footnotes list'!$D$9:$E$58,2,FALSE) ) ) ->  | AP61: =IF(AND(TRIM(AP59)="",TRIM(AP60)=""),"",AP59+AP60) -> 41.346 | AT61: =IF(TRIM(AS61)="", "", IF(VLOOKUP(AS61,'Footnotes list'!$D$9:$E$58,2,FALSE)=0,"",VLOOKUP(AS61,'Footnotes list'!$D$9:$E$58,2,FALSE) ) ) ->  | AU61: =IF(AND(TRIM(AU59)="",TRIM(AU60)=""),"",AU59+AU60) -> 40.123 | AY61: =IF(TRIM(AX61)="", "", IF(VLOOKUP(AX61,'Footnotes list'!$D$9:$E$58,2,FALSE)=0,"",VLOOKUP(AX61,'Footnotes list'!$D$9:$E$58,2,FALSE) ) ) ->  | AZ61: =IF(AND(TRIM(AZ59)="",TRIM(AZ60)=""),"",AZ59+AZ60) -> 86.487 | BD61: =IF(TRIM(BC61)="", "", IF(VLOOKUP(BC61,'Footnotes list'!$D$9:$E$58,2,FALSE)=0,"",VLOOKUP(BC61,'Footnotes list'!$D$9:$E$58,2,FALSE) ) ) ->  | BE61: =IF(AND(TRIM(BE59)="",TRIM(BE60)=""),"",BE59+BE60) -> 347.067 | BI61: =IF(TRIM(BH61)="", "", IF(VLOOKUP(BH61,'Footnotes list'!$D$9:$E$58,2,FALSE)=0,"",VLOOKUP(BH61,'Footnotes list'!$D$9:$E$58,2,FALSE) ) ) ->  | BJ61: =IF(AND(TRIM(BJ59)="",TRIM(BJ60)=""),"",BJ59+BJ60) -> 276.697 | BN61: =IF(TRIM(BM61)="", "", IF(VLOOKUP(BM61,'Footnotes list'!$D$9:$E$58,2,FALSE)=0,"",VLOOKUP(BM61,'Footnotes list'!$D$9:$E$58,2,FALSE) ) ) ->  | BO61: =IF(AND(TRIM(BO59)="", TRIM(BO60)=""), "", (IF(ISNUMBER(BO59),BO59,0)+IF(ISNUMBER(BO60),BO60,0))) -> 1619.662 | BS61: =IF(TRIM(BR61)="", "", IF(VLOOKUP(BR61,'Footnotes list'!$D$9:$E$58,2,FALSE)=0,"",VLOOKUP(BR61,'Footnotes list'!$D$9:$E$58,2,FALSE) ) ) ->  | BT61: =IF(AND(TRIM(BT59)="",TRIM(BT60)=""),"",BT59+BT60) -> 165.224 | BX61: =IF(TRIM(BW61)="", "", IF(VLOOKUP(BW61,'Footnotes list'!$D$9:$E$58,2,FALSE)=0,"",VLOOKUP(BW61,'Footnotes list'!$D$9:$E$58,2,FALSE) ) ) ->  | BY61: =IF(AND(TRIM(BY59)="",TRIM(BY60)=""),"",BY59+BY60) -> 15.901 | CC61: =IF(TRIM(CB61)="", "", IF(VLOOKUP(CB61,'Footnotes list'!$D$9:$E$58,2,FALSE)=0,"",VLOOKUP(CB61,'Footnotes list'!$D$9:$E$58,2,FALSE) ) ) ->  | CD61: =IF(AND(TRIM(CD59)="",TRIM(CD60)=""),"",CD59+CD60) -> 4334.318 | CH61: =IF(TRIM(CG61)="", "", IF(VLOOKUP(CG61,'Footnotes list'!$D$9:$E$58,2,FALSE)=0,"",VLOOKUP(CG61,'Footnotes list'!$D$9:$E$58,2,FALSE) ) ) ->  | CI61: =IF(AND(TRIM(CI59)="", TRIM(CI60)=""), "", (IF(ISNUMBER(CI59),CI59,0)+IF(ISNUMBER(CI60),CI60,0))) -> 4350.219 | CM61: =IF(TRIM(CL61)="", "", IF(VLOOKUP(CL61,'Footnotes list'!$D$9:$E$58,2,FALSE)=0,"",VLOOKUP(CL61,'Footnotes list'!$D$9:$E$58,2,FALSE) ) ) ->  | CN61: =IF(AND(TRIM(CN59)="",TRIM(CN60)=""),"",CN59+CN60) -> 69.35 | CR61: =IF(TRIM(CQ61)="", "", IF(VLOOKUP(CQ61,'Footnotes list'!$D$9:$E$58,2,FALSE)=0,"",VLOOKUP(CQ61,'Footnotes list'!$D$9:$E$58,2,FALSE) ) ) ->  | CS61: =IF(AND(TRIM(CS59)="",TRIM(CS60)=""),"",CS59+CS60) -> 2650.355 | CW61: =IF(TRIM(CV61)="", "", IF(VLOOKUP(CV61,'Footnotes list'!$D$9:$E$58,2,FALSE)=0,"",VLOOKUP(CV61,'Footnotes list'!$D$9:$E$58,2,FALSE) ) ) ->  | CX61: =IF(AND(TRIM(CX59)="",TRIM(CX60)=""),"",CX59+CX60) -> 45.961 | DB61: =IF(TRIM(DA61)="", "", IF(VLOOKUP(DA61,'Footnotes list'!$D$9:$E$58,2,FALSE)=0,"",VLOOKUP(DA61,'Footnotes list'!$D$9:$E$58,2,FALSE) ) ) ->  | DC61: =IF(AND(TRIM(DC59)="",TRIM(DC60)=""),"",DC59+DC60) -> 35967.976 | DG61: =IF(TRIM(DF61)="", "", IF(VLOOKUP(DF61,'Footnotes list'!$D$9:$E$58,2,FALSE)=0,"",VLOOKUP(DF61,'Footnotes list'!$D$9:$E$58,2,FALSE) ) ) ->  | DH61: =IF(AND(TRIM(DH59)="", TRIM(DH60)=""), "", SUM(DH59,DH60) ) -> 44930.845 | DL61: =IF(TRIM(DK61)="", "", IF(VLOOKUP(DK61,'Footnotes list'!$D$9:$E$58,2,FALSE)=0,"",VLOOKUP(DK61,'Footnotes list'!$D$9:$E$58,2,FALSE) ) ) -> 
B62: W081 | C62: W081 | D62: Discarded vehicles | E62: HAZ | F62: Hazardous | G62: 631.549 | K62: =IF(TRIM(J62)="", "", IF(VLOOKUP(J62,'Footnotes list'!$D$9:$E$58,2,FALSE)=0,"",VLOOKUP(J62,'Footnotes list'!$D$9:$E$58,2,FALSE) ) ) ->  | L62: 0 | P62: =IF(TRIM(O62)="", "", IF(VLOOKUP(O62,'Footnotes list'!$D$9:$E$58,2,FALSE)=0,"",VLOOKUP(O62,'Footnotes list'!$D$9:$E$58,2,FALSE) ) ) ->  | Q62: 2.86 | U62: =IF(TRIM(T62)="", "", IF(VLOOKUP(T62,'Footnotes list'!$D$9:$E$58,2,FALSE)=0,"",VLOOKUP(T62,'Footnotes list'!$D$9:$E$58,2,FALSE) ) ) ->  | V62: 0 | Z62: =IF(TRIM(Y62)="", "", IF(VLOOKUP(Y62,'Footnotes list'!$D$9:$E$58,2,FALSE)=0,"",VLOOKUP(Y62,'Footnotes list'!$D$9:$E$58,2,FALSE) ) ) ->  | AA62: 0 | AE62: =IF(TRIM(AD62)="", "", IF(VLOOKUP(AD62,'Footnotes list'!$D$9:$E$58,2,FALSE)=0,"",VLOOKUP(AD62,'Footnotes list'!$D$9:$E$58,2,FALSE) ) ) ->  | AF62: 1 | AJ62: =IF(TRIM(AI62)="", "", IF(VLOOKUP(AI62,'Footnotes list'!$D$9:$E$58,2,FALSE)=0,"",VLOOKUP(AI62,'Footnotes list'!$D$9:$E$58,2,FALSE) ) ) ->  | AK62: 0 | AO62: =IF(TRIM(AN62)="", "", IF(VLOOKUP(AN62,'Footnotes list'!$D$9:$E$58,2,FALSE)=0,"",VLOOKUP(AN62,'Footnotes list'!$D$9:$E$58,2,FALSE) ) ) ->  | AP62: 1.1 | AT62: =IF(TRIM(AS62)="", "", IF(VLOOKUP(AS62,'Footnotes list'!$D$9:$E$58,2,FALSE)=0,"",VLOOKUP(AS62,'Footnotes list'!$D$9:$E$58,2,FALSE) ) ) ->  | AU62: 4.52 | AY62: =IF(TRIM(AX62)="", "", IF(VLOOKUP(AX62,'Footnotes list'!$D$9:$E$58,2,FALSE)=0,"",VLOOKUP(AX62,'Footnotes list'!$D$9:$E$58,2,FALSE) ) ) ->  | AZ62: 48.74 | BD62: =IF(TRIM(BC62)="", "", IF(VLOOKUP(BC62,'Footnotes list'!$D$9:$E$58,2,FALSE)=0,"",VLOOKUP(BC62,'Footnotes list'!$D$9:$E$58,2,FALSE) ) ) ->  | BE62: 7.34 | BI62: =IF(TRIM(BH62)="", "", IF(VLOOKUP(BH62,'Footnotes list'!$D$9:$E$58,2,FALSE)=0,"",VLOOKUP(BH62,'Footnotes list'!$D$9:$E$58,2,FALSE) ) ) ->  | BJ62: 0 | BN62: =IF(TRIM(BM62)="", "", IF(VLOOKUP(BM62,'Footnotes list'!$D$9:$E$58,2,FALSE)=0,"",VLOOKUP(BM62,'Footnotes list'!$D$9:$E$58,2,FALSE) ) ) ->  | BO62: =IF(AND(TRIM(Q62)="",TRIM(V62)="",TRIM(AA62)="", TRIM(AF62)="", TRIM(AK62)="", TRIM(AP62)="", TRIM(AU62)="", TRIM(AZ62)="", TRIM(BE62)="", TRIM(BJ62)=""),"",Q62+V62+AA62+AF62+AK62+AP62+AU62+AZ62+BE62+BJ62) -> 65.56 | BS62: =IF(TRIM(BR62)="", "", IF(VLOOKUP(BR62,'Footnotes list'!$D$9:$E$58,2,FALSE)=0,"",VLOOKUP(BR62,'Footnotes list'!$D$9:$E$58,2,FALSE) ) ) ->  | BT62: 0.94 | BX62: =IF(TRIM(BW62)="", "", IF(VLOOKUP(BW62,'Footnotes list'!$D$9:$E$58,2,FALSE)=0,"",VLOOKUP(BW62,'Footnotes list'!$D$9:$E$58,2,FALSE) ) ) ->  | BY62: 3.86 | CC62: =IF(TRIM(CB62)="", "", IF(VLOOKUP(CB62,'Footnotes list'!$D$9:$E$58,2,FALSE)=0,"",VLOOKUP(CB62,'Footnotes list'!$D$9:$E$58,2,FALSE) ) ) ->  | CD62: 17.422 | CH62: =IF(TRIM(CG62)="", "", IF(VLOOKUP(CG62,'Footnotes list'!$D$9:$E$58,2,FALSE)=0,"",VLOOKUP(CG62,'Footnotes list'!$D$9:$E$58,2,FALSE) ) ) ->  | CI62: =IF(AND(TRIM(BY62)="",TRIM(CD62)=""),"",BY62+CD62) -> 21.282 | CM62: =IF(TRIM(CL62)="", "", IF(VLOOKUP(CL62,'Footnotes list'!$D$9:$E$58,2,FALSE)=0,"",VLOOKUP(CL62,'Footnotes list'!$D$9:$E$58,2,FALSE) ) ) ->  | CN62: 22.48 | CR62: =IF(TRIM(CQ62)="", "", IF(VLOOKUP(CQ62,'Footnotes list'!$D$9:$E$58,2,FALSE)=0,"",VLOOKUP(CQ62,'Footnotes list'!$D$9:$E$58,2,FALSE) ) ) ->  | CS62: 1410.455 | CW62: =IF(TRIM(CV62)="", "", IF(VLOOKUP(CV62,'Footnotes list'!$D$9:$E$58,2,FALSE)=0,"",VLOOKUP(CV62,'Footnotes list'!$D$9:$E$58,2,FALSE) ) ) ->  | CX62: 33.52 | DB62: =IF(TRIM(DA62)="", "", IF(VLOOKUP(DA62,'Footnotes list'!$D$9:$E$58,2,FALSE)=0,"",VLOOKUP(DA62,'Footnotes list'!$D$9:$E$58,2,FALSE) ) ) ->  | DC62: 39917.214 | DG62: =IF(TRIM(DF62)="", "", IF(VLOOKUP(DF62,'Footnotes list'!$D$9:$E$58,2,FALSE)=0,"",VLOOKUP(DF62,'Footnotes list'!$D$9:$E$58,2,FALSE) ) ) ->  | DH62: =IF(AND(TRIM(G62)="",TRIM(L62)="",TRIM(BO62)="",TRIM(BT62)="",TRIM(CI62)="",TRIM(CN62)="",TRIM(CS62)="",TRIM(CX62)="",TRIM(DC62)=""),"",SUM(G62,L62,BO62,BT62,CI62,CN62,CS62,CX62,DC62)) -> 42103 | DL62: =IF(TRIM(DK62)="", "", IF(VLOOKUP(DK62,'Footnotes list'!$D$9:$E$58,2,FALSE)=0,"",VLOOKUP(DK62,'Footnotes list'!$D$9:$E$58,2,FALSE) ) ) -> 
C63: W081 | E63: NHAZ | F63: Non-hazardous | G63: 22.6 | K63: =IF(TRIM(J63)="", "", IF(VLOOKUP(J63,'Footnotes list'!$D$9:$E$58,2,FALSE)=0,"",VLOOKUP(J63,'Footnotes list'!$D$9:$E$58,2,FALSE) ) ) ->  | L63: 0 | P63: =IF(TRIM(O63)="", "", IF(VLOOKUP(O63,'Footnotes list'!$D$9:$E$58,2,FALSE)=0,"",VLOOKUP(O63,'Footnotes list'!$D$9:$E$58,2,FALSE) ) ) ->  | Q63: 9.76 | U63: =IF(TRIM(T63)="", "", IF(VLOOKUP(T63,'Footnotes list'!$D$9:$E$58,2,FALSE)=0,"",VLOOKUP(T63,'Footnotes list'!$D$9:$E$58,2,FALSE) ) ) ->  | V63: 0 | Z63: =IF(TRIM(Y63)="", "", IF(VLOOKUP(Y63,'Footnotes list'!$D$9:$E$58,2,FALSE)=0,"",VLOOKUP(Y63,'Footnotes list'!$D$9:$E$58,2,FALSE) ) ) ->  | AA63: 0 | AE63: =IF(TRIM(AD63)="", "", IF(VLOOKUP(AD63,'Footnotes list'!$D$9:$E$58,2,FALSE)=0,"",VLOOKUP(AD63,'Footnotes list'!$D$9:$E$58,2,FALSE) ) ) ->  | AF63: 0 | AJ63: =IF(TRIM(AI63)="", "", IF(VLOOKUP(AI63,'Footnotes list'!$D$9:$E$58,2,FALSE)=0,"",VLOOKUP(AI63,'Footnotes list'!$D$9:$E$58,2,FALSE) ) ) ->  | AK63: 0 | AO63: =IF(TRIM(AN63)="", "", IF(VLOOKUP(AN63,'Footnotes list'!$D$9:$E$58,2,FALSE)=0,"",VLOOKUP(AN63,'Footnotes list'!$D$9:$E$58,2,FALSE) ) ) ->  | AP63: 0 | AT63: =IF(TRIM(AS63)="", "", IF(VLOOKUP(AS63,'Footnotes list'!$D$9:$E$58,2,FALSE)=0,"",VLOOKUP(AS63,'Footnotes list'!$D$9:$E$58,2,FALSE) ) ) ->  | AU63: 0 | AY63: =IF(TRIM(AX63)="", "", IF(VLOOKUP(AX63,'Footnotes list'!$D$9:$E$58,2,FALSE)=0,"",VLOOKUP(AX63,'Footnotes list'!$D$9:$E$58,2,FALSE) ) ) ->  | AZ63: 0 | BD63: =IF(TRIM(BC63)="", "", IF(VLOOKUP(BC63,'Footnotes list'!$D$9:$E$58,2,FALSE)=0,"",VLOOKUP(BC63,'Footnotes list'!$D$9:$E$58,2,FALSE) ) ) ->  | BE63: 1.4 | BI63: =IF(TRIM(BH63)="", "", IF(VLOOKUP(BH63,'Footnotes list'!$D$9:$E$58,2,FALSE)=0,"",VLOOKUP(BH63,'Footnotes list'!$D$9:$E$58,2,FALSE) ) ) ->  | BJ63: 0 | BN63: =IF(TRIM(BM63)="", "", IF(VLOOKUP(BM63,'Footnotes list'!$D$9:$E$58,2,FALSE)=0,"",VLOOKUP(BM63,'Footnotes list'!$D$9:$E$58,2,FALSE) ) ) ->  | BO63: =IF(AND(TRIM(Q63)="",TRIM(V63)="",TRIM(AA63)="", TRIM(AF63)="", TRIM(AK63)="", TRIM(AP63)="", TRIM(AU63)="", TRIM(AZ63)="", TRIM(BE63)="", TRIM(BJ63)=""),"",Q63+V63+AA63+AF63+AK63+AP63+AU63+AZ63+BE63+BJ63) -> 11.16 | BS63: =IF(TRIM(BR63)="", "", IF(VLOOKUP(BR63,'Footnotes list'!$D$9:$E$58,2,FALSE)=0,"",VLOOKUP(BR63,'Footnotes list'!$D$9:$E$58,2,FALSE) ) ) ->  | BT63: 0.78 | BX63: =IF(TRIM(BW63)="", "", IF(VLOOKUP(BW63,'Footnotes list'!$D$9:$E$58,2,FALSE)=0,"",VLOOKUP(BW63,'Footnotes list'!$D$9:$E$58,2,FALSE) ) ) ->  | BY63: 0 | CC63: =IF(TRIM(CB63)="", "", IF(VLOOKUP(CB63,'Footnotes list'!$D$9:$E$58,2,FALSE)=0,"",VLOOKUP(CB63,'Footnotes list'!$D$9:$E$58,2,FALSE) ) ) ->  | CD63: 123.695 | CH63: =IF(TRIM(CG63)="", "", IF(VLOOKUP(CG63,'Footnotes list'!$D$9:$E$58,2,FALSE)=0,"",VLOOKUP(CG63,'Footnotes list'!$D$9:$E$58,2,FALSE) ) ) ->  | CI63: =IF(AND(TRIM(BY63)="",TRIM(CD63)=""),"",BY63+CD63) -> 123.695 | CM63: =IF(TRIM(CL63)="", "", IF(VLOOKUP(CL63,'Footnotes list'!$D$9:$E$58,2,FALSE)=0,"",VLOOKUP(CL63,'Footnotes list'!$D$9:$E$58,2,FALSE) ) ) ->  | CN63: 38.92 | CR63: =IF(TRIM(CQ63)="", "", IF(VLOOKUP(CQ63,'Footnotes list'!$D$9:$E$58,2,FALSE)=0,"",VLOOKUP(CQ63,'Footnotes list'!$D$9:$E$58,2,FALSE) ) ) ->  | CS63: 1173.986 | CW63: =IF(TRIM(CV63)="", "", IF(VLOOKUP(CV63,'Footnotes list'!$D$9:$E$58,2,FALSE)=0,"",VLOOKUP(CV63,'Footnotes list'!$D$9:$E$58,2,FALSE) ) ) ->  | CX63: 131.13 | DB63: =IF(TRIM(DA63)="", "", IF(VLOOKUP(DA63,'Footnotes list'!$D$9:$E$58,2,FALSE)=0,"",VLOOKUP(DA63,'Footnotes list'!$D$9:$E$58,2,FALSE) ) ) ->  | DC63: 3017.729 | DG63: =IF(TRIM(DF63)="", "", IF(VLOOKUP(DF63,'Footnotes list'!$D$9:$E$58,2,FALSE)=0,"",VLOOKUP(DF63,'Footnotes list'!$D$9:$E$58,2,FALSE) ) ) ->  | DH63: =IF(AND(TRIM(G63)="",TRIM(L63)="",TRIM(BO63)="",TRIM(BT63)="",TRIM(CI63)="",TRIM(CN63)="",TRIM(CS63)="",TRIM(CX63)="",TRIM(DC63)=""),"",SUM(G63,L63,BO63,BT63,CI63,CN63,CS63,CX63,DC63)) -> 4520 | DL63: =IF(TRIM(DK63)="", "", IF(VLOOKUP(DK63,'Footnotes list'!$D$9:$E$58,2,FALSE)=0,"",VLOOKUP(DK63,'Footnotes list'!$D$9:$E$58,2,FALSE) ) ) -> 
C64: W081 | E64: HAZ_NHAZ | F64: Total | G64: =IF(AND(TRIM(G62)="",TRIM(G63)=""),"",G62+G63) -> 654.149 | K64: =IF(TRIM(J64)="", "", IF(VLOOKUP(J64,'Footnotes list'!$D$9:$E$58,2,FALSE)=0,"",VLOOKUP(J64,'Footnotes list'!$D$9:$E$58,2,FALSE) ) ) ->  | L64: =IF(AND(TRIM(L62)="",TRIM(L63)=""),"",L62+L63) -> 0 | P64: =IF(TRIM(O64)="", "", IF(VLOOKUP(O64,'Footnotes list'!$D$9:$E$58,2,FALSE)=0,"",VLOOKUP(O64,'Footnotes list'!$D$9:$E$58,2,FALSE) ) ) ->  | Q64: =IF(AND(TRIM(Q62)="",TRIM(Q63)=""),"",Q62+Q63) -> 12.62 | U64: =IF(TRIM(T64)="", "", IF(VLOOKUP(T64,'Footnotes list'!$D$9:$E$58,2,FALSE)=0,"",VLOOKUP(T64,'Footnotes list'!$D$9:$E$58,2,FALSE) ) ) ->  | V64: =IF(AND(TRIM(V62)="",TRIM(V63)=""),"",V62+V63) -> 0 | Z64: =IF(TRIM(Y64)="", "", IF(VLOOKUP(Y64,'Footnotes list'!$D$9:$E$58,2,FALSE)=0,"",VLOOKUP(Y64,'Footnotes list'!$D$9:$E$58,2,FALSE) ) ) ->  | AA64: =IF(AND(TRIM(AA62)="",TRIM(AA63)=""),"",AA62+AA63) -> 0 | AE64: =IF(TRIM(AD64)="", "", IF(VLOOKUP(AD64,'Footnotes list'!$D$9:$E$58,2,FALSE)=0,"",VLOOKUP(AD64,'Footnotes list'!$D$9:$E$58,2,FALSE) ) ) ->  | AF64: =IF(AND(TRIM(AF62)="",TRIM(AF63)=""),"",AF62+AF63) -> 1 | AJ64: =IF(TRIM(AI64)="", "", IF(VLOOKUP(AI64,'Footnotes list'!$D$9:$E$58,2,FALSE)=0,"",VLOOKUP(AI64,'Footnotes list'!$D$9:$E$58,2,FALSE) ) ) ->  | AK64: =IF(AND(TRIM(AK62)="",TRIM(AK63)=""),"",AK62+AK63) -> 0 | AO64: =IF(TRIM(AN64)="", "", IF(VLOOKUP(AN64,'Footnotes list'!$D$9:$E$58,2,FALSE)=0,"",VLOOKUP(AN64,'Footnotes list'!$D$9:$E$58,2,FALSE) ) ) ->  | AP64: =IF(AND(TRIM(AP62)="",TRIM(AP63)=""),"",AP62+AP63) -> 1.1 | AT64: =IF(TRIM(AS64)="", "", IF(VLOOKUP(AS64,'Footnotes list'!$D$9:$E$58,2,FALSE)=0,"",VLOOKUP(AS64,'Footnotes list'!$D$9:$E$58,2,FALSE) ) ) ->  | AU64: =IF(AND(TRIM(AU62)="",TRIM(AU63)=""),"",AU62+AU63) -> 4.52 | AY64: =IF(TRIM(AX64)="", "", IF(VLOOKUP(AX64,'Footnotes list'!$D$9:$E$58,2,FALSE)=0,"",VLOOKUP(AX64,'Footnotes list'!$D$9:$E$58,2,FALSE) ) ) ->  | AZ64: =IF(AND(TRIM(AZ62)="",TRIM(AZ63)=""),"",AZ62+AZ63) -> 48.74 | BD64: =IF(TRIM(BC64)="", "", IF(VLOOKUP(BC64,'Footnotes list'!$D$9:$E$58,2,FALSE)=0,"",VLOOKUP(BC64,'Footnotes list'!$D$9:$E$58,2,FALSE) ) ) ->  | BE64: =IF(AND(TRIM(BE62)="",TRIM(BE63)=""),"",BE62+BE63) -> 8.74 | BI64: =IF(TRIM(BH64)="", "", IF(VLOOKUP(BH64,'Footnotes list'!$D$9:$E$58,2,FALSE)=0,"",VLOOKUP(BH64,'Footnotes list'!$D$9:$E$58,2,FALSE) ) ) ->  | BJ64: =IF(AND(TRIM(BJ62)="",TRIM(BJ63)=""),"",BJ62+BJ63) -> 0 | BN64: =IF(TRIM(BM64)="", "", IF(VLOOKUP(BM64,'Footnotes list'!$D$9:$E$58,2,FALSE)=0,"",VLOOKUP(BM64,'Footnotes list'!$D$9:$E$58,2,FALSE) ) ) ->  | BO64: =IF(AND(TRIM(BO62)="", TRIM(BO63)=""), "", (IF(ISNUMBER(BO62),BO62,0)+IF(ISNUMBER(BO63),BO63,0))) -> 76.72 | BS64: =IF(TRIM(BR64)="", "", IF(VLOOKUP(BR64,'Footnotes list'!$D$9:$E$58,2,FALSE)=0,"",VLOOKUP(BR64,'Footnotes list'!$D$9:$E$58,2,FALSE) ) ) ->  | BT64: =IF(AND(TRIM(BT62)="",TRIM(BT63)=""),"",BT62+BT63) -> 1.72 | BX64: =IF(TRIM(BW64)="", "", IF(VLOOKUP(BW64,'Footnotes list'!$D$9:$E$58,2,FALSE)=0,"",VLOOKUP(BW64,'Footnotes list'!$D$9:$E$58,2,FALSE) ) ) ->  | BY64: =IF(AND(TRIM(BY62)="",TRIM(BY63)=""),"",BY62+BY63) -> 3.86 | CC64: =IF(TRIM(CB64)="", "", IF(VLOOKUP(CB64,'Footnotes list'!$D$9:$E$58,2,FALSE)=0,"",VLOOKUP(CB64,'Footnotes list'!$D$9:$E$58,2,FALSE) ) ) ->  | CD64: =IF(AND(TRIM(CD62)="",TRIM(CD63)=""),"",CD62+CD63) -> 141.117 | CH64: =IF(TRIM(CG64)="", "", IF(VLOOKUP(CG64,'Footnotes list'!$D$9:$E$58,2,FALSE)=0,"",VLOOKUP(CG64,'Footnotes list'!$D$9:$E$58,2,FALSE) ) ) ->  | CI64: =IF(AND(TRIM(CI62)="", TRIM(CI63)=""), "", (IF(ISNUMBER(CI62),CI62,0)+IF(ISNUMBER(CI63),CI63,0))) -> 144.977 | CM64: =IF(TRIM(CL64)="", "", IF(VLOOKUP(CL64,'Footnotes list'!$D$9:$E$58,2,FALSE)=0,"",VLOOKUP(CL64,'Footnotes list'!$D$9:$E$58,2,FALSE) ) ) ->  | CN64: =IF(AND(TRIM(CN62)="",TRIM(CN63)=""),"",CN62+CN63) -> 61.4 | CR64: =IF(TRIM(CQ64)="", "", IF(VLOOKUP(CQ64,'Footnotes list'!$D$9:$E$58,2,FALSE)=0,"",VLOOKUP(CQ64,'Footnotes list'!$D$9:$E$58,2,FALSE) ) ) ->  | CS64: =IF(AND(TRIM(CS62)="",TRIM(CS63)=""),"",CS62+CS63) -> 2584.441 | CW64: =IF(TRIM(CV64)="", "", IF(VLOOKUP(CV64,'Footnotes list'!$D$9:$E$58,2,FALSE)=0,"",VLOOKUP(CV64,'Footnotes list'!$D$9:$E$58,2,FALSE) ) ) ->  | CX64: =IF(AND(TRIM(CX62)="",TRIM(CX63)=""),"",CX62+CX63) -> 164.65 | DB64: =IF(TRIM(DA64)="", "", IF(VLOOKUP(DA64,'Footnotes list'!$D$9:$E$58,2,FALSE)=0,"",VLOOKUP(DA64,'Footnotes list'!$D$9:$E$58,2,FALSE) ) ) ->  | DC64: =IF(AND(TRIM(DC62)="",TRIM(DC63)=""),"",DC62+DC63) -> 42934.943 | DG64: =IF(TRIM(DF64)="", "", IF(VLOOKUP(DF64,'Footnotes list'!$D$9:$E$58,2,FALSE)=0,"",VLOOKUP(DF64,'Footnotes list'!$D$9:$E$58,2,FALSE) ) ) ->  | DH64: =IF(AND(TRIM(DH62)="", TRIM(DH63)=""), "", SUM(DH62,DH63) ) -> 46623 | DL64: =IF(TRIM(DK64)="", "", IF(VLOOKUP(DK64,'Footnotes list'!$D$9:$E$58,2,FALSE)=0,"",VLOOKUP(DK64,'Footnotes list'!$D$9:$E$58,2,FALSE) ) ) -> 
B65: W0841 | C65: W0841 | D65: Batteries and accumulators wastes | E65: HAZ | F65: Hazardous | G65: 23.14 | K65: =IF(TRIM(J65)="", "", IF(VLOOKUP(J65,'Footnotes list'!$D$9:$E$58,2,FALSE)=0,"",VLOOKUP(J65,'Footnotes list'!$D$9:$E$58,2,FALSE) ) ) ->  | L65: 13.119 | P65: =IF(TRIM(O65)="", "", IF(VLOOKUP(O65,'Footnotes list'!$D$9:$E$58,2,FALSE)=0,"",VLOOKUP(O65,'Footnotes list'!$D$9:$E$58,2,FALSE) ) ) ->  | Q65: 8.274 | U65: =IF(TRIM(T65)="", "", IF(VLOOKUP(T65,'Footnotes list'!$D$9:$E$58,2,FALSE)=0,"",VLOOKUP(T65,'Footnotes list'!$D$9:$E$58,2,FALSE) ) ) ->  | V65: 2.853 | Z65: =IF(TRIM(Y65)="", "", IF(VLOOKUP(Y65,'Footnotes list'!$D$9:$E$58,2,FALSE)=0,"",VLOOKUP(Y65,'Footnotes list'!$D$9:$E$58,2,FALSE) ) ) ->  | AA65: 11.603 | AE65: =IF(TRIM(AD65)="", "", IF(VLOOKUP(AD65,'Footnotes list'!$D$9:$E$58,2,FALSE)=0,"",VLOOKUP(AD65,'Footnotes list'!$D$9:$E$58,2,FALSE) ) ) ->  | AF65: 0.261 | AJ65: =IF(TRIM(AI65)="", "", IF(VLOOKUP(AI65,'Footnotes list'!$D$9:$E$58,2,FALSE)=0,"",VLOOKUP(AI65,'Footnotes list'!$D$9:$E$58,2,FALSE) ) ) ->  | AK65: 0.05 | AO65: =IF(TRIM(AN65)="", "", IF(VLOOKUP(AN65,'Footnotes list'!$D$9:$E$58,2,FALSE)=0,"",VLOOKUP(AN65,'Footnotes list'!$D$9:$E$58,2,FALSE) ) ) ->  | AP65: 10.19 | AT65: =IF(TRIM(AS65)="", "", IF(VLOOKUP(AS65,'Footnotes list'!$D$9:$E$58,2,FALSE)=0,"",VLOOKUP(AS65,'Footnotes list'!$D$9:$E$58,2,FALSE) ) ) ->  | AU65: 9.411 | AY65: =IF(TRIM(AX65)="", "", IF(VLOOKUP(AX65,'Footnotes list'!$D$9:$E$58,2,FALSE)=0,"",VLOOKUP(AX65,'Footnotes list'!$D$9:$E$58,2,FALSE) ) ) ->  | AZ65: 2337.16 | BD65: =IF(TRIM(BC65)="", "", IF(VLOOKUP(BC65,'Footnotes list'!$D$9:$E$58,2,FALSE)=0,"",VLOOKUP(BC65,'Footnotes list'!$D$9:$E$58,2,FALSE) ) ) ->  | BE65: 149.032 | BI65: =IF(TRIM(BH65)="", "", IF(VLOOKUP(BH65,'Footnotes list'!$D$9:$E$58,2,FALSE)=0,"",VLOOKUP(BH65,'Footnotes list'!$D$9:$E$58,2,FALSE) ) ) ->  | BJ65: 81.68 | BN65: =IF(TRIM(BM65)="", "", IF(VLOOKUP(BM65,'Footnotes list'!$D$9:$E$58,2,FALSE)=0,"",VLOOKUP(BM65,'Footnotes list'!$D$9:$E$58,2,FALSE) ) ) ->  | BO65: =IF(AND(TRIM(Q65)="",TRIM(V65)="",TRIM(AA65)="", TRIM(AF65)="", TRIM(AK65)="", TRIM(AP65)="", TRIM(AU65)="", TRIM(AZ65)="", TRIM(BE65)="", TRIM(BJ65)=""),"",Q65+V65+AA65+AF65+AK65+AP65+AU65+AZ65+BE65+BJ65) -> 2610.514 | BS65: =IF(TRIM(BR65)="", "", IF(VLOOKUP(BR65,'Footnotes list'!$D$9:$E$58,2,FALSE)=0,"",VLOOKUP(BR65,'Footnotes list'!$D$9:$E$58,2,FALSE) ) ) ->  | BT65: 60.489 | BX65: =IF(TRIM(BW65)="", "", IF(VLOOKUP(BW65,'Footnotes list'!$D$9:$E$58,2,FALSE)=0,"",VLOOKUP(BW65,'Footnotes list'!$D$9:$E$58,2,FALSE) ) ) ->  | BY65: 3.11 | CC65: =IF(TRIM(CB65)="", "", IF(VLOOKUP(CB65,'Footnotes list'!$D$9:$E$58,2,FALSE)=0,"",VLOOKUP(CB65,'Footnotes list'!$D$9:$E$58,2,FALSE) ) ) ->  | CD65: 1052.446 | CH65: =IF(TRIM(CG65)="", "", IF(VLOOKUP(CG65,'Footnotes list'!$D$9:$E$58,2,FALSE)=0,"",VLOOKUP(CG65,'Footnotes list'!$D$9:$E$58,2,FALSE) ) ) ->  | CI65: =IF(AND(TRIM(BY65)="",TRIM(CD65)=""),"",BY65+CD65) -> 1055.556 | CM65: =IF(TRIM(CL65)="", "", IF(VLOOKUP(CL65,'Footnotes list'!$D$9:$E$58,2,FALSE)=0,"",VLOOKUP(CL65,'Footnotes list'!$D$9:$E$58,2,FALSE) ) ) ->  | CN65: 62.129 | CR65: =IF(TRIM(CQ65)="", "", IF(VLOOKUP(CQ65,'Footnotes list'!$D$9:$E$58,2,FALSE)=0,"",VLOOKUP(CQ65,'Footnotes list'!$D$9:$E$58,2,FALSE) ) ) ->  | CS65: 1075.558 | CW65: =IF(TRIM(CV65)="", "", IF(VLOOKUP(CV65,'Footnotes list'!$D$9:$E$58,2,FALSE)=0,"",VLOOKUP(CV65,'Footnotes list'!$D$9:$E$58,2,FALSE) ) ) ->  | CX65: 0 | DB65: =IF(TRIM(DA65)="", "", IF(VLOOKUP(DA65,'Footnotes list'!$D$9:$E$58,2,FALSE)=0,"",VLOOKUP(DA65,'Footnotes list'!$D$9:$E$58,2,FALSE) ) ) ->  | DC65: 6063.993 | DG65: =IF(TRIM(DF65)="", "", IF(VLOOKUP(DF65,'Footnotes list'!$D$9:$E$58,2,FALSE)=0,"",VLOOKUP(DF65,'Footnotes list'!$D$9:$E$58,2,FALSE) ) ) ->  | DH65: =IF(AND(TRIM(G65)="",TRIM(L65)="",TRIM(BO65)="",TRIM(BT65)="",TRIM(CI65)="",TRIM(CN65)="",TRIM(CS65)="",TRIM(CX65)="",TRIM(DC65)=""),"",SUM(G65,L65,BO65,BT65,CI65,CN65,CS65,CX65,DC65)) -> 10964.498 | DL65: =IF(TRIM(DK65)="", "", IF(VLOOKUP(DK65,'Footnotes list'!$D$9:$E$58,2,FALSE)=0,"",VLOOKUP(DK65,'Footnotes list'!$D$9:$E$58,2,FALSE) ) ) -> 
C66: W0841 | E66: NHAZ | F66: Non-hazardous | G66: 0 | K66: =IF(TRIM(J66)="", "", IF(VLOOKUP(J66,'Footnotes list'!$D$9:$E$58,2,FALSE)=0,"",VLOOKUP(J66,'Footnotes list'!$D$9:$E$58,2,FALSE) ) ) ->  | L66: 0.06 | P66: =IF(TRIM(O66)="", "", IF(VLOOKUP(O66,'Footnotes list'!$D$9:$E$58,2,FALSE)=0,"",VLOOKUP(O66,'Footnotes list'!$D$9:$E$58,2,FALSE) ) ) ->  | Q66: 0.363 | U66: =IF(TRIM(T66)="", "", IF(VLOOKUP(T66,'Footnotes list'!$D$9:$E$58,2,FALSE)=0,"",VLOOKUP(T66,'Footnotes list'!$D$9:$E$58,2,FALSE) ) ) ->  | V66: 0 | Z66: =IF(TRIM(Y66)="", "", IF(VLOOKUP(Y66,'Footnotes list'!$D$9:$E$58,2,FALSE)=0,"",VLOOKUP(Y66,'Footnotes list'!$D$9:$E$58,2,FALSE) ) ) ->  | AA66: 0 | AE66: =IF(TRIM(AD66)="", "", IF(VLOOKUP(AD66,'Footnotes list'!$D$9:$E$58,2,FALSE)=0,"",VLOOKUP(AD66,'Footnotes list'!$D$9:$E$58,2,FALSE) ) ) ->  | AF66: 0.041 | AJ66: =IF(TRIM(AI66)="", "", IF(VLOOKUP(AI66,'Footnotes list'!$D$9:$E$58,2,FALSE)=0,"",VLOOKUP(AI66,'Footnotes list'!$D$9:$E$58,2,FALSE) ) ) ->  | AK66: 0.041 | AO66: =IF(TRIM(AN66)="", "", IF(VLOOKUP(AN66,'Footnotes list'!$D$9:$E$58,2,FALSE)=0,"",VLOOKUP(AN66,'Footnotes list'!$D$9:$E$58,2,FALSE) ) ) ->  | AP66: 0.054 | AT66: =IF(TRIM(AS66)="", "", IF(VLOOKUP(AS66,'Footnotes list'!$D$9:$E$58,2,FALSE)=0,"",VLOOKUP(AS66,'Footnotes list'!$D$9:$E$58,2,FALSE) ) ) ->  | AU66: 0.016 | AY66: =IF(TRIM(AX66)="", "", IF(VLOOKUP(AX66,'Footnotes list'!$D$9:$E$58,2,FALSE)=0,"",VLOOKUP(AX66,'Footnotes list'!$D$9:$E$58,2,FALSE) ) ) ->  | AZ66: 32.985 | BD66: =IF(TRIM(BC66)="", "", IF(VLOOKUP(BC66,'Footnotes list'!$D$9:$E$58,2,FALSE)=0,"",VLOOKUP(BC66,'Footnotes list'!$D$9:$E$58,2,FALSE) ) ) ->  | BE66: 38.568 | BI66: =IF(TRIM(BH66)="", "", IF(VLOOKUP(BH66,'Footnotes list'!$D$9:$E$58,2,FALSE)=0,"",VLOOKUP(BH66,'Footnotes list'!$D$9:$E$58,2,FALSE) ) ) ->  | BJ66: 0.085 | BN66: =IF(TRIM(BM66)="", "", IF(VLOOKUP(BM66,'Footnotes list'!$D$9:$E$58,2,FALSE)=0,"",VLOOKUP(BM66,'Footnotes list'!$D$9:$E$58,2,FALSE) ) ) ->  | BO66: =IF(AND(TRIM(Q66)="",TRIM(V66)="",TRIM(AA66)="", TRIM(AF66)="", TRIM(AK66)="", TRIM(AP66)="", TRIM(AU66)="", TRIM(AZ66)="", TRIM(BE66)="", TRIM(BJ66)=""),"",Q66+V66+AA66+AF66+AK66+AP66+AU66+AZ66+BE66+BJ66) -> 72.153 | BS66: =IF(TRIM(BR66)="", "", IF(VLOOKUP(BR66,'Footnotes list'!$D$9:$E$58,2,FALSE)=0,"",VLOOKUP(BR66,'Footnotes list'!$D$9:$E$58,2,FALSE) ) ) ->  | BT66: 0.038 | BX66: =IF(TRIM(BW66)="", "", IF(VLOOKUP(BW66,'Footnotes list'!$D$9:$E$58,2,FALSE)=0,"",VLOOKUP(BW66,'Footnotes list'!$D$9:$E$58,2,FALSE) ) ) ->  | BY66: 0.023 | CC66: =IF(TRIM(CB66)="", "", IF(VLOOKUP(CB66,'Footnotes list'!$D$9:$E$58,2,FALSE)=0,"",VLOOKUP(CB66,'Footnotes list'!$D$9:$E$58,2,FALSE) ) ) ->  | CD66: 0.598 | CH66: =IF(TRIM(CG66)="", "", IF(VLOOKUP(CG66,'Footnotes list'!$D$9:$E$58,2,FALSE)=0,"",VLOOKUP(CG66,'Footnotes list'!$D$9:$E$58,2,FALSE) ) ) ->  | CI66: =IF(AND(TRIM(BY66)="",TRIM(CD66)=""),"",BY66+CD66) -> 0.621 | CM66: =IF(TRIM(CL66)="", "", IF(VLOOKUP(CL66,'Footnotes list'!$D$9:$E$58,2,FALSE)=0,"",VLOOKUP(CL66,'Footnotes list'!$D$9:$E$58,2,FALSE) ) ) ->  | CN66: 0 | CR66: =IF(TRIM(CQ66)="", "", IF(VLOOKUP(CQ66,'Footnotes list'!$D$9:$E$58,2,FALSE)=0,"",VLOOKUP(CQ66,'Footnotes list'!$D$9:$E$58,2,FALSE) ) ) ->  | CS66: 34.293 | CW66: =IF(TRIM(CV66)="", "", IF(VLOOKUP(CV66,'Footnotes list'!$D$9:$E$58,2,FALSE)=0,"",VLOOKUP(CV66,'Footnotes list'!$D$9:$E$58,2,FALSE) ) ) ->  | CX66: 0 | DB66: =IF(TRIM(DA66)="", "", IF(VLOOKUP(DA66,'Footnotes list'!$D$9:$E$58,2,FALSE)=0,"",VLOOKUP(DA66,'Footnotes list'!$D$9:$E$58,2,FALSE) ) ) ->  | DC66: 18.091 | DG66: =IF(TRIM(DF66)="", "", IF(VLOOKUP(DF66,'Footnotes list'!$D$9:$E$58,2,FALSE)=0,"",VLOOKUP(DF66,'Footnotes list'!$D$9:$E$58,2,FALSE) ) ) ->  | DH66: =IF(AND(TRIM(G66)="",TRIM(L66)="",TRIM(BO66)="",TRIM(BT66)="",TRIM(CI66)="",TRIM(CN66)="",TRIM(CS66)="",TRIM(CX66)="",TRIM(DC66)=""),"",SUM(G66,L66,BO66,BT66,CI66,CN66,CS66,CX66,DC66)) -> 125.256 | DL66: =IF(TRIM(DK66)="", "", IF(VLOOKUP(DK66,'Footnotes list'!$D$9:$E$58,2,FALSE)=0,"",VLOOKUP(DK66,'Footnotes list'!$D$9:$E$58,2,FALSE) ) ) -> 
C67: W0841 | E67: HAZ_NHAZ | F67: Total | G67: =IF(AND(TRIM(G65)="",TRIM(G66)=""),"",G65+G66) -> 23.14 | K67: =IF(TRIM(J67)="", "", IF(VLOOKUP(J67,'Footnotes list'!$D$9:$E$58,2,FALSE)=0,"",VLOOKUP(J67,'Footnotes list'!$D$9:$E$58,2,FALSE) ) ) ->  | L67: =IF(AND(TRIM(L65)="",TRIM(L66)=""),"",L65+L66) -> 13.179 | P67: =IF(TRIM(O67)="", "", IF(VLOOKUP(O67,'Footnotes list'!$D$9:$E$58,2,FALSE)=0,"",VLOOKUP(O67,'Footnotes list'!$D$9:$E$58,2,FALSE) ) ) ->  | Q67: =IF(AND(TRIM(Q65)="",TRIM(Q66)=""),"",Q65+Q66) -> 8.637 | U67: =IF(TRIM(T67)="", "", IF(VLOOKUP(T67,'Footnotes list'!$D$9:$E$58,2,FALSE)=0,"",VLOOKUP(T67,'Footnotes list'!$D$9:$E$58,2,FALSE) ) ) ->  | V67: =IF(AND(TRIM(V65)="",TRIM(V66)=""),"",V65+V66) -> 2.853 | Z67: =IF(TRIM(Y67)="", "", IF(VLOOKUP(Y67,'Footnotes list'!$D$9:$E$58,2,FALSE)=0,"",VLOOKUP(Y67,'Footnotes list'!$D$9:$E$58,2,FALSE) ) ) ->  | AA67: =IF(AND(TRIM(AA65)="",TRIM(AA66)=""),"",AA65+AA66) -> 11.603 | AE67: =IF(TRIM(AD67)="", "", IF(VLOOKUP(AD67,'Footnotes list'!$D$9:$E$58,2,FALSE)=0,"",VLOOKUP(AD67,'Footnotes list'!$D$9:$E$58,2,FALSE) ) ) ->  | AF67: =IF(AND(TRIM(AF65)="",TRIM(AF66)=""),"",AF65+AF66) -> 0.302 | AJ67: =IF(TRIM(AI67)="", "", IF(VLOOKUP(AI67,'Footnotes list'!$D$9:$E$58,2,FALSE)=0,"",VLOOKUP(AI67,'Footnotes list'!$D$9:$E$58,2,FALSE) ) ) ->  | AK67: =IF(AND(TRIM(AK65)="",TRIM(AK66)=""),"",AK65+AK66) -> 0.091 | AO67: =IF(TRIM(AN67)="", "", IF(VLOOKUP(AN67,'Footnotes list'!$D$9:$E$58,2,FALSE)=0,"",VLOOKUP(AN67,'Footnotes list'!$D$9:$E$58,2,FALSE) ) ) ->  | AP67: =IF(AND(TRIM(AP65)="",TRIM(AP66)=""),"",AP65+AP66) -> 10.244 | AT67: =IF(TRIM(AS67)="", "", IF(VLOOKUP(AS67,'Footnotes list'!$D$9:$E$58,2,FALSE)=0,"",VLOOKUP(AS67,'Footnotes list'!$D$9:$E$58,2,FALSE) ) ) ->  | AU67: =IF(AND(TRIM(AU65)="",TRIM(AU66)=""),"",AU65+AU66) -> 9.427 | AY67: =IF(TRIM(AX67)="", "", IF(VLOOKUP(AX67,'Footnotes list'!$D$9:$E$58,2,FALSE)=0,"",VLOOKUP(AX67,'Footnotes list'!$D$9:$E$58,2,FALSE) ) ) ->  | AZ67: =IF(AND(TRIM(AZ65)="",TRIM(AZ66)=""),"",AZ65+AZ66) -> 2370.145 | BD67: =IF(TRIM(BC67)="", "", IF(VLOOKUP(BC67,'Footnotes list'!$D$9:$E$58,2,FALSE)=0,"",VLOOKUP(BC67,'Footnotes list'!$D$9:$E$58,2,FALSE) ) ) ->  | BE67: =IF(AND(TRIM(BE65)="",TRIM(BE66)=""),"",BE65+BE66) -> 187.6 | BI67: =IF(TRIM(BH67)="", "", IF(VLOOKUP(BH67,'Footnotes list'!$D$9:$E$58,2,FALSE)=0,"",VLOOKUP(BH67,'Footnotes list'!$D$9:$E$58,2,FALSE) ) ) ->  | BJ67: =IF(AND(TRIM(BJ65)="",TRIM(BJ66)=""),"",BJ65+BJ66) -> 81.765 | BN67: =IF(TRIM(BM67)="", "", IF(VLOOKUP(BM67,'Footnotes list'!$D$9:$E$58,2,FALSE)=0,"",VLOOKUP(BM67,'Footnotes list'!$D$9:$E$58,2,FALSE) ) ) ->  | BO67: =IF(AND(TRIM(BO65)="", TRIM(BO66)=""), "", (IF(ISNUMBER(BO65),BO65,0)+IF(ISNUMBER(BO66),BO66,0))) -> 2682.667 | BS67: =IF(TRIM(BR67)="", "", IF(VLOOKUP(BR67,'Footnotes list'!$D$9:$E$58,2,FALSE)=0,"",VLOOKUP(BR67,'Footnotes list'!$D$9:$E$58,2,FALSE) ) ) ->  | BT67: =IF(AND(TRIM(BT65)="",TRIM(BT66)=""),"",BT65+BT66) -> 60.527 | BX67: =IF(TRIM(BW67)="", "", IF(VLOOKUP(BW67,'Footnotes list'!$D$9:$E$58,2,FALSE)=0,"",VLOOKUP(BW67,'Footnotes list'!$D$9:$E$58,2,FALSE) ) ) ->  | BY67: =IF(AND(TRIM(BY65)="",TRIM(BY66)=""),"",BY65+BY66) -> 3.133 | CC67: =IF(TRIM(CB67)="", "", IF(VLOOKUP(CB67,'Footnotes list'!$D$9:$E$58,2,FALSE)=0,"",VLOOKUP(CB67,'Footnotes list'!$D$9:$E$58,2,FALSE) ) ) ->  | CD67: =IF(AND(TRIM(CD65)="",TRIM(CD66)=""),"",CD65+CD66) -> 1053.044 | CH67: =IF(TRIM(CG67)="", "", IF(VLOOKUP(CG67,'Footnotes list'!$D$9:$E$58,2,FALSE)=0,"",VLOOKUP(CG67,'Footnotes list'!$D$9:$E$58,2,FALSE) ) ) ->  | CI67: =IF(AND(TRIM(CI65)="", TRIM(CI66)=""), "", (IF(ISNUMBER(CI65),CI65,0)+IF(ISNUMBER(CI66),CI66,0))) -> 1056.177 | CM67: =IF(TRIM(CL67)="", "", IF(VLOOKUP(CL67,'Footnotes list'!$D$9:$E$58,2,FALSE)=0,"",VLOOKUP(CL67,'Footnotes list'!$D$9:$E$58,2,FALSE) ) ) ->  | CN67: =IF(AND(TRIM(CN65)="",TRIM(CN66)=""),"",CN65+CN66) -> 62.129 | CR67: =IF(TRIM(CQ67)="", "", IF(VLOOKUP(CQ67,'Footnotes list'!$D$9:$E$58,2,FALSE)=0,"",VLOOKUP(CQ67,'Footnotes list'!$D$9:$E$58,2,FALSE) ) ) ->  | CS67: =IF(AND(TRIM(CS65)="",TRIM(CS66)=""),"",CS65+CS66) -> 1109.851 | CW67: =IF(TRIM(CV67)="", "", IF(VLOOKUP(CV67,'Footnotes list'!$D$9:$E$58,2,FALSE)=0,"",VLOOKUP(CV67,'Footnotes list'!$D$9:$E$58,2,FALSE) ) ) ->  | CX67: =IF(AND(TRIM(CX65)="",TRIM(CX66)=""),"",CX65+CX66) -> 0 | DB67: =IF(TRIM(DA67)="", "", IF(VLOOKUP(DA67,'Footnotes list'!$D$9:$E$58,2,FALSE)=0,"",VLOOKUP(DA67,'Footnotes list'!$D$9:$E$58,2,FALSE) ) ) ->  | DC67: =IF(AND(TRIM(DC65)="",TRIM(DC66)=""),"",DC65+DC66) -> 6082.084 | DG67: =IF(TRIM(DF67)="", "", IF(VLOOKUP(DF67,'Footnotes list'!$D$9:$E$58,2,FALSE)=0,"",VLOOKUP(DF67,'Footnotes list'!$D$9:$E$58,2,FALSE) ) ) ->  | DH67: =IF(AND(TRIM(DH65)="", TRIM(DH66)=""), "", SUM(DH65,DH66) ) -> 11089.754 | DL67: =IF(TRIM(DK67)="", "", IF(VLOOKUP(DK67,'Footnotes list'!$D$9:$E$58,2,FALSE)=0,"",VLOOKUP(DK67,'Footnotes list'!$D$9:$E$58,2,FALSE) ) ) -> 
B68: W091 | D68: Animal and mixed food waste | F68: Not applicable
C69: W091 | E69: NHAZ | F69: Non-hazardous | G69: 591.29 | K69: =IF(TRIM(J69)="", "", IF(VLOOKUP(J69,'Footnotes list'!$D$9:$E$58,2,FALSE)=0,"",VLOOKUP(J69,'Footnotes list'!$D$9:$E$58,2,FALSE) ) ) ->  | L69: 0 | P69: =IF(TRIM(O69)="", "", IF(VLOOKUP(O69,'Footnotes list'!$D$9:$E$58,2,FALSE)=0,"",VLOOKUP(O69,'Footnotes list'!$D$9:$E$58,2,FALSE) ) ) ->  | Q69: 33729.069 | U69: =IF(TRIM(T69)="", "", IF(VLOOKUP(T69,'Footnotes list'!$D$9:$E$58,2,FALSE)=0,"",VLOOKUP(T69,'Footnotes list'!$D$9:$E$58,2,FALSE) ) ) ->  | V69: 2.613 | Z69: =IF(TRIM(Y69)="", "", IF(VLOOKUP(Y69,'Footnotes list'!$D$9:$E$58,2,FALSE)=0,"",VLOOKUP(Y69,'Footnotes list'!$D$9:$E$58,2,FALSE) ) ) ->  | AA69: 0.85 | AE69: =IF(TRIM(AD69)="", "", IF(VLOOKUP(AD69,'Footnotes list'!$D$9:$E$58,2,FALSE)=0,"",VLOOKUP(AD69,'Footnotes list'!$D$9:$E$58,2,FALSE) ) ) ->  | AF69: 32.239 | AJ69: =IF(TRIM(AI69)="", "", IF(VLOOKUP(AI69,'Footnotes list'!$D$9:$E$58,2,FALSE)=0,"",VLOOKUP(AI69,'Footnotes list'!$D$9:$E$58,2,FALSE) ) ) ->  | AK69: 9.62 | AO69: =IF(TRIM(AN69)="", "", IF(VLOOKUP(AN69,'Footnotes list'!$D$9:$E$58,2,FALSE)=0,"",VLOOKUP(AN69,'Footnotes list'!$D$9:$E$58,2,FALSE) ) ) ->  | AP69: 27.805 | AT69: =IF(TRIM(AS69)="", "", IF(VLOOKUP(AS69,'Footnotes list'!$D$9:$E$58,2,FALSE)=0,"",VLOOKUP(AS69,'Footnotes list'!$D$9:$E$58,2,FALSE) ) ) ->  | AU69: 9.91 | AY69: =IF(TRIM(AX69)="", "", IF(VLOOKUP(AX69,'Footnotes list'!$D$9:$E$58,2,FALSE)=0,"",VLOOKUP(AX69,'Footnotes list'!$D$9:$E$58,2,FALSE) ) ) ->  | AZ69: 15.115 | BD69: =IF(TRIM(BC69)="", "", IF(VLOOKUP(BC69,'Footnotes list'!$D$9:$E$58,2,FALSE)=0,"",VLOOKUP(BC69,'Footnotes list'!$D$9:$E$58,2,FALSE) ) ) ->  | BE69: 39.139 | BI69: =IF(TRIM(BH69)="", "", IF(VLOOKUP(BH69,'Footnotes list'!$D$9:$E$58,2,FALSE)=0,"",VLOOKUP(BH69,'Footnotes list'!$D$9:$E$58,2,FALSE) ) ) ->  | BJ69: 16.445 | BN69: =IF(TRIM(BM69)="", "", IF(VLOOKUP(BM69,'Footnotes list'!$D$9:$E$58,2,FALSE)=0,"",VLOOKUP(BM69,'Footnotes list'!$D$9:$E$58,2,FALSE) ) ) ->  | BO69: =IF(AND(TRIM(Q69)="",TRIM(V69)="",TRIM(AA69)="", TRIM(AF69)="", TRIM(AK69)="", TRIM(AP69)="", TRIM(AU69)="", TRIM(AZ69)="", TRIM(BE69)="", TRIM(BJ69)=""),"",Q69+V69+AA69+AF69+AK69+AP69+AU69+AZ69+BE69+BJ69) -> 33882.805 | BS69: =IF(TRIM(BR69)="", "", IF(VLOOKUP(BR69,'Footnotes list'!$D$9:$E$58,2,FALSE)=0,"",VLOOKUP(BR69,'Footnotes list'!$D$9:$E$58,2,FALSE) ) ) ->  | BT69: 2383.855 | BX69: =IF(TRIM(BW69)="", "", IF(VLOOKUP(BW69,'Footnotes list'!$D$9:$E$58,2,FALSE)=0,"",VLOOKUP(BW69,'Footnotes list'!$D$9:$E$58,2,FALSE) ) ) ->  | BY69: 497.773 | CC69: =IF(TRIM(CB69)="", "", IF(VLOOKUP(CB69,'Footnotes list'!$D$9:$E$58,2,FALSE)=0,"",VLOOKUP(CB69,'Footnotes list'!$D$9:$E$58,2,FALSE) ) ) ->  | CD69: 7228.09 | CH69: =IF(TRIM(CG69)="", "", IF(VLOOKUP(CG69,'Footnotes list'!$D$9:$E$58,2,FALSE)=0,"",VLOOKUP(CG69,'Footnotes list'!$D$9:$E$58,2,FALSE) ) ) ->  | CI69: =IF(AND(TRIM(BY69)="",TRIM(CD69)=""),"",BY69+CD69) -> 7725.863 | CM69: =IF(TRIM(CL69)="", "", IF(VLOOKUP(CL69,'Footnotes list'!$D$9:$E$58,2,FALSE)=0,"",VLOOKUP(CL69,'Footnotes list'!$D$9:$E$58,2,FALSE) ) ) ->  | CN69: 11.166 | CR69: =IF(TRIM(CQ69)="", "", IF(VLOOKUP(CQ69,'Footnotes list'!$D$9:$E$58,2,FALSE)=0,"",VLOOKUP(CQ69,'Footnotes list'!$D$9:$E$58,2,FALSE) ) ) ->  | CS69: 27154.064 | CW69: =IF(TRIM(CV69)="", "", IF(VLOOKUP(CV69,'Footnotes list'!$D$9:$E$58,2,FALSE)=0,"",VLOOKUP(CV69,'Footnotes list'!$D$9:$E$58,2,FALSE) ) ) ->  | CX69: 0 | DB69: =IF(TRIM(DA69)="", "", IF(VLOOKUP(DA69,'Footnotes list'!$D$9:$E$58,2,FALSE)=0,"",VLOOKUP(DA69,'Footnotes list'!$D$9:$E$58,2,FALSE) ) ) ->  | DC69: 58389.571 | DG69: =IF(TRIM(DF69)="", "", IF(VLOOKUP(DF69,'Footnotes list'!$D$9:$E$58,2,FALSE)=0,"",VLOOKUP(DF69,'Footnotes list'!$D$9:$E$58,2,FALSE) ) ) ->  | DH69: =IF(AND(TRIM(G69)="",TRIM(L69)="",TRIM(BO69)="",TRIM(BT69)="",TRIM(CI69)="",TRIM(CN69)="",TRIM(CS69)="",TRIM(CX69)="",TRIM(DC69)=""),"",SUM(G69,L69,BO69,BT69,CI69,CN69,CS69,CX69,DC69)) -> 130138.614 | DL69: =IF(TRIM(DK69)="", "", IF(VLOOKUP(DK69,'Footnotes list'!$D$9:$E$58,2,FALSE)=0,"",VLOOKUP(DK69,'Footnotes list'!$D$9:$E$58,2,FALSE) ) ) -> 
C70: W091 | E70: HAZ_NHAZ | F70: Total | G70: =IF(AND(TRIM(G68)="",TRIM(G69)=""),"",G68+G69) -> 591.29 | K70: =IF(TRIM(J70)="", "", IF(VLOOKUP(J70,'Footnotes list'!$D$9:$E$58,2,FALSE)=0,"",VLOOKUP(J70,'Footnotes list'!$D$9:$E$58,2,FALSE) ) ) ->  | L70: =IF(AND(TRIM(L68)="",TRIM(L69)=""),"",L68+L69) -> 0 | P70: =IF(TRIM(O70)="", "", IF(VLOOKUP(O70,'Footnotes list'!$D$9:$E$58,2,FALSE)=0,"",VLOOKUP(O70,'Footnotes list'!$D$9:$E$58,2,FALSE) ) ) ->  | Q70: =IF(AND(TRIM(Q68)="",TRIM(Q69)=""),"",Q68+Q69) -> 33729.069 | U70: =IF(TRIM(T70)="", "", IF(VLOOKUP(T70,'Footnotes list'!$D$9:$E$58,2,FALSE)=0,"",VLOOKUP(T70,'Footnotes list'!$D$9:$E$58,2,FALSE) ) ) ->  | V70: =IF(AND(TRIM(V68)="",TRIM(V69)=""),"",V68+V69) -> 2.613 | Z70: =IF(TRIM(Y70)="", "", IF(VLOOKUP(Y70,'Footnotes list'!$D$9:$E$58,2,FALSE)=0,"",VLOOKUP(Y70,'Footnotes list'!$D$9:$E$58,2,FALSE) ) ) ->  | AA70: =IF(AND(TRIM(AA68)="",TRIM(AA69)=""),"",AA68+AA69) -> 0.85 | AE70: =IF(TRIM(AD70)="", "", IF(VLOOKUP(AD70,'Footnotes list'!$D$9:$E$58,2,FALSE)=0,"",VLOOKUP(AD70,'Footnotes list'!$D$9:$E$58,2,FALSE) ) ) ->  | AF70: =IF(AND(TRIM(AF68)="",TRIM(AF69)=""),"",AF68+AF69) -> 32.239 | AJ70: =IF(TRIM(AI70)="", "", IF(VLOOKUP(AI70,'Footnotes list'!$D$9:$E$58,2,FALSE)=0,"",VLOOKUP(AI70,'Footnotes list'!$D$9:$E$58,2,FALSE) ) ) ->  | AK70: =IF(AND(TRIM(AK68)="",TRIM(AK69)=""),"",AK68+AK69) -> 9.62 | AO70: =IF(TRIM(AN70)="", "", IF(VLOOKUP(AN70,'Footnotes list'!$D$9:$E$58,2,FALSE)=0,"",VLOOKUP(AN70,'Footnotes list'!$D$9:$E$58,2,FALSE) ) ) ->  | AP70: =IF(AND(TRIM(AP68)="",TRIM(AP69)=""),"",AP68+AP69) -> 27.805 | AT70: =IF(TRIM(AS70)="", "", IF(VLOOKUP(AS70,'Footnotes list'!$D$9:$E$58,2,FALSE)=0,"",VLOOKUP(AS70,'Footnotes list'!$D$9:$E$58,2,FALSE) ) ) ->  | AU70: =IF(AND(TRIM(AU68)="",TRIM(AU69)=""),"",AU68+AU69) -> 9.91 | AY70: =IF(TRIM(AX70)="", "", IF(VLOOKUP(AX70,'Footnotes list'!$D$9:$E$58,2,FALSE)=0,"",VLOOKUP(AX70,'Footnotes list'!$D$9:$E$58,2,FALSE) ) ) ->  | AZ70: =IF(AND(TRIM(AZ68)="",TRIM(AZ69)=""),"",AZ68+AZ69) -> 15.115 | BD70: =IF(TRIM(BC70)="", "", IF(VLOOKUP(BC70,'Footnotes list'!$D$9:$E$58,2,FALSE)=0,"",VLOOKUP(BC70,'Footnotes list'!$D$9:$E$58,2,FALSE) ) ) ->  | BE70: =IF(AND(TRIM(BE68)="",TRIM(BE69)=""),"",BE68+BE69) -> 39.139 | BI70: =IF(TRIM(BH70)="", "", IF(VLOOKUP(BH70,'Footnotes list'!$D$9:$E$58,2,FALSE)=0,"",VLOOKUP(BH70,'Footnotes list'!$D$9:$E$58,2,FALSE) ) ) ->  | BJ70: =IF(AND(TRIM(BJ68)="",TRIM(BJ69)=""),"",BJ68+BJ69) -> 16.445 | BN70: =IF(TRIM(BM70)="", "", IF(VLOOKUP(BM70,'Footnotes list'!$D$9:$E$58,2,FALSE)=0,"",VLOOKUP(BM70,'Footnotes list'!$D$9:$E$58,2,FALSE) ) ) ->  | BO70: =IF(AND(TRIM(BO68)="", TRIM(BO69)=""), "", (IF(ISNUMBER(BO68),BO68,0)+IF(ISNUMBER(BO69),BO69,0))) -> 33882.805 | BS70: =IF(TRIM(BR70)="", "", IF(VLOOKUP(BR70,'Footnotes list'!$D$9:$E$58,2,FALSE)=0,"",VLOOKUP(BR70,'Footnotes list'!$D$9:$E$58,2,FALSE) ) ) ->  | BT70: =IF(AND(TRIM(BT68)="",TRIM(BT69)=""),"",BT68+BT69) -> 2383.855 | BX70: =IF(TRIM(BW70)="", "", IF(VLOOKUP(BW70,'Footnotes list'!$D$9:$E$58,2,FALSE)=0,"",VLOOKUP(BW70,'Footnotes list'!$D$9:$E$58,2,FALSE) ) ) ->  | BY70: =IF(AND(TRIM(BY68)="",TRIM(BY69)=""),"",BY68+BY69) -> 497.773 | CC70: =IF(TRIM(CB70)="", "", IF(VLOOKUP(CB70,'Footnotes list'!$D$9:$E$58,2,FALSE)=0,"",VLOOKUP(CB70,'Footnotes list'!$D$9:$E$58,2,FALSE) ) ) ->  | CD70: =IF(AND(TRIM(CD68)="",TRIM(CD69)=""),"",CD68+CD69) -> 7228.09 | CH70: =IF(TRIM(CG70)="", "", IF(VLOOKUP(CG70,'Footnotes list'!$D$9:$E$58,2,FALSE)=0,"",VLOOKUP(CG70,'Footnotes list'!$D$9:$E$58,2,FALSE) ) ) ->  | CI70: =IF(AND(TRIM(CI68)="", TRIM(CI69)=""), "", (IF(ISNUMBER(CI68),CI68,0)+IF(ISNUMBER(CI69),CI69,0))) -> 7725.863 | CM70: =IF(TRIM(CL70)="", "", IF(VLOOKUP(CL70,'Footnotes list'!$D$9:$E$58,2,FALSE)=0,"",VLOOKUP(CL70,'Footnotes list'!$D$9:$E$58,2,FALSE) ) ) ->  | CN70: =IF(AND(TRIM(CN68)="",TRIM(CN69)=""),"",CN68+CN69) -> 11.166 | CR70: =IF(TRIM(CQ70)="", "", IF(VLOOKUP(CQ70,'Footnotes list'!$D$9:$E$58,2,FALSE)=0,"",VLOOKUP(CQ70,'Footnotes list'!$D$9:$E$58,2,FALSE) ) ) ->  | CS70: =IF(AND(TRIM(CS68)="",TRIM(CS69)=""),"",CS68+CS69) -> 27154.064 | CW70: =IF(TRIM(CV70)="", "", IF(VLOOKUP(CV70,'Footnotes list'!$D$9:$E$58,2,FALSE)=0,"",VLOOKUP(CV70,'Footnotes list'!$D$9:$E$58,2,FALSE) ) ) ->  | CX70: =IF(AND(TRIM(CX68)="",TRIM(CX69)=""),"",CX68+CX69) -> 0 | DB70: =IF(TRIM(DA70)="", "", IF(VLOOKUP(DA70,'Footnotes list'!$D$9:$E$58,2,FALSE)=0,"",VLOOKUP(DA70,'Footnotes list'!$D$9:$E$58,2,FALSE) ) ) ->  | DC70: =IF(AND(TRIM(DC68)="",TRIM(DC69)=""),"",DC68+DC69) -> 58389.571 | DG70: =IF(TRIM(DF70)="", "", IF(VLOOKUP(DF70,'Footnotes list'!$D$9:$E$58,2,FALSE)=0,"",VLOOKUP(DF70,'Footnotes list'!$D$9:$E$58,2,FALSE) ) ) ->  | DH70: =IF(AND(TRIM(DH68)="", TRIM(DH69)=""), "", SUM(DH68,DH69) ) -> 130138.614 | DL70: =IF(TRIM(DK70)="", "", IF(VLOOKUP(DK70,'Footnotes list'!$D$9:$E$58,2,FALSE)=0,"",VLOOKUP(DK70,'Footnotes list'!$D$9:$E$58,2,FALSE) ) ) -> 
B71: W092 | D71: Vegetal wastes | F71: Not applicable
C72: W092 | E72: NHAZ | F72: Non-hazardous | G72: 41068.594 | K72: =IF(TRIM(J72)="", "", IF(VLOOKUP(J72,'Footnotes list'!$D$9:$E$58,2,FALSE)=0,"",VLOOKUP(J72,'Footnotes list'!$D$9:$E$58,2,FALSE) ) ) ->  | L72: 0 | P72: =IF(TRIM(O72)="", "", IF(VLOOKUP(O72,'Footnotes list'!$D$9:$E$58,2,FALSE)=0,"",VLOOKUP(O72,'Footnotes list'!$D$9:$E$58,2,FALSE) ) ) ->  | Q72: 46067.15 | U72: =IF(TRIM(T72)="", "", IF(VLOOKUP(T72,'Footnotes list'!$D$9:$E$58,2,FALSE)=0,"",VLOOKUP(T72,'Footnotes list'!$D$9:$E$58,2,FALSE) ) ) ->  | V72: 1.84 | Z72: =IF(TRIM(Y72)="", "", IF(VLOOKUP(Y72,'Footnotes list'!$D$9:$E$58,2,FALSE)=0,"",VLOOKUP(Y72,'Footnotes list'!$D$9:$E$58,2,FALSE) ) ) ->  | AA72: 4.22 | AE72: =IF(TRIM(AD72)="", "", IF(VLOOKUP(AD72,'Footnotes list'!$D$9:$E$58,2,FALSE)=0,"",VLOOKUP(AD72,'Footnotes list'!$D$9:$E$58,2,FALSE) ) ) ->  | AF72: 1.18 | AJ72: =IF(TRIM(AI72)="", "", IF(VLOOKUP(AI72,'Footnotes list'!$D$9:$E$58,2,FALSE)=0,"",VLOOKUP(AI72,'Footnotes list'!$D$9:$E$58,2,FALSE) ) ) ->  | AK72: 0 | AO72: =IF(TRIM(AN72)="", "", IF(VLOOKUP(AN72,'Footnotes list'!$D$9:$E$58,2,FALSE)=0,"",VLOOKUP(AN72,'Footnotes list'!$D$9:$E$58,2,FALSE) ) ) ->  | AP72: 128.643 | AT72: =IF(TRIM(AS72)="", "", IF(VLOOKUP(AS72,'Footnotes list'!$D$9:$E$58,2,FALSE)=0,"",VLOOKUP(AS72,'Footnotes list'!$D$9:$E$58,2,FALSE) ) ) ->  | AU72: 0.41 | AY72: =IF(TRIM(AX72)="", "", IF(VLOOKUP(AX72,'Footnotes list'!$D$9:$E$58,2,FALSE)=0,"",VLOOKUP(AX72,'Footnotes list'!$D$9:$E$58,2,FALSE) ) ) ->  | AZ72: 40.36 | BD72: =IF(TRIM(BC72)="", "", IF(VLOOKUP(BC72,'Footnotes list'!$D$9:$E$58,2,FALSE)=0,"",VLOOKUP(BC72,'Footnotes list'!$D$9:$E$58,2,FALSE) ) ) ->  | BE72: 15.752 | BI72: =IF(TRIM(BH72)="", "", IF(VLOOKUP(BH72,'Footnotes list'!$D$9:$E$58,2,FALSE)=0,"",VLOOKUP(BH72,'Footnotes list'!$D$9:$E$58,2,FALSE) ) ) ->  | BJ72: 21.411 | BN72: =IF(TRIM(BM72)="", "", IF(VLOOKUP(BM72,'Footnotes list'!$D$9:$E$58,2,FALSE)=0,"",VLOOKUP(BM72,'Footnotes list'!$D$9:$E$58,2,FALSE) ) ) ->  | BO72: =IF(AND(TRIM(Q72)="",TRIM(V72)="",TRIM(AA72)="", TRIM(AF72)="", TRIM(AK72)="", TRIM(AP72)="", TRIM(AU72)="", TRIM(AZ72)="", TRIM(BE72)="", TRIM(BJ72)=""),"",Q72+V72+AA72+AF72+AK72+AP72+AU72+AZ72+BE72+BJ72) -> 46280.966 | BS72: =IF(TRIM(BR72)="", "", IF(VLOOKUP(BR72,'Footnotes list'!$D$9:$E$58,2,FALSE)=0,"",VLOOKUP(BR72,'Footnotes list'!$D$9:$E$58,2,FALSE) ) ) ->  | BT72: 30.12 | BX72: =IF(TRIM(BW72)="", "", IF(VLOOKUP(BW72,'Footnotes list'!$D$9:$E$58,2,FALSE)=0,"",VLOOKUP(BW72,'Footnotes list'!$D$9:$E$58,2,FALSE) ) ) ->  | BY72: 19.61 | CC72: =IF(TRIM(CB72)="", "", IF(VLOOKUP(CB72,'Footnotes list'!$D$9:$E$58,2,FALSE)=0,"",VLOOKUP(CB72,'Footnotes list'!$D$9:$E$58,2,FALSE) ) ) ->  | CD72: 10728.877 | CH72: =IF(TRIM(CG72)="", "", IF(VLOOKUP(CG72,'Footnotes list'!$D$9:$E$58,2,FALSE)=0,"",VLOOKUP(CG72,'Footnotes list'!$D$9:$E$58,2,FALSE) ) ) ->  | CI72: =IF(AND(TRIM(BY72)="",TRIM(CD72)=""),"",BY72+CD72) -> 10748.487 | CM72: =IF(TRIM(CL72)="", "", IF(VLOOKUP(CL72,'Footnotes list'!$D$9:$E$58,2,FALSE)=0,"",VLOOKUP(CL72,'Footnotes list'!$D$9:$E$58,2,FALSE) ) ) ->  | CN72: 28.72 | CR72: =IF(TRIM(CQ72)="", "", IF(VLOOKUP(CQ72,'Footnotes list'!$D$9:$E$58,2,FALSE)=0,"",VLOOKUP(CQ72,'Footnotes list'!$D$9:$E$58,2,FALSE) ) ) ->  | CS72: 43570.965 | CW72: =IF(TRIM(CV72)="", "", IF(VLOOKUP(CV72,'Footnotes list'!$D$9:$E$58,2,FALSE)=0,"",VLOOKUP(CV72,'Footnotes list'!$D$9:$E$58,2,FALSE) ) ) ->  | CX72: 0 | DB72: =IF(TRIM(DA72)="", "", IF(VLOOKUP(DA72,'Footnotes list'!$D$9:$E$58,2,FALSE)=0,"",VLOOKUP(DA72,'Footnotes list'!$D$9:$E$58,2,FALSE) ) ) ->  | DC72: 62332.056 | DG72: =IF(TRIM(DF72)="", "", IF(VLOOKUP(DF72,'Footnotes list'!$D$9:$E$58,2,FALSE)=0,"",VLOOKUP(DF72,'Footnotes list'!$D$9:$E$58,2,FALSE) ) ) ->  | DH72: =IF(AND(TRIM(G72)="",TRIM(L72)="",TRIM(BO72)="",TRIM(BT72)="",TRIM(CI72)="",TRIM(CN72)="",TRIM(CS72)="",TRIM(CX72)="",TRIM(DC72)=""),"",SUM(G72,L72,BO72,BT72,CI72,CN72,CS72,CX72,DC72)) -> 204059.908 | DL72: =IF(TRIM(DK72)="", "", IF(VLOOKUP(DK72,'Footnotes list'!$D$9:$E$58,2,FALSE)=0,"",VLOOKUP(DK72,'Footnotes list'!$D$9:$E$58,2,FALSE) ) ) -> 
C73: W092 | E73: HAZ_NHAZ | F73: Total | G73: =IF(AND(TRIM(G71)="",TRIM(G72)=""),"",G71+G72) -> 41068.594 | K73: =IF(TRIM(J73)="", "", IF(VLOOKUP(J73,'Footnotes list'!$D$9:$E$58,2,FALSE)=0,"",VLOOKUP(J73,'Footnotes list'!$D$9:$E$58,2,FALSE) ) ) ->  | L73: =IF(AND(TRIM(L71)="",TRIM(L72)=""),"",L71+L72) -> 0 | P73: =IF(TRIM(O73)="", "", IF(VLOOKUP(O73,'Footnotes list'!$D$9:$E$58,2,FALSE)=0,"",VLOOKUP(O73,'Footnotes list'!$D$9:$E$58,2,FALSE) ) ) ->  | Q73: =IF(AND(TRIM(Q71)="",TRIM(Q72)=""),"",Q71+Q72) -> 46067.15 | U73: =IF(TRIM(T73)="", "", IF(VLOOKUP(T73,'Footnotes list'!$D$9:$E$58,2,FALSE)=0,"",VLOOKUP(T73,'Footnotes list'!$D$9:$E$58,2,FALSE) ) ) ->  | V73: =IF(AND(TRIM(V71)="",TRIM(V72)=""),"",V71+V72) -> 1.84 | Z73: =IF(TRIM(Y73)="", "", IF(VLOOKUP(Y73,'Footnotes list'!$D$9:$E$58,2,FALSE)=0,"",VLOOKUP(Y73,'Footnotes list'!$D$9:$E$58,2,FALSE) ) ) ->  | AA73: =IF(AND(TRIM(AA71)="",TRIM(AA72)=""),"",AA71+AA72) -> 4.22 | AE73: =IF(TRIM(AD73)="", "", IF(VLOOKUP(AD73,'Footnotes list'!$D$9:$E$58,2,FALSE)=0,"",VLOOKUP(AD73,'Footnotes list'!$D$9:$E$58,2,FALSE) ) ) ->  | AF73: =IF(AND(TRIM(AF71)="",TRIM(AF72)=""),"",AF71+AF72) -> 1.18 | AJ73: =IF(TRIM(AI73)="", "", IF(VLOOKUP(AI73,'Footnotes list'!$D$9:$E$58,2,FALSE)=0,"",VLOOKUP(AI73,'Footnotes list'!$D$9:$E$58,2,FALSE) ) ) ->  | AK73: =IF(AND(TRIM(AK71)="",TRIM(AK72)=""),"",AK71+AK72) -> 0 | AO73: =IF(TRIM(AN73)="", "", IF(VLOOKUP(AN73,'Footnotes list'!$D$9:$E$58,2,FALSE)=0,"",VLOOKUP(AN73,'Footnotes list'!$D$9:$E$58,2,FALSE) ) ) ->  | AP73: =IF(AND(TRIM(AP71)="",TRIM(AP72)=""),"",AP71+AP72) -> 128.643 | AT73: =IF(TRIM(AS73)="", "", IF(VLOOKUP(AS73,'Footnotes list'!$D$9:$E$58,2,FALSE)=0,"",VLOOKUP(AS73,'Footnotes list'!$D$9:$E$58,2,FALSE) ) ) ->  | AU73: =IF(AND(TRIM(AU71)="",TRIM(AU72)=""),"",AU71+AU72) -> 0.41 | AY73: =IF(TRIM(AX73)="", "", IF(VLOOKUP(AX73,'Footnotes list'!$D$9:$E$58,2,FALSE)=0,"",VLOOKUP(AX73,'Footnotes list'!$D$9:$E$58,2,FALSE) ) ) ->  | AZ73: =IF(AND(TRIM(AZ71)="",TRIM(AZ72)=""),"",AZ71+AZ72) -> 40.36 | BD73: =IF(TRIM(BC73)="", "", IF(VLOOKUP(BC73,'Footnotes list'!$D$9:$E$58,2,FALSE)=0,"",VLOOKUP(BC73,'Footnotes list'!$D$9:$E$58,2,FALSE) ) ) ->  | BE73: =IF(AND(TRIM(BE71)="",TRIM(BE72)=""),"",BE71+BE72) -> 15.752 | BI73: =IF(TRIM(BH73)="", "", IF(VLOOKUP(BH73,'Footnotes list'!$D$9:$E$58,2,FALSE)=0,"",VLOOKUP(BH73,'Footnotes list'!$D$9:$E$58,2,FALSE) ) ) ->  | BJ73: =IF(AND(TRIM(BJ71)="",TRIM(BJ72)=""),"",BJ71+BJ72) -> 21.411 | BN73: =IF(TRIM(BM73)="", "", IF(VLOOKUP(BM73,'Footnotes list'!$D$9:$E$58,2,FALSE)=0,"",VLOOKUP(BM73,'Footnotes list'!$D$9:$E$58,2,FALSE) ) ) ->  | BO73: =IF(AND(TRIM(BO71)="", TRIM(BO72)=""), "", (IF(ISNUMBER(BO71),BO71,0)+IF(ISNUMBER(BO72),BO72,0))) -> 46280.966 | BS73: =IF(TRIM(BR73)="", "", IF(VLOOKUP(BR73,'Footnotes list'!$D$9:$E$58,2,FALSE)=0,"",VLOOKUP(BR73,'Footnotes list'!$D$9:$E$58,2,FALSE) ) ) ->  | BT73: =IF(AND(TRIM(BT71)="",TRIM(BT72)=""),"",BT71+BT72) -> 30.12 | BX73: =IF(TRIM(BW73)="", "", IF(VLOOKUP(BW73,'Footnotes list'!$D$9:$E$58,2,FALSE)=0,"",VLOOKUP(BW73,'Footnotes list'!$D$9:$E$58,2,FALSE) ) ) ->  | BY73: =IF(AND(TRIM(BY71)="",TRIM(BY72)=""),"",BY71+BY72) -> 19.61 | CC73: =IF(TRIM(CB73)="", "", IF(VLOOKUP(CB73,'Footnotes list'!$D$9:$E$58,2,FALSE)=0,"",VLOOKUP(CB73,'Footnotes list'!$D$9:$E$58,2,FALSE) ) ) ->  | CD73: =IF(AND(TRIM(CD71)="",TRIM(CD72)=""),"",CD71+CD72) -> 10728.877 | CH73: =IF(TRIM(CG73)="", "", IF(VLOOKUP(CG73,'Footnotes list'!$D$9:$E$58,2,FALSE)=0,"",VLOOKUP(CG73,'Footnotes list'!$D$9:$E$58,2,FALSE) ) ) ->  | CI73: =IF(AND(TRIM(CI71)="", TRIM(CI72)=""), "", (IF(ISNUMBER(CI71),CI71,0)+IF(ISNUMBER(CI72),CI72,0))) -> 10748.487 | CM73: =IF(TRIM(CL73)="", "", IF(VLOOKUP(CL73,'Footnotes list'!$D$9:$E$58,2,FALSE)=0,"",VLOOKUP(CL73,'Footnotes list'!$D$9:$E$58,2,FALSE) ) ) ->  | CN73: =IF(AND(TRIM(CN71)="",TRIM(CN72)=""),"",CN71+CN72) -> 28.72 | CR73: =IF(TRIM(CQ73)="", "", IF(VLOOKUP(CQ73,'Footnotes list'!$D$9:$E$58,2,FALSE)=0,"",VLOOKUP(CQ73,'Footnotes list'!$D$9:$E$58,2,FALSE) ) ) ->  | CS73: =IF(AND(TRIM(CS71)="",TRIM(CS72)=""),"",CS71+CS72) -> 43570.965 | CW73: =IF(TRIM(CV73)="", "", IF(VLOOKUP(CV73,'Footnotes list'!$D$9:$E$58,2,FALSE)=0,"",VLOOKUP(CV73,'Footnotes list'!$D$9:$E$58,2,FALSE) ) ) ->  | CX73: =IF(AND(TRIM(CX71)="",TRIM(CX72)=""),"",CX71+CX72) -> 0 | DB73: =IF(TRIM(DA73)="", "", IF(VLOOKUP(DA73,'Footnotes list'!$D$9:$E$58,2,FALSE)=0,"",VLOOKUP(DA73,'Footnotes list'!$D$9:$E$58,2,FALSE) ) ) ->  | DC73: =IF(AND(TRIM(DC71)="",TRIM(DC72)=""),"",DC71+DC72) -> 62332.056 | DG73: =IF(TRIM(DF73)="", "", IF(VLOOKUP(DF73,'Footnotes list'!$D$9:$E$58,2,FALSE)=0,"",VLOOKUP(DF73,'Footnotes list'!$D$9:$E$58,2,FALSE) ) ) ->  | DH73: =IF(AND(TRIM(DH71)="", TRIM(DH72)=""), "", SUM(DH71,DH72) ) -> 204059.908 | DL73: =IF(TRIM(DK73)="", "", IF(VLOOKUP(DK73,'Footnotes list'!$D$9:$E$58,2,FALSE)=0,"",VLOOKUP(DK73,'Footnotes list'!$D$9:$E$58,2,FALSE) ) ) -> 
B74: W093 | D74: Animal faeces, urine and manure | F74: Not applicable
C75: W093 | E75: NHAZ | F75: Non-hazardous | G75: 426196.22 | K75: =IF(TRIM(J75)="", "", IF(VLOOKUP(J75,'Footnotes list'!$D$9:$E$58,2,FALSE)=0,"",VLOOKUP(J75,'Footnotes list'!$D$9:$E$58,2,FALSE) ) ) ->  | L75: 0 | P75: =IF(TRIM(O75)="", "", IF(VLOOKUP(O75,'Footnotes list'!$D$9:$E$58,2,FALSE)=0,"",VLOOKUP(O75,'Footnotes list'!$D$9:$E$58,2,FALSE) ) ) ->  | Q75: 0 | U75: =IF(TRIM(T75)="", "", IF(VLOOKUP(T75,'Footnotes list'!$D$9:$E$58,2,FALSE)=0,"",VLOOKUP(T75,'Footnotes list'!$D$9:$E$58,2,FALSE) ) ) ->  | V75: 0 | Z75: =IF(TRIM(Y75)="", "", IF(VLOOKUP(Y75,'Footnotes list'!$D$9:$E$58,2,FALSE)=0,"",VLOOKUP(Y75,'Footnotes list'!$D$9:$E$58,2,FALSE) ) ) ->  | AA75: 0 | AE75: =IF(TRIM(AD75)="", "", IF(VLOOKUP(AD75,'Footnotes list'!$D$9:$E$58,2,FALSE)=0,"",VLOOKUP(AD75,'Footnotes list'!$D$9:$E$58,2,FALSE) ) ) ->  | AF75: 0 | AJ75: =IF(TRIM(AI75)="", "", IF(VLOOKUP(AI75,'Footnotes list'!$D$9:$E$58,2,FALSE)=0,"",VLOOKUP(AI75,'Footnotes list'!$D$9:$E$58,2,FALSE) ) ) ->  | AK75: 0 | AO75: =IF(TRIM(AN75)="", "", IF(VLOOKUP(AN75,'Footnotes list'!$D$9:$E$58,2,FALSE)=0,"",VLOOKUP(AN75,'Footnotes list'!$D$9:$E$58,2,FALSE) ) ) ->  | AP75: 0 | AT75: =IF(TRIM(AS75)="", "", IF(VLOOKUP(AS75,'Footnotes list'!$D$9:$E$58,2,FALSE)=0,"",VLOOKUP(AS75,'Footnotes list'!$D$9:$E$58,2,FALSE) ) ) ->  | AU75: 0 | AY75: =IF(TRIM(AX75)="", "", IF(VLOOKUP(AX75,'Footnotes list'!$D$9:$E$58,2,FALSE)=0,"",VLOOKUP(AX75,'Footnotes list'!$D$9:$E$58,2,FALSE) ) ) ->  | AZ75: 0 | BD75: =IF(TRIM(BC75)="", "", IF(VLOOKUP(BC75,'Footnotes list'!$D$9:$E$58,2,FALSE)=0,"",VLOOKUP(BC75,'Footnotes list'!$D$9:$E$58,2,FALSE) ) ) ->  | BE75: 0 | BI75: =IF(TRIM(BH75)="", "", IF(VLOOKUP(BH75,'Footnotes list'!$D$9:$E$58,2,FALSE)=0,"",VLOOKUP(BH75,'Footnotes list'!$D$9:$E$58,2,FALSE) ) ) ->  | BJ75: 0 | BN75: =IF(TRIM(BM75)="", "", IF(VLOOKUP(BM75,'Footnotes list'!$D$9:$E$58,2,FALSE)=0,"",VLOOKUP(BM75,'Footnotes list'!$D$9:$E$58,2,FALSE) ) ) ->  | BO75: =IF(AND(TRIM(Q75)="",TRIM(V75)="",TRIM(AA75)="", TRIM(AF75)="", TRIM(AK75)="", TRIM(AP75)="", TRIM(AU75)="", TRIM(AZ75)="", TRIM(BE75)="", TRIM(BJ75)=""),"",Q75+V75+AA75+AF75+AK75+AP75+AU75+AZ75+BE75+BJ75) -> 0 | BS75: =IF(TRIM(BR75)="", "", IF(VLOOKUP(BR75,'Footnotes list'!$D$9:$E$58,2,FALSE)=0,"",VLOOKUP(BR75,'Footnotes list'!$D$9:$E$58,2,FALSE) ) ) ->  | BT75: 20997.11 | BX75: =IF(TRIM(BW75)="", "", IF(VLOOKUP(BW75,'Footnotes list'!$D$9:$E$58,2,FALSE)=0,"",VLOOKUP(BW75,'Footnotes list'!$D$9:$E$58,2,FALSE) ) ) ->  | BY75: 0 | CC75: =IF(TRIM(CB75)="", "", IF(VLOOKUP(CB75,'Footnotes list'!$D$9:$E$58,2,FALSE)=0,"",VLOOKUP(CB75,'Footnotes list'!$D$9:$E$58,2,FALSE) ) ) ->  | CD75: 0 | CH75: =IF(TRIM(CG75)="", "", IF(VLOOKUP(CG75,'Footnotes list'!$D$9:$E$58,2,FALSE)=0,"",VLOOKUP(CG75,'Footnotes list'!$D$9:$E$58,2,FALSE) ) ) ->  | CI75: =IF(AND(TRIM(BY75)="",TRIM(CD75)=""),"",BY75+CD75) -> 0 | CM75: =IF(TRIM(CL75)="", "", IF(VLOOKUP(CL75,'Footnotes list'!$D$9:$E$58,2,FALSE)=0,"",VLOOKUP(CL75,'Footnotes list'!$D$9:$E$58,2,FALSE) ) ) ->  | CN75: 0 | CR75: =IF(TRIM(CQ75)="", "", IF(VLOOKUP(CQ75,'Footnotes list'!$D$9:$E$58,2,FALSE)=0,"",VLOOKUP(CQ75,'Footnotes list'!$D$9:$E$58,2,FALSE) ) ) ->  | CS75: 323.26 | CW75: =IF(TRIM(CV75)="", "", IF(VLOOKUP(CV75,'Footnotes list'!$D$9:$E$58,2,FALSE)=0,"",VLOOKUP(CV75,'Footnotes list'!$D$9:$E$58,2,FALSE) ) ) ->  | CX75: 0 | DB75: =IF(TRIM(DA75)="", "", IF(VLOOKUP(DA75,'Footnotes list'!$D$9:$E$58,2,FALSE)=0,"",VLOOKUP(DA75,'Footnotes list'!$D$9:$E$58,2,FALSE) ) ) ->  | DC75: 0 | DG75: =IF(TRIM(DF75)="", "", IF(VLOOKUP(DF75,'Footnotes list'!$D$9:$E$58,2,FALSE)=0,"",VLOOKUP(DF75,'Footnotes list'!$D$9:$E$58,2,FALSE) ) ) ->  | DH75: =IF(AND(TRIM(G75)="",TRIM(L75)="",TRIM(BO75)="",TRIM(BT75)="",TRIM(CI75)="",TRIM(CN75)="",TRIM(CS75)="",TRIM(CX75)="",TRIM(DC75)=""),"",SUM(G75,L75,BO75,BT75,CI75,CN75,CS75,CX75,DC75)) -> 447516.59 | DL75: =IF(TRIM(DK75)="", "", IF(VLOOKUP(DK75,'Footnotes list'!$D$9:$E$58,2,FALSE)=0,"",VLOOKUP(DK75,'Footnotes list'!$D$9:$E$58,2,FALSE) ) ) -> 
C76: W093 | E76: HAZ_NHAZ | F76: Total | G76: =IF(AND(TRIM(G74)="",TRIM(G75)=""),"",G74+G75) -> 426196.22 | K76: =IF(TRIM(J76)="", "", IF(VLOOKUP(J76,'Footnotes list'!$D$9:$E$58,2,FALSE)=0,"",VLOOKUP(J76,'Footnotes list'!$D$9:$E$58,2,FALSE) ) ) ->  | L76: =IF(AND(TRIM(L74)="",TRIM(L75)=""),"",L74+L75) -> 0 | P76: =IF(TRIM(O76)="", "", IF(VLOOKUP(O76,'Footnotes list'!$D$9:$E$58,2,FALSE)=0,"",VLOOKUP(O76,'Footnotes list'!$D$9:$E$58,2,FALSE) ) ) ->  | Q76: =IF(AND(TRIM(Q74)="",TRIM(Q75)=""),"",Q74+Q75) -> 0 | U76: =IF(TRIM(T76)="", "", IF(VLOOKUP(T76,'Footnotes list'!$D$9:$E$58,2,FALSE)=0,"",VLOOKUP(T76,'Footnotes list'!$D$9:$E$58,2,FALSE) ) ) ->  | V76: =IF(AND(TRIM(V74)="",TRIM(V75)=""),"",V74+V75) -> 0 | Z76: =IF(TRIM(Y76)="", "", IF(VLOOKUP(Y76,'Footnotes list'!$D$9:$E$58,2,FALSE)=0,"",VLOOKUP(Y76,'Footnotes list'!$D$9:$E$58,2,FALSE) ) ) ->  | AA76: =IF(AND(TRIM(AA74)="",TRIM(AA75)=""),"",AA74+AA75) -> 0 | AE76: =IF(TRIM(AD76)="", "", IF(VLOOKUP(AD76,'Footnotes list'!$D$9:$E$58,2,FALSE)=0,"",VLOOKUP(AD76,'Footnotes list'!$D$9:$E$58,2,FALSE) ) ) ->  | AF76: =IF(AND(TRIM(AF74)="",TRIM(AF75)=""),"",AF74+AF75) -> 0 | AJ76: =IF(TRIM(AI76)="", "", IF(VLOOKUP(AI76,'Footnotes list'!$D$9:$E$58,2,FALSE)=0,"",VLOOKUP(AI76,'Footnotes list'!$D$9:$E$58,2,FALSE) ) ) ->  | AK76: =IF(AND(TRIM(AK74)="",TRIM(AK75)=""),"",AK74+AK75) -> 0 | AO76: =IF(TRIM(AN76)="", "", IF(VLOOKUP(AN76,'Footnotes list'!$D$9:$E$58,2,FALSE)=0,"",VLOOKUP(AN76,'Footnotes list'!$D$9:$E$58,2,FALSE) ) ) ->  | AP76: =IF(AND(TRIM(AP74)="",TRIM(AP75)=""),"",AP74+AP75) -> 0 | AT76: =IF(TRIM(AS76)="", "", IF(VLOOKUP(AS76,'Footnotes list'!$D$9:$E$58,2,FALSE)=0,"",VLOOKUP(AS76,'Footnotes list'!$D$9:$E$58,2,FALSE) ) ) ->  | AU76: =IF(AND(TRIM(AU74)="",TRIM(AU75)=""),"",AU74+AU75) -> 0 | AY76: =IF(TRIM(AX76)="", "", IF(VLOOKUP(AX76,'Footnotes list'!$D$9:$E$58,2,FALSE)=0,"",VLOOKUP(AX76,'Footnotes list'!$D$9:$E$58,2,FALSE) ) ) ->  | AZ76: =IF(AND(TRIM(AZ74)="",TRIM(AZ75)=""),"",AZ74+AZ75) -> 0 | BD76: =IF(TRIM(BC76)="", "", IF(VLOOKUP(BC76,'Footnotes list'!$D$9:$E$58,2,FALSE)=0,"",VLOOKUP(BC76,'Footnotes list'!$D$9:$E$58,2,FALSE) ) ) ->  | BE76: =IF(AND(TRIM(BE74)="",TRIM(BE75)=""),"",BE74+BE75) -> 0 | BI76: =IF(TRIM(BH76)="", "", IF(VLOOKUP(BH76,'Footnotes list'!$D$9:$E$58,2,FALSE)=0,"",VLOOKUP(BH76,'Footnotes list'!$D$9:$E$58,2,FALSE) ) ) ->  | BJ76: =IF(AND(TRIM(BJ74)="",TRIM(BJ75)=""),"",BJ74+BJ75) -> 0 | BN76: =IF(TRIM(BM76)="", "", IF(VLOOKUP(BM76,'Footnotes list'!$D$9:$E$58,2,FALSE)=0,"",VLOOKUP(BM76,'Footnotes list'!$D$9:$E$58,2,FALSE) ) ) ->  | BO76: =IF(AND(TRIM(BO74)="", TRIM(BO75)=""), "", (IF(ISNUMBER(BO74),BO74,0)+IF(ISNUMBER(BO75),BO75,0))) -> 0 | BS76: =IF(TRIM(BR76)="", "", IF(VLOOKUP(BR76,'Footnotes list'!$D$9:$E$58,2,FALSE)=0,"",VLOOKUP(BR76,'Footnotes list'!$D$9:$E$58,2,FALSE) ) ) ->  | BT76: =IF(AND(TRIM(BT74)="",TRIM(BT75)=""),"",BT74+BT75) -> 20997.11 | BX76: =IF(TRIM(BW76)="", "", IF(VLOOKUP(BW76,'Footnotes list'!$D$9:$E$58,2,FALSE)=0,"",VLOOKUP(BW76,'Footnotes list'!$D$9:$E$58,2,FALSE) ) ) ->  | BY76: =IF(AND(TRIM(BY74)="",TRIM(BY75)=""),"",BY74+BY75) -> 0 | CC76: =IF(TRIM(CB76)="", "", IF(VLOOKUP(CB76,'Footnotes list'!$D$9:$E$58,2,FALSE)=0,"",VLOOKUP(CB76,'Footnotes list'!$D$9:$E$58,2,FALSE) ) ) ->  | CD76: =IF(AND(TRIM(CD74)="",TRIM(CD75)=""),"",CD74+CD75) -> 0 | CH76: =IF(TRIM(CG76)="", "", IF(VLOOKUP(CG76,'Footnotes list'!$D$9:$E$58,2,FALSE)=0,"",VLOOKUP(CG76,'Footnotes list'!$D$9:$E$58,2,FALSE) ) ) ->  | CI76: =IF(AND(TRIM(CI74)="", TRIM(CI75)=""), "", (IF(ISNUMBER(CI74),CI74,0)+IF(ISNUMBER(CI75),CI75,0))) -> 0 | CM76: =IF(TRIM(CL76)="", "", IF(VLOOKUP(CL76,'Footnotes list'!$D$9:$E$58,2,FALSE)=0,"",VLOOKUP(CL76,'Footnotes list'!$D$9:$E$58,2,FALSE) ) ) ->  | CN76: =IF(AND(TRIM(CN74)="",TRIM(CN75)=""),"",CN74+CN75) -> 0 | CR76: =IF(TRIM(CQ76)="", "", IF(VLOOKUP(CQ76,'Footnotes list'!$D$9:$E$58,2,FALSE)=0,"",VLOOKUP(CQ76,'Footnotes list'!$D$9:$E$58,2,FALSE) ) ) ->  | CS76: =IF(AND(TRIM(CS74)="",TRIM(CS75)=""),"",CS74+CS75) -> 323.26 | CW76: =IF(TRIM(CV76)="", "", IF(VLOOKUP(CV76,'Footnotes list'!$D$9:$E$58,2,FALSE)=0,"",VLOOKUP(CV76,'Footnotes list'!$D$9:$E$58,2,FALSE) ) ) ->  | CX76: =IF(AND(TRIM(CX74)="",TRIM(CX75)=""),"",CX74+CX75) -> 0 | DB76: =IF(TRIM(DA76)="", "", IF(VLOOKUP(DA76,'Footnotes list'!$D$9:$E$58,2,FALSE)=0,"",VLOOKUP(DA76,'Footnotes list'!$D$9:$E$58,2,FALSE) ) ) ->  | DC76: =IF(AND(TRIM(DC74)="",TRIM(DC75)=""),"",DC74+DC75) -> 0 | DG76: =IF(TRIM(DF76)="", "", IF(VLOOKUP(DF76,'Footnotes list'!$D$9:$E$58,2,FALSE)=0,"",VLOOKUP(DF76,'Footnotes list'!$D$9:$E$58,2,FALSE) ) ) ->  | DH76: =IF(AND(TRIM(DH74)="", TRIM(DH75)=""), "", SUM(DH74,DH75) ) -> 447516.59 | DL76: =IF(TRIM(DK76)="", "", IF(VLOOKUP(DK76,'Footnotes list'!$D$9:$E$58,2,FALSE)=0,"",VLOOKUP(DK76,'Footnotes list'!$D$9:$E$58,2,FALSE) ) ) -> 
B77: W101 | D77: Household and similar wastes | F77: Not applicable
C78: W101 | E78: NHAZ | F78: Non-hazardous | G78: 5661.558 | K78: =IF(TRIM(J78)="", "", IF(VLOOKUP(J78,'Footnotes list'!$D$9:$E$58,2,FALSE)=0,"",VLOOKUP(J78,'Footnotes list'!$D$9:$E$58,2,FALSE) ) ) ->  | L78: 440.475 | P78: =IF(TRIM(O78)="", "", IF(VLOOKUP(O78,'Footnotes list'!$D$9:$E$58,2,FALSE)=0,"",VLOOKUP(O78,'Footnotes list'!$D$9:$E$58,2,FALSE) ) ) ->  | Q78: 6292.515 | U78: =IF(TRIM(T78)="", "", IF(VLOOKUP(T78,'Footnotes list'!$D$9:$E$58,2,FALSE)=0,"",VLOOKUP(T78,'Footnotes list'!$D$9:$E$58,2,FALSE) ) ) ->  | V78: 2255.332 | Z78: =IF(TRIM(Y78)="", "", IF(VLOOKUP(Y78,'Footnotes list'!$D$9:$E$58,2,FALSE)=0,"",VLOOKUP(Y78,'Footnotes list'!$D$9:$E$58,2,FALSE) ) ) ->  | AA78: 1888.9 | AE78: =IF(TRIM(AD78)="", "", IF(VLOOKUP(AD78,'Footnotes list'!$D$9:$E$58,2,FALSE)=0,"",VLOOKUP(AD78,'Footnotes list'!$D$9:$E$58,2,FALSE) ) ) ->  | AF78: 1453.535 | AJ78: =IF(TRIM(AI78)="", "", IF(VLOOKUP(AI78,'Footnotes list'!$D$9:$E$58,2,FALSE)=0,"",VLOOKUP(AI78,'Footnotes list'!$D$9:$E$58,2,FALSE) ) ) ->  | AK78: 283.793 | AO78: =IF(TRIM(AN78)="", "", IF(VLOOKUP(AN78,'Footnotes list'!$D$9:$E$58,2,FALSE)=0,"",VLOOKUP(AN78,'Footnotes list'!$D$9:$E$58,2,FALSE) ) ) ->  | AP78: 3292.648 | AT78: =IF(TRIM(AS78)="", "", IF(VLOOKUP(AS78,'Footnotes list'!$D$9:$E$58,2,FALSE)=0,"",VLOOKUP(AS78,'Footnotes list'!$D$9:$E$58,2,FALSE) ) ) ->  | AU78: 1416.762 | AY78: =IF(TRIM(AX78)="", "", IF(VLOOKUP(AX78,'Footnotes list'!$D$9:$E$58,2,FALSE)=0,"",VLOOKUP(AX78,'Footnotes list'!$D$9:$E$58,2,FALSE) ) ) ->  | AZ78: 5159.542 | BD78: =IF(TRIM(BC78)="", "", IF(VLOOKUP(BC78,'Footnotes list'!$D$9:$E$58,2,FALSE)=0,"",VLOOKUP(BC78,'Footnotes list'!$D$9:$E$58,2,FALSE) ) ) ->  | BE78: 4826.73 | BI78: =IF(TRIM(BH78)="", "", IF(VLOOKUP(BH78,'Footnotes list'!$D$9:$E$58,2,FALSE)=0,"",VLOOKUP(BH78,'Footnotes list'!$D$9:$E$58,2,FALSE) ) ) ->  | BJ78: 3846.435 | BN78: =IF(TRIM(BM78)="", "", IF(VLOOKUP(BM78,'Footnotes list'!$D$9:$E$58,2,FALSE)=0,"",VLOOKUP(BM78,'Footnotes list'!$D$9:$E$58,2,FALSE) ) ) ->  | BO78: =IF(AND(TRIM(Q78)="",TRIM(V78)="",TRIM(AA78)="", TRIM(AF78)="", TRIM(AK78)="", TRIM(AP78)="", TRIM(AU78)="", TRIM(AZ78)="", TRIM(BE78)="", TRIM(BJ78)=""),"",Q78+V78+AA78+AF78+AK78+AP78+AU78+AZ78+BE78+BJ78) -> 30716.192 | BS78: =IF(TRIM(BR78)="", "", IF(VLOOKUP(BR78,'Footnotes list'!$D$9:$E$58,2,FALSE)=0,"",VLOOKUP(BR78,'Footnotes list'!$D$9:$E$58,2,FALSE) ) ) ->  | BT78: 1633.578 | BX78: =IF(TRIM(BW78)="", "", IF(VLOOKUP(BW78,'Footnotes list'!$D$9:$E$58,2,FALSE)=0,"",VLOOKUP(BW78,'Footnotes list'!$D$9:$E$58,2,FALSE) ) ) ->  | BY78: 1167.658 | CC78: =IF(TRIM(CB78)="", "", IF(VLOOKUP(CB78,'Footnotes list'!$D$9:$E$58,2,FALSE)=0,"",VLOOKUP(CB78,'Footnotes list'!$D$9:$E$58,2,FALSE) ) ) ->  | CD78: 60496.179 | CH78: =IF(TRIM(CG78)="", "", IF(VLOOKUP(CG78,'Footnotes list'!$D$9:$E$58,2,FALSE)=0,"",VLOOKUP(CG78,'Footnotes list'!$D$9:$E$58,2,FALSE) ) ) ->  | CI78: =IF(AND(TRIM(BY78)="",TRIM(CD78)=""),"",BY78+CD78) -> 61663.837 | CM78: =IF(TRIM(CL78)="", "", IF(VLOOKUP(CL78,'Footnotes list'!$D$9:$E$58,2,FALSE)=0,"",VLOOKUP(CL78,'Footnotes list'!$D$9:$E$58,2,FALSE) ) ) ->  | CN78: 17226.25 | CR78: =IF(TRIM(CQ78)="", "", IF(VLOOKUP(CQ78,'Footnotes list'!$D$9:$E$58,2,FALSE)=0,"",VLOOKUP(CQ78,'Footnotes list'!$D$9:$E$58,2,FALSE) ) ) ->  | CS78: 165638.444 | CW78: =IF(TRIM(CV78)="", "", IF(VLOOKUP(CV78,'Footnotes list'!$D$9:$E$58,2,FALSE)=0,"",VLOOKUP(CV78,'Footnotes list'!$D$9:$E$58,2,FALSE) ) ) ->  | CX78: 38.92 | DB78: =IF(TRIM(DA78)="", "", IF(VLOOKUP(DA78,'Footnotes list'!$D$9:$E$58,2,FALSE)=0,"",VLOOKUP(DA78,'Footnotes list'!$D$9:$E$58,2,FALSE) ) ) ->  | DC78: 914885.789 | DG78: =IF(TRIM(DF78)="", "", IF(VLOOKUP(DF78,'Footnotes list'!$D$9:$E$58,2,FALSE)=0,"",VLOOKUP(DF78,'Footnotes list'!$D$9:$E$58,2,FALSE) ) ) ->  | DH78: =IF(AND(TRIM(G78)="",TRIM(L78)="",TRIM(BO78)="",TRIM(BT78)="",TRIM(CI78)="",TRIM(CN78)="",TRIM(CS78)="",TRIM(CX78)="",TRIM(DC78)=""),"",SUM(G78,L78,BO78,BT78,CI78,CN78,CS78,CX78,DC78)) -> 1197905.043 | DL78: =IF(TRIM(DK78)="", "", IF(VLOOKUP(DK78,'Footnotes list'!$D$9:$E$58,2,FALSE)=0,"",VLOOKUP(DK78,'Footnotes list'!$D$9:$E$58,2,FALSE) ) ) -> 
C79: W101 | E79: HAZ_NHAZ | F79: Total | G79: =IF(AND(TRIM(G77)="",TRIM(G78)=""),"",G77+G78) -> 5661.558 | K79: =IF(TRIM(J79)="", "", IF(VLOOKUP(J79,'Footnotes list'!$D$9:$E$58,2,FALSE)=0,"",VLOOKUP(J79,'Footnotes list'!$D$9:$E$58,2,FALSE) ) ) ->  | L79: =IF(AND(TRIM(L77)="",TRIM(L78)=""),"",L77+L78) -> 440.475 | P79: =IF(TRIM(O79)="", "", IF(VLOOKUP(O79,'Footnotes list'!$D$9:$E$58,2,FALSE)=0,"",VLOOKUP(O79,'Footnotes list'!$D$9:$E$58,2,FALSE) ) ) ->  | Q79: =IF(AND(TRIM(Q77)="",TRIM(Q78)=""),"",Q77+Q78) -> 6292.515 | U79: =IF(TRIM(T79)="", "", IF(VLOOKUP(T79,'Footnotes list'!$D$9:$E$58,2,FALSE)=0,"",VLOOKUP(T79,'Footnotes list'!$D$9:$E$58,2,FALSE) ) ) ->  | V79: =IF(AND(TRIM(V77)="",TRIM(V78)=""),"",V77+V78) -> 2255.332 | Z79: =IF(TRIM(Y79)="", "", IF(VLOOKUP(Y79,'Footnotes list'!$D$9:$E$58,2,FALSE)=0,"",VLOOKUP(Y79,'Footnotes list'!$D$9:$E$58,2,FALSE) ) ) ->  | AA79: =IF(AND(TRIM(AA77)="",TRIM(AA78)=""),"",AA77+AA78) -> 1888.9 | AE79: =IF(TRIM(AD79)="", "", IF(VLOOKUP(AD79,'Footnotes list'!$D$9:$E$58,2,FALSE)=0,"",VLOOKUP(AD79,'Footnotes list'!$D$9:$E$58,2,FALSE) ) ) ->  | AF79: =IF(AND(TRIM(AF77)="",TRIM(AF78)=""),"",AF77+AF78) -> 1453.535 | AJ79: =IF(TRIM(AI79)="", "", IF(VLOOKUP(AI79,'Footnotes list'!$D$9:$E$58,2,FALSE)=0,"",VLOOKUP(AI79,'Footnotes list'!$D$9:$E$58,2,FALSE) ) ) ->  | AK79: =IF(AND(TRIM(AK77)="",TRIM(AK78)=""),"",AK77+AK78) -> 283.793 | AO79: =IF(TRIM(AN79)="", "", IF(VLOOKUP(AN79,'Footnotes list'!$D$9:$E$58,2,FALSE)=0,"",VLOOKUP(AN79,'Footnotes list'!$D$9:$E$58,2,FALSE) ) ) ->  | AP79: =IF(AND(TRIM(AP77)="",TRIM(AP78)=""),"",AP77+AP78) -> 3292.648 | AT79: =IF(TRIM(AS79)="", "", IF(VLOOKUP(AS79,'Footnotes list'!$D$9:$E$58,2,FALSE)=0,"",VLOOKUP(AS79,'Footnotes list'!$D$9:$E$58,2,FALSE) ) ) ->  | AU79: =IF(AND(TRIM(AU77)="",TRIM(AU78)=""),"",AU77+AU78) -> 1416.762 | AY79: =IF(TRIM(AX79)="", "", IF(VLOOKUP(AX79,'Footnotes list'!$D$9:$E$58,2,FALSE)=0,"",VLOOKUP(AX79,'Footnotes list'!$D$9:$E$58,2,FALSE) ) ) ->  | AZ79: =IF(AND(TRIM(AZ77)="",TRIM(AZ78)=""),"",AZ77+AZ78) -> 5159.542 | BD79: =IF(TRIM(BC79)="", "", IF(VLOOKUP(BC79,'Footnotes list'!$D$9:$E$58,2,FALSE)=0,"",VLOOKUP(BC79,'Footnotes list'!$D$9:$E$58,2,FALSE) ) ) ->  | BE79: =IF(AND(TRIM(BE77)="",TRIM(BE78)=""),"",BE77+BE78) -> 4826.73 | BI79: =IF(TRIM(BH79)="", "", IF(VLOOKUP(BH79,'Footnotes list'!$D$9:$E$58,2,FALSE)=0,"",VLOOKUP(BH79,'Footnotes list'!$D$9:$E$58,2,FALSE) ) ) ->  | BJ79: =IF(AND(TRIM(BJ77)="",TRIM(BJ78)=""),"",BJ77+BJ78) -> 3846.435 | BN79: =IF(TRIM(BM79)="", "", IF(VLOOKUP(BM79,'Footnotes list'!$D$9:$E$58,2,FALSE)=0,"",VLOOKUP(BM79,'Footnotes list'!$D$9:$E$58,2,FALSE) ) ) ->  | BO79: =IF(AND(TRIM(BO77)="", TRIM(BO78)=""), "", (IF(ISNUMBER(BO77),BO77,0)+IF(ISNUMBER(BO78),BO78,0))) -> 30716.192 | BS79: =IF(TRIM(BR79)="", "", IF(VLOOKUP(BR79,'Footnotes list'!$D$9:$E$58,2,FALSE)=0,"",VLOOKUP(BR79,'Footnotes list'!$D$9:$E$58,2,FALSE) ) ) ->  | BT79: =IF(AND(TRIM(BT77)="",TRIM(BT78)=""),"",BT77+BT78) -> 1633.578 | BX79: =IF(TRIM(BW79)="", "", IF(VLOOKUP(BW79,'Footnotes list'!$D$9:$E$58,2,FALSE)=0,"",VLOOKUP(BW79,'Footnotes list'!$D$9:$E$58,2,FALSE) ) ) ->  | BY79: =IF(AND(TRIM(BY77)="",TRIM(BY78)=""),"",BY77+BY78) -> 1167.658 | CC79: =IF(TRIM(CB79)="", "", IF(VLOOKUP(CB79,'Footnotes list'!$D$9:$E$58,2,FALSE)=0,"",VLOOKUP(CB79,'Footnotes list'!$D$9:$E$58,2,FALSE) ) ) ->  | CD79: =IF(AND(TRIM(CD77)="",TRIM(CD78)=""),"",CD77+CD78) -> 60496.179 | CH79: =IF(TRIM(CG79)="", "", IF(VLOOKUP(CG79,'Footnotes list'!$D$9:$E$58,2,FALSE)=0,"",VLOOKUP(CG79,'Footnotes list'!$D$9:$E$58,2,FALSE) ) ) ->  | CI79: =IF(AND(TRIM(CI77)="", TRIM(CI78)=""), "", (IF(ISNUMBER(CI77),CI77,0)+IF(ISNUMBER(CI78),CI78,0))) -> 61663.837 | CM79: =IF(TRIM(CL79)="", "", IF(VLOOKUP(CL79,'Footnotes list'!$D$9:$E$58,2,FALSE)=0,"",VLOOKUP(CL79,'Footnotes list'!$D$9:$E$58,2,FALSE) ) ) ->  | CN79: =IF(AND(TRIM(CN77)="",TRIM(CN78)=""),"",CN77+CN78) -> 17226.25 | CR79: =IF(TRIM(CQ79)="", "", IF(VLOOKUP(CQ79,'Footnotes list'!$D$9:$E$58,2,FALSE)=0,"",VLOOKUP(CQ79,'Footnotes list'!$D$9:$E$58,2,FALSE) ) ) ->  | CS79: =IF(AND(TRIM(CS77)="",TRIM(CS78)=""),"",CS77+CS78) -> 165638.444 | CW79: =IF(TRIM(CV79)="", "", IF(VLOOKUP(CV79,'Footnotes list'!$D$9:$E$58,2,FALSE)=0,"",VLOOKUP(CV79,'Footnotes list'!$D$9:$E$58,2,FALSE) ) ) ->  | CX79: =IF(AND(TRIM(CX77)="",TRIM(CX78)=""),"",CX77+CX78) -> 38.92 | DB79: =IF(TRIM(DA79)="", "", IF(VLOOKUP(DA79,'Footnotes list'!$D$9:$E$58,2,FALSE)=0,"",VLOOKUP(DA79,'Footnotes list'!$D$9:$E$58,2,FALSE) ) ) ->  | DC79: =IF(AND(TRIM(DC77)="",TRIM(DC78)=""),"",DC77+DC78) -> 914885.789 | DG79: =IF(TRIM(DF79)="", "", IF(VLOOKUP(DF79,'Footnotes list'!$D$9:$E$58,2,FALSE)=0,"",VLOOKUP(DF79,'Footnotes list'!$D$9:$E$58,2,FALSE) ) ) ->  | DH79: =IF(AND(TRIM(DH77)="", TRIM(DH78)=""), "", SUM(DH77,DH78) ) -> 1197905.043 | DL79: =IF(TRIM(DK79)="", "", IF(VLOOKUP(DK79,'Footnotes list'!$D$9:$E$58,2,FALSE)=0,"",VLOOKUP(DK79,'Footnotes list'!$D$9:$E$58,2,FALSE) ) ) -> 
B80: W102 | C80: W102 | D80: Mixed and undifferentiated materials | E80: HAZ | F80: Hazardous | G80: 0.08 | K80: =IF(TRIM(J80)="", "", IF(VLOOKUP(J80,'Footnotes list'!$D$9:$E$58,2,FALSE)=0,"",VLOOKUP(J80,'Footnotes list'!$D$9:$E$58,2,FALSE) ) ) ->  | L80: 13.675 | P80: =IF(TRIM(O80)="", "", IF(VLOOKUP(O80,'Footnotes list'!$D$9:$E$58,2,FALSE)=0,"",VLOOKUP(O80,'Footnotes list'!$D$9:$E$58,2,FALSE) ) ) ->  | Q80: 4.043 | U80: =IF(TRIM(T80)="", "", IF(VLOOKUP(T80,'Footnotes list'!$D$9:$E$58,2,FALSE)=0,"",VLOOKUP(T80,'Footnotes list'!$D$9:$E$58,2,FALSE) ) ) ->  | V80: 0 | Z80: =IF(TRIM(Y80)="", "", IF(VLOOKUP(Y80,'Footnotes list'!$D$9:$E$58,2,FALSE)=0,"",VLOOKUP(Y80,'Footnotes list'!$D$9:$E$58,2,FALSE) ) ) ->  | AA80: 0.005 | AE80: =IF(TRIM(AD80)="", "", IF(VLOOKUP(AD80,'Footnotes list'!$D$9:$E$58,2,FALSE)=0,"",VLOOKUP(AD80,'Footnotes list'!$D$9:$E$58,2,FALSE) ) ) ->  | AF80: 1.056 | AJ80: =IF(TRIM(AI80)="", "", IF(VLOOKUP(AI80,'Footnotes list'!$D$9:$E$58,2,FALSE)=0,"",VLOOKUP(AI80,'Footnotes list'!$D$9:$E$58,2,FALSE) ) ) ->  | AK80: 0 | AO80: =IF(TRIM(AN80)="", "", IF(VLOOKUP(AN80,'Footnotes list'!$D$9:$E$58,2,FALSE)=0,"",VLOOKUP(AN80,'Footnotes list'!$D$9:$E$58,2,FALSE) ) ) ->  | AP80: 157.912 | AT80: =IF(TRIM(AS80)="", "", IF(VLOOKUP(AS80,'Footnotes list'!$D$9:$E$58,2,FALSE)=0,"",VLOOKUP(AS80,'Footnotes list'!$D$9:$E$58,2,FALSE) ) ) ->  | AU80: 0 | AY80: =IF(TRIM(AX80)="", "", IF(VLOOKUP(AX80,'Footnotes list'!$D$9:$E$58,2,FALSE)=0,"",VLOOKUP(AX80,'Footnotes list'!$D$9:$E$58,2,FALSE) ) ) ->  | AZ80: 19.642 | BD80: =IF(TRIM(BC80)="", "", IF(VLOOKUP(BC80,'Footnotes list'!$D$9:$E$58,2,FALSE)=0,"",VLOOKUP(BC80,'Footnotes list'!$D$9:$E$58,2,FALSE) ) ) ->  | BE80: 16.249 | BI80: =IF(TRIM(BH80)="", "", IF(VLOOKUP(BH80,'Footnotes list'!$D$9:$E$58,2,FALSE)=0,"",VLOOKUP(BH80,'Footnotes list'!$D$9:$E$58,2,FALSE) ) ) ->  | BJ80: 28.56 | BN80: =IF(TRIM(BM80)="", "", IF(VLOOKUP(BM80,'Footnotes list'!$D$9:$E$58,2,FALSE)=0,"",VLOOKUP(BM80,'Footnotes list'!$D$9:$E$58,2,FALSE) ) ) ->  | BO80: =IF(AND(TRIM(Q80)="",TRIM(V80)="",TRIM(AA80)="", TRIM(AF80)="", TRIM(AK80)="", TRIM(AP80)="", TRIM(AU80)="", TRIM(AZ80)="", TRIM(BE80)="", TRIM(BJ80)=""),"",Q80+V80+AA80+AF80+AK80+AP80+AU80+AZ80+BE80+BJ80) -> 227.467 | BS80: =IF(TRIM(BR80)="", "", IF(VLOOKUP(BR80,'Footnotes list'!$D$9:$E$58,2,FALSE)=0,"",VLOOKUP(BR80,'Footnotes list'!$D$9:$E$58,2,FALSE) ) ) ->  | BT80: 0 | BX80: =IF(TRIM(BW80)="", "", IF(VLOOKUP(BW80,'Footnotes list'!$D$9:$E$58,2,FALSE)=0,"",VLOOKUP(BW80,'Footnotes list'!$D$9:$E$58,2,FALSE) ) ) ->  | BY80: 0 | CC80: =IF(TRIM(CB80)="", "", IF(VLOOKUP(CB80,'Footnotes list'!$D$9:$E$58,2,FALSE)=0,"",VLOOKUP(CB80,'Footnotes list'!$D$9:$E$58,2,FALSE) ) ) ->  | CD80: 12.819 | CH80: =IF(TRIM(CG80)="", "", IF(VLOOKUP(CG80,'Footnotes list'!$D$9:$E$58,2,FALSE)=0,"",VLOOKUP(CG80,'Footnotes list'!$D$9:$E$58,2,FALSE) ) ) ->  | CI80: =IF(AND(TRIM(BY80)="",TRIM(CD80)=""),"",BY80+CD80) -> 12.819 | CM80: =IF(TRIM(CL80)="", "", IF(VLOOKUP(CL80,'Footnotes list'!$D$9:$E$58,2,FALSE)=0,"",VLOOKUP(CL80,'Footnotes list'!$D$9:$E$58,2,FALSE) ) ) ->  | CN80: 1492.98 | CR80: =IF(TRIM(CQ80)="", "", IF(VLOOKUP(CQ80,'Footnotes list'!$D$9:$E$58,2,FALSE)=0,"",VLOOKUP(CQ80,'Footnotes list'!$D$9:$E$58,2,FALSE) ) ) ->  | CS80: 213.384 | CW80: =IF(TRIM(CV80)="", "", IF(VLOOKUP(CV80,'Footnotes list'!$D$9:$E$58,2,FALSE)=0,"",VLOOKUP(CV80,'Footnotes list'!$D$9:$E$58,2,FALSE) ) ) ->  | CX80: 0 | DB80: =IF(TRIM(DA80)="", "", IF(VLOOKUP(DA80,'Footnotes list'!$D$9:$E$58,2,FALSE)=0,"",VLOOKUP(DA80,'Footnotes list'!$D$9:$E$58,2,FALSE) ) ) ->  | DC80: 0.46 | DG80: =IF(TRIM(DF80)="", "", IF(VLOOKUP(DF80,'Footnotes list'!$D$9:$E$58,2,FALSE)=0,"",VLOOKUP(DF80,'Footnotes list'!$D$9:$E$58,2,FALSE) ) ) ->  | DH80: =IF(AND(TRIM(G80)="",TRIM(L80)="",TRIM(BO80)="",TRIM(BT80)="",TRIM(CI80)="",TRIM(CN80)="",TRIM(CS80)="",TRIM(CX80)="",TRIM(DC80)=""),"",SUM(G80,L80,BO80,BT80,CI80,CN80,CS80,CX80,DC80)) -> 1960.865 | DL80: =IF(TRIM(DK80)="", "", IF(VLOOKUP(DK80,'Footnotes list'!$D$9:$E$58,2,FALSE)=0,"",VLOOKUP(DK80,'Footnotes list'!$D$9:$E$58,2,FALSE) ) ) -> 
C81: W102 | E81: NHAZ | F81: Non-hazardous | G81: 787.65 | K81: =IF(TRIM(J81)="", "", IF(VLOOKUP(J81,'Footnotes list'!$D$9:$E$58,2,FALSE)=0,"",VLOOKUP(J81,'Footnotes list'!$D$9:$E$58,2,FALSE) ) ) ->  | L81: 47.835 | P81: =IF(TRIM(O81)="", "", IF(VLOOKUP(O81,'Footnotes list'!$D$9:$E$58,2,FALSE)=0,"",VLOOKUP(O81,'Footnotes list'!$D$9:$E$58,2,FALSE) ) ) ->  | Q81: 15183.574 | U81: =IF(TRIM(T81)="", "", IF(VLOOKUP(T81,'Footnotes list'!$D$9:$E$58,2,FALSE)=0,"",VLOOKUP(T81,'Footnotes list'!$D$9:$E$58,2,FALSE) ) ) ->  | V81: 856.331 | Z81: =IF(TRIM(Y81)="", "", IF(VLOOKUP(Y81,'Footnotes list'!$D$9:$E$58,2,FALSE)=0,"",VLOOKUP(Y81,'Footnotes list'!$D$9:$E$58,2,FALSE) ) ) ->  | AA81: 58.515 | AE81: =IF(TRIM(AD81)="", "", IF(VLOOKUP(AD81,'Footnotes list'!$D$9:$E$58,2,FALSE)=0,"",VLOOKUP(AD81,'Footnotes list'!$D$9:$E$58,2,FALSE) ) ) ->  | AF81: 32933.282 | AJ81: =IF(TRIM(AI81)="", "", IF(VLOOKUP(AI81,'Footnotes list'!$D$9:$E$58,2,FALSE)=0,"",VLOOKUP(AI81,'Footnotes list'!$D$9:$E$58,2,FALSE) ) ) ->  | AK81: 2213.2 | AO81: =IF(TRIM(AN81)="", "", IF(VLOOKUP(AN81,'Footnotes list'!$D$9:$E$58,2,FALSE)=0,"",VLOOKUP(AN81,'Footnotes list'!$D$9:$E$58,2,FALSE) ) ) ->  | AP81: 1677.004 | AT81: =IF(TRIM(AS81)="", "", IF(VLOOKUP(AS81,'Footnotes list'!$D$9:$E$58,2,FALSE)=0,"",VLOOKUP(AS81,'Footnotes list'!$D$9:$E$58,2,FALSE) ) ) ->  | AU81: 3013.709 | AY81: =IF(TRIM(AX81)="", "", IF(VLOOKUP(AX81,'Footnotes list'!$D$9:$E$58,2,FALSE)=0,"",VLOOKUP(AX81,'Footnotes list'!$D$9:$E$58,2,FALSE) ) ) ->  | AZ81: 2591.88 | BD81: =IF(TRIM(BC81)="", "", IF(VLOOKUP(BC81,'Footnotes list'!$D$9:$E$58,2,FALSE)=0,"",VLOOKUP(BC81,'Footnotes list'!$D$9:$E$58,2,FALSE) ) ) ->  | BE81: 2695.658 | BI81: =IF(TRIM(BH81)="", "", IF(VLOOKUP(BH81,'Footnotes list'!$D$9:$E$58,2,FALSE)=0,"",VLOOKUP(BH81,'Footnotes list'!$D$9:$E$58,2,FALSE) ) ) ->  | BJ81: 325.464 | BN81: =IF(TRIM(BM81)="", "", IF(VLOOKUP(BM81,'Footnotes list'!$D$9:$E$58,2,FALSE)=0,"",VLOOKUP(BM81,'Footnotes list'!$D$9:$E$58,2,FALSE) ) ) ->  | BO81: =IF(AND(TRIM(Q81)="",TRIM(V81)="",TRIM(AA81)="", TRIM(AF81)="", TRIM(AK81)="", TRIM(AP81)="", TRIM(AU81)="", TRIM(AZ81)="", TRIM(BE81)="", TRIM(BJ81)=""),"",Q81+V81+AA81+AF81+AK81+AP81+AU81+AZ81+BE81+BJ81) -> 61548.617 | BS81: =IF(TRIM(BR81)="", "", IF(VLOOKUP(BR81,'Footnotes list'!$D$9:$E$58,2,FALSE)=0,"",VLOOKUP(BR81,'Footnotes list'!$D$9:$E$58,2,FALSE) ) ) ->  | BT81: 0 | BX81: =IF(TRIM(BW81)="", "", IF(VLOOKUP(BW81,'Footnotes list'!$D$9:$E$58,2,FALSE)=0,"",VLOOKUP(BW81,'Footnotes list'!$D$9:$E$58,2,FALSE) ) ) ->  | BY81: 3639.468 | CC81: =IF(TRIM(CB81)="", "", IF(VLOOKUP(CB81,'Footnotes list'!$D$9:$E$58,2,FALSE)=0,"",VLOOKUP(CB81,'Footnotes list'!$D$9:$E$58,2,FALSE) ) ) ->  | CD81: 51561.892 | CH81: =IF(TRIM(CG81)="", "", IF(VLOOKUP(CG81,'Footnotes list'!$D$9:$E$58,2,FALSE)=0,"",VLOOKUP(CG81,'Footnotes list'!$D$9:$E$58,2,FALSE) ) ) ->  | CI81: =IF(AND(TRIM(BY81)="",TRIM(CD81)=""),"",BY81+CD81) -> 55201.36 | CM81: =IF(TRIM(CL81)="", "", IF(VLOOKUP(CL81,'Footnotes list'!$D$9:$E$58,2,FALSE)=0,"",VLOOKUP(CL81,'Footnotes list'!$D$9:$E$58,2,FALSE) ) ) ->  | CN81: 703.931 | CR81: =IF(TRIM(CQ81)="", "", IF(VLOOKUP(CQ81,'Footnotes list'!$D$9:$E$58,2,FALSE)=0,"",VLOOKUP(CQ81,'Footnotes list'!$D$9:$E$58,2,FALSE) ) ) ->  | CS81: 3955.835 | CW81: =IF(TRIM(CV81)="", "", IF(VLOOKUP(CV81,'Footnotes list'!$D$9:$E$58,2,FALSE)=0,"",VLOOKUP(CV81,'Footnotes list'!$D$9:$E$58,2,FALSE) ) ) ->  | CX81: 0.67 | DB81: =IF(TRIM(DA81)="", "", IF(VLOOKUP(DA81,'Footnotes list'!$D$9:$E$58,2,FALSE)=0,"",VLOOKUP(DA81,'Footnotes list'!$D$9:$E$58,2,FALSE) ) ) ->  | DC81: 13083.838 | DG81: =IF(TRIM(DF81)="", "", IF(VLOOKUP(DF81,'Footnotes list'!$D$9:$E$58,2,FALSE)=0,"",VLOOKUP(DF81,'Footnotes list'!$D$9:$E$58,2,FALSE) ) ) ->  | DH81: =IF(AND(TRIM(G81)="",TRIM(L81)="",TRIM(BO81)="",TRIM(BT81)="",TRIM(CI81)="",TRIM(CN81)="",TRIM(CS81)="",TRIM(CX81)="",TRIM(DC81)=""),"",SUM(G81,L81,BO81,BT81,CI81,CN81,CS81,CX81,DC81)) -> 135329.736 | DL81: =IF(TRIM(DK81)="", "", IF(VLOOKUP(DK81,'Footnotes list'!$D$9:$E$58,2,FALSE)=0,"",VLOOKUP(DK81,'Footnotes list'!$D$9:$E$58,2,FALSE) ) ) -> 
C82: W102 | E82: HAZ_NHAZ | F82: Total | G82: =IF(AND(TRIM(G80)="",TRIM(G81)=""),"",G80+G81) -> 787.73 | K82: =IF(TRIM(J82)="", "", IF(VLOOKUP(J82,'Footnotes list'!$D$9:$E$58,2,FALSE)=0,"",VLOOKUP(J82,'Footnotes list'!$D$9:$E$58,2,FALSE) ) ) ->  | L82: =IF(AND(TRIM(L80)="",TRIM(L81)=""),"",L80+L81) -> 61.51 | P82: =IF(TRIM(O82)="", "", IF(VLOOKUP(O82,'Footnotes list'!$D$9:$E$58,2,FALSE)=0,"",VLOOKUP(O82,'Footnotes list'!$D$9:$E$58,2,FALSE) ) ) ->  | Q82: =IF(AND(TRIM(Q80)="",TRIM(Q81)=""),"",Q80+Q81) -> 15187.617 | U82: =IF(TRIM(T82)="", "", IF(VLOOKUP(T82,'Footnotes list'!$D$9:$E$58,2,FALSE)=0,"",VLOOKUP(T82,'Footnotes list'!$D$9:$E$58,2,FALSE) ) ) ->  | V82: =IF(AND(TRIM(V80)="",TRIM(V81)=""),"",V80+V81) -> 856.331 | Z82: =IF(TRIM(Y82)="", "", IF(VLOOKUP(Y82,'Footnotes list'!$D$9:$E$58,2,FALSE)=0,"",VLOOKUP(Y82,'Footnotes list'!$D$9:$E$58,2,FALSE) ) ) ->  | AA82: =IF(AND(TRIM(AA80)="",TRIM(AA81)=""),"",AA80+AA81) -> 58.52 | AE82: =IF(TRIM(AD82)="", "", IF(VLOOKUP(AD82,'Footnotes list'!$D$9:$E$58,2,FALSE)=0,"",VLOOKUP(AD82,'Footnotes list'!$D$9:$E$58,2,FALSE) ) ) ->  | AF82: =IF(AND(TRIM(AF80)="",TRIM(AF81)=""),"",AF80+AF81) -> 32934.338 | AJ82: =IF(TRIM(AI82)="", "", IF(VLOOKUP(AI82,'Footnotes list'!$D$9:$E$58,2,FALSE)=0,"",VLOOKUP(AI82,'Footnotes list'!$D$9:$E$58,2,FALSE) ) ) ->  | AK82: =IF(AND(TRIM(AK80)="",TRIM(AK81)=""),"",AK80+AK81) -> 2213.2 | AO82: =IF(TRIM(AN82)="", "", IF(VLOOKUP(AN82,'Footnotes list'!$D$9:$E$58,2,FALSE)=0,"",VLOOKUP(AN82,'Footnotes list'!$D$9:$E$58,2,FALSE) ) ) ->  | AP82: =IF(AND(TRIM(AP80)="",TRIM(AP81)=""),"",AP80+AP81) -> 1834.916 | AT82: =IF(TRIM(AS82)="", "", IF(VLOOKUP(AS82,'Footnotes list'!$D$9:$E$58,2,FALSE)=0,"",VLOOKUP(AS82,'Footnotes list'!$D$9:$E$58,2,FALSE) ) ) ->  | AU82: =IF(AND(TRIM(AU80)="",TRIM(AU81)=""),"",AU80+AU81) -> 3013.709 | AY82: =IF(TRIM(AX82)="", "", IF(VLOOKUP(AX82,'Footnotes list'!$D$9:$E$58,2,FALSE)=0,"",VLOOKUP(AX82,'Footnotes list'!$D$9:$E$58,2,FALSE) ) ) ->  | AZ82: =IF(AND(TRIM(AZ80)="",TRIM(AZ81)=""),"",AZ80+AZ81) -> 2611.522 | BD82: =IF(TRIM(BC82)="", "", IF(VLOOKUP(BC82,'Footnotes list'!$D$9:$E$58,2,FALSE)=0,"",VLOOKUP(BC82,'Footnotes list'!$D$9:$E$58,2,FALSE) ) ) ->  | BE82: =IF(AND(TRIM(BE80)="",TRIM(BE81)=""),"",BE80+BE81) -> 2711.907 | BI82: =IF(TRIM(BH82)="", "", IF(VLOOKUP(BH82,'Footnotes list'!$D$9:$E$58,2,FALSE)=0,"",VLOOKUP(BH82,'Footnotes list'!$D$9:$E$58,2,FALSE) ) ) ->  | BJ82: =IF(AND(TRIM(BJ80)="",TRIM(BJ81)=""),"",BJ80+BJ81) -> 354.024 | BN82: =IF(TRIM(BM82)="", "", IF(VLOOKUP(BM82,'Footnotes list'!$D$9:$E$58,2,FALSE)=0,"",VLOOKUP(BM82,'Footnotes list'!$D$9:$E$58,2,FALSE) ) ) ->  | BO82: =IF(AND(TRIM(BO80)="", TRIM(BO81)=""), "", (IF(ISNUMBER(BO80),BO80,0)+IF(ISNUMBER(BO81),BO81,0))) -> 61776.084 | BS82: =IF(TRIM(BR82)="", "", IF(VLOOKUP(BR82,'Footnotes list'!$D$9:$E$58,2,FALSE)=0,"",VLOOKUP(BR82,'Footnotes list'!$D$9:$E$58,2,FALSE) ) ) ->  | BT82: =IF(AND(TRIM(BT80)="",TRIM(BT81)=""),"",BT80+BT81) -> 0 | BX82: =IF(TRIM(BW82)="", "", IF(VLOOKUP(BW82,'Footnotes list'!$D$9:$E$58,2,FALSE)=0,"",VLOOKUP(BW82,'Footnotes list'!$D$9:$E$58,2,FALSE) ) ) ->  | BY82: =IF(AND(TRIM(BY80)="",TRIM(BY81)=""),"",BY80+BY81) -> 3639.468 | CC82: =IF(TRIM(CB82)="", "", IF(VLOOKUP(CB82,'Footnotes list'!$D$9:$E$58,2,FALSE)=0,"",VLOOKUP(CB82,'Footnotes list'!$D$9:$E$58,2,FALSE) ) ) ->  | CD82: =IF(AND(TRIM(CD80)="",TRIM(CD81)=""),"",CD80+CD81) -> 51574.711 | CH82: =IF(TRIM(CG82)="", "", IF(VLOOKUP(CG82,'Footnotes list'!$D$9:$E$58,2,FALSE)=0,"",VLOOKUP(CG82,'Footnotes list'!$D$9:$E$58,2,FALSE) ) ) ->  | CI82: =IF(AND(TRIM(CI80)="", TRIM(CI81)=""), "", (IF(ISNUMBER(CI80),CI80,0)+IF(ISNUMBER(CI81),CI81,0))) -> 55214.179 | CM82: =IF(TRIM(CL82)="", "", IF(VLOOKUP(CL82,'Footnotes list'!$D$9:$E$58,2,FALSE)=0,"",VLOOKUP(CL82,'Footnotes list'!$D$9:$E$58,2,FALSE) ) ) ->  | CN82: =IF(AND(TRIM(CN80)="",TRIM(CN81)=""),"",CN80+CN81) -> 2196.911 | CR82: =IF(TRIM(CQ82)="", "", IF(VLOOKUP(CQ82,'Footnotes list'!$D$9:$E$58,2,FALSE)=0,"",VLOOKUP(CQ82,'Footnotes list'!$D$9:$E$58,2,FALSE) ) ) ->  | CS82: =IF(AND(TRIM(CS80)="",TRIM(CS81)=""),"",CS80+CS81) -> 4169.219 | CW82: =IF(TRIM(CV82)="", "", IF(VLOOKUP(CV82,'Footnotes list'!$D$9:$E$58,2,FALSE)=0,"",VLOOKUP(CV82,'Footnotes list'!$D$9:$E$58,2,FALSE) ) ) ->  | CX82: =IF(AND(TRIM(CX80)="",TRIM(CX81)=""),"",CX80+CX81) -> 0.67 | DB82: =IF(TRIM(DA82)="", "", IF(VLOOKUP(DA82,'Footnotes list'!$D$9:$E$58,2,FALSE)=0,"",VLOOKUP(DA82,'Footnotes list'!$D$9:$E$58,2,FALSE) ) ) ->  | DC82: =IF(AND(TRIM(DC80)="",TRIM(DC81)=""),"",DC80+DC81) -> 13084.298 | DG82: =IF(TRIM(DF82)="", "", IF(VLOOKUP(DF82,'Footnotes list'!$D$9:$E$58,2,FALSE)=0,"",VLOOKUP(DF82,'Footnotes list'!$D$9:$E$58,2,FALSE) ) ) ->  | DH82: =IF(AND(TRIM(DH80)="", TRIM(DH81)=""), "", SUM(DH80,DH81) ) -> 137290.601 | DL82: =IF(TRIM(DK82)="", "", IF(VLOOKUP(DK82,'Footnotes list'!$D$9:$E$58,2,FALSE)=0,"",VLOOKUP(DK82,'Footnotes list'!$D$9:$E$58,2,FALSE) ) ) -> 
B83: W103 | C83: W103 | D83: Sorting residues | E83: HAZ | F83: Hazardous | G83: 0 | K83: =IF(TRIM(J83)="", "", IF(VLOOKUP(J83,'Footnotes list'!$D$9:$E$58,2,FALSE)=0,"",VLOOKUP(J83,'Footnotes list'!$D$9:$E$58,2,FALSE) ) ) ->  | L83: 0 | P83: =IF(TRIM(O83)="", "", IF(VLOOKUP(O83,'Footnotes list'!$D$9:$E$58,2,FALSE)=0,"",VLOOKUP(O83,'Footnotes list'!$D$9:$E$58,2,FALSE) ) ) ->  | Q83: 70.38 | U83: =IF(TRIM(T83)="", "", IF(VLOOKUP(T83,'Footnotes list'!$D$9:$E$58,2,FALSE)=0,"",VLOOKUP(T83,'Footnotes list'!$D$9:$E$58,2,FALSE) ) ) ->  | V83: 0 | Z83: =IF(TRIM(Y83)="", "", IF(VLOOKUP(Y83,'Footnotes list'!$D$9:$E$58,2,FALSE)=0,"",VLOOKUP(Y83,'Footnotes list'!$D$9:$E$58,2,FALSE) ) ) ->  | AA83: 0 | AE83: =IF(TRIM(AD83)="", "", IF(VLOOKUP(AD83,'Footnotes list'!$D$9:$E$58,2,FALSE)=0,"",VLOOKUP(AD83,'Footnotes list'!$D$9:$E$58,2,FALSE) ) ) ->  | AF83: 0 | AJ83: =IF(TRIM(AI83)="", "", IF(VLOOKUP(AI83,'Footnotes list'!$D$9:$E$58,2,FALSE)=0,"",VLOOKUP(AI83,'Footnotes list'!$D$9:$E$58,2,FALSE) ) ) ->  | AK83: 0 | AO83: =IF(TRIM(AN83)="", "", IF(VLOOKUP(AN83,'Footnotes list'!$D$9:$E$58,2,FALSE)=0,"",VLOOKUP(AN83,'Footnotes list'!$D$9:$E$58,2,FALSE) ) ) ->  | AP83: 0 | AT83: =IF(TRIM(AS83)="", "", IF(VLOOKUP(AS83,'Footnotes list'!$D$9:$E$58,2,FALSE)=0,"",VLOOKUP(AS83,'Footnotes list'!$D$9:$E$58,2,FALSE) ) ) ->  | AU83: 0 | AY83: =IF(TRIM(AX83)="", "", IF(VLOOKUP(AX83,'Footnotes list'!$D$9:$E$58,2,FALSE)=0,"",VLOOKUP(AX83,'Footnotes list'!$D$9:$E$58,2,FALSE) ) ) ->  | AZ83: 15891.891 | BD83: =IF(TRIM(BC83)="", "", IF(VLOOKUP(BC83,'Footnotes list'!$D$9:$E$58,2,FALSE)=0,"",VLOOKUP(BC83,'Footnotes list'!$D$9:$E$58,2,FALSE) ) ) ->  | BE83: 0 | BI83: =IF(TRIM(BH83)="", "", IF(VLOOKUP(BH83,'Footnotes list'!$D$9:$E$58,2,FALSE)=0,"",VLOOKUP(BH83,'Footnotes list'!$D$9:$E$58,2,FALSE) ) ) ->  | BJ83: 0 | BN83: =IF(TRIM(BM83)="", "", IF(VLOOKUP(BM83,'Footnotes list'!$D$9:$E$58,2,FALSE)=0,"",VLOOKUP(BM83,'Footnotes list'!$D$9:$E$58,2,FALSE) ) ) ->  | BO83: =IF(AND(TRIM(Q83)="",TRIM(V83)="",TRIM(AA83)="", TRIM(AF83)="", TRIM(AK83)="", TRIM(AP83)="", TRIM(AU83)="", TRIM(AZ83)="", TRIM(BE83)="", TRIM(BJ83)=""),"",Q83+V83+AA83+AF83+AK83+AP83+AU83+AZ83+BE83+BJ83) -> 15962.271 | BS83: =IF(TRIM(BR83)="", "", IF(VLOOKUP(BR83,'Footnotes list'!$D$9:$E$58,2,FALSE)=0,"",VLOOKUP(BR83,'Footnotes list'!$D$9:$E$58,2,FALSE) ) ) ->  | BT83: 0 | BX83: =IF(TRIM(BW83)="", "", IF(VLOOKUP(BW83,'Footnotes list'!$D$9:$E$58,2,FALSE)=0,"",VLOOKUP(BW83,'Footnotes list'!$D$9:$E$58,2,FALSE) ) ) ->  | BY83: 438.07 | CC83: =IF(TRIM(CB83)="", "", IF(VLOOKUP(CB83,'Footnotes list'!$D$9:$E$58,2,FALSE)=0,"",VLOOKUP(CB83,'Footnotes list'!$D$9:$E$58,2,FALSE) ) ) ->  | CD83: 546.437 | CH83: =IF(TRIM(CG83)="", "", IF(VLOOKUP(CG83,'Footnotes list'!$D$9:$E$58,2,FALSE)=0,"",VLOOKUP(CG83,'Footnotes list'!$D$9:$E$58,2,FALSE) ) ) ->  | CI83: =IF(AND(TRIM(BY83)="",TRIM(CD83)=""),"",BY83+CD83) -> 984.507 | CM83: =IF(TRIM(CL83)="", "", IF(VLOOKUP(CL83,'Footnotes list'!$D$9:$E$58,2,FALSE)=0,"",VLOOKUP(CL83,'Footnotes list'!$D$9:$E$58,2,FALSE) ) ) ->  | CN83: 0 | CR83: =IF(TRIM(CQ83)="", "", IF(VLOOKUP(CQ83,'Footnotes list'!$D$9:$E$58,2,FALSE)=0,"",VLOOKUP(CQ83,'Footnotes list'!$D$9:$E$58,2,FALSE) ) ) ->  | CS83: 1604.611 | CW83: =IF(TRIM(CV83)="", "", IF(VLOOKUP(CV83,'Footnotes list'!$D$9:$E$58,2,FALSE)=0,"",VLOOKUP(CV83,'Footnotes list'!$D$9:$E$58,2,FALSE) ) ) ->  | CX83: 7.94 | DB83: =IF(TRIM(DA83)="", "", IF(VLOOKUP(DA83,'Footnotes list'!$D$9:$E$58,2,FALSE)=0,"",VLOOKUP(DA83,'Footnotes list'!$D$9:$E$58,2,FALSE) ) ) ->  | DC83: 0 | DG83: =IF(TRIM(DF83)="", "", IF(VLOOKUP(DF83,'Footnotes list'!$D$9:$E$58,2,FALSE)=0,"",VLOOKUP(DF83,'Footnotes list'!$D$9:$E$58,2,FALSE) ) ) ->  | DH83: =IF(AND(TRIM(G83)="",TRIM(L83)="",TRIM(BO83)="",TRIM(BT83)="",TRIM(CI83)="",TRIM(CN83)="",TRIM(CS83)="",TRIM(CX83)="",TRIM(DC83)=""),"",SUM(G83,L83,BO83,BT83,CI83,CN83,CS83,CX83,DC83)) -> 18559.329 | DL83: =IF(TRIM(DK83)="", "", IF(VLOOKUP(DK83,'Footnotes list'!$D$9:$E$58,2,FALSE)=0,"",VLOOKUP(DK83,'Footnotes list'!$D$9:$E$58,2,FALSE) ) ) -> 
C84: W103 | E84: NHAZ | F84: Non-hazardous | G84: 0 | K84: =IF(TRIM(J84)="", "", IF(VLOOKUP(J84,'Footnotes list'!$D$9:$E$58,2,FALSE)=0,"",VLOOKUP(J84,'Footnotes list'!$D$9:$E$58,2,FALSE) ) ) ->  | L84: 0 | P84: =IF(TRIM(O84)="", "", IF(VLOOKUP(O84,'Footnotes list'!$D$9:$E$58,2,FALSE)=0,"",VLOOKUP(O84,'Footnotes list'!$D$9:$E$58,2,FALSE) ) ) ->  | Q84: 0 | U84: =IF(TRIM(T84)="", "", IF(VLOOKUP(T84,'Footnotes list'!$D$9:$E$58,2,FALSE)=0,"",VLOOKUP(T84,'Footnotes list'!$D$9:$E$58,2,FALSE) ) ) ->  | V84: 155.13 | Z84: =IF(TRIM(Y84)="", "", IF(VLOOKUP(Y84,'Footnotes list'!$D$9:$E$58,2,FALSE)=0,"",VLOOKUP(Y84,'Footnotes list'!$D$9:$E$58,2,FALSE) ) ) ->  | AA84: 0 | AE84: =IF(TRIM(AD84)="", "", IF(VLOOKUP(AD84,'Footnotes list'!$D$9:$E$58,2,FALSE)=0,"",VLOOKUP(AD84,'Footnotes list'!$D$9:$E$58,2,FALSE) ) ) ->  | AF84: 0 | AJ84: =IF(TRIM(AI84)="", "", IF(VLOOKUP(AI84,'Footnotes list'!$D$9:$E$58,2,FALSE)=0,"",VLOOKUP(AI84,'Footnotes list'!$D$9:$E$58,2,FALSE) ) ) ->  | AK84: 0 | AO84: =IF(TRIM(AN84)="", "", IF(VLOOKUP(AN84,'Footnotes list'!$D$9:$E$58,2,FALSE)=0,"",VLOOKUP(AN84,'Footnotes list'!$D$9:$E$58,2,FALSE) ) ) ->  | AP84: 401.694 | AT84: =IF(TRIM(AS84)="", "", IF(VLOOKUP(AS84,'Footnotes list'!$D$9:$E$58,2,FALSE)=0,"",VLOOKUP(AS84,'Footnotes list'!$D$9:$E$58,2,FALSE) ) ) ->  | AU84: 1716.96 | AY84: =IF(TRIM(AX84)="", "", IF(VLOOKUP(AX84,'Footnotes list'!$D$9:$E$58,2,FALSE)=0,"",VLOOKUP(AX84,'Footnotes list'!$D$9:$E$58,2,FALSE) ) ) ->  | AZ84: 1653.053 | BD84: =IF(TRIM(BC84)="", "", IF(VLOOKUP(BC84,'Footnotes list'!$D$9:$E$58,2,FALSE)=0,"",VLOOKUP(BC84,'Footnotes list'!$D$9:$E$58,2,FALSE) ) ) ->  | BE84: 40.12 | BI84: =IF(TRIM(BH84)="", "", IF(VLOOKUP(BH84,'Footnotes list'!$D$9:$E$58,2,FALSE)=0,"",VLOOKUP(BH84,'Footnotes list'!$D$9:$E$58,2,FALSE) ) ) ->  | BJ84: 988.177 | BN84: =IF(TRIM(BM84)="", "", IF(VLOOKUP(BM84,'Footnotes list'!$D$9:$E$58,2,FALSE)=0,"",VLOOKUP(BM84,'Footnotes list'!$D$9:$E$58,2,FALSE) ) ) ->  | BO84: =IF(AND(TRIM(Q84)="",TRIM(V84)="",TRIM(AA84)="", TRIM(AF84)="", TRIM(AK84)="", TRIM(AP84)="", TRIM(AU84)="", TRIM(AZ84)="", TRIM(BE84)="", TRIM(BJ84)=""),"",Q84+V84+AA84+AF84+AK84+AP84+AU84+AZ84+BE84+BJ84) -> 4955.134 | BS84: =IF(TRIM(BR84)="", "", IF(VLOOKUP(BR84,'Footnotes list'!$D$9:$E$58,2,FALSE)=0,"",VLOOKUP(BR84,'Footnotes list'!$D$9:$E$58,2,FALSE) ) ) ->  | BT84: 986.26 | BX84: =IF(TRIM(BW84)="", "", IF(VLOOKUP(BW84,'Footnotes list'!$D$9:$E$58,2,FALSE)=0,"",VLOOKUP(BW84,'Footnotes list'!$D$9:$E$58,2,FALSE) ) ) ->  | BY84: 108.453 | CC84: =IF(TRIM(CB84)="", "", IF(VLOOKUP(CB84,'Footnotes list'!$D$9:$E$58,2,FALSE)=0,"",VLOOKUP(CB84,'Footnotes list'!$D$9:$E$58,2,FALSE) ) ) ->  | CD84: 464677.559 | CH84: =IF(TRIM(CG84)="", "", IF(VLOOKUP(CG84,'Footnotes list'!$D$9:$E$58,2,FALSE)=0,"",VLOOKUP(CG84,'Footnotes list'!$D$9:$E$58,2,FALSE) ) ) ->  | CI84: =IF(AND(TRIM(BY84)="",TRIM(CD84)=""),"",BY84+CD84) -> 464786.012 | CM84: =IF(TRIM(CL84)="", "", IF(VLOOKUP(CL84,'Footnotes list'!$D$9:$E$58,2,FALSE)=0,"",VLOOKUP(CL84,'Footnotes list'!$D$9:$E$58,2,FALSE) ) ) ->  | CN84: 0 | CR84: =IF(TRIM(CQ84)="", "", IF(VLOOKUP(CQ84,'Footnotes list'!$D$9:$E$58,2,FALSE)=0,"",VLOOKUP(CQ84,'Footnotes list'!$D$9:$E$58,2,FALSE) ) ) ->  | CS84: 9831.848 | CW84: =IF(TRIM(CV84)="", "", IF(VLOOKUP(CV84,'Footnotes list'!$D$9:$E$58,2,FALSE)=0,"",VLOOKUP(CV84,'Footnotes list'!$D$9:$E$58,2,FALSE) ) ) ->  | CX84: 3152.477 | DB84: =IF(TRIM(DA84)="", "", IF(VLOOKUP(DA84,'Footnotes list'!$D$9:$E$58,2,FALSE)=0,"",VLOOKUP(DA84,'Footnotes list'!$D$9:$E$58,2,FALSE) ) ) ->  | DC84: 0 | DG84: =IF(TRIM(DF84)="", "", IF(VLOOKUP(DF84,'Footnotes list'!$D$9:$E$58,2,FALSE)=0,"",VLOOKUP(DF84,'Footnotes list'!$D$9:$E$58,2,FALSE) ) ) ->  | DH84: =IF(AND(TRIM(G84)="",TRIM(L84)="",TRIM(BO84)="",TRIM(BT84)="",TRIM(CI84)="",TRIM(CN84)="",TRIM(CS84)="",TRIM(CX84)="",TRIM(DC84)=""),"",SUM(G84,L84,BO84,BT84,CI84,CN84,CS84,CX84,DC84)) -> 483711.731 | DL84: =IF(TRIM(DK84)="", "", IF(VLOOKUP(DK84,'Footnotes list'!$D$9:$E$58,2,FALSE)=0,"",VLOOKUP(DK84,'Footnotes list'!$D$9:$E$58,2,FALSE) ) ) -> 
C85: W103 | E85: HAZ_NHAZ | F85: Total | G85: =IF(AND(TRIM(G83)="",TRIM(G84)=""),"",G83+G84) -> 0 | K85: =IF(TRIM(J85)="", "", IF(VLOOKUP(J85,'Footnotes list'!$D$9:$E$58,2,FALSE)=0,"",VLOOKUP(J85,'Footnotes list'!$D$9:$E$58,2,FALSE) ) ) ->  | L85: =IF(AND(TRIM(L83)="",TRIM(L84)=""),"",L83+L84) -> 0 | P85: =IF(TRIM(O85)="", "", IF(VLOOKUP(O85,'Footnotes list'!$D$9:$E$58,2,FALSE)=0,"",VLOOKUP(O85,'Footnotes list'!$D$9:$E$58,2,FALSE) ) ) ->  | Q85: =IF(AND(TRIM(Q83)="",TRIM(Q84)=""),"",Q83+Q84) -> 70.38 | U85: =IF(TRIM(T85)="", "", IF(VLOOKUP(T85,'Footnotes list'!$D$9:$E$58,2,FALSE)=0,"",VLOOKUP(T85,'Footnotes list'!$D$9:$E$58,2,FALSE) ) ) ->  | V85: =IF(AND(TRIM(V83)="",TRIM(V84)=""),"",V83+V84) -> 155.13 | Z85: =IF(TRIM(Y85)="", "", IF(VLOOKUP(Y85,'Footnotes list'!$D$9:$E$58,2,FALSE)=0,"",VLOOKUP(Y85,'Footnotes list'!$D$9:$E$58,2,FALSE) ) ) ->  | AA85: =IF(AND(TRIM(AA83)="",TRIM(AA84)=""),"",AA83+AA84) -> 0 | AE85: =IF(TRIM(AD85)="", "", IF(VLOOKUP(AD85,'Footnotes list'!$D$9:$E$58,2,FALSE)=0,"",VLOOKUP(AD85,'Footnotes list'!$D$9:$E$58,2,FALSE) ) ) ->  | AF85: =IF(AND(TRIM(AF83)="",TRIM(AF84)=""),"",AF83+AF84) -> 0 | AJ85: =IF(TRIM(AI85)="", "", IF(VLOOKUP(AI85,'Footnotes list'!$D$9:$E$58,2,FALSE)=0,"",VLOOKUP(AI85,'Footnotes list'!$D$9:$E$58,2,FALSE) ) ) ->  | AK85: =IF(AND(TRIM(AK83)="",TRIM(AK84)=""),"",AK83+AK84) -> 0 | AO85: =IF(TRIM(AN85)="", "", IF(VLOOKUP(AN85,'Footnotes list'!$D$9:$E$58,2,FALSE)=0,"",VLOOKUP(AN85,'Footnotes list'!$D$9:$E$58,2,FALSE) ) ) ->  | AP85: =IF(AND(TRIM(AP83)="",TRIM(AP84)=""),"",AP83+AP84) -> 401.694 | AT85: =IF(TRIM(AS85)="", "", IF(VLOOKUP(AS85,'Footnotes list'!$D$9:$E$58,2,FALSE)=0,"",VLOOKUP(AS85,'Footnotes list'!$D$9:$E$58,2,FALSE) ) ) ->  | AU85: =IF(AND(TRIM(AU83)="",TRIM(AU84)=""),"",AU83+AU84) -> 1716.96 | AY85: =IF(TRIM(AX85)="", "", IF(VLOOKUP(AX85,'Footnotes list'!$D$9:$E$58,2,FALSE)=0,"",VLOOKUP(AX85,'Footnotes list'!$D$9:$E$58,2,FALSE) ) ) ->  | AZ85: =IF(AND(TRIM(AZ83)="",TRIM(AZ84)=""),"",AZ83+AZ84) -> 17544.944 | BD85: =IF(TRIM(BC85)="", "", IF(VLOOKUP(BC85,'Footnotes list'!$D$9:$E$58,2,FALSE)=0,"",VLOOKUP(BC85,'Footnotes list'!$D$9:$E$58,2,FALSE) ) ) ->  | BE85: =IF(AND(TRIM(BE83)="",TRIM(BE84)=""),"",BE83+BE84) -> 40.12 | BI85: =IF(TRIM(BH85)="", "", IF(VLOOKUP(BH85,'Footnotes list'!$D$9:$E$58,2,FALSE)=0,"",VLOOKUP(BH85,'Footnotes list'!$D$9:$E$58,2,FALSE) ) ) ->  | BJ85: =IF(AND(TRIM(BJ83)="",TRIM(BJ84)=""),"",BJ83+BJ84) -> 988.177 | BN85: =IF(TRIM(BM85)="", "", IF(VLOOKUP(BM85,'Footnotes list'!$D$9:$E$58,2,FALSE)=0,"",VLOOKUP(BM85,'Footnotes list'!$D$9:$E$58,2,FALSE) ) ) ->  | BO85: =IF(AND(TRIM(BO83)="", TRIM(BO84)=""), "", (IF(ISNUMBER(BO83),BO83,0)+IF(ISNUMBER(BO84),BO84,0))) -> 20917.405 | BS85: =IF(TRIM(BR85)="", "", IF(VLOOKUP(BR85,'Footnotes list'!$D$9:$E$58,2,FALSE)=0,"",VLOOKUP(BR85,'Footnotes list'!$D$9:$E$58,2,FALSE) ) ) ->  | BT85: =IF(AND(TRIM(BT83)="",TRIM(BT84)=""),"",BT83+BT84) -> 986.26 | BX85: =IF(TRIM(BW85)="", "", IF(VLOOKUP(BW85,'Footnotes list'!$D$9:$E$58,2,FALSE)=0,"",VLOOKUP(BW85,'Footnotes list'!$D$9:$E$58,2,FALSE) ) ) ->  | BY85: =IF(AND(TRIM(BY83)="",TRIM(BY84)=""),"",BY83+BY84) -> 546.523 | CC85: =IF(TRIM(CB85)="", "", IF(VLOOKUP(CB85,'Footnotes list'!$D$9:$E$58,2,FALSE)=0,"",VLOOKUP(CB85,'Footnotes list'!$D$9:$E$58,2,FALSE) ) ) ->  | CD85: =IF(AND(TRIM(CD83)="",TRIM(CD84)=""),"",CD83+CD84) -> 465223.996 | CH85: =IF(TRIM(CG85)="", "", IF(VLOOKUP(CG85,'Footnotes list'!$D$9:$E$58,2,FALSE)=0,"",VLOOKUP(CG85,'Footnotes list'!$D$9:$E$58,2,FALSE) ) ) ->  | CI85: =IF(AND(TRIM(CI83)="", TRIM(CI84)=""), "", (IF(ISNUMBER(CI83),CI83,0)+IF(ISNUMBER(CI84),CI84,0))) -> 465770.519 | CM85: =IF(TRIM(CL85)="", "", IF(VLOOKUP(CL85,'Footnotes list'!$D$9:$E$58,2,FALSE)=0,"",VLOOKUP(CL85,'Footnotes list'!$D$9:$E$58,2,FALSE) ) ) ->  | CN85: =IF(AND(TRIM(CN83)="",TRIM(CN84)=""),"",CN83+CN84) -> 0 | CR85: =IF(TRIM(CQ85)="", "", IF(VLOOKUP(CQ85,'Footnotes list'!$D$9:$E$58,2,FALSE)=0,"",VLOOKUP(CQ85,'Footnotes list'!$D$9:$E$58,2,FALSE) ) ) ->  | CS85: =IF(AND(TRIM(CS83)="",TRIM(CS84)=""),"",CS83+CS84) -> 11436.459 | CW85: =IF(TRIM(CV85)="", "", IF(VLOOKUP(CV85,'Footnotes list'!$D$9:$E$58,2,FALSE)=0,"",VLOOKUP(CV85,'Footnotes list'!$D$9:$E$58,2,FALSE) ) ) ->  | CX85: =IF(AND(TRIM(CX83)="",TRIM(CX84)=""),"",CX83+CX84) -> 3160.417 | DB85: =IF(TRIM(DA85)="", "", IF(VLOOKUP(DA85,'Footnotes list'!$D$9:$E$58,2,FALSE)=0,"",VLOOKUP(DA85,'Footnotes list'!$D$9:$E$58,2,FALSE) ) ) ->  | DC85: =IF(AND(TRIM(DC83)="",TRIM(DC84)=""),"",DC83+DC84) -> 0 | DG85: =IF(TRIM(DF85)="", "", IF(VLOOKUP(DF85,'Footnotes list'!$D$9:$E$58,2,FALSE)=0,"",VLOOKUP(DF85,'Footnotes list'!$D$9:$E$58,2,FALSE) ) ) ->  | DH85: =IF(AND(TRIM(DH83)="", TRIM(DH84)=""), "", SUM(DH83,DH84) ) -> 502271.06 | DL85: =IF(TRIM(DK85)="", "", IF(VLOOKUP(DK85,'Footnotes list'!$D$9:$E$58,2,FALSE)=0,"",VLOOKUP(DK85,'Footnotes list'!$D$9:$E$58,2,FALSE) ) ) -> 
B86: W11 | D86: Common sludges | F86: Not applicable
